Workbook

Sheet Mevcut Bağ. Değ. Yaklaşık (hidden)
A1: Adı-Soyadı | B1: Öğrenci No | C1: Vize Notu | D1: Final Notu | E1: Bütünleme Notu | F1: Büt | G1: Vizze | H1: Final | I1: Final Ham başarı Notu | J1: Bütünleme Sonrası Ham başarı notu | L1: Mevcutta Final Harf Notu | M1: Mevcutta Bütte Harf Notu | N1: Sınıf Ortalaması | O1: Standart Sapma | P1: Final Tskor | Q1: Büt Tskor | R1: Standart skor | T1: Mevcut Tabloda Sınıf Ortalaması Aralığı | V1: FF | W1: FD | X1: DD | Y1: DC | Z1: CC | AA1: CB | AB1: BB | AC1: BA | AD1: AA | AG1: Mevcutta finalde en düşük t skor
A2: Öğrenci | B2: 1 | C2: 69 | D2: 94 | E2: GR | F2: =IF(E2="GR",D2,E2) -> 94 | G2: =IF(C2="GR",0,C2) -> 69 | H2: =IF(D2="GR",0,D2) -> 94 | I2: =(G2*0.4)+(H2*0.6) -> 84 | J2: =IF(E2<>"",ROUND(IF(E2<>"GR",((G2*0.4)+(E2*0.6)),I2),2),"") -> 84 | K2: =I2*I2 -> 7056 | L2: =IF(D2<>"",IF(AND(H2>=40,I2>=30),IF(AND($N$2>=$T$2,$N$2<=$U$2),_xlfn.IFS(P2>=$AD$2,$AD$1,P2>=$AC$2,$AC$1,P2>=$AB$2,$AB$1,P2>=$AA$2,$AA$1,P2>=$Z$2,$Z$1,P2>=$Y$2,$Y$1,P2>=$X$2,$X$1,P2>=$W$2,$W$1,P2<$W$2,$V$1),(IF(AND($N$2>=$T$3,$N$2<$U$3),_xlfn.IFS(P2>=$AD$3,$AD$1,P2>=$AC$3,$AC$1,P2>=$AB$3,$AB$1,P2>=$AA$3,$AA$1,P2>=$Z$3,$Z$1,P2>=$Y$3,$Y$1,P2>=$X$3,$X$1,P2>=$W$3,$W$1,P2<$W$2,$V$1),(IF(AND($N$2>=$T$4,$N$2<$U$4),_xlfn.IFS(P2>=$AD$4,$AD$1,P2>=$AC$4,$AC$1,P2>=$AB$4,$AB$1,P2>=$AA$4,$AA$1,P2>=$Z$4,$Z$1,P2>=$Y$4,$Y$1,P2>=$X$4,$X$1,P2>=$W$4,$W$1,P2<$W$2,$V$1),(IF(AND($N$2>=$T$5,$N$2<$U$5),_xlfn.IFS(P2>=$AD$5,$AD$1,P2>=$AC$5,$AC$1,P2>=$AB$5,$AB$1,P2>=$AA$5,$AA$1,P2>=$Z$5,$Z$1,P2>=$Y$5,$Y$1,P2>=$X$5,$X$1,P2>=$W$5,$W$1,P2<$W$2,$V$1),(IF(AND($N$2>=$T$6,$N$2<$U$6),_xlfn.IFS(P2>=$AD$6,$AD$1,P2>=$AC$6,$AC$1,P2>=$AB$6,$AB$1,P2>=$AA$6,$AA$1,P2>=$Z$6,$Z$1,P2>=$Y$6,$Y$1,P2>=$X$6,$X$1,P2>=$W$6,$W$1,P2<$W$2,$V$1),(IF(AND($N$2>=$T$7,$N$2<$U$7),_xlfn.IFS(P2>=$AD$7,$AD$1,P2>=$AC$7,$AC$1,P2>=$AB$7,$AB$1,P2>=$AA$7,$AA$1,P2>=$Z$7,$Z$1,P2>=$Y$7,$Y$1,P2>=$X$7,$X$1,P2>=$W$7,$W$1,P2<$W$2,$V$1),(IF(AND($N$2>=$T$8,$N$2<$U$8),_xlfn.IFS(P2>=$AD$8,$AD$1,P2>=$AC$8,$AC$1,P2>=$AB$8,$AB$1,P2>=$AA$8,$AA$1,P2>=$Z$8,$Z$1,P2>=$Y$8,$Y$1,P2>=$X$8,$X$1,P2>=$W$8,$W$1,P2<$W$2,$V$1),(IF(AND($N$2>=$T$9,$N$2<$U$9),_xlfn.IFS(P2>=$AD$9,$AD$1,P2>=$AC$9,$AC$1,P2>=$AB$9,$AB$1,P2>=$AA$9,$AA$1,P2>=$Z$9,$Z$1,P2>=$Y$9,$Y$1,P2>=$X$9,$X$1,P2>=$W$9,$W$1),$W$1))))))))))))))),IF(AND($N$2>=$T$2,$N$2<=$U$2),IF(P2>=$W$2,$W$1,$V$1),IF(AND($N$2>=$T$3,$N$2<$U$3),IF(P2>=$W$3,$W$1,$V$1),IF(AND($N$2>=$T$4,$N$2<$U$4),IF(P2>=$W$4,$W$1,$V$1),IF(AND($N$2>=$T$5,$N$2<$U$5),IF(P2>=$W$5,$W$1,$V$1),IF(AND($N$2>=$T$6,$N$2<$U$6),IF(P2>=$W$6,$W$1,$V$1),IF(AND($N$2>=$T$7,$N$2<$U$7),IF(P2>=$W$7,$W$1,$V$1),IF(AND($N$2>=$T$8,$N$2<$U$8),IF(P2>=$W$8,$W$1,$V$1),IF(AND($N$2>=$T$9,$N$2<$U$9),IF(P2>=$W$9,$W$1,$V$1),""))))))))),"") -> AA | M2: =IF(E2<>"",IF(AND(E2<>"GR",E2>=40,J2>=30),_xlfn.IFS(Q2>=$AG$2,$AD$19,Q2>=$AG$3,$AC$19,Q2>=$AG$4,$AB$19,Q2>=$AG$5,$AA$19,Q2>=$AG$6,$Z$19,Q2>=$AG$7,$Y$19,Q2>=$AG$8,$X$19,Q2>=$AG$9,$V$19),L2),"") -> AA | N2: =ROUND((SUMIF(I2:I331,">=20"))/(COUNTIF(I2:I331,">=20")),2) -> 46.72 | O2: =ROUND((1/(COUNTIF($I$2:$I$331,">=20")))*(SQRT((COUNTIF(I2:I331,">=20")*SUMIF(K2:K331,">=400"))-((SUMIF(I2:I331,">=20"))*(SUMIF(I2:I331,">=20"))))),2) -> 14.58 | P2: =IF(I2>0,ROUND((10*((I2-$N$2)/$O$2)+50),0),0) -> 76 | Q2: =IF(AND(E2<>"",E2<>"GR"),IF(J2>0,ROUND((10*((J2-$N$2)/$O$2)+50),0),0),P2) -> 76 | R2: =ROUND(((I2-$N$2)/$O$2),2) -> 2.56 | T2: 80 | U2: 100 | V2: <22 | W2: 22 | X2: 27 | Y2: 32 | Z2: 37 | AA2: 42 | AB2: 47 | AC2: 52 | AD2: 57 | AF2: AA | AG2: =MIN(IF($L$2:$L$331=$AD$19,$P$2:$P$331)) -> 69
A3: Öğrenci | B3: 2 | C3: 75 | D3: 87 | E3: GR | F3: =IF(E3="GR",D3,E3) -> 87 | G3: =IF(C3="GR",0,C3) -> 75 | H3: =IF(D3="GR",0,D3) -> 87 | I3: =(G3*0.4)+(H3*0.6) -> 82.2 | J3: 82.2 | K3: 6756.84 | L3: =IF(D3<>"",IF(AND(H3>=40,I3>=30),IF(AND($N$2>=$T$2,$N$2<=$U$2),_xlfn.IFS(P3>=$AD$2,$AD$1,P3>=$AC$2,$AC$1,P3>=$AB$2,$AB$1,P3>=$AA$2,$AA$1,P3>=$Z$2,$Z$1,P3>=$Y$2,$Y$1,P3>=$X$2,$X$1,P3>=$W$2,$W$1,P3<$W$2,$V$1),(IF(AND($N$2>=$T$3,$N$2<$U$3),_xlfn.IFS(P3>=$AD$3,$AD$1,P3>=$AC$3,$AC$1,P3>=$AB$3,$AB$1,P3>=$AA$3,$AA$1,P3>=$Z$3,$Z$1,P3>=$Y$3,$Y$1,P3>=$X$3,$X$1,P3>=$W$3,$W$1,P3<$W$2,$V$1),(IF(AND($N$2>=$T$4,$N$2<$U$4),_xlfn.IFS(P3>=$AD$4,$AD$1,P3>=$AC$4,$AC$1,P3>=$AB$4,$AB$1,P3>=$AA$4,$AA$1,P3>=$Z$4,$Z$1,P3>=$Y$4,$Y$1,P3>=$X$4,$X$1,P3>=$W$4,$W$1,P3<$W$2,$V$1),(IF(AND($N$2>=$T$5,$N$2<$U$5),_xlfn.IFS(P3>=$AD$5,$AD$1,P3>=$AC$5,$AC$1,P3>=$AB$5,$AB$1,P3>=$AA$5,$AA$1,P3>=$Z$5,$Z$1,P3>=$Y$5,$Y$1,P3>=$X$5,$X$1,P3>=$W$5,$W$1,P3<$W$2,$V$1),(IF(AND($N$2>=$T$6,$N$2<$U$6),_xlfn.IFS(P3>=$AD$6,$AD$1,P3>=$AC$6,$AC$1,P3>=$AB$6,$AB$1,P3>=$AA$6,$AA$1,P3>=$Z$6,$Z$1,P3>=$Y$6,$Y$1,P3>=$X$6,$X$1,P3>=$W$6,$W$1,P3<$W$2,$V$1),(IF(AND($N$2>=$T$7,$N$2<$U$7),_xlfn.IFS(P3>=$AD$7,$AD$1,P3>=$AC$7,$AC$1,P3>=$AB$7,$AB$1,P3>=$AA$7,$AA$1,P3>=$Z$7,$Z$1,P3>=$Y$7,$Y$1,P3>=$X$7,$X$1,P3>=$W$7,$W$1,P3<$W$2,$V$1),(IF(AND($N$2>=$T$8,$N$2<$U$8),_xlfn.IFS(P3>=$AD$8,$AD$1,P3>=$AC$8,$AC$1,P3>=$AB$8,$AB$1,P3>=$AA$8,$AA$1,P3>=$Z$8,$Z$1,P3>=$Y$8,$Y$1,P3>=$X$8,$X$1,P3>=$W$8,$W$1,P3<$W$2,$V$1),(IF(AND($N$2>=$T$9,$N$2<$U$9),_xlfn.IFS(P3>=$AD$9,$AD$1,P3>=$AC$9,$AC$1,P3>=$AB$9,$AB$1,P3>=$AA$9,$AA$1,P3>=$Z$9,$Z$1,P3>=$Y$9,$Y$1,P3>=$X$9,$X$1,P3>=$W$9,$W$1),$W$1))))))))))))))),IF(AND($N$2>=$T$2,$N$2<=$U$2),IF(P3>=$W$2,$W$1,$V$1),IF(AND($N$2>=$T$3,$N$2<$U$3),IF(P3>=$W$3,$W$1,$V$1),IF(AND($N$2>=$T$4,$N$2<$U$4),IF(P3>=$W$4,$W$1,$V$1),IF(AND($N$2>=$T$5,$N$2<$U$5),IF(P3>=$W$5,$W$1,$V$1),IF(AND($N$2>=$T$6,$N$2<$U$6),IF(P3>=$W$6,$W$1,$V$1),IF(AND($N$2>=$T$7,$N$2<$U$7),IF(P3>=$W$7,$W$1,$V$1),IF(AND($N$2>=$T$8,$N$2<$U$8),IF(P3>=$W$8,$W$1,$V$1),IF(AND($N$2>=$T$9,$N$2<$U$9),IF(P3>=$W$9,$W$1,$V$1),""))))))))),"") -> AA | M3: =IF(E3<>"",IF(AND(E3<>"GR",E3>=40,J3>=30),_xlfn.IFS(Q3>=$AG$2,$AD$19,Q3>=$AG$3,$AC$19,Q3>=$AG$4,$AB$19,Q3>=$AG$5,$AA$19,Q3>=$AG$6,$Z$19,Q3>=$AG$7,$Y$19,Q3>=$AG$8,$X$19,Q3>=$AG$9,$V$19),L3),"") -> AA | N3: Hesaplamaya katılan | P3: 74 | Q3: 74 | R3: 2.43 | T3: 70 | U3: 80 | V3: <24 | W3: 24 | X3: 29 | Y3: 34 | Z3: 39 | AA3: 44 | AB3: 49 | AC3: 54 | AD3: 59 | AF3: BA | AG3: =MIN(IF($L$2:$L$331=$AC$19,$P$2:$P$331)) -> 64
A4: Öğrenci | B4: 3 | C4: 70 | D4: 87 | E4: GR | F4: 87 | G4: 70 | H4: 87 | I4: 80.2 | J4: 80.2 | K4: 6432.04 | L4: =IF(D4<>"",IF(AND(H4>=40,I4>=30),IF(AND($N$2>=$T$2,$N$2<=$U$2),_xlfn.IFS(P4>=$AD$2,$AD$1,P4>=$AC$2,$AC$1,P4>=$AB$2,$AB$1,P4>=$AA$2,$AA$1,P4>=$Z$2,$Z$1,P4>=$Y$2,$Y$1,P4>=$X$2,$X$1,P4>=$W$2,$W$1,P4<$W$2,$V$1),(IF(AND($N$2>=$T$3,$N$2<$U$3),_xlfn.IFS(P4>=$AD$3,$AD$1,P4>=$AC$3,$AC$1,P4>=$AB$3,$AB$1,P4>=$AA$3,$AA$1,P4>=$Z$3,$Z$1,P4>=$Y$3,$Y$1,P4>=$X$3,$X$1,P4>=$W$3,$W$1,P4<$W$2,$V$1),(IF(AND($N$2>=$T$4,$N$2<$U$4),_xlfn.IFS(P4>=$AD$4,$AD$1,P4>=$AC$4,$AC$1,P4>=$AB$4,$AB$1,P4>=$AA$4,$AA$1,P4>=$Z$4,$Z$1,P4>=$Y$4,$Y$1,P4>=$X$4,$X$1,P4>=$W$4,$W$1,P4<$W$2,$V$1),(IF(AND($N$2>=$T$5,$N$2<$U$5),_xlfn.IFS(P4>=$AD$5,$AD$1,P4>=$AC$5,$AC$1,P4>=$AB$5,$AB$1,P4>=$AA$5,$AA$1,P4>=$Z$5,$Z$1,P4>=$Y$5,$Y$1,P4>=$X$5,$X$1,P4>=$W$5,$W$1,P4<$W$2,$V$1),(IF(AND($N$2>=$T$6,$N$2<$U$6),_xlfn.IFS(P4>=$AD$6,$AD$1,P4>=$AC$6,$AC$1,P4>=$AB$6,$AB$1,P4>=$AA$6,$AA$1,P4>=$Z$6,$Z$1,P4>=$Y$6,$Y$1,P4>=$X$6,$X$1,P4>=$W$6,$W$1,P4<$W$2,$V$1),(IF(AND($N$2>=$T$7,$N$2<$U$7),_xlfn.IFS(P4>=$AD$7,$AD$1,P4>=$AC$7,$AC$1,P4>=$AB$7,$AB$1,P4>=$AA$7,$AA$1,P4>=$Z$7,$Z$1,P4>=$Y$7,$Y$1,P4>=$X$7,$X$1,P4>=$W$7,$W$1,P4<$W$2,$V$1),(IF(AND($N$2>=$T$8,$N$2<$U$8),_xlfn.IFS(P4>=$AD$8,$AD$1,P4>=$AC$8,$AC$1,P4>=$AB$8,$AB$1,P4>=$AA$8,$AA$1,P4>=$Z$8,$Z$1,P4>=$Y$8,$Y$1,P4>=$X$8,$X$1,P4>=$W$8,$W$1,P4<$W$2,$V$1),(IF(AND($N$2>=$T$9,$N$2<$U$9),_xlfn.IFS(P4>=$AD$9,$AD$1,P4>=$AC$9,$AC$1,P4>=$AB$9,$AB$1,P4>=$AA$9,$AA$1,P4>=$Z$9,$Z$1,P4>=$Y$9,$Y$1,P4>=$X$9,$X$1,P4>=$W$9,$W$1),$W$1))))))))))))))),IF(AND($N$2>=$T$2,$N$2<=$U$2),IF(P4>=$W$2,$W$1,$V$1),IF(AND($N$2>=$T$3,$N$2<$U$3),IF(P4>=$W$3,$W$1,$V$1),IF(AND($N$2>=$T$4,$N$2<$U$4),IF(P4>=$W$4,$W$1,$V$1),IF(AND($N$2>=$T$5,$N$2<$U$5),IF(P4>=$W$5,$W$1,$V$1),IF(AND($N$2>=$T$6,$N$2<$U$6),IF(P4>=$W$6,$W$1,$V$1),IF(AND($N$2>=$T$7,$N$2<$U$7),IF(P4>=$W$7,$W$1,$V$1),IF(AND($N$2>=$T$8,$N$2<$U$8),IF(P4>=$W$8,$W$1,$V$1),IF(AND($N$2>=$T$9,$N$2<$U$9),IF(P4>=$W$9,$W$1,$V$1),""))))))))),"") -> AA | M4: =IF(E4<>"",IF(AND(E4<>"GR",E4>=40,J4>=30),_xlfn.IFS(Q4>=$AG$2,$AD$19,Q4>=$AG$3,$AC$19,Q4>=$AG$4,$AB$19,Q4>=$AG$5,$AA$19,Q4>=$AG$6,$Z$19,Q4>=$AG$7,$Y$19,Q4>=$AG$8,$X$19,Q4>=$AG$9,$V$19),L4),"") -> AA | N4: =COUNTIF(I2:I331,">=20") -> 230 | P4: 73 | Q4: 73 | R4: 2.3 | T4: 62.5 | U4: 70 | V4: <26 | W4: 26 | X4: 31 | Y4: 36 | Z4: 41 | AA4: 46 | AB4: 51 | AC4: 56 | AD4: 61 | AF4: BB | AG4: =MIN(IF($L$2:$L$331=$AB$19,$P$2:$P$331)) -> 59
A5: Öğrenci | B5: 4 | C5: 62 | D5: 92 | E5: GR | F5: 92 | G5: 62 | H5: 92 | I5: 80 | J5: 80 | K5: 6400 | L5: =IF(D5<>"",IF(AND(H5>=40,I5>=30),IF(AND($N$2>=$T$2,$N$2<=$U$2),_xlfn.IFS(P5>=$AD$2,$AD$1,P5>=$AC$2,$AC$1,P5>=$AB$2,$AB$1,P5>=$AA$2,$AA$1,P5>=$Z$2,$Z$1,P5>=$Y$2,$Y$1,P5>=$X$2,$X$1,P5>=$W$2,$W$1,P5<$W$2,$V$1),(IF(AND($N$2>=$T$3,$N$2<$U$3),_xlfn.IFS(P5>=$AD$3,$AD$1,P5>=$AC$3,$AC$1,P5>=$AB$3,$AB$1,P5>=$AA$3,$AA$1,P5>=$Z$3,$Z$1,P5>=$Y$3,$Y$1,P5>=$X$3,$X$1,P5>=$W$3,$W$1,P5<$W$2,$V$1),(IF(AND($N$2>=$T$4,$N$2<$U$4),_xlfn.IFS(P5>=$AD$4,$AD$1,P5>=$AC$4,$AC$1,P5>=$AB$4,$AB$1,P5>=$AA$4,$AA$1,P5>=$Z$4,$Z$1,P5>=$Y$4,$Y$1,P5>=$X$4,$X$1,P5>=$W$4,$W$1,P5<$W$2,$V$1),(IF(AND($N$2>=$T$5,$N$2<$U$5),_xlfn.IFS(P5>=$AD$5,$AD$1,P5>=$AC$5,$AC$1,P5>=$AB$5,$AB$1,P5>=$AA$5,$AA$1,P5>=$Z$5,$Z$1,P5>=$Y$5,$Y$1,P5>=$X$5,$X$1,P5>=$W$5,$W$1,P5<$W$2,$V$1),(IF(AND($N$2>=$T$6,$N$2<$U$6),_xlfn.IFS(P5>=$AD$6,$AD$1,P5>=$AC$6,$AC$1,P5>=$AB$6,$AB$1,P5>=$AA$6,$AA$1,P5>=$Z$6,$Z$1,P5>=$Y$6,$Y$1,P5>=$X$6,$X$1,P5>=$W$6,$W$1,P5<$W$2,$V$1),(IF(AND($N$2>=$T$7,$N$2<$U$7),_xlfn.IFS(P5>=$AD$7,$AD$1,P5>=$AC$7,$AC$1,P5>=$AB$7,$AB$1,P5>=$AA$7,$AA$1,P5>=$Z$7,$Z$1,P5>=$Y$7,$Y$1,P5>=$X$7,$X$1,P5>=$W$7,$W$1,P5<$W$2,$V$1),(IF(AND($N$2>=$T$8,$N$2<$U$8),_xlfn.IFS(P5>=$AD$8,$AD$1,P5>=$AC$8,$AC$1,P5>=$AB$8,$AB$1,P5>=$AA$8,$AA$1,P5>=$Z$8,$Z$1,P5>=$Y$8,$Y$1,P5>=$X$8,$X$1,P5>=$W$8,$W$1,P5<$W$2,$V$1),(IF(AND($N$2>=$T$9,$N$2<$U$9),_xlfn.IFS(P5>=$AD$9,$AD$1,P5>=$AC$9,$AC$1,P5>=$AB$9,$AB$1,P5>=$AA$9,$AA$1,P5>=$Z$9,$Z$1,P5>=$Y$9,$Y$1,P5>=$X$9,$X$1,P5>=$W$9,$W$1),$W$1))))))))))))))),IF(AND($N$2>=$T$2,$N$2<=$U$2),IF(P5>=$W$2,$W$1,$V$1),IF(AND($N$2>=$T$3,$N$2<$U$3),IF(P5>=$W$3,$W$1,$V$1),IF(AND($N$2>=$T$4,$N$2<$U$4),IF(P5>=$W$4,$W$1,$V$1),IF(AND($N$2>=$T$5,$N$2<$U$5),IF(P5>=$W$5,$W$1,$V$1),IF(AND($N$2>=$T$6,$N$2<$U$6),IF(P5>=$W$6,$W$1,$V$1),IF(AND($N$2>=$T$7,$N$2<$U$7),IF(P5>=$W$7,$W$1,$V$1),IF(AND($N$2>=$T$8,$N$2<$U$8),IF(P5>=$W$8,$W$1,$V$1),IF(AND($N$2>=$T$9,$N$2<$U$9),IF(P5>=$W$9,$W$1,$V$1),""))))))))),"") -> AA | M5: =IF(E5<>"",IF(AND(E5<>"GR",E5>=40,J5>=30),_xlfn.IFS(Q5>=$AG$2,$AD$19,Q5>=$AG$3,$AC$19,Q5>=$AG$4,$AB$19,Q5>=$AG$5,$AA$19,Q5>=$AG$6,$Z$19,Q5>=$AG$7,$Y$19,Q5>=$AG$8,$X$19,Q5>=$AG$9,$V$19),L5),"") -> AA | P5: 73 | Q5: 73 | R5: 2.28 | T5: 57.5 | U5: 62.5 | V5: <28 | W5: 28 | X5: 33 | Y5: 38 | Z5: 43 | AA5: 48 | AB5: 53 | AC5: 58 | AD5: 63 | AF5: CB | AG5: =MIN(IF($L$2:$L$331=$AA$19,$P$2:$P$331)) -> 54
A6: Öğrenci | B6: 5 | C6: 63 | D6: 89 | E6: GR | F6: 89 | G6: 63 | H6: 89 | I6: 78.6 | J6: 78.6 | K6: 6177.96 | L6: =IF(D6<>"",IF(AND(H6>=40,I6>=30),IF(AND($N$2>=$T$2,$N$2<=$U$2),_xlfn.IFS(P6>=$AD$2,$AD$1,P6>=$AC$2,$AC$1,P6>=$AB$2,$AB$1,P6>=$AA$2,$AA$1,P6>=$Z$2,$Z$1,P6>=$Y$2,$Y$1,P6>=$X$2,$X$1,P6>=$W$2,$W$1,P6<$W$2,$V$1),(IF(AND($N$2>=$T$3,$N$2<$U$3),_xlfn.IFS(P6>=$AD$3,$AD$1,P6>=$AC$3,$AC$1,P6>=$AB$3,$AB$1,P6>=$AA$3,$AA$1,P6>=$Z$3,$Z$1,P6>=$Y$3,$Y$1,P6>=$X$3,$X$1,P6>=$W$3,$W$1,P6<$W$2,$V$1),(IF(AND($N$2>=$T$4,$N$2<$U$4),_xlfn.IFS(P6>=$AD$4,$AD$1,P6>=$AC$4,$AC$1,P6>=$AB$4,$AB$1,P6>=$AA$4,$AA$1,P6>=$Z$4,$Z$1,P6>=$Y$4,$Y$1,P6>=$X$4,$X$1,P6>=$W$4,$W$1,P6<$W$2,$V$1),(IF(AND($N$2>=$T$5,$N$2<$U$5),_xlfn.IFS(P6>=$AD$5,$AD$1,P6>=$AC$5,$AC$1,P6>=$AB$5,$AB$1,P6>=$AA$5,$AA$1,P6>=$Z$5,$Z$1,P6>=$Y$5,$Y$1,P6>=$X$5,$X$1,P6>=$W$5,$W$1,P6<$W$2,$V$1),(IF(AND($N$2>=$T$6,$N$2<$U$6),_xlfn.IFS(P6>=$AD$6,$AD$1,P6>=$AC$6,$AC$1,P6>=$AB$6,$AB$1,P6>=$AA$6,$AA$1,P6>=$Z$6,$Z$1,P6>=$Y$6,$Y$1,P6>=$X$6,$X$1,P6>=$W$6,$W$1,P6<$W$2,$V$1),(IF(AND($N$2>=$T$7,$N$2<$U$7),_xlfn.IFS(P6>=$AD$7,$AD$1,P6>=$AC$7,$AC$1,P6>=$AB$7,$AB$1,P6>=$AA$7,$AA$1,P6>=$Z$7,$Z$1,P6>=$Y$7,$Y$1,P6>=$X$7,$X$1,P6>=$W$7,$W$1,P6<$W$2,$V$1),(IF(AND($N$2>=$T$8,$N$2<$U$8),_xlfn.IFS(P6>=$AD$8,$AD$1,P6>=$AC$8,$AC$1,P6>=$AB$8,$AB$1,P6>=$AA$8,$AA$1,P6>=$Z$8,$Z$1,P6>=$Y$8,$Y$1,P6>=$X$8,$X$1,P6>=$W$8,$W$1,P6<$W$2,$V$1),(IF(AND($N$2>=$T$9,$N$2<$U$9),_xlfn.IFS(P6>=$AD$9,$AD$1,P6>=$AC$9,$AC$1,P6>=$AB$9,$AB$1,P6>=$AA$9,$AA$1,P6>=$Z$9,$Z$1,P6>=$Y$9,$Y$1,P6>=$X$9,$X$1,P6>=$W$9,$W$1),$W$1))))))))))))))),IF(AND($N$2>=$T$2,$N$2<=$U$2),IF(P6>=$W$2,$W$1,$V$1),IF(AND($N$2>=$T$3,$N$2<$U$3),IF(P6>=$W$3,$W$1,$V$1),IF(AND($N$2>=$T$4,$N$2<$U$4),IF(P6>=$W$4,$W$1,$V$1),IF(AND($N$2>=$T$5,$N$2<$U$5),IF(P6>=$W$5,$W$1,$V$1),IF(AND($N$2>=$T$6,$N$2<$U$6),IF(P6>=$W$6,$W$1,$V$1),IF(AND($N$2>=$T$7,$N$2<$U$7),IF(P6>=$W$7,$W$1,$V$1),IF(AND($N$2>=$T$8,$N$2<$U$8),IF(P6>=$W$8,$W$1,$V$1),IF(AND($N$2>=$T$9,$N$2<$U$9),IF(P6>=$W$9,$W$1,$V$1),""))))))))),"") -> AA | M6: =IF(E6<>"",IF(AND(E6<>"GR",E6>=40,J6>=30),_xlfn.IFS(Q6>=$AG$2,$AD$19,Q6>=$AG$3,$AC$19,Q6>=$AG$4,$AB$19,Q6>=$AG$5,$AA$19,Q6>=$AG$6,$Z$19,Q6>=$AG$7,$Y$19,Q6>=$AG$8,$X$19,Q6>=$AG$9,$V$19),L6),"") -> AA | P6: 72 | Q6: 72 | R6: 2.19 | T6: 52.5 | U6: 57.5 | V6: <30 | W6: 30 | X6: 35 | Y6: 40 | Z6: 45 | AA6: 50 | AB6: 55 | AC6: 60 | AD6: 65 | AF6: CC | AG6: =MIN(IF($L$2:$L$331=$Z$19,$P$2:$P$331)) -> 49
A7: Öğrenci | B7: 6 | C7: 68 | D7: 82 | E7: GR | F7: 82 | G7: 68 | H7: 82 | I7: 76.4 | J7: 76.4 | K7: 5836.96 | L7: =IF(D7<>"",IF(AND(H7>=40,I7>=30),IF(AND($N$2>=$T$2,$N$2<=$U$2),_xlfn.IFS(P7>=$AD$2,$AD$1,P7>=$AC$2,$AC$1,P7>=$AB$2,$AB$1,P7>=$AA$2,$AA$1,P7>=$Z$2,$Z$1,P7>=$Y$2,$Y$1,P7>=$X$2,$X$1,P7>=$W$2,$W$1,P7<$W$2,$V$1),(IF(AND($N$2>=$T$3,$N$2<$U$3),_xlfn.IFS(P7>=$AD$3,$AD$1,P7>=$AC$3,$AC$1,P7>=$AB$3,$AB$1,P7>=$AA$3,$AA$1,P7>=$Z$3,$Z$1,P7>=$Y$3,$Y$1,P7>=$X$3,$X$1,P7>=$W$3,$W$1,P7<$W$2,$V$1),(IF(AND($N$2>=$T$4,$N$2<$U$4),_xlfn.IFS(P7>=$AD$4,$AD$1,P7>=$AC$4,$AC$1,P7>=$AB$4,$AB$1,P7>=$AA$4,$AA$1,P7>=$Z$4,$Z$1,P7>=$Y$4,$Y$1,P7>=$X$4,$X$1,P7>=$W$4,$W$1,P7<$W$2,$V$1),(IF(AND($N$2>=$T$5,$N$2<$U$5),_xlfn.IFS(P7>=$AD$5,$AD$1,P7>=$AC$5,$AC$1,P7>=$AB$5,$AB$1,P7>=$AA$5,$AA$1,P7>=$Z$5,$Z$1,P7>=$Y$5,$Y$1,P7>=$X$5,$X$1,P7>=$W$5,$W$1,P7<$W$2,$V$1),(IF(AND($N$2>=$T$6,$N$2<$U$6),_xlfn.IFS(P7>=$AD$6,$AD$1,P7>=$AC$6,$AC$1,P7>=$AB$6,$AB$1,P7>=$AA$6,$AA$1,P7>=$Z$6,$Z$1,P7>=$Y$6,$Y$1,P7>=$X$6,$X$1,P7>=$W$6,$W$1,P7<$W$2,$V$1),(IF(AND($N$2>=$T$7,$N$2<$U$7),_xlfn.IFS(P7>=$AD$7,$AD$1,P7>=$AC$7,$AC$1,P7>=$AB$7,$AB$1,P7>=$AA$7,$AA$1,P7>=$Z$7,$Z$1,P7>=$Y$7,$Y$1,P7>=$X$7,$X$1,P7>=$W$7,$W$1,P7<$W$2,$V$1),(IF(AND($N$2>=$T$8,$N$2<$U$8),_xlfn.IFS(P7>=$AD$8,$AD$1,P7>=$AC$8,$AC$1,P7>=$AB$8,$AB$1,P7>=$AA$8,$AA$1,P7>=$Z$8,$Z$1,P7>=$Y$8,$Y$1,P7>=$X$8,$X$1,P7>=$W$8,$W$1,P7<$W$2,$V$1),(IF(AND($N$2>=$T$9,$N$2<$U$9),_xlfn.IFS(P7>=$AD$9,$AD$1,P7>=$AC$9,$AC$1,P7>=$AB$9,$AB$1,P7>=$AA$9,$AA$1,P7>=$Z$9,$Z$1,P7>=$Y$9,$Y$1,P7>=$X$9,$X$1,P7>=$W$9,$W$1),$W$1))))))))))))))),IF(AND($N$2>=$T$2,$N$2<=$U$2),IF(P7>=$W$2,$W$1,$V$1),IF(AND($N$2>=$T$3,$N$2<$U$3),IF(P7>=$W$3,$W$1,$V$1),IF(AND($N$2>=$T$4,$N$2<$U$4),IF(P7>=$W$4,$W$1,$V$1),IF(AND($N$2>=$T$5,$N$2<$U$5),IF(P7>=$W$5,$W$1,$V$1),IF(AND($N$2>=$T$6,$N$2<$U$6),IF(P7>=$W$6,$W$1,$V$1),IF(AND($N$2>=$T$7,$N$2<$U$7),IF(P7>=$W$7,$W$1,$V$1),IF(AND($N$2>=$T$8,$N$2<$U$8),IF(P7>=$W$8,$W$1,$V$1),IF(AND($N$2>=$T$9,$N$2<$U$9),IF(P7>=$W$9,$W$1,$V$1),""))))))))),"") -> AA | M7: =IF(E7<>"",IF(AND(E7<>"GR",E7>=40,J7>=30),_xlfn.IFS(Q7>=$AG$2,$AD$19,Q7>=$AG$3,$AC$19,Q7>=$AG$4,$AB$19,Q7>=$AG$5,$AA$19,Q7>=$AG$6,$Z$19,Q7>=$AG$7,$Y$19,Q7>=$AG$8,$X$19,Q7>=$AG$9,$V$19),L7),"") -> AA | P7: 70 | Q7: 70 | R7: 2.04 | T7: 47.5 | U7: 52.5 | V7: <32 | W7: 32 | X7: 37 | Y7: 42 | Z7: 47 | AA7: 52 | AB7: 57 | AC7: 62 | AD7: 67 | AF7: DC | AG7: =MIN(IF($L$2:$L$331=$Y$19,$P$2:$P$331)) -> 44
A8: Öğrenci | B8: 7 | C8: 68 | D8: 79 | E8: GR | F8: 79 | G8: 68 | H8: 79 | I8: 74.6 | J8: 74.6 | K8: 5565.16 | L8: =IF(D8<>"",IF(AND(H8>=40,I8>=30),IF(AND($N$2>=$T$2,$N$2<=$U$2),_xlfn.IFS(P8>=$AD$2,$AD$1,P8>=$AC$2,$AC$1,P8>=$AB$2,$AB$1,P8>=$AA$2,$AA$1,P8>=$Z$2,$Z$1,P8>=$Y$2,$Y$1,P8>=$X$2,$X$1,P8>=$W$2,$W$1,P8<$W$2,$V$1),(IF(AND($N$2>=$T$3,$N$2<$U$3),_xlfn.IFS(P8>=$AD$3,$AD$1,P8>=$AC$3,$AC$1,P8>=$AB$3,$AB$1,P8>=$AA$3,$AA$1,P8>=$Z$3,$Z$1,P8>=$Y$3,$Y$1,P8>=$X$3,$X$1,P8>=$W$3,$W$1,P8<$W$2,$V$1),(IF(AND($N$2>=$T$4,$N$2<$U$4),_xlfn.IFS(P8>=$AD$4,$AD$1,P8>=$AC$4,$AC$1,P8>=$AB$4,$AB$1,P8>=$AA$4,$AA$1,P8>=$Z$4,$Z$1,P8>=$Y$4,$Y$1,P8>=$X$4,$X$1,P8>=$W$4,$W$1,P8<$W$2,$V$1),(IF(AND($N$2>=$T$5,$N$2<$U$5),_xlfn.IFS(P8>=$AD$5,$AD$1,P8>=$AC$5,$AC$1,P8>=$AB$5,$AB$1,P8>=$AA$5,$AA$1,P8>=$Z$5,$Z$1,P8>=$Y$5,$Y$1,P8>=$X$5,$X$1,P8>=$W$5,$W$1,P8<$W$2,$V$1),(IF(AND($N$2>=$T$6,$N$2<$U$6),_xlfn.IFS(P8>=$AD$6,$AD$1,P8>=$AC$6,$AC$1,P8>=$AB$6,$AB$1,P8>=$AA$6,$AA$1,P8>=$Z$6,$Z$1,P8>=$Y$6,$Y$1,P8>=$X$6,$X$1,P8>=$W$6,$W$1,P8<$W$2,$V$1),(IF(AND($N$2>=$T$7,$N$2<$U$7),_xlfn.IFS(P8>=$AD$7,$AD$1,P8>=$AC$7,$AC$1,P8>=$AB$7,$AB$1,P8>=$AA$7,$AA$1,P8>=$Z$7,$Z$1,P8>=$Y$7,$Y$1,P8>=$X$7,$X$1,P8>=$W$7,$W$1,P8<$W$2,$V$1),(IF(AND($N$2>=$T$8,$N$2<$U$8),_xlfn.IFS(P8>=$AD$8,$AD$1,P8>=$AC$8,$AC$1,P8>=$AB$8,$AB$1,P8>=$AA$8,$AA$1,P8>=$Z$8,$Z$1,P8>=$Y$8,$Y$1,P8>=$X$8,$X$1,P8>=$W$8,$W$1,P8<$W$2,$V$1),(IF(AND($N$2>=$T$9,$N$2<$U$9),_xlfn.IFS(P8>=$AD$9,$AD$1,P8>=$AC$9,$AC$1,P8>=$AB$9,$AB$1,P8>=$AA$9,$AA$1,P8>=$Z$9,$Z$1,P8>=$Y$9,$Y$1,P8>=$X$9,$X$1,P8>=$W$9,$W$1),$W$1))))))))))))))),IF(AND($N$2>=$T$2,$N$2<=$U$2),IF(P8>=$W$2,$W$1,$V$1),IF(AND($N$2>=$T$3,$N$2<$U$3),IF(P8>=$W$3,$W$1,$V$1),IF(AND($N$2>=$T$4,$N$2<$U$4),IF(P8>=$W$4,$W$1,$V$1),IF(AND($N$2>=$T$5,$N$2<$U$5),IF(P8>=$W$5,$W$1,$V$1),IF(AND($N$2>=$T$6,$N$2<$U$6),IF(P8>=$W$6,$W$1,$V$1),IF(AND($N$2>=$T$7,$N$2<$U$7),IF(P8>=$W$7,$W$1,$V$1),IF(AND($N$2>=$T$8,$N$2<$U$8),IF(P8>=$W$8,$W$1,$V$1),IF(AND($N$2>=$T$9,$N$2<$U$9),IF(P8>=$W$9,$W$1,$V$1),""))))))))),"") -> AA | M8: =IF(E8<>"",IF(AND(E8<>"GR",E8>=40,J8>=30),_xlfn.IFS(Q8>=$AG$2,$AD$19,Q8>=$AG$3,$AC$19,Q8>=$AG$4,$AB$19,Q8>=$AG$5,$AA$19,Q8>=$AG$6,$Z$19,Q8>=$AG$7,$Y$19,Q8>=$AG$8,$X$19,Q8>=$AG$9,$V$19),L8),"") -> AA | P8: 69 | Q8: 69 | R8: 1.91 | T8: 42.5 | U8: 47.5 | V8: <34 | W8: 34 | X8: 39 | Y8: 44 | Z8: 49 | AA8: 54 | AB8: 59 | AC8: 64 | AD8: 69 | AF8: DD | AG8: =MIN(IF($L$2:$L$331=$X$19,$P$2:$P$331)) -> 39
A9: Öğrenci | B9: 8 | C9: 66 | D9: 80 | E9: GR | F9: 80 | G9: 66 | H9: 80 | I9: 74.4 | J9: 74.4 | K9: 5535.36 | L9: =IF(D9<>"",IF(AND(H9>=40,I9>=30),IF(AND($N$2>=$T$2,$N$2<=$U$2),_xlfn.IFS(P9>=$AD$2,$AD$1,P9>=$AC$2,$AC$1,P9>=$AB$2,$AB$1,P9>=$AA$2,$AA$1,P9>=$Z$2,$Z$1,P9>=$Y$2,$Y$1,P9>=$X$2,$X$1,P9>=$W$2,$W$1,P9<$W$2,$V$1),(IF(AND($N$2>=$T$3,$N$2<$U$3),_xlfn.IFS(P9>=$AD$3,$AD$1,P9>=$AC$3,$AC$1,P9>=$AB$3,$AB$1,P9>=$AA$3,$AA$1,P9>=$Z$3,$Z$1,P9>=$Y$3,$Y$1,P9>=$X$3,$X$1,P9>=$W$3,$W$1,P9<$W$2,$V$1),(IF(AND($N$2>=$T$4,$N$2<$U$4),_xlfn.IFS(P9>=$AD$4,$AD$1,P9>=$AC$4,$AC$1,P9>=$AB$4,$AB$1,P9>=$AA$4,$AA$1,P9>=$Z$4,$Z$1,P9>=$Y$4,$Y$1,P9>=$X$4,$X$1,P9>=$W$4,$W$1,P9<$W$2,$V$1),(IF(AND($N$2>=$T$5,$N$2<$U$5),_xlfn.IFS(P9>=$AD$5,$AD$1,P9>=$AC$5,$AC$1,P9>=$AB$5,$AB$1,P9>=$AA$5,$AA$1,P9>=$Z$5,$Z$1,P9>=$Y$5,$Y$1,P9>=$X$5,$X$1,P9>=$W$5,$W$1,P9<$W$2,$V$1),(IF(AND($N$2>=$T$6,$N$2<$U$6),_xlfn.IFS(P9>=$AD$6,$AD$1,P9>=$AC$6,$AC$1,P9>=$AB$6,$AB$1,P9>=$AA$6,$AA$1,P9>=$Z$6,$Z$1,P9>=$Y$6,$Y$1,P9>=$X$6,$X$1,P9>=$W$6,$W$1,P9<$W$2,$V$1),(IF(AND($N$2>=$T$7,$N$2<$U$7),_xlfn.IFS(P9>=$AD$7,$AD$1,P9>=$AC$7,$AC$1,P9>=$AB$7,$AB$1,P9>=$AA$7,$AA$1,P9>=$Z$7,$Z$1,P9>=$Y$7,$Y$1,P9>=$X$7,$X$1,P9>=$W$7,$W$1,P9<$W$2,$V$1),(IF(AND($N$2>=$T$8,$N$2<$U$8),_xlfn.IFS(P9>=$AD$8,$AD$1,P9>=$AC$8,$AC$1,P9>=$AB$8,$AB$1,P9>=$AA$8,$AA$1,P9>=$Z$8,$Z$1,P9>=$Y$8,$Y$1,P9>=$X$8,$X$1,P9>=$W$8,$W$1,P9<$W$2,$V$1),(IF(AND($N$2>=$T$9,$N$2<$U$9),_xlfn.IFS(P9>=$AD$9,$AD$1,P9>=$AC$9,$AC$1,P9>=$AB$9,$AB$1,P9>=$AA$9,$AA$1,P9>=$Z$9,$Z$1,P9>=$Y$9,$Y$1,P9>=$X$9,$X$1,P9>=$W$9,$W$1),$W$1))))))))))))))),IF(AND($N$2>=$T$2,$N$2<=$U$2),IF(P9>=$W$2,$W$1,$V$1),IF(AND($N$2>=$T$3,$N$2<$U$3),IF(P9>=$W$3,$W$1,$V$1),IF(AND($N$2>=$T$4,$N$2<$U$4),IF(P9>=$W$4,$W$1,$V$1),IF(AND($N$2>=$T$5,$N$2<$U$5),IF(P9>=$W$5,$W$1,$V$1),IF(AND($N$2>=$T$6,$N$2<$U$6),IF(P9>=$W$6,$W$1,$V$1),IF(AND($N$2>=$T$7,$N$2<$U$7),IF(P9>=$W$7,$W$1,$V$1),IF(AND($N$2>=$T$8,$N$2<$U$8),IF(P9>=$W$8,$W$1,$V$1),IF(AND($N$2>=$T$9,$N$2<$U$9),IF(P9>=$W$9,$W$1,$V$1),""))))))))),"") -> AA | M9: =IF(E9<>"",IF(AND(E9<>"GR",E9>=40,J9>=30),_xlfn.IFS(Q9>=$AG$2,$AD$19,Q9>=$AG$3,$AC$19,Q9>=$AG$4,$AB$19,Q9>=$AG$5,$AA$19,Q9>=$AG$6,$Z$19,Q9>=$AG$7,$Y$19,Q9>=$AG$8,$X$19,Q9>=$AG$9,$V$19),L9),"") -> AA | P9: 69 | Q9: 69 | R9: 1.9 | T9: 0 | U9: 42.5 | V9: <36 | W9: 36 | X9: 41 | Y9: 46 | Z9: 51 | AA9: 56 | AB9: 61 | AC9: 66 | AD9: 71 | AF9: FD | AG9: =MIN(IF($L$2:$L$331=$W$19,$P$2:$P$331)) -> 34
A10: Öğrenci | B10: 9 | C10: 51 | D10: 90 | E10: GR | F10: 90 | G10: 51 | H10: 90 | I10: 74.4 | J10: 74.4 | K10: 5535.36 | L10: =IF(D10<>"",IF(AND(H10>=40,I10>=30),IF(AND($N$2>=$T$2,$N$2<=$U$2),_xlfn.IFS(P10>=$AD$2,$AD$1,P10>=$AC$2,$AC$1,P10>=$AB$2,$AB$1,P10>=$AA$2,$AA$1,P10>=$Z$2,$Z$1,P10>=$Y$2,$Y$1,P10>=$X$2,$X$1,P10>=$W$2,$W$1,P10<$W$2,$V$1),(IF(AND($N$2>=$T$3,$N$2<$U$3),_xlfn.IFS(P10>=$AD$3,$AD$1,P10>=$AC$3,$AC$1,P10>=$AB$3,$AB$1,P10>=$AA$3,$AA$1,P10>=$Z$3,$Z$1,P10>=$Y$3,$Y$1,P10>=$X$3,$X$1,P10>=$W$3,$W$1,P10<$W$2,$V$1),(IF(AND($N$2>=$T$4,$N$2<$U$4),_xlfn.IFS(P10>=$AD$4,$AD$1,P10>=$AC$4,$AC$1,P10>=$AB$4,$AB$1,P10>=$AA$4,$AA$1,P10>=$Z$4,$Z$1,P10>=$Y$4,$Y$1,P10>=$X$4,$X$1,P10>=$W$4,$W$1,P10<$W$2,$V$1),(IF(AND($N$2>=$T$5,$N$2<$U$5),_xlfn.IFS(P10>=$AD$5,$AD$1,P10>=$AC$5,$AC$1,P10>=$AB$5,$AB$1,P10>=$AA$5,$AA$1,P10>=$Z$5,$Z$1,P10>=$Y$5,$Y$1,P10>=$X$5,$X$1,P10>=$W$5,$W$1,P10<$W$2,$V$1),(IF(AND($N$2>=$T$6,$N$2<$U$6),_xlfn.IFS(P10>=$AD$6,$AD$1,P10>=$AC$6,$AC$1,P10>=$AB$6,$AB$1,P10>=$AA$6,$AA$1,P10>=$Z$6,$Z$1,P10>=$Y$6,$Y$1,P10>=$X$6,$X$1,P10>=$W$6,$W$1,P10<$W$2,$V$1),(IF(AND($N$2>=$T$7,$N$2<$U$7),_xlfn.IFS(P10>=$AD$7,$AD$1,P10>=$AC$7,$AC$1,P10>=$AB$7,$AB$1,P10>=$AA$7,$AA$1,P10>=$Z$7,$Z$1,P10>=$Y$7,$Y$1,P10>=$X$7,$X$1,P10>=$W$7,$W$1,P10<$W$2,$V$1),(IF(AND($N$2>=$T$8,$N$2<$U$8),_xlfn.IFS(P10>=$AD$8,$AD$1,P10>=$AC$8,$AC$1,P10>=$AB$8,$AB$1,P10>=$AA$8,$AA$1,P10>=$Z$8,$Z$1,P10>=$Y$8,$Y$1,P10>=$X$8,$X$1,P10>=$W$8,$W$1,P10<$W$2,$V$1),(IF(AND($N$2>=$T$9,$N$2<$U$9),_xlfn.IFS(P10>=$AD$9,$AD$1,P10>=$AC$9,$AC$1,P10>=$AB$9,$AB$1,P10>=$AA$9,$AA$1,P10>=$Z$9,$Z$1,P10>=$Y$9,$Y$1,P10>=$X$9,$X$1,P10>=$W$9,$W$1),$W$1))))))))))))))),IF(AND($N$2>=$T$2,$N$2<=$U$2),IF(P10>=$W$2,$W$1,$V$1),IF(AND($N$2>=$T$3,$N$2<$U$3),IF(P10>=$W$3,$W$1,$V$1),IF(AND($N$2>=$T$4,$N$2<$U$4),IF(P10>=$W$4,$W$1,$V$1),IF(AND($N$2>=$T$5,$N$2<$U$5),IF(P10>=$W$5,$W$1,$V$1),IF(AND($N$2>=$T$6,$N$2<$U$6),IF(P10>=$W$6,$W$1,$V$1),IF(AND($N$2>=$T$7,$N$2<$U$7),IF(P10>=$W$7,$W$1,$V$1),IF(AND($N$2>=$T$8,$N$2<$U$8),IF(P10>=$W$8,$W$1,$V$1),IF(AND($N$2>=$T$9,$N$2<$U$9),IF(P10>=$W$9,$W$1,$V$1),""))))))))),"") -> AA | M10: =IF(E10<>"",IF(AND(E10<>"GR",E10>=40,J10>=30),_xlfn.IFS(Q10>=$AG$2,$AD$19,Q10>=$AG$3,$AC$19,Q10>=$AG$4,$AB$19,Q10>=$AG$5,$AA$19,Q10>=$AG$6,$Z$19,Q10>=$AG$7,$Y$19,Q10>=$AG$8,$X$19,Q10>=$AG$9,$V$19),L10),"") -> AA | P10: 69 | Q10: 69 | R10: 1.9 | AF10: FF | AG10: =MIN(IF($L$2:$L$331=$V$19,$P$2:$P$331)) -> 0
A11: Öğrenci | B11: 10 | C11: 57 | D11: 85 | E11: GR | F11: 85 | G11: 57 | H11: 85 | I11: 73.8 | J11: 73.8 | K11: 5446.44 | L11: =IF(D11<>"",IF(AND(H11>=40,I11>=30),IF(AND($N$2>=$T$2,$N$2<=$U$2),_xlfn.IFS(P11>=$AD$2,$AD$1,P11>=$AC$2,$AC$1,P11>=$AB$2,$AB$1,P11>=$AA$2,$AA$1,P11>=$Z$2,$Z$1,P11>=$Y$2,$Y$1,P11>=$X$2,$X$1,P11>=$W$2,$W$1,P11<$W$2,$V$1),(IF(AND($N$2>=$T$3,$N$2<$U$3),_xlfn.IFS(P11>=$AD$3,$AD$1,P11>=$AC$3,$AC$1,P11>=$AB$3,$AB$1,P11>=$AA$3,$AA$1,P11>=$Z$3,$Z$1,P11>=$Y$3,$Y$1,P11>=$X$3,$X$1,P11>=$W$3,$W$1,P11<$W$2,$V$1),(IF(AND($N$2>=$T$4,$N$2<$U$4),_xlfn.IFS(P11>=$AD$4,$AD$1,P11>=$AC$4,$AC$1,P11>=$AB$4,$AB$1,P11>=$AA$4,$AA$1,P11>=$Z$4,$Z$1,P11>=$Y$4,$Y$1,P11>=$X$4,$X$1,P11>=$W$4,$W$1,P11<$W$2,$V$1),(IF(AND($N$2>=$T$5,$N$2<$U$5),_xlfn.IFS(P11>=$AD$5,$AD$1,P11>=$AC$5,$AC$1,P11>=$AB$5,$AB$1,P11>=$AA$5,$AA$1,P11>=$Z$5,$Z$1,P11>=$Y$5,$Y$1,P11>=$X$5,$X$1,P11>=$W$5,$W$1,P11<$W$2,$V$1),(IF(AND($N$2>=$T$6,$N$2<$U$6),_xlfn.IFS(P11>=$AD$6,$AD$1,P11>=$AC$6,$AC$1,P11>=$AB$6,$AB$1,P11>=$AA$6,$AA$1,P11>=$Z$6,$Z$1,P11>=$Y$6,$Y$1,P11>=$X$6,$X$1,P11>=$W$6,$W$1,P11<$W$2,$V$1),(IF(AND($N$2>=$T$7,$N$2<$U$7),_xlfn.IFS(P11>=$AD$7,$AD$1,P11>=$AC$7,$AC$1,P11>=$AB$7,$AB$1,P11>=$AA$7,$AA$1,P11>=$Z$7,$Z$1,P11>=$Y$7,$Y$1,P11>=$X$7,$X$1,P11>=$W$7,$W$1,P11<$W$2,$V$1),(IF(AND($N$2>=$T$8,$N$2<$U$8),_xlfn.IFS(P11>=$AD$8,$AD$1,P11>=$AC$8,$AC$1,P11>=$AB$8,$AB$1,P11>=$AA$8,$AA$1,P11>=$Z$8,$Z$1,P11>=$Y$8,$Y$1,P11>=$X$8,$X$1,P11>=$W$8,$W$1,P11<$W$2,$V$1),(IF(AND($N$2>=$T$9,$N$2<$U$9),_xlfn.IFS(P11>=$AD$9,$AD$1,P11>=$AC$9,$AC$1,P11>=$AB$9,$AB$1,P11>=$AA$9,$AA$1,P11>=$Z$9,$Z$1,P11>=$Y$9,$Y$1,P11>=$X$9,$X$1,P11>=$W$9,$W$1),$W$1))))))))))))))),IF(AND($N$2>=$T$2,$N$2<=$U$2),IF(P11>=$W$2,$W$1,$V$1),IF(AND($N$2>=$T$3,$N$2<$U$3),IF(P11>=$W$3,$W$1,$V$1),IF(AND($N$2>=$T$4,$N$2<$U$4),IF(P11>=$W$4,$W$1,$V$1),IF(AND($N$2>=$T$5,$N$2<$U$5),IF(P11>=$W$5,$W$1,$V$1),IF(AND($N$2>=$T$6,$N$2<$U$6),IF(P11>=$W$6,$W$1,$V$1),IF(AND($N$2>=$T$7,$N$2<$U$7),IF(P11>=$W$7,$W$1,$V$1),IF(AND($N$2>=$T$8,$N$2<$U$8),IF(P11>=$W$8,$W$1,$V$1),IF(AND($N$2>=$T$9,$N$2<$U$9),IF(P11>=$W$9,$W$1,$V$1),""))))))))),"") -> AA | M11: =IF(E11<>"",IF(AND(E11<>"GR",E11>=40,J11>=30),_xlfn.IFS(Q11>=$AG$2,$AD$19,Q11>=$AG$3,$AC$19,Q11>=$AG$4,$AB$19,Q11>=$AG$5,$AA$19,Q11>=$AG$6,$Z$19,Q11>=$AG$7,$Y$19,Q11>=$AG$8,$X$19,Q11>=$AG$9,$V$19),L11),"") -> AA | P11: 69 | Q11: 69 | R11: 1.86
A12: Öğrenci | B12: 11 | C12: 60 | D12: 83 | E12: GR | F12: 83 | G12: 60 | H12: 83 | I12: 73.8 | J12: 73.8 | K12: 5446.44 | L12: =IF(D12<>"",IF(AND(H12>=40,I12>=30),IF(AND($N$2>=$T$2,$N$2<=$U$2),_xlfn.IFS(P12>=$AD$2,$AD$1,P12>=$AC$2,$AC$1,P12>=$AB$2,$AB$1,P12>=$AA$2,$AA$1,P12>=$Z$2,$Z$1,P12>=$Y$2,$Y$1,P12>=$X$2,$X$1,P12>=$W$2,$W$1,P12<$W$2,$V$1),(IF(AND($N$2>=$T$3,$N$2<$U$3),_xlfn.IFS(P12>=$AD$3,$AD$1,P12>=$AC$3,$AC$1,P12>=$AB$3,$AB$1,P12>=$AA$3,$AA$1,P12>=$Z$3,$Z$1,P12>=$Y$3,$Y$1,P12>=$X$3,$X$1,P12>=$W$3,$W$1,P12<$W$2,$V$1),(IF(AND($N$2>=$T$4,$N$2<$U$4),_xlfn.IFS(P12>=$AD$4,$AD$1,P12>=$AC$4,$AC$1,P12>=$AB$4,$AB$1,P12>=$AA$4,$AA$1,P12>=$Z$4,$Z$1,P12>=$Y$4,$Y$1,P12>=$X$4,$X$1,P12>=$W$4,$W$1,P12<$W$2,$V$1),(IF(AND($N$2>=$T$5,$N$2<$U$5),_xlfn.IFS(P12>=$AD$5,$AD$1,P12>=$AC$5,$AC$1,P12>=$AB$5,$AB$1,P12>=$AA$5,$AA$1,P12>=$Z$5,$Z$1,P12>=$Y$5,$Y$1,P12>=$X$5,$X$1,P12>=$W$5,$W$1,P12<$W$2,$V$1),(IF(AND($N$2>=$T$6,$N$2<$U$6),_xlfn.IFS(P12>=$AD$6,$AD$1,P12>=$AC$6,$AC$1,P12>=$AB$6,$AB$1,P12>=$AA$6,$AA$1,P12>=$Z$6,$Z$1,P12>=$Y$6,$Y$1,P12>=$X$6,$X$1,P12>=$W$6,$W$1,P12<$W$2,$V$1),(IF(AND($N$2>=$T$7,$N$2<$U$7),_xlfn.IFS(P12>=$AD$7,$AD$1,P12>=$AC$7,$AC$1,P12>=$AB$7,$AB$1,P12>=$AA$7,$AA$1,P12>=$Z$7,$Z$1,P12>=$Y$7,$Y$1,P12>=$X$7,$X$1,P12>=$W$7,$W$1,P12<$W$2,$V$1),(IF(AND($N$2>=$T$8,$N$2<$U$8),_xlfn.IFS(P12>=$AD$8,$AD$1,P12>=$AC$8,$AC$1,P12>=$AB$8,$AB$1,P12>=$AA$8,$AA$1,P12>=$Z$8,$Z$1,P12>=$Y$8,$Y$1,P12>=$X$8,$X$1,P12>=$W$8,$W$1,P12<$W$2,$V$1),(IF(AND($N$2>=$T$9,$N$2<$U$9),_xlfn.IFS(P12>=$AD$9,$AD$1,P12>=$AC$9,$AC$1,P12>=$AB$9,$AB$1,P12>=$AA$9,$AA$1,P12>=$Z$9,$Z$1,P12>=$Y$9,$Y$1,P12>=$X$9,$X$1,P12>=$W$9,$W$1),$W$1))))))))))))))),IF(AND($N$2>=$T$2,$N$2<=$U$2),IF(P12>=$W$2,$W$1,$V$1),IF(AND($N$2>=$T$3,$N$2<$U$3),IF(P12>=$W$3,$W$1,$V$1),IF(AND($N$2>=$T$4,$N$2<$U$4),IF(P12>=$W$4,$W$1,$V$1),IF(AND($N$2>=$T$5,$N$2<$U$5),IF(P12>=$W$5,$W$1,$V$1),IF(AND($N$2>=$T$6,$N$2<$U$6),IF(P12>=$W$6,$W$1,$V$1),IF(AND($N$2>=$T$7,$N$2<$U$7),IF(P12>=$W$7,$W$1,$V$1),IF(AND($N$2>=$T$8,$N$2<$U$8),IF(P12>=$W$8,$W$1,$V$1),IF(AND($N$2>=$T$9,$N$2<$U$9),IF(P12>=$W$9,$W$1,$V$1),""))))))))),"") -> AA | M12: =IF(E12<>"",IF(AND(E12<>"GR",E12>=40,J12>=30),_xlfn.IFS(Q12>=$AG$2,$AD$19,Q12>=$AG$3,$AC$19,Q12>=$AG$4,$AB$19,Q12>=$AG$5,$AA$19,Q12>=$AG$6,$Z$19,Q12>=$AG$7,$Y$19,Q12>=$AG$8,$X$19,Q12>=$AG$9,$V$19),L12),"") -> AA | P12: 69 | Q12: 69 | R12: 1.86
A13: Öğrenci | B13: 12 | C13: 56 | D13: 83 | E13: GR | F13: 83 | G13: 56 | H13: 83 | I13: 72.2 | J13: 72.2 | K13: 5212.84 | L13: =IF(D13<>"",IF(AND(H13>=40,I13>=30),IF(AND($N$2>=$T$2,$N$2<=$U$2),_xlfn.IFS(P13>=$AD$2,$AD$1,P13>=$AC$2,$AC$1,P13>=$AB$2,$AB$1,P13>=$AA$2,$AA$1,P13>=$Z$2,$Z$1,P13>=$Y$2,$Y$1,P13>=$X$2,$X$1,P13>=$W$2,$W$1,P13<$W$2,$V$1),(IF(AND($N$2>=$T$3,$N$2<$U$3),_xlfn.IFS(P13>=$AD$3,$AD$1,P13>=$AC$3,$AC$1,P13>=$AB$3,$AB$1,P13>=$AA$3,$AA$1,P13>=$Z$3,$Z$1,P13>=$Y$3,$Y$1,P13>=$X$3,$X$1,P13>=$W$3,$W$1,P13<$W$2,$V$1),(IF(AND($N$2>=$T$4,$N$2<$U$4),_xlfn.IFS(P13>=$AD$4,$AD$1,P13>=$AC$4,$AC$1,P13>=$AB$4,$AB$1,P13>=$AA$4,$AA$1,P13>=$Z$4,$Z$1,P13>=$Y$4,$Y$1,P13>=$X$4,$X$1,P13>=$W$4,$W$1,P13<$W$2,$V$1),(IF(AND($N$2>=$T$5,$N$2<$U$5),_xlfn.IFS(P13>=$AD$5,$AD$1,P13>=$AC$5,$AC$1,P13>=$AB$5,$AB$1,P13>=$AA$5,$AA$1,P13>=$Z$5,$Z$1,P13>=$Y$5,$Y$1,P13>=$X$5,$X$1,P13>=$W$5,$W$1,P13<$W$2,$V$1),(IF(AND($N$2>=$T$6,$N$2<$U$6),_xlfn.IFS(P13>=$AD$6,$AD$1,P13>=$AC$6,$AC$1,P13>=$AB$6,$AB$1,P13>=$AA$6,$AA$1,P13>=$Z$6,$Z$1,P13>=$Y$6,$Y$1,P13>=$X$6,$X$1,P13>=$W$6,$W$1,P13<$W$2,$V$1),(IF(AND($N$2>=$T$7,$N$2<$U$7),_xlfn.IFS(P13>=$AD$7,$AD$1,P13>=$AC$7,$AC$1,P13>=$AB$7,$AB$1,P13>=$AA$7,$AA$1,P13>=$Z$7,$Z$1,P13>=$Y$7,$Y$1,P13>=$X$7,$X$1,P13>=$W$7,$W$1,P13<$W$2,$V$1),(IF(AND($N$2>=$T$8,$N$2<$U$8),_xlfn.IFS(P13>=$AD$8,$AD$1,P13>=$AC$8,$AC$1,P13>=$AB$8,$AB$1,P13>=$AA$8,$AA$1,P13>=$Z$8,$Z$1,P13>=$Y$8,$Y$1,P13>=$X$8,$X$1,P13>=$W$8,$W$1,P13<$W$2,$V$1),(IF(AND($N$2>=$T$9,$N$2<$U$9),_xlfn.IFS(P13>=$AD$9,$AD$1,P13>=$AC$9,$AC$1,P13>=$AB$9,$AB$1,P13>=$AA$9,$AA$1,P13>=$Z$9,$Z$1,P13>=$Y$9,$Y$1,P13>=$X$9,$X$1,P13>=$W$9,$W$1),$W$1))))))))))))))),IF(AND($N$2>=$T$2,$N$2<=$U$2),IF(P13>=$W$2,$W$1,$V$1),IF(AND($N$2>=$T$3,$N$2<$U$3),IF(P13>=$W$3,$W$1,$V$1),IF(AND($N$2>=$T$4,$N$2<$U$4),IF(P13>=$W$4,$W$1,$V$1),IF(AND($N$2>=$T$5,$N$2<$U$5),IF(P13>=$W$5,$W$1,$V$1),IF(AND($N$2>=$T$6,$N$2<$U$6),IF(P13>=$W$6,$W$1,$V$1),IF(AND($N$2>=$T$7,$N$2<$U$7),IF(P13>=$W$7,$W$1,$V$1),IF(AND($N$2>=$T$8,$N$2<$U$8),IF(P13>=$W$8,$W$1,$V$1),IF(AND($N$2>=$T$9,$N$2<$U$9),IF(P13>=$W$9,$W$1,$V$1),""))))))))),"") -> BA | M13: =IF(E13<>"",IF(AND(E13<>"GR",E13>=40,J13>=30),_xlfn.IFS(Q13>=$AG$2,$AD$19,Q13>=$AG$3,$AC$19,Q13>=$AG$4,$AB$19,Q13>=$AG$5,$AA$19,Q13>=$AG$6,$Z$19,Q13>=$AG$7,$Y$19,Q13>=$AG$8,$X$19,Q13>=$AG$9,$V$19),L13),"") -> BA | P13: 67 | Q13: 67 | R13: 1.75
A14: Öğrenci | B14: 13 | C14: 52 | D14: 85 | E14: GR | F14: 85 | G14: 52 | H14: 85 | I14: 71.8 | J14: 71.8 | K14: 5155.24 | L14: =IF(D14<>"",IF(AND(H14>=40,I14>=30),IF(AND($N$2>=$T$2,$N$2<=$U$2),_xlfn.IFS(P14>=$AD$2,$AD$1,P14>=$AC$2,$AC$1,P14>=$AB$2,$AB$1,P14>=$AA$2,$AA$1,P14>=$Z$2,$Z$1,P14>=$Y$2,$Y$1,P14>=$X$2,$X$1,P14>=$W$2,$W$1,P14<$W$2,$V$1),(IF(AND($N$2>=$T$3,$N$2<$U$3),_xlfn.IFS(P14>=$AD$3,$AD$1,P14>=$AC$3,$AC$1,P14>=$AB$3,$AB$1,P14>=$AA$3,$AA$1,P14>=$Z$3,$Z$1,P14>=$Y$3,$Y$1,P14>=$X$3,$X$1,P14>=$W$3,$W$1,P14<$W$2,$V$1),(IF(AND($N$2>=$T$4,$N$2<$U$4),_xlfn.IFS(P14>=$AD$4,$AD$1,P14>=$AC$4,$AC$1,P14>=$AB$4,$AB$1,P14>=$AA$4,$AA$1,P14>=$Z$4,$Z$1,P14>=$Y$4,$Y$1,P14>=$X$4,$X$1,P14>=$W$4,$W$1,P14<$W$2,$V$1),(IF(AND($N$2>=$T$5,$N$2<$U$5),_xlfn.IFS(P14>=$AD$5,$AD$1,P14>=$AC$5,$AC$1,P14>=$AB$5,$AB$1,P14>=$AA$5,$AA$1,P14>=$Z$5,$Z$1,P14>=$Y$5,$Y$1,P14>=$X$5,$X$1,P14>=$W$5,$W$1,P14<$W$2,$V$1),(IF(AND($N$2>=$T$6,$N$2<$U$6),_xlfn.IFS(P14>=$AD$6,$AD$1,P14>=$AC$6,$AC$1,P14>=$AB$6,$AB$1,P14>=$AA$6,$AA$1,P14>=$Z$6,$Z$1,P14>=$Y$6,$Y$1,P14>=$X$6,$X$1,P14>=$W$6,$W$1,P14<$W$2,$V$1),(IF(AND($N$2>=$T$7,$N$2<$U$7),_xlfn.IFS(P14>=$AD$7,$AD$1,P14>=$AC$7,$AC$1,P14>=$AB$7,$AB$1,P14>=$AA$7,$AA$1,P14>=$Z$7,$Z$1,P14>=$Y$7,$Y$1,P14>=$X$7,$X$1,P14>=$W$7,$W$1,P14<$W$2,$V$1),(IF(AND($N$2>=$T$8,$N$2<$U$8),_xlfn.IFS(P14>=$AD$8,$AD$1,P14>=$AC$8,$AC$1,P14>=$AB$8,$AB$1,P14>=$AA$8,$AA$1,P14>=$Z$8,$Z$1,P14>=$Y$8,$Y$1,P14>=$X$8,$X$1,P14>=$W$8,$W$1,P14<$W$2,$V$1),(IF(AND($N$2>=$T$9,$N$2<$U$9),_xlfn.IFS(P14>=$AD$9,$AD$1,P14>=$AC$9,$AC$1,P14>=$AB$9,$AB$1,P14>=$AA$9,$AA$1,P14>=$Z$9,$Z$1,P14>=$Y$9,$Y$1,P14>=$X$9,$X$1,P14>=$W$9,$W$1),$W$1))))))))))))))),IF(AND($N$2>=$T$2,$N$2<=$U$2),IF(P14>=$W$2,$W$1,$V$1),IF(AND($N$2>=$T$3,$N$2<$U$3),IF(P14>=$W$3,$W$1,$V$1),IF(AND($N$2>=$T$4,$N$2<$U$4),IF(P14>=$W$4,$W$1,$V$1),IF(AND($N$2>=$T$5,$N$2<$U$5),IF(P14>=$W$5,$W$1,$V$1),IF(AND($N$2>=$T$6,$N$2<$U$6),IF(P14>=$W$6,$W$1,$V$1),IF(AND($N$2>=$T$7,$N$2<$U$7),IF(P14>=$W$7,$W$1,$V$1),IF(AND($N$2>=$T$8,$N$2<$U$8),IF(P14>=$W$8,$W$1,$V$1),IF(AND($N$2>=$T$9,$N$2<$U$9),IF(P14>=$W$9,$W$1,$V$1),""))))))))),"") -> BA | M14: =IF(E14<>"",IF(AND(E14<>"GR",E14>=40,J14>=30),_xlfn.IFS(Q14>=$AG$2,$AD$19,Q14>=$AG$3,$AC$19,Q14>=$AG$4,$AB$19,Q14>=$AG$5,$AA$19,Q14>=$AG$6,$Z$19,Q14>=$AG$7,$Y$19,Q14>=$AG$8,$X$19,Q14>=$AG$9,$V$19),L14),"") -> BA | P14: 67 | Q14: 67 | R14: 1.72
A15: Öğrenci | B15: 14 | C15: 57 | D15: 81 | E15: GR | F15: 81 | G15: 57 | H15: 81 | I15: 71.4 | J15: 71.4 | K15: 5097.96 | L15: =IF(D15<>"",IF(AND(H15>=40,I15>=30),IF(AND($N$2>=$T$2,$N$2<=$U$2),_xlfn.IFS(P15>=$AD$2,$AD$1,P15>=$AC$2,$AC$1,P15>=$AB$2,$AB$1,P15>=$AA$2,$AA$1,P15>=$Z$2,$Z$1,P15>=$Y$2,$Y$1,P15>=$X$2,$X$1,P15>=$W$2,$W$1,P15<$W$2,$V$1),(IF(AND($N$2>=$T$3,$N$2<$U$3),_xlfn.IFS(P15>=$AD$3,$AD$1,P15>=$AC$3,$AC$1,P15>=$AB$3,$AB$1,P15>=$AA$3,$AA$1,P15>=$Z$3,$Z$1,P15>=$Y$3,$Y$1,P15>=$X$3,$X$1,P15>=$W$3,$W$1,P15<$W$2,$V$1),(IF(AND($N$2>=$T$4,$N$2<$U$4),_xlfn.IFS(P15>=$AD$4,$AD$1,P15>=$AC$4,$AC$1,P15>=$AB$4,$AB$1,P15>=$AA$4,$AA$1,P15>=$Z$4,$Z$1,P15>=$Y$4,$Y$1,P15>=$X$4,$X$1,P15>=$W$4,$W$1,P15<$W$2,$V$1),(IF(AND($N$2>=$T$5,$N$2<$U$5),_xlfn.IFS(P15>=$AD$5,$AD$1,P15>=$AC$5,$AC$1,P15>=$AB$5,$AB$1,P15>=$AA$5,$AA$1,P15>=$Z$5,$Z$1,P15>=$Y$5,$Y$1,P15>=$X$5,$X$1,P15>=$W$5,$W$1,P15<$W$2,$V$1),(IF(AND($N$2>=$T$6,$N$2<$U$6),_xlfn.IFS(P15>=$AD$6,$AD$1,P15>=$AC$6,$AC$1,P15>=$AB$6,$AB$1,P15>=$AA$6,$AA$1,P15>=$Z$6,$Z$1,P15>=$Y$6,$Y$1,P15>=$X$6,$X$1,P15>=$W$6,$W$1,P15<$W$2,$V$1),(IF(AND($N$2>=$T$7,$N$2<$U$7),_xlfn.IFS(P15>=$AD$7,$AD$1,P15>=$AC$7,$AC$1,P15>=$AB$7,$AB$1,P15>=$AA$7,$AA$1,P15>=$Z$7,$Z$1,P15>=$Y$7,$Y$1,P15>=$X$7,$X$1,P15>=$W$7,$W$1,P15<$W$2,$V$1),(IF(AND($N$2>=$T$8,$N$2<$U$8),_xlfn.IFS(P15>=$AD$8,$AD$1,P15>=$AC$8,$AC$1,P15>=$AB$8,$AB$1,P15>=$AA$8,$AA$1,P15>=$Z$8,$Z$1,P15>=$Y$8,$Y$1,P15>=$X$8,$X$1,P15>=$W$8,$W$1,P15<$W$2,$V$1),(IF(AND($N$2>=$T$9,$N$2<$U$9),_xlfn.IFS(P15>=$AD$9,$AD$1,P15>=$AC$9,$AC$1,P15>=$AB$9,$AB$1,P15>=$AA$9,$AA$1,P15>=$Z$9,$Z$1,P15>=$Y$9,$Y$1,P15>=$X$9,$X$1,P15>=$W$9,$W$1),$W$1))))))))))))))),IF(AND($N$2>=$T$2,$N$2<=$U$2),IF(P15>=$W$2,$W$1,$V$1),IF(AND($N$2>=$T$3,$N$2<$U$3),IF(P15>=$W$3,$W$1,$V$1),IF(AND($N$2>=$T$4,$N$2<$U$4),IF(P15>=$W$4,$W$1,$V$1),IF(AND($N$2>=$T$5,$N$2<$U$5),IF(P15>=$W$5,$W$1,$V$1),IF(AND($N$2>=$T$6,$N$2<$U$6),IF(P15>=$W$6,$W$1,$V$1),IF(AND($N$2>=$T$7,$N$2<$U$7),IF(P15>=$W$7,$W$1,$V$1),IF(AND($N$2>=$T$8,$N$2<$U$8),IF(P15>=$W$8,$W$1,$V$1),IF(AND($N$2>=$T$9,$N$2<$U$9),IF(P15>=$W$9,$W$1,$V$1),""))))))))),"") -> BA | M15: =IF(E15<>"",IF(AND(E15<>"GR",E15>=40,J15>=30),_xlfn.IFS(Q15>=$AG$2,$AD$19,Q15>=$AG$3,$AC$19,Q15>=$AG$4,$AB$19,Q15>=$AG$5,$AA$19,Q15>=$AG$6,$Z$19,Q15>=$AG$7,$Y$19,Q15>=$AG$8,$X$19,Q15>=$AG$9,$V$19),L15),"") -> BA | P15: 67 | Q15: 67 | R15: 1.69
A16: Öğrenci | B16: 15 | C16: 52 | D16: 84 | E16: GR | F16: 84 | G16: 52 | H16: 84 | I16: 71.2 | J16: 71.2 | K16: 5069.44 | L16: =IF(D16<>"",IF(AND(H16>=40,I16>=30),IF(AND($N$2>=$T$2,$N$2<=$U$2),_xlfn.IFS(P16>=$AD$2,$AD$1,P16>=$AC$2,$AC$1,P16>=$AB$2,$AB$1,P16>=$AA$2,$AA$1,P16>=$Z$2,$Z$1,P16>=$Y$2,$Y$1,P16>=$X$2,$X$1,P16>=$W$2,$W$1,P16<$W$2,$V$1),(IF(AND($N$2>=$T$3,$N$2<$U$3),_xlfn.IFS(P16>=$AD$3,$AD$1,P16>=$AC$3,$AC$1,P16>=$AB$3,$AB$1,P16>=$AA$3,$AA$1,P16>=$Z$3,$Z$1,P16>=$Y$3,$Y$1,P16>=$X$3,$X$1,P16>=$W$3,$W$1,P16<$W$2,$V$1),(IF(AND($N$2>=$T$4,$N$2<$U$4),_xlfn.IFS(P16>=$AD$4,$AD$1,P16>=$AC$4,$AC$1,P16>=$AB$4,$AB$1,P16>=$AA$4,$AA$1,P16>=$Z$4,$Z$1,P16>=$Y$4,$Y$1,P16>=$X$4,$X$1,P16>=$W$4,$W$1,P16<$W$2,$V$1),(IF(AND($N$2>=$T$5,$N$2<$U$5),_xlfn.IFS(P16>=$AD$5,$AD$1,P16>=$AC$5,$AC$1,P16>=$AB$5,$AB$1,P16>=$AA$5,$AA$1,P16>=$Z$5,$Z$1,P16>=$Y$5,$Y$1,P16>=$X$5,$X$1,P16>=$W$5,$W$1,P16<$W$2,$V$1),(IF(AND($N$2>=$T$6,$N$2<$U$6),_xlfn.IFS(P16>=$AD$6,$AD$1,P16>=$AC$6,$AC$1,P16>=$AB$6,$AB$1,P16>=$AA$6,$AA$1,P16>=$Z$6,$Z$1,P16>=$Y$6,$Y$1,P16>=$X$6,$X$1,P16>=$W$6,$W$1,P16<$W$2,$V$1),(IF(AND($N$2>=$T$7,$N$2<$U$7),_xlfn.IFS(P16>=$AD$7,$AD$1,P16>=$AC$7,$AC$1,P16>=$AB$7,$AB$1,P16>=$AA$7,$AA$1,P16>=$Z$7,$Z$1,P16>=$Y$7,$Y$1,P16>=$X$7,$X$1,P16>=$W$7,$W$1,P16<$W$2,$V$1),(IF(AND($N$2>=$T$8,$N$2<$U$8),_xlfn.IFS(P16>=$AD$8,$AD$1,P16>=$AC$8,$AC$1,P16>=$AB$8,$AB$1,P16>=$AA$8,$AA$1,P16>=$Z$8,$Z$1,P16>=$Y$8,$Y$1,P16>=$X$8,$X$1,P16>=$W$8,$W$1,P16<$W$2,$V$1),(IF(AND($N$2>=$T$9,$N$2<$U$9),_xlfn.IFS(P16>=$AD$9,$AD$1,P16>=$AC$9,$AC$1,P16>=$AB$9,$AB$1,P16>=$AA$9,$AA$1,P16>=$Z$9,$Z$1,P16>=$Y$9,$Y$1,P16>=$X$9,$X$1,P16>=$W$9,$W$1),$W$1))))))))))))))),IF(AND($N$2>=$T$2,$N$2<=$U$2),IF(P16>=$W$2,$W$1,$V$1),IF(AND($N$2>=$T$3,$N$2<$U$3),IF(P16>=$W$3,$W$1,$V$1),IF(AND($N$2>=$T$4,$N$2<$U$4),IF(P16>=$W$4,$W$1,$V$1),IF(AND($N$2>=$T$5,$N$2<$U$5),IF(P16>=$W$5,$W$1,$V$1),IF(AND($N$2>=$T$6,$N$2<$U$6),IF(P16>=$W$6,$W$1,$V$1),IF(AND($N$2>=$T$7,$N$2<$U$7),IF(P16>=$W$7,$W$1,$V$1),IF(AND($N$2>=$T$8,$N$2<$U$8),IF(P16>=$W$8,$W$1,$V$1),IF(AND($N$2>=$T$9,$N$2<$U$9),IF(P16>=$W$9,$W$1,$V$1),""))))))))),"") -> BA | M16: =IF(E16<>"",IF(AND(E16<>"GR",E16>=40,J16>=30),_xlfn.IFS(Q16>=$AG$2,$AD$19,Q16>=$AG$3,$AC$19,Q16>=$AG$4,$AB$19,Q16>=$AG$5,$AA$19,Q16>=$AG$6,$Z$19,Q16>=$AG$7,$Y$19,Q16>=$AG$8,$X$19,Q16>=$AG$9,$V$19),L16),"") -> BA | P16: 67 | Q16: 67 | R16: 1.68
A17: Öğrenci | B17: 16 | C17: 50 | D17: 83 | E17: GR | F17: 83 | G17: 50 | H17: 83 | I17: 69.8 | J17: 69.8 | K17: 4872.04 | L17: =IF(D17<>"",IF(AND(H17>=40,I17>=30),IF(AND($N$2>=$T$2,$N$2<=$U$2),_xlfn.IFS(P17>=$AD$2,$AD$1,P17>=$AC$2,$AC$1,P17>=$AB$2,$AB$1,P17>=$AA$2,$AA$1,P17>=$Z$2,$Z$1,P17>=$Y$2,$Y$1,P17>=$X$2,$X$1,P17>=$W$2,$W$1,P17<$W$2,$V$1),(IF(AND($N$2>=$T$3,$N$2<$U$3),_xlfn.IFS(P17>=$AD$3,$AD$1,P17>=$AC$3,$AC$1,P17>=$AB$3,$AB$1,P17>=$AA$3,$AA$1,P17>=$Z$3,$Z$1,P17>=$Y$3,$Y$1,P17>=$X$3,$X$1,P17>=$W$3,$W$1,P17<$W$2,$V$1),(IF(AND($N$2>=$T$4,$N$2<$U$4),_xlfn.IFS(P17>=$AD$4,$AD$1,P17>=$AC$4,$AC$1,P17>=$AB$4,$AB$1,P17>=$AA$4,$AA$1,P17>=$Z$4,$Z$1,P17>=$Y$4,$Y$1,P17>=$X$4,$X$1,P17>=$W$4,$W$1,P17<$W$2,$V$1),(IF(AND($N$2>=$T$5,$N$2<$U$5),_xlfn.IFS(P17>=$AD$5,$AD$1,P17>=$AC$5,$AC$1,P17>=$AB$5,$AB$1,P17>=$AA$5,$AA$1,P17>=$Z$5,$Z$1,P17>=$Y$5,$Y$1,P17>=$X$5,$X$1,P17>=$W$5,$W$1,P17<$W$2,$V$1),(IF(AND($N$2>=$T$6,$N$2<$U$6),_xlfn.IFS(P17>=$AD$6,$AD$1,P17>=$AC$6,$AC$1,P17>=$AB$6,$AB$1,P17>=$AA$6,$AA$1,P17>=$Z$6,$Z$1,P17>=$Y$6,$Y$1,P17>=$X$6,$X$1,P17>=$W$6,$W$1,P17<$W$2,$V$1),(IF(AND($N$2>=$T$7,$N$2<$U$7),_xlfn.IFS(P17>=$AD$7,$AD$1,P17>=$AC$7,$AC$1,P17>=$AB$7,$AB$1,P17>=$AA$7,$AA$1,P17>=$Z$7,$Z$1,P17>=$Y$7,$Y$1,P17>=$X$7,$X$1,P17>=$W$7,$W$1,P17<$W$2,$V$1),(IF(AND($N$2>=$T$8,$N$2<$U$8),_xlfn.IFS(P17>=$AD$8,$AD$1,P17>=$AC$8,$AC$1,P17>=$AB$8,$AB$1,P17>=$AA$8,$AA$1,P17>=$Z$8,$Z$1,P17>=$Y$8,$Y$1,P17>=$X$8,$X$1,P17>=$W$8,$W$1,P17<$W$2,$V$1),(IF(AND($N$2>=$T$9,$N$2<$U$9),_xlfn.IFS(P17>=$AD$9,$AD$1,P17>=$AC$9,$AC$1,P17>=$AB$9,$AB$1,P17>=$AA$9,$AA$1,P17>=$Z$9,$Z$1,P17>=$Y$9,$Y$1,P17>=$X$9,$X$1,P17>=$W$9,$W$1),$W$1))))))))))))))),IF(AND($N$2>=$T$2,$N$2<=$U$2),IF(P17>=$W$2,$W$1,$V$1),IF(AND($N$2>=$T$3,$N$2<$U$3),IF(P17>=$W$3,$W$1,$V$1),IF(AND($N$2>=$T$4,$N$2<$U$4),IF(P17>=$W$4,$W$1,$V$1),IF(AND($N$2>=$T$5,$N$2<$U$5),IF(P17>=$W$5,$W$1,$V$1),IF(AND($N$2>=$T$6,$N$2<$U$6),IF(P17>=$W$6,$W$1,$V$1),IF(AND($N$2>=$T$7,$N$2<$U$7),IF(P17>=$W$7,$W$1,$V$1),IF(AND($N$2>=$T$8,$N$2<$U$8),IF(P17>=$W$8,$W$1,$V$1),IF(AND($N$2>=$T$9,$N$2<$U$9),IF(P17>=$W$9,$W$1,$V$1),""))))))))),"") -> BA | M17: =IF(E17<>"",IF(AND(E17<>"GR",E17>=40,J17>=30),_xlfn.IFS(Q17>=$AG$2,$AD$19,Q17>=$AG$3,$AC$19,Q17>=$AG$4,$AB$19,Q17>=$AG$5,$AA$19,Q17>=$AG$6,$Z$19,Q17>=$AG$7,$Y$19,Q17>=$AG$8,$X$19,Q17>=$AG$9,$V$19),L17),"") -> BA | P17: 66 | Q17: 66 | R17: 1.58
A18: Öğrenci | B18: 17 | C18: 60 | D18: 75 | E18: GR | F18: 75 | G18: 60 | H18: 75 | I18: 69 | J18: 69 | K18: 4761 | L18: =IF(D18<>"",IF(AND(H18>=40,I18>=30),IF(AND($N$2>=$T$2,$N$2<=$U$2),_xlfn.IFS(P18>=$AD$2,$AD$1,P18>=$AC$2,$AC$1,P18>=$AB$2,$AB$1,P18>=$AA$2,$AA$1,P18>=$Z$2,$Z$1,P18>=$Y$2,$Y$1,P18>=$X$2,$X$1,P18>=$W$2,$W$1,P18<$W$2,$V$1),(IF(AND($N$2>=$T$3,$N$2<$U$3),_xlfn.IFS(P18>=$AD$3,$AD$1,P18>=$AC$3,$AC$1,P18>=$AB$3,$AB$1,P18>=$AA$3,$AA$1,P18>=$Z$3,$Z$1,P18>=$Y$3,$Y$1,P18>=$X$3,$X$1,P18>=$W$3,$W$1,P18<$W$2,$V$1),(IF(AND($N$2>=$T$4,$N$2<$U$4),_xlfn.IFS(P18>=$AD$4,$AD$1,P18>=$AC$4,$AC$1,P18>=$AB$4,$AB$1,P18>=$AA$4,$AA$1,P18>=$Z$4,$Z$1,P18>=$Y$4,$Y$1,P18>=$X$4,$X$1,P18>=$W$4,$W$1,P18<$W$2,$V$1),(IF(AND($N$2>=$T$5,$N$2<$U$5),_xlfn.IFS(P18>=$AD$5,$AD$1,P18>=$AC$5,$AC$1,P18>=$AB$5,$AB$1,P18>=$AA$5,$AA$1,P18>=$Z$5,$Z$1,P18>=$Y$5,$Y$1,P18>=$X$5,$X$1,P18>=$W$5,$W$1,P18<$W$2,$V$1),(IF(AND($N$2>=$T$6,$N$2<$U$6),_xlfn.IFS(P18>=$AD$6,$AD$1,P18>=$AC$6,$AC$1,P18>=$AB$6,$AB$1,P18>=$AA$6,$AA$1,P18>=$Z$6,$Z$1,P18>=$Y$6,$Y$1,P18>=$X$6,$X$1,P18>=$W$6,$W$1,P18<$W$2,$V$1),(IF(AND($N$2>=$T$7,$N$2<$U$7),_xlfn.IFS(P18>=$AD$7,$AD$1,P18>=$AC$7,$AC$1,P18>=$AB$7,$AB$1,P18>=$AA$7,$AA$1,P18>=$Z$7,$Z$1,P18>=$Y$7,$Y$1,P18>=$X$7,$X$1,P18>=$W$7,$W$1,P18<$W$2,$V$1),(IF(AND($N$2>=$T$8,$N$2<$U$8),_xlfn.IFS(P18>=$AD$8,$AD$1,P18>=$AC$8,$AC$1,P18>=$AB$8,$AB$1,P18>=$AA$8,$AA$1,P18>=$Z$8,$Z$1,P18>=$Y$8,$Y$1,P18>=$X$8,$X$1,P18>=$W$8,$W$1,P18<$W$2,$V$1),(IF(AND($N$2>=$T$9,$N$2<$U$9),_xlfn.IFS(P18>=$AD$9,$AD$1,P18>=$AC$9,$AC$1,P18>=$AB$9,$AB$1,P18>=$AA$9,$AA$1,P18>=$Z$9,$Z$1,P18>=$Y$9,$Y$1,P18>=$X$9,$X$1,P18>=$W$9,$W$1),$W$1))))))))))))))),IF(AND($N$2>=$T$2,$N$2<=$U$2),IF(P18>=$W$2,$W$1,$V$1),IF(AND($N$2>=$T$3,$N$2<$U$3),IF(P18>=$W$3,$W$1,$V$1),IF(AND($N$2>=$T$4,$N$2<$U$4),IF(P18>=$W$4,$W$1,$V$1),IF(AND($N$2>=$T$5,$N$2<$U$5),IF(P18>=$W$5,$W$1,$V$1),IF(AND($N$2>=$T$6,$N$2<$U$6),IF(P18>=$W$6,$W$1,$V$1),IF(AND($N$2>=$T$7,$N$2<$U$7),IF(P18>=$W$7,$W$1,$V$1),IF(AND($N$2>=$T$8,$N$2<$U$8),IF(P18>=$W$8,$W$1,$V$1),IF(AND($N$2>=$T$9,$N$2<$U$9),IF(P18>=$W$9,$W$1,$V$1),""))))))))),"") -> BA | M18: =IF(E18<>"",IF(AND(E18<>"GR",E18>=40,J18>=30),_xlfn.IFS(Q18>=$AG$2,$AD$19,Q18>=$AG$3,$AC$19,Q18>=$AG$4,$AB$19,Q18>=$AG$5,$AA$19,Q18>=$AG$6,$Z$19,Q18>=$AG$7,$Y$19,Q18>=$AG$8,$X$19,Q18>=$AG$9,$V$19),L18),"") -> BA | P18: 65 | Q18: 65 | R18: 1.53 | S18: Bütünlemeye göre
A19: Öğrenci | B19: 18 | C19: 51 | D19: 79 | E19: GR | F19: 79 | G19: 51 | H19: 79 | I19: 67.8 | J19: 67.8 | K19: 4596.84 | L19: =IF(D19<>"",IF(AND(H19>=40,I19>=30),IF(AND($N$2>=$T$2,$N$2<=$U$2),_xlfn.IFS(P19>=$AD$2,$AD$1,P19>=$AC$2,$AC$1,P19>=$AB$2,$AB$1,P19>=$AA$2,$AA$1,P19>=$Z$2,$Z$1,P19>=$Y$2,$Y$1,P19>=$X$2,$X$1,P19>=$W$2,$W$1,P19<$W$2,$V$1),(IF(AND($N$2>=$T$3,$N$2<$U$3),_xlfn.IFS(P19>=$AD$3,$AD$1,P19>=$AC$3,$AC$1,P19>=$AB$3,$AB$1,P19>=$AA$3,$AA$1,P19>=$Z$3,$Z$1,P19>=$Y$3,$Y$1,P19>=$X$3,$X$1,P19>=$W$3,$W$1,P19<$W$2,$V$1),(IF(AND($N$2>=$T$4,$N$2<$U$4),_xlfn.IFS(P19>=$AD$4,$AD$1,P19>=$AC$4,$AC$1,P19>=$AB$4,$AB$1,P19>=$AA$4,$AA$1,P19>=$Z$4,$Z$1,P19>=$Y$4,$Y$1,P19>=$X$4,$X$1,P19>=$W$4,$W$1,P19<$W$2,$V$1),(IF(AND($N$2>=$T$5,$N$2<$U$5),_xlfn.IFS(P19>=$AD$5,$AD$1,P19>=$AC$5,$AC$1,P19>=$AB$5,$AB$1,P19>=$AA$5,$AA$1,P19>=$Z$5,$Z$1,P19>=$Y$5,$Y$1,P19>=$X$5,$X$1,P19>=$W$5,$W$1,P19<$W$2,$V$1),(IF(AND($N$2>=$T$6,$N$2<$U$6),_xlfn.IFS(P19>=$AD$6,$AD$1,P19>=$AC$6,$AC$1,P19>=$AB$6,$AB$1,P19>=$AA$6,$AA$1,P19>=$Z$6,$Z$1,P19>=$Y$6,$Y$1,P19>=$X$6,$X$1,P19>=$W$6,$W$1,P19<$W$2,$V$1),(IF(AND($N$2>=$T$7,$N$2<$U$7),_xlfn.IFS(P19>=$AD$7,$AD$1,P19>=$AC$7,$AC$1,P19>=$AB$7,$AB$1,P19>=$AA$7,$AA$1,P19>=$Z$7,$Z$1,P19>=$Y$7,$Y$1,P19>=$X$7,$X$1,P19>=$W$7,$W$1,P19<$W$2,$V$1),(IF(AND($N$2>=$T$8,$N$2<$U$8),_xlfn.IFS(P19>=$AD$8,$AD$1,P19>=$AC$8,$AC$1,P19>=$AB$8,$AB$1,P19>=$AA$8,$AA$1,P19>=$Z$8,$Z$1,P19>=$Y$8,$Y$1,P19>=$X$8,$X$1,P19>=$W$8,$W$1,P19<$W$2,$V$1),(IF(AND($N$2>=$T$9,$N$2<$U$9),_xlfn.IFS(P19>=$AD$9,$AD$1,P19>=$AC$9,$AC$1,P19>=$AB$9,$AB$1,P19>=$AA$9,$AA$1,P19>=$Z$9,$Z$1,P19>=$Y$9,$Y$1,P19>=$X$9,$X$1,P19>=$W$9,$W$1),$W$1))))))))))))))),IF(AND($N$2>=$T$2,$N$2<=$U$2),IF(P19>=$W$2,$W$1,$V$1),IF(AND($N$2>=$T$3,$N$2<$U$3),IF(P19>=$W$3,$W$1,$V$1),IF(AND($N$2>=$T$4,$N$2<$U$4),IF(P19>=$W$4,$W$1,$V$1),IF(AND($N$2>=$T$5,$N$2<$U$5),IF(P19>=$W$5,$W$1,$V$1),IF(AND($N$2>=$T$6,$N$2<$U$6),IF(P19>=$W$6,$W$1,$V$1),IF(AND($N$2>=$T$7,$N$2<$U$7),IF(P19>=$W$7,$W$1,$V$1),IF(AND($N$2>=$T$8,$N$2<$U$8),IF(P19>=$W$8,$W$1,$V$1),IF(AND($N$2>=$T$9,$N$2<$U$9),IF(P19>=$W$9,$W$1,$V$1),""))))))))),"") -> BA | M19: =IF(E19<>"",IF(AND(E19<>"GR",E19>=40,J19>=30),_xlfn.IFS(Q19>=$AG$2,$AD$19,Q19>=$AG$3,$AC$19,Q19>=$AG$4,$AB$19,Q19>=$AG$5,$AA$19,Q19>=$AG$6,$Z$19,Q19>=$AG$7,$Y$19,Q19>=$AG$8,$X$19,Q19>=$AG$9,$V$19),L19),"") -> BA | P19: 64 | Q19: 64 | R19: 1.45 | V19: FF | W19: FD | X19: DD | Y19: DC | Z19: CC | AA19: CB | AB19: BB | AC19: BA | AD19: AA | AE19: Başarılı | AF19: Başarısız | AG19: Toplam Öğrenci
A20: Öğrenci | B20: 19 | C20: 60 | D20: 71 | E20: GR | F20: 71 | G20: 60 | H20: 71 | I20: 66.6 | J20: 66.6 | K20: 4435.56 | L20: =IF(D20<>"",IF(AND(H20>=40,I20>=30),IF(AND($N$2>=$T$2,$N$2<=$U$2),_xlfn.IFS(P20>=$AD$2,$AD$1,P20>=$AC$2,$AC$1,P20>=$AB$2,$AB$1,P20>=$AA$2,$AA$1,P20>=$Z$2,$Z$1,P20>=$Y$2,$Y$1,P20>=$X$2,$X$1,P20>=$W$2,$W$1,P20<$W$2,$V$1),(IF(AND($N$2>=$T$3,$N$2<$U$3),_xlfn.IFS(P20>=$AD$3,$AD$1,P20>=$AC$3,$AC$1,P20>=$AB$3,$AB$1,P20>=$AA$3,$AA$1,P20>=$Z$3,$Z$1,P20>=$Y$3,$Y$1,P20>=$X$3,$X$1,P20>=$W$3,$W$1,P20<$W$2,$V$1),(IF(AND($N$2>=$T$4,$N$2<$U$4),_xlfn.IFS(P20>=$AD$4,$AD$1,P20>=$AC$4,$AC$1,P20>=$AB$4,$AB$1,P20>=$AA$4,$AA$1,P20>=$Z$4,$Z$1,P20>=$Y$4,$Y$1,P20>=$X$4,$X$1,P20>=$W$4,$W$1,P20<$W$2,$V$1),(IF(AND($N$2>=$T$5,$N$2<$U$5),_xlfn.IFS(P20>=$AD$5,$AD$1,P20>=$AC$5,$AC$1,P20>=$AB$5,$AB$1,P20>=$AA$5,$AA$1,P20>=$Z$5,$Z$1,P20>=$Y$5,$Y$1,P20>=$X$5,$X$1,P20>=$W$5,$W$1,P20<$W$2,$V$1),(IF(AND($N$2>=$T$6,$N$2<$U$6),_xlfn.IFS(P20>=$AD$6,$AD$1,P20>=$AC$6,$AC$1,P20>=$AB$6,$AB$1,P20>=$AA$6,$AA$1,P20>=$Z$6,$Z$1,P20>=$Y$6,$Y$1,P20>=$X$6,$X$1,P20>=$W$6,$W$1,P20<$W$2,$V$1),(IF(AND($N$2>=$T$7,$N$2<$U$7),_xlfn.IFS(P20>=$AD$7,$AD$1,P20>=$AC$7,$AC$1,P20>=$AB$7,$AB$1,P20>=$AA$7,$AA$1,P20>=$Z$7,$Z$1,P20>=$Y$7,$Y$1,P20>=$X$7,$X$1,P20>=$W$7,$W$1,P20<$W$2,$V$1),(IF(AND($N$2>=$T$8,$N$2<$U$8),_xlfn.IFS(P20>=$AD$8,$AD$1,P20>=$AC$8,$AC$1,P20>=$AB$8,$AB$1,P20>=$AA$8,$AA$1,P20>=$Z$8,$Z$1,P20>=$Y$8,$Y$1,P20>=$X$8,$X$1,P20>=$W$8,$W$1,P20<$W$2,$V$1),(IF(AND($N$2>=$T$9,$N$2<$U$9),_xlfn.IFS(P20>=$AD$9,$AD$1,P20>=$AC$9,$AC$1,P20>=$AB$9,$AB$1,P20>=$AA$9,$AA$1,P20>=$Z$9,$Z$1,P20>=$Y$9,$Y$1,P20>=$X$9,$X$1,P20>=$W$9,$W$1),$W$1))))))))))))))),IF(AND($N$2>=$T$2,$N$2<=$U$2),IF(P20>=$W$2,$W$1,$V$1),IF(AND($N$2>=$T$3,$N$2<$U$3),IF(P20>=$W$3,$W$1,$V$1),IF(AND($N$2>=$T$4,$N$2<$U$4),IF(P20>=$W$4,$W$1,$V$1),IF(AND($N$2>=$T$5,$N$2<$U$5),IF(P20>=$W$5,$W$1,$V$1),IF(AND($N$2>=$T$6,$N$2<$U$6),IF(P20>=$W$6,$W$1,$V$1),IF(AND($N$2>=$T$7,$N$2<$U$7),IF(P20>=$W$7,$W$1,$V$1),IF(AND($N$2>=$T$8,$N$2<$U$8),IF(P20>=$W$8,$W$1,$V$1),IF(AND($N$2>=$T$9,$N$2<$U$9),IF(P20>=$W$9,$W$1,$V$1),""))))))))),"") -> BA | M20: =IF(E20<>"",IF(AND(E20<>"GR",E20>=40,J20>=30),_xlfn.IFS(Q20>=$AG$2,$AD$19,Q20>=$AG$3,$AC$19,Q20>=$AG$4,$AB$19,Q20>=$AG$5,$AA$19,Q20>=$AG$6,$Z$19,Q20>=$AG$7,$Y$19,Q20>=$AG$8,$X$19,Q20>=$AG$9,$V$19),L20),"") -> BA | P20: 64 | Q20: 64 | R20: 1.36 | S20: Mevcutta sayı | V20: =COUNTIFS($J$2:$J$331,">=0",$M$2:$M$331,"FF") -> 79 | W20: =COUNTIFS($J$2:$J$331,">=0",$M$2:$M$331,"FD") -> 12 | X20: =COUNTIFS($J$2:$J$331,">=0",$M$2:$M$331,"DD") -> 36 | Y20: =COUNTIFS($J$2:$J$331,">=0",$M$2:$M$331,"DC") -> 47 | Z20: =COUNTIFS($J$2:$J$331,">=0",$M$2:$M$331,"CC") -> 53 | AA20: =COUNTIFS($J$2:$J$331,">=0",$M$2:$M$331,"CB") -> 38 | AB20: =COUNTIFS($J$2:$J$331,">=0",$M$2:$M$331,"BB") -> 29 | AC20: =COUNTIFS($J$2:$J$331,">=0",$M$2:$M$331,"BA") -> 8 | AD20: =COUNTIFS($J$2:$J$331,">=0",$M$2:$M$331,"AA") -> 11 | AE20: =X20+Y20+Z20+AA20+AB20+AC20+AD20 -> 222 | AF20: =V20+W20 -> 91 | AG20: =AE20+AF20 -> 313
A21: Öğrenci | B21: 20 | C21: 52 | D21: 76 | E21: GR | F21: 76 | G21: 52 | H21: 76 | I21: 66.4 | J21: 66.4 | K21: 4408.96 | L21: =IF(D21<>"",IF(AND(H21>=40,I21>=30),IF(AND($N$2>=$T$2,$N$2<=$U$2),_xlfn.IFS(P21>=$AD$2,$AD$1,P21>=$AC$2,$AC$1,P21>=$AB$2,$AB$1,P21>=$AA$2,$AA$1,P21>=$Z$2,$Z$1,P21>=$Y$2,$Y$1,P21>=$X$2,$X$1,P21>=$W$2,$W$1,P21<$W$2,$V$1),(IF(AND($N$2>=$T$3,$N$2<$U$3),_xlfn.IFS(P21>=$AD$3,$AD$1,P21>=$AC$3,$AC$1,P21>=$AB$3,$AB$1,P21>=$AA$3,$AA$1,P21>=$Z$3,$Z$1,P21>=$Y$3,$Y$1,P21>=$X$3,$X$1,P21>=$W$3,$W$1,P21<$W$2,$V$1),(IF(AND($N$2>=$T$4,$N$2<$U$4),_xlfn.IFS(P21>=$AD$4,$AD$1,P21>=$AC$4,$AC$1,P21>=$AB$4,$AB$1,P21>=$AA$4,$AA$1,P21>=$Z$4,$Z$1,P21>=$Y$4,$Y$1,P21>=$X$4,$X$1,P21>=$W$4,$W$1,P21<$W$2,$V$1),(IF(AND($N$2>=$T$5,$N$2<$U$5),_xlfn.IFS(P21>=$AD$5,$AD$1,P21>=$AC$5,$AC$1,P21>=$AB$5,$AB$1,P21>=$AA$5,$AA$1,P21>=$Z$5,$Z$1,P21>=$Y$5,$Y$1,P21>=$X$5,$X$1,P21>=$W$5,$W$1,P21<$W$2,$V$1),(IF(AND($N$2>=$T$6,$N$2<$U$6),_xlfn.IFS(P21>=$AD$6,$AD$1,P21>=$AC$6,$AC$1,P21>=$AB$6,$AB$1,P21>=$AA$6,$AA$1,P21>=$Z$6,$Z$1,P21>=$Y$6,$Y$1,P21>=$X$6,$X$1,P21>=$W$6,$W$1,P21<$W$2,$V$1),(IF(AND($N$2>=$T$7,$N$2<$U$7),_xlfn.IFS(P21>=$AD$7,$AD$1,P21>=$AC$7,$AC$1,P21>=$AB$7,$AB$1,P21>=$AA$7,$AA$1,P21>=$Z$7,$Z$1,P21>=$Y$7,$Y$1,P21>=$X$7,$X$1,P21>=$W$7,$W$1,P21<$W$2,$V$1),(IF(AND($N$2>=$T$8,$N$2<$U$8),_xlfn.IFS(P21>=$AD$8,$AD$1,P21>=$AC$8,$AC$1,P21>=$AB$8,$AB$1,P21>=$AA$8,$AA$1,P21>=$Z$8,$Z$1,P21>=$Y$8,$Y$1,P21>=$X$8,$X$1,P21>=$W$8,$W$1,P21<$W$2,$V$1),(IF(AND($N$2>=$T$9,$N$2<$U$9),_xlfn.IFS(P21>=$AD$9,$AD$1,P21>=$AC$9,$AC$1,P21>=$AB$9,$AB$1,P21>=$AA$9,$AA$1,P21>=$Z$9,$Z$1,P21>=$Y$9,$Y$1,P21>=$X$9,$X$1,P21>=$W$9,$W$1),$W$1))))))))))))))),IF(AND($N$2>=$T$2,$N$2<=$U$2),IF(P21>=$W$2,$W$1,$V$1),IF(AND($N$2>=$T$3,$N$2<$U$3),IF(P21>=$W$3,$W$1,$V$1),IF(AND($N$2>=$T$4,$N$2<$U$4),IF(P21>=$W$4,$W$1,$V$1),IF(AND($N$2>=$T$5,$N$2<$U$5),IF(P21>=$W$5,$W$1,$V$1),IF(AND($N$2>=$T$6,$N$2<$U$6),IF(P21>=$W$6,$W$1,$V$1),IF(AND($N$2>=$T$7,$N$2<$U$7),IF(P21>=$W$7,$W$1,$V$1),IF(AND($N$2>=$T$8,$N$2<$U$8),IF(P21>=$W$8,$W$1,$V$1),IF(AND($N$2>=$T$9,$N$2<$U$9),IF(P21>=$W$9,$W$1,$V$1),""))))))))),"") -> BB | M21: =IF(E21<>"",IF(AND(E21<>"GR",E21>=40,J21>=30),_xlfn.IFS(Q21>=$AG$2,$AD$19,Q21>=$AG$3,$AC$19,Q21>=$AG$4,$AB$19,Q21>=$AG$5,$AA$19,Q21>=$AG$6,$Z$19,Q21>=$AG$7,$Y$19,Q21>=$AG$8,$X$19,Q21>=$AG$9,$V$19),L21),"") -> BB | P21: 63 | Q21: 63 | R21: 1.35
A22: Öğrenci | B22: 21 | C22: 43 | D22: 82 | E22: GR | F22: 82 | G22: 43 | H22: 82 | I22: 66.4 | J22: 66.4 | K22: 4408.96 | L22: =IF(D22<>"",IF(AND(H22>=40,I22>=30),IF(AND($N$2>=$T$2,$N$2<=$U$2),_xlfn.IFS(P22>=$AD$2,$AD$1,P22>=$AC$2,$AC$1,P22>=$AB$2,$AB$1,P22>=$AA$2,$AA$1,P22>=$Z$2,$Z$1,P22>=$Y$2,$Y$1,P22>=$X$2,$X$1,P22>=$W$2,$W$1,P22<$W$2,$V$1),(IF(AND($N$2>=$T$3,$N$2<$U$3),_xlfn.IFS(P22>=$AD$3,$AD$1,P22>=$AC$3,$AC$1,P22>=$AB$3,$AB$1,P22>=$AA$3,$AA$1,P22>=$Z$3,$Z$1,P22>=$Y$3,$Y$1,P22>=$X$3,$X$1,P22>=$W$3,$W$1,P22<$W$2,$V$1),(IF(AND($N$2>=$T$4,$N$2<$U$4),_xlfn.IFS(P22>=$AD$4,$AD$1,P22>=$AC$4,$AC$1,P22>=$AB$4,$AB$1,P22>=$AA$4,$AA$1,P22>=$Z$4,$Z$1,P22>=$Y$4,$Y$1,P22>=$X$4,$X$1,P22>=$W$4,$W$1,P22<$W$2,$V$1),(IF(AND($N$2>=$T$5,$N$2<$U$5),_xlfn.IFS(P22>=$AD$5,$AD$1,P22>=$AC$5,$AC$1,P22>=$AB$5,$AB$1,P22>=$AA$5,$AA$1,P22>=$Z$5,$Z$1,P22>=$Y$5,$Y$1,P22>=$X$5,$X$1,P22>=$W$5,$W$1,P22<$W$2,$V$1),(IF(AND($N$2>=$T$6,$N$2<$U$6),_xlfn.IFS(P22>=$AD$6,$AD$1,P22>=$AC$6,$AC$1,P22>=$AB$6,$AB$1,P22>=$AA$6,$AA$1,P22>=$Z$6,$Z$1,P22>=$Y$6,$Y$1,P22>=$X$6,$X$1,P22>=$W$6,$W$1,P22<$W$2,$V$1),(IF(AND($N$2>=$T$7,$N$2<$U$7),_xlfn.IFS(P22>=$AD$7,$AD$1,P22>=$AC$7,$AC$1,P22>=$AB$7,$AB$1,P22>=$AA$7,$AA$1,P22>=$Z$7,$Z$1,P22>=$Y$7,$Y$1,P22>=$X$7,$X$1,P22>=$W$7,$W$1,P22<$W$2,$V$1),(IF(AND($N$2>=$T$8,$N$2<$U$8),_xlfn.IFS(P22>=$AD$8,$AD$1,P22>=$AC$8,$AC$1,P22>=$AB$8,$AB$1,P22>=$AA$8,$AA$1,P22>=$Z$8,$Z$1,P22>=$Y$8,$Y$1,P22>=$X$8,$X$1,P22>=$W$8,$W$1,P22<$W$2,$V$1),(IF(AND($N$2>=$T$9,$N$2<$U$9),_xlfn.IFS(P22>=$AD$9,$AD$1,P22>=$AC$9,$AC$1,P22>=$AB$9,$AB$1,P22>=$AA$9,$AA$1,P22>=$Z$9,$Z$1,P22>=$Y$9,$Y$1,P22>=$X$9,$X$1,P22>=$W$9,$W$1),$W$1))))))))))))))),IF(AND($N$2>=$T$2,$N$2<=$U$2),IF(P22>=$W$2,$W$1,$V$1),IF(AND($N$2>=$T$3,$N$2<$U$3),IF(P22>=$W$3,$W$1,$V$1),IF(AND($N$2>=$T$4,$N$2<$U$4),IF(P22>=$W$4,$W$1,$V$1),IF(AND($N$2>=$T$5,$N$2<$U$5),IF(P22>=$W$5,$W$1,$V$1),IF(AND($N$2>=$T$6,$N$2<$U$6),IF(P22>=$W$6,$W$1,$V$1),IF(AND($N$2>=$T$7,$N$2<$U$7),IF(P22>=$W$7,$W$1,$V$1),IF(AND($N$2>=$T$8,$N$2<$U$8),IF(P22>=$W$8,$W$1,$V$1),IF(AND($N$2>=$T$9,$N$2<$U$9),IF(P22>=$W$9,$W$1,$V$1),""))))))))),"") -> BB | M22: =IF(E22<>"",IF(AND(E22<>"GR",E22>=40,J22>=30),_xlfn.IFS(Q22>=$AG$2,$AD$19,Q22>=$AG$3,$AC$19,Q22>=$AG$4,$AB$19,Q22>=$AG$5,$AA$19,Q22>=$AG$6,$Z$19,Q22>=$AG$7,$Y$19,Q22>=$AG$8,$X$19,Q22>=$AG$9,$V$19),L22),"") -> BB | P22: 63 | Q22: 63 | R22: 1.35
A23: Öğrenci | B23: 22 | C23: 43 | D23: 82 | E23: GR | F23: 82 | G23: 43 | H23: 82 | I23: 66.4 | J23: 66.4 | K23: 4408.96 | L23: =IF(D23<>"",IF(AND(H23>=40,I23>=30),IF(AND($N$2>=$T$2,$N$2<=$U$2),_xlfn.IFS(P23>=$AD$2,$AD$1,P23>=$AC$2,$AC$1,P23>=$AB$2,$AB$1,P23>=$AA$2,$AA$1,P23>=$Z$2,$Z$1,P23>=$Y$2,$Y$1,P23>=$X$2,$X$1,P23>=$W$2,$W$1,P23<$W$2,$V$1),(IF(AND($N$2>=$T$3,$N$2<$U$3),_xlfn.IFS(P23>=$AD$3,$AD$1,P23>=$AC$3,$AC$1,P23>=$AB$3,$AB$1,P23>=$AA$3,$AA$1,P23>=$Z$3,$Z$1,P23>=$Y$3,$Y$1,P23>=$X$3,$X$1,P23>=$W$3,$W$1,P23<$W$2,$V$1),(IF(AND($N$2>=$T$4,$N$2<$U$4),_xlfn.IFS(P23>=$AD$4,$AD$1,P23>=$AC$4,$AC$1,P23>=$AB$4,$AB$1,P23>=$AA$4,$AA$1,P23>=$Z$4,$Z$1,P23>=$Y$4,$Y$1,P23>=$X$4,$X$1,P23>=$W$4,$W$1,P23<$W$2,$V$1),(IF(AND($N$2>=$T$5,$N$2<$U$5),_xlfn.IFS(P23>=$AD$5,$AD$1,P23>=$AC$5,$AC$1,P23>=$AB$5,$AB$1,P23>=$AA$5,$AA$1,P23>=$Z$5,$Z$1,P23>=$Y$5,$Y$1,P23>=$X$5,$X$1,P23>=$W$5,$W$1,P23<$W$2,$V$1),(IF(AND($N$2>=$T$6,$N$2<$U$6),_xlfn.IFS(P23>=$AD$6,$AD$1,P23>=$AC$6,$AC$1,P23>=$AB$6,$AB$1,P23>=$AA$6,$AA$1,P23>=$Z$6,$Z$1,P23>=$Y$6,$Y$1,P23>=$X$6,$X$1,P23>=$W$6,$W$1,P23<$W$2,$V$1),(IF(AND($N$2>=$T$7,$N$2<$U$7),_xlfn.IFS(P23>=$AD$7,$AD$1,P23>=$AC$7,$AC$1,P23>=$AB$7,$AB$1,P23>=$AA$7,$AA$1,P23>=$Z$7,$Z$1,P23>=$Y$7,$Y$1,P23>=$X$7,$X$1,P23>=$W$7,$W$1,P23<$W$2,$V$1),(IF(AND($N$2>=$T$8,$N$2<$U$8),_xlfn.IFS(P23>=$AD$8,$AD$1,P23>=$AC$8,$AC$1,P23>=$AB$8,$AB$1,P23>=$AA$8,$AA$1,P23>=$Z$8,$Z$1,P23>=$Y$8,$Y$1,P23>=$X$8,$X$1,P23>=$W$8,$W$1,P23<$W$2,$V$1),(IF(AND($N$2>=$T$9,$N$2<$U$9),_xlfn.IFS(P23>=$AD$9,$AD$1,P23>=$AC$9,$AC$1,P23>=$AB$9,$AB$1,P23>=$AA$9,$AA$1,P23>=$Z$9,$Z$1,P23>=$Y$9,$Y$1,P23>=$X$9,$X$1,P23>=$W$9,$W$1),$W$1))))))))))))))),IF(AND($N$2>=$T$2,$N$2<=$U$2),IF(P23>=$W$2,$W$1,$V$1),IF(AND($N$2>=$T$3,$N$2<$U$3),IF(P23>=$W$3,$W$1,$V$1),IF(AND($N$2>=$T$4,$N$2<$U$4),IF(P23>=$W$4,$W$1,$V$1),IF(AND($N$2>=$T$5,$N$2<$U$5),IF(P23>=$W$5,$W$1,$V$1),IF(AND($N$2>=$T$6,$N$2<$U$6),IF(P23>=$W$6,$W$1,$V$1),IF(AND($N$2>=$T$7,$N$2<$U$7),IF(P23>=$W$7,$W$1,$V$1),IF(AND($N$2>=$T$8,$N$2<$U$8),IF(P23>=$W$8,$W$1,$V$1),IF(AND($N$2>=$T$9,$N$2<$U$9),IF(P23>=$W$9,$W$1,$V$1),""))))))))),"") -> BB | M23: =IF(E23<>"",IF(AND(E23<>"GR",E23>=40,J23>=30),_xlfn.IFS(Q23>=$AG$2,$AD$19,Q23>=$AG$3,$AC$19,Q23>=$AG$4,$AB$19,Q23>=$AG$5,$AA$19,Q23>=$AG$6,$Z$19,Q23>=$AG$7,$Y$19,Q23>=$AG$8,$X$19,Q23>=$AG$9,$V$19),L23),"") -> BB | P23: 63 | Q23: 63 | R23: 1.35 | S23: Finale Göre
A24: Öğrenci | B24: 23 | C24: 49 | D24: 77 | E24: GR | F24: 77 | G24: 49 | H24: 77 | I24: 65.8 | J24: 65.8 | K24: 4329.64 | L24: =IF(D24<>"",IF(AND(H24>=40,I24>=30),IF(AND($N$2>=$T$2,$N$2<=$U$2),_xlfn.IFS(P24>=$AD$2,$AD$1,P24>=$AC$2,$AC$1,P24>=$AB$2,$AB$1,P24>=$AA$2,$AA$1,P24>=$Z$2,$Z$1,P24>=$Y$2,$Y$1,P24>=$X$2,$X$1,P24>=$W$2,$W$1,P24<$W$2,$V$1),(IF(AND($N$2>=$T$3,$N$2<$U$3),_xlfn.IFS(P24>=$AD$3,$AD$1,P24>=$AC$3,$AC$1,P24>=$AB$3,$AB$1,P24>=$AA$3,$AA$1,P24>=$Z$3,$Z$1,P24>=$Y$3,$Y$1,P24>=$X$3,$X$1,P24>=$W$3,$W$1,P24<$W$2,$V$1),(IF(AND($N$2>=$T$4,$N$2<$U$4),_xlfn.IFS(P24>=$AD$4,$AD$1,P24>=$AC$4,$AC$1,P24>=$AB$4,$AB$1,P24>=$AA$4,$AA$1,P24>=$Z$4,$Z$1,P24>=$Y$4,$Y$1,P24>=$X$4,$X$1,P24>=$W$4,$W$1,P24<$W$2,$V$1),(IF(AND($N$2>=$T$5,$N$2<$U$5),_xlfn.IFS(P24>=$AD$5,$AD$1,P24>=$AC$5,$AC$1,P24>=$AB$5,$AB$1,P24>=$AA$5,$AA$1,P24>=$Z$5,$Z$1,P24>=$Y$5,$Y$1,P24>=$X$5,$X$1,P24>=$W$5,$W$1,P24<$W$2,$V$1),(IF(AND($N$2>=$T$6,$N$2<$U$6),_xlfn.IFS(P24>=$AD$6,$AD$1,P24>=$AC$6,$AC$1,P24>=$AB$6,$AB$1,P24>=$AA$6,$AA$1,P24>=$Z$6,$Z$1,P24>=$Y$6,$Y$1,P24>=$X$6,$X$1,P24>=$W$6,$W$1,P24<$W$2,$V$1),(IF(AND($N$2>=$T$7,$N$2<$U$7),_xlfn.IFS(P24>=$AD$7,$AD$1,P24>=$AC$7,$AC$1,P24>=$AB$7,$AB$1,P24>=$AA$7,$AA$1,P24>=$Z$7,$Z$1,P24>=$Y$7,$Y$1,P24>=$X$7,$X$1,P24>=$W$7,$W$1,P24<$W$2,$V$1),(IF(AND($N$2>=$T$8,$N$2<$U$8),_xlfn.IFS(P24>=$AD$8,$AD$1,P24>=$AC$8,$AC$1,P24>=$AB$8,$AB$1,P24>=$AA$8,$AA$1,P24>=$Z$8,$Z$1,P24>=$Y$8,$Y$1,P24>=$X$8,$X$1,P24>=$W$8,$W$1,P24<$W$2,$V$1),(IF(AND($N$2>=$T$9,$N$2<$U$9),_xlfn.IFS(P24>=$AD$9,$AD$1,P24>=$AC$9,$AC$1,P24>=$AB$9,$AB$1,P24>=$AA$9,$AA$1,P24>=$Z$9,$Z$1,P24>=$Y$9,$Y$1,P24>=$X$9,$X$1,P24>=$W$9,$W$1),$W$1))))))))))))))),IF(AND($N$2>=$T$2,$N$2<=$U$2),IF(P24>=$W$2,$W$1,$V$1),IF(AND($N$2>=$T$3,$N$2<$U$3),IF(P24>=$W$3,$W$1,$V$1),IF(AND($N$2>=$T$4,$N$2<$U$4),IF(P24>=$W$4,$W$1,$V$1),IF(AND($N$2>=$T$5,$N$2<$U$5),IF(P24>=$W$5,$W$1,$V$1),IF(AND($N$2>=$T$6,$N$2<$U$6),IF(P24>=$W$6,$W$1,$V$1),IF(AND($N$2>=$T$7,$N$2<$U$7),IF(P24>=$W$7,$W$1,$V$1),IF(AND($N$2>=$T$8,$N$2<$U$8),IF(P24>=$W$8,$W$1,$V$1),IF(AND($N$2>=$T$9,$N$2<$U$9),IF(P24>=$W$9,$W$1,$V$1),""))))))))),"") -> BB | M24: =IF(E24<>"",IF(AND(E24<>"GR",E24>=40,J24>=30),_xlfn.IFS(Q24>=$AG$2,$AD$19,Q24>=$AG$3,$AC$19,Q24>=$AG$4,$AB$19,Q24>=$AG$5,$AA$19,Q24>=$AG$6,$Z$19,Q24>=$AG$7,$Y$19,Q24>=$AG$8,$X$19,Q24>=$AG$9,$V$19),L24),"") -> BB | P24: 63 | Q24: 63 | R24: 1.31 | V24: FF | W24: FD | X24: DD | Y24: DC | Z24: CC | AA24: CB | AB24: BB | AC24: BA | AD24: AA | AE24: Başarılı | AF24: Başarısız | AG24: Toplam Öğrenci
A25: Öğrenci | B25: 24 | C25: 52 | D25: 74 | E25: GR | F25: 74 | G25: 52 | H25: 74 | I25: 65.2 | J25: 65.2 | K25: 4251.04 | L25: =IF(D25<>"",IF(AND(H25>=40,I25>=30),IF(AND($N$2>=$T$2,$N$2<=$U$2),_xlfn.IFS(P25>=$AD$2,$AD$1,P25>=$AC$2,$AC$1,P25>=$AB$2,$AB$1,P25>=$AA$2,$AA$1,P25>=$Z$2,$Z$1,P25>=$Y$2,$Y$1,P25>=$X$2,$X$1,P25>=$W$2,$W$1,P25<$W$2,$V$1),(IF(AND($N$2>=$T$3,$N$2<$U$3),_xlfn.IFS(P25>=$AD$3,$AD$1,P25>=$AC$3,$AC$1,P25>=$AB$3,$AB$1,P25>=$AA$3,$AA$1,P25>=$Z$3,$Z$1,P25>=$Y$3,$Y$1,P25>=$X$3,$X$1,P25>=$W$3,$W$1,P25<$W$2,$V$1),(IF(AND($N$2>=$T$4,$N$2<$U$4),_xlfn.IFS(P25>=$AD$4,$AD$1,P25>=$AC$4,$AC$1,P25>=$AB$4,$AB$1,P25>=$AA$4,$AA$1,P25>=$Z$4,$Z$1,P25>=$Y$4,$Y$1,P25>=$X$4,$X$1,P25>=$W$4,$W$1,P25<$W$2,$V$1),(IF(AND($N$2>=$T$5,$N$2<$U$5),_xlfn.IFS(P25>=$AD$5,$AD$1,P25>=$AC$5,$AC$1,P25>=$AB$5,$AB$1,P25>=$AA$5,$AA$1,P25>=$Z$5,$Z$1,P25>=$Y$5,$Y$1,P25>=$X$5,$X$1,P25>=$W$5,$W$1,P25<$W$2,$V$1),(IF(AND($N$2>=$T$6,$N$2<$U$6),_xlfn.IFS(P25>=$AD$6,$AD$1,P25>=$AC$6,$AC$1,P25>=$AB$6,$AB$1,P25>=$AA$6,$AA$1,P25>=$Z$6,$Z$1,P25>=$Y$6,$Y$1,P25>=$X$6,$X$1,P25>=$W$6,$W$1,P25<$W$2,$V$1),(IF(AND($N$2>=$T$7,$N$2<$U$7),_xlfn.IFS(P25>=$AD$7,$AD$1,P25>=$AC$7,$AC$1,P25>=$AB$7,$AB$1,P25>=$AA$7,$AA$1,P25>=$Z$7,$Z$1,P25>=$Y$7,$Y$1,P25>=$X$7,$X$1,P25>=$W$7,$W$1,P25<$W$2,$V$1),(IF(AND($N$2>=$T$8,$N$2<$U$8),_xlfn.IFS(P25>=$AD$8,$AD$1,P25>=$AC$8,$AC$1,P25>=$AB$8,$AB$1,P25>=$AA$8,$AA$1,P25>=$Z$8,$Z$1,P25>=$Y$8,$Y$1,P25>=$X$8,$X$1,P25>=$W$8,$W$1,P25<$W$2,$V$1),(IF(AND($N$2>=$T$9,$N$2<$U$9),_xlfn.IFS(P25>=$AD$9,$AD$1,P25>=$AC$9,$AC$1,P25>=$AB$9,$AB$1,P25>=$AA$9,$AA$1,P25>=$Z$9,$Z$1,P25>=$Y$9,$Y$1,P25>=$X$9,$X$1,P25>=$W$9,$W$1),$W$1))))))))))))))),IF(AND($N$2>=$T$2,$N$2<=$U$2),IF(P25>=$W$2,$W$1,$V$1),IF(AND($N$2>=$T$3,$N$2<$U$3),IF(P25>=$W$3,$W$1,$V$1),IF(AND($N$2>=$T$4,$N$2<$U$4),IF(P25>=$W$4,$W$1,$V$1),IF(AND($N$2>=$T$5,$N$2<$U$5),IF(P25>=$W$5,$W$1,$V$1),IF(AND($N$2>=$T$6,$N$2<$U$6),IF(P25>=$W$6,$W$1,$V$1),IF(AND($N$2>=$T$7,$N$2<$U$7),IF(P25>=$W$7,$W$1,$V$1),IF(AND($N$2>=$T$8,$N$2<$U$8),IF(P25>=$W$8,$W$1,$V$1),IF(AND($N$2>=$T$9,$N$2<$U$9),IF(P25>=$W$9,$W$1,$V$1),""))))))))),"") -> BB | M25: =IF(E25<>"",IF(AND(E25<>"GR",E25>=40,J25>=30),_xlfn.IFS(Q25>=$AG$2,$AD$19,Q25>=$AG$3,$AC$19,Q25>=$AG$4,$AB$19,Q25>=$AG$5,$AA$19,Q25>=$AG$6,$Z$19,Q25>=$AG$7,$Y$19,Q25>=$AG$8,$X$19,Q25>=$AG$9,$V$19),L25),"") -> BB | P25: 63 | Q25: 63 | R25: 1.27 | S25: Mevcutta sayı | V25: =COUNTIFS($J$2:$J$331,">=0",$L$2:$L$331,"FF") -> 94 | W25: =COUNTIFS($J$2:$J$331,">=0",$L$2:$L$331,"FD") -> 31 | X25: =COUNTIFS($I$2:$I$331,">=0",$L$2:$L$331,"DD") -> 27 | Y25: =COUNTIFS($J$2:$J$331,">=0",$L$2:$L$331,"DC") -> 32 | Z25: =COUNTIFS($J$2:$J$331,">=0",$L$2:$L$331,"CC") -> 46 | AA25: =COUNTIFS($J$2:$J$331,">=0",$L$2:$L$331,"CB") -> 35 | AB25: =COUNTIFS($J$2:$J$331,">=0",$L$2:$L$331,"BB") -> 29 | AC25: =COUNTIFS($J$2:$J$331,">=0",$L$2:$L$331,"BA") -> 8 | AD25: =COUNTIFS($J$2:$J$331,">=0",$L$2:$L$331,"AA") -> 11 | AE25: =X25+Y25+Z25+AA25+AB25+AC25+AD25 -> 188 | AF25: =V25+W25 -> 125 | AG25: =AE25+AF25 -> 313
A26: Öğrenci | B26: 25 | C26: 41 | D26: 81 | E26: GR | F26: 81 | G26: 41 | H26: 81 | I26: 65 | J26: 65 | K26: 4225 | L26: =IF(D26<>"",IF(AND(H26>=40,I26>=30),IF(AND($N$2>=$T$2,$N$2<=$U$2),_xlfn.IFS(P26>=$AD$2,$AD$1,P26>=$AC$2,$AC$1,P26>=$AB$2,$AB$1,P26>=$AA$2,$AA$1,P26>=$Z$2,$Z$1,P26>=$Y$2,$Y$1,P26>=$X$2,$X$1,P26>=$W$2,$W$1,P26<$W$2,$V$1),(IF(AND($N$2>=$T$3,$N$2<$U$3),_xlfn.IFS(P26>=$AD$3,$AD$1,P26>=$AC$3,$AC$1,P26>=$AB$3,$AB$1,P26>=$AA$3,$AA$1,P26>=$Z$3,$Z$1,P26>=$Y$3,$Y$1,P26>=$X$3,$X$1,P26>=$W$3,$W$1,P26<$W$2,$V$1),(IF(AND($N$2>=$T$4,$N$2<$U$4),_xlfn.IFS(P26>=$AD$4,$AD$1,P26>=$AC$4,$AC$1,P26>=$AB$4,$AB$1,P26>=$AA$4,$AA$1,P26>=$Z$4,$Z$1,P26>=$Y$4,$Y$1,P26>=$X$4,$X$1,P26>=$W$4,$W$1,P26<$W$2,$V$1),(IF(AND($N$2>=$T$5,$N$2<$U$5),_xlfn.IFS(P26>=$AD$5,$AD$1,P26>=$AC$5,$AC$1,P26>=$AB$5,$AB$1,P26>=$AA$5,$AA$1,P26>=$Z$5,$Z$1,P26>=$Y$5,$Y$1,P26>=$X$5,$X$1,P26>=$W$5,$W$1,P26<$W$2,$V$1),(IF(AND($N$2>=$T$6,$N$2<$U$6),_xlfn.IFS(P26>=$AD$6,$AD$1,P26>=$AC$6,$AC$1,P26>=$AB$6,$AB$1,P26>=$AA$6,$AA$1,P26>=$Z$6,$Z$1,P26>=$Y$6,$Y$1,P26>=$X$6,$X$1,P26>=$W$6,$W$1,P26<$W$2,$V$1),(IF(AND($N$2>=$T$7,$N$2<$U$7),_xlfn.IFS(P26>=$AD$7,$AD$1,P26>=$AC$7,$AC$1,P26>=$AB$7,$AB$1,P26>=$AA$7,$AA$1,P26>=$Z$7,$Z$1,P26>=$Y$7,$Y$1,P26>=$X$7,$X$1,P26>=$W$7,$W$1,P26<$W$2,$V$1),(IF(AND($N$2>=$T$8,$N$2<$U$8),_xlfn.IFS(P26>=$AD$8,$AD$1,P26>=$AC$8,$AC$1,P26>=$AB$8,$AB$1,P26>=$AA$8,$AA$1,P26>=$Z$8,$Z$1,P26>=$Y$8,$Y$1,P26>=$X$8,$X$1,P26>=$W$8,$W$1,P26<$W$2,$V$1),(IF(AND($N$2>=$T$9,$N$2<$U$9),_xlfn.IFS(P26>=$AD$9,$AD$1,P26>=$AC$9,$AC$1,P26>=$AB$9,$AB$1,P26>=$AA$9,$AA$1,P26>=$Z$9,$Z$1,P26>=$Y$9,$Y$1,P26>=$X$9,$X$1,P26>=$W$9,$W$1),$W$1))))))))))))))),IF(AND($N$2>=$T$2,$N$2<=$U$2),IF(P26>=$W$2,$W$1,$V$1),IF(AND($N$2>=$T$3,$N$2<$U$3),IF(P26>=$W$3,$W$1,$V$1),IF(AND($N$2>=$T$4,$N$2<$U$4),IF(P26>=$W$4,$W$1,$V$1),IF(AND($N$2>=$T$5,$N$2<$U$5),IF(P26>=$W$5,$W$1,$V$1),IF(AND($N$2>=$T$6,$N$2<$U$6),IF(P26>=$W$6,$W$1,$V$1),IF(AND($N$2>=$T$7,$N$2<$U$7),IF(P26>=$W$7,$W$1,$V$1),IF(AND($N$2>=$T$8,$N$2<$U$8),IF(P26>=$W$8,$W$1,$V$1),IF(AND($N$2>=$T$9,$N$2<$U$9),IF(P26>=$W$9,$W$1,$V$1),""))))))))),"") -> BB | M26: =IF(E26<>"",IF(AND(E26<>"GR",E26>=40,J26>=30),_xlfn.IFS(Q26>=$AG$2,$AD$19,Q26>=$AG$3,$AC$19,Q26>=$AG$4,$AB$19,Q26>=$AG$5,$AA$19,Q26>=$AG$6,$Z$19,Q26>=$AG$7,$Y$19,Q26>=$AG$8,$X$19,Q26>=$AG$9,$V$19),L26),"") -> BB | P26: 63 | Q26: 63 | R26: 1.25
A27: Öğrenci | B27: 26 | C27: 45 | D27: 78 | E27: GR | F27: 78 | G27: 45 | H27: 78 | I27: 64.8 | J27: 64.8 | K27: 4199.04 | L27: =IF(D27<>"",IF(AND(H27>=40,I27>=30),IF(AND($N$2>=$T$2,$N$2<=$U$2),_xlfn.IFS(P27>=$AD$2,$AD$1,P27>=$AC$2,$AC$1,P27>=$AB$2,$AB$1,P27>=$AA$2,$AA$1,P27>=$Z$2,$Z$1,P27>=$Y$2,$Y$1,P27>=$X$2,$X$1,P27>=$W$2,$W$1,P27<$W$2,$V$1),(IF(AND($N$2>=$T$3,$N$2<$U$3),_xlfn.IFS(P27>=$AD$3,$AD$1,P27>=$AC$3,$AC$1,P27>=$AB$3,$AB$1,P27>=$AA$3,$AA$1,P27>=$Z$3,$Z$1,P27>=$Y$3,$Y$1,P27>=$X$3,$X$1,P27>=$W$3,$W$1,P27<$W$2,$V$1),(IF(AND($N$2>=$T$4,$N$2<$U$4),_xlfn.IFS(P27>=$AD$4,$AD$1,P27>=$AC$4,$AC$1,P27>=$AB$4,$AB$1,P27>=$AA$4,$AA$1,P27>=$Z$4,$Z$1,P27>=$Y$4,$Y$1,P27>=$X$4,$X$1,P27>=$W$4,$W$1,P27<$W$2,$V$1),(IF(AND($N$2>=$T$5,$N$2<$U$5),_xlfn.IFS(P27>=$AD$5,$AD$1,P27>=$AC$5,$AC$1,P27>=$AB$5,$AB$1,P27>=$AA$5,$AA$1,P27>=$Z$5,$Z$1,P27>=$Y$5,$Y$1,P27>=$X$5,$X$1,P27>=$W$5,$W$1,P27<$W$2,$V$1),(IF(AND($N$2>=$T$6,$N$2<$U$6),_xlfn.IFS(P27>=$AD$6,$AD$1,P27>=$AC$6,$AC$1,P27>=$AB$6,$AB$1,P27>=$AA$6,$AA$1,P27>=$Z$6,$Z$1,P27>=$Y$6,$Y$1,P27>=$X$6,$X$1,P27>=$W$6,$W$1,P27<$W$2,$V$1),(IF(AND($N$2>=$T$7,$N$2<$U$7),_xlfn.IFS(P27>=$AD$7,$AD$1,P27>=$AC$7,$AC$1,P27>=$AB$7,$AB$1,P27>=$AA$7,$AA$1,P27>=$Z$7,$Z$1,P27>=$Y$7,$Y$1,P27>=$X$7,$X$1,P27>=$W$7,$W$1,P27<$W$2,$V$1),(IF(AND($N$2>=$T$8,$N$2<$U$8),_xlfn.IFS(P27>=$AD$8,$AD$1,P27>=$AC$8,$AC$1,P27>=$AB$8,$AB$1,P27>=$AA$8,$AA$1,P27>=$Z$8,$Z$1,P27>=$Y$8,$Y$1,P27>=$X$8,$X$1,P27>=$W$8,$W$1,P27<$W$2,$V$1),(IF(AND($N$2>=$T$9,$N$2<$U$9),_xlfn.IFS(P27>=$AD$9,$AD$1,P27>=$AC$9,$AC$1,P27>=$AB$9,$AB$1,P27>=$AA$9,$AA$1,P27>=$Z$9,$Z$1,P27>=$Y$9,$Y$1,P27>=$X$9,$X$1,P27>=$W$9,$W$1),$W$1))))))))))))))),IF(AND($N$2>=$T$2,$N$2<=$U$2),IF(P27>=$W$2,$W$1,$V$1),IF(AND($N$2>=$T$3,$N$2<$U$3),IF(P27>=$W$3,$W$1,$V$1),IF(AND($N$2>=$T$4,$N$2<$U$4),IF(P27>=$W$4,$W$1,$V$1),IF(AND($N$2>=$T$5,$N$2<$U$5),IF(P27>=$W$5,$W$1,$V$1),IF(AND($N$2>=$T$6,$N$2<$U$6),IF(P27>=$W$6,$W$1,$V$1),IF(AND($N$2>=$T$7,$N$2<$U$7),IF(P27>=$W$7,$W$1,$V$1),IF(AND($N$2>=$T$8,$N$2<$U$8),IF(P27>=$W$8,$W$1,$V$1),IF(AND($N$2>=$T$9,$N$2<$U$9),IF(P27>=$W$9,$W$1,$V$1),""))))))))),"") -> BB | M27: =IF(E27<>"",IF(AND(E27<>"GR",E27>=40,J27>=30),_xlfn.IFS(Q27>=$AG$2,$AD$19,Q27>=$AG$3,$AC$19,Q27>=$AG$4,$AB$19,Q27>=$AG$5,$AA$19,Q27>=$AG$6,$Z$19,Q27>=$AG$7,$Y$19,Q27>=$AG$8,$X$19,Q27>=$AG$9,$V$19),L27),"") -> BB | P27: 62 | Q27: 62 | R27: 1.24
A28: Öğrenci | B28: 27 | C28: 48 | D28: 76 | E28: GR | F28: 76 | G28: 48 | H28: 76 | I28: 64.8 | J28: 64.8 | K28: 4199.04 | L28: =IF(D28<>"",IF(AND(H28>=40,I28>=30),IF(AND($N$2>=$T$2,$N$2<=$U$2),_xlfn.IFS(P28>=$AD$2,$AD$1,P28>=$AC$2,$AC$1,P28>=$AB$2,$AB$1,P28>=$AA$2,$AA$1,P28>=$Z$2,$Z$1,P28>=$Y$2,$Y$1,P28>=$X$2,$X$1,P28>=$W$2,$W$1,P28<$W$2,$V$1),(IF(AND($N$2>=$T$3,$N$2<$U$3),_xlfn.IFS(P28>=$AD$3,$AD$1,P28>=$AC$3,$AC$1,P28>=$AB$3,$AB$1,P28>=$AA$3,$AA$1,P28>=$Z$3,$Z$1,P28>=$Y$3,$Y$1,P28>=$X$3,$X$1,P28>=$W$3,$W$1,P28<$W$2,$V$1),(IF(AND($N$2>=$T$4,$N$2<$U$4),_xlfn.IFS(P28>=$AD$4,$AD$1,P28>=$AC$4,$AC$1,P28>=$AB$4,$AB$1,P28>=$AA$4,$AA$1,P28>=$Z$4,$Z$1,P28>=$Y$4,$Y$1,P28>=$X$4,$X$1,P28>=$W$4,$W$1,P28<$W$2,$V$1),(IF(AND($N$2>=$T$5,$N$2<$U$5),_xlfn.IFS(P28>=$AD$5,$AD$1,P28>=$AC$5,$AC$1,P28>=$AB$5,$AB$1,P28>=$AA$5,$AA$1,P28>=$Z$5,$Z$1,P28>=$Y$5,$Y$1,P28>=$X$5,$X$1,P28>=$W$5,$W$1,P28<$W$2,$V$1),(IF(AND($N$2>=$T$6,$N$2<$U$6),_xlfn.IFS(P28>=$AD$6,$AD$1,P28>=$AC$6,$AC$1,P28>=$AB$6,$AB$1,P28>=$AA$6,$AA$1,P28>=$Z$6,$Z$1,P28>=$Y$6,$Y$1,P28>=$X$6,$X$1,P28>=$W$6,$W$1,P28<$W$2,$V$1),(IF(AND($N$2>=$T$7,$N$2<$U$7),_xlfn.IFS(P28>=$AD$7,$AD$1,P28>=$AC$7,$AC$1,P28>=$AB$7,$AB$1,P28>=$AA$7,$AA$1,P28>=$Z$7,$Z$1,P28>=$Y$7,$Y$1,P28>=$X$7,$X$1,P28>=$W$7,$W$1,P28<$W$2,$V$1),(IF(AND($N$2>=$T$8,$N$2<$U$8),_xlfn.IFS(P28>=$AD$8,$AD$1,P28>=$AC$8,$AC$1,P28>=$AB$8,$AB$1,P28>=$AA$8,$AA$1,P28>=$Z$8,$Z$1,P28>=$Y$8,$Y$1,P28>=$X$8,$X$1,P28>=$W$8,$W$1,P28<$W$2,$V$1),(IF(AND($N$2>=$T$9,$N$2<$U$9),_xlfn.IFS(P28>=$AD$9,$AD$1,P28>=$AC$9,$AC$1,P28>=$AB$9,$AB$1,P28>=$AA$9,$AA$1,P28>=$Z$9,$Z$1,P28>=$Y$9,$Y$1,P28>=$X$9,$X$1,P28>=$W$9,$W$1),$W$1))))))))))))))),IF(AND($N$2>=$T$2,$N$2<=$U$2),IF(P28>=$W$2,$W$1,$V$1),IF(AND($N$2>=$T$3,$N$2<$U$3),IF(P28>=$W$3,$W$1,$V$1),IF(AND($N$2>=$T$4,$N$2<$U$4),IF(P28>=$W$4,$W$1,$V$1),IF(AND($N$2>=$T$5,$N$2<$U$5),IF(P28>=$W$5,$W$1,$V$1),IF(AND($N$2>=$T$6,$N$2<$U$6),IF(P28>=$W$6,$W$1,$V$1),IF(AND($N$2>=$T$7,$N$2<$U$7),IF(P28>=$W$7,$W$1,$V$1),IF(AND($N$2>=$T$8,$N$2<$U$8),IF(P28>=$W$8,$W$1,$V$1),IF(AND($N$2>=$T$9,$N$2<$U$9),IF(P28>=$W$9,$W$1,$V$1),""))))))))),"") -> BB | M28: =IF(E28<>"",IF(AND(E28<>"GR",E28>=40,J28>=30),_xlfn.IFS(Q28>=$AG$2,$AD$19,Q28>=$AG$3,$AC$19,Q28>=$AG$4,$AB$19,Q28>=$AG$5,$AA$19,Q28>=$AG$6,$Z$19,Q28>=$AG$7,$Y$19,Q28>=$AG$8,$X$19,Q28>=$AG$9,$V$19),L28),"") -> BB | P28: 62 | Q28: 62 | R28: 1.24
A29: Öğrenci | B29: 28 | C29: 42 | D29: 80 | E29: GR | F29: 80 | G29: 42 | H29: 80 | I29: 64.8 | J29: 64.8 | K29: 4199.04 | L29: =IF(D29<>"",IF(AND(H29>=40,I29>=30),IF(AND($N$2>=$T$2,$N$2<=$U$2),_xlfn.IFS(P29>=$AD$2,$AD$1,P29>=$AC$2,$AC$1,P29>=$AB$2,$AB$1,P29>=$AA$2,$AA$1,P29>=$Z$2,$Z$1,P29>=$Y$2,$Y$1,P29>=$X$2,$X$1,P29>=$W$2,$W$1,P29<$W$2,$V$1),(IF(AND($N$2>=$T$3,$N$2<$U$3),_xlfn.IFS(P29>=$AD$3,$AD$1,P29>=$AC$3,$AC$1,P29>=$AB$3,$AB$1,P29>=$AA$3,$AA$1,P29>=$Z$3,$Z$1,P29>=$Y$3,$Y$1,P29>=$X$3,$X$1,P29>=$W$3,$W$1,P29<$W$2,$V$1),(IF(AND($N$2>=$T$4,$N$2<$U$4),_xlfn.IFS(P29>=$AD$4,$AD$1,P29>=$AC$4,$AC$1,P29>=$AB$4,$AB$1,P29>=$AA$4,$AA$1,P29>=$Z$4,$Z$1,P29>=$Y$4,$Y$1,P29>=$X$4,$X$1,P29>=$W$4,$W$1,P29<$W$2,$V$1),(IF(AND($N$2>=$T$5,$N$2<$U$5),_xlfn.IFS(P29>=$AD$5,$AD$1,P29>=$AC$5,$AC$1,P29>=$AB$5,$AB$1,P29>=$AA$5,$AA$1,P29>=$Z$5,$Z$1,P29>=$Y$5,$Y$1,P29>=$X$5,$X$1,P29>=$W$5,$W$1,P29<$W$2,$V$1),(IF(AND($N$2>=$T$6,$N$2<$U$6),_xlfn.IFS(P29>=$AD$6,$AD$1,P29>=$AC$6,$AC$1,P29>=$AB$6,$AB$1,P29>=$AA$6,$AA$1,P29>=$Z$6,$Z$1,P29>=$Y$6,$Y$1,P29>=$X$6,$X$1,P29>=$W$6,$W$1,P29<$W$2,$V$1),(IF(AND($N$2>=$T$7,$N$2<$U$7),_xlfn.IFS(P29>=$AD$7,$AD$1,P29>=$AC$7,$AC$1,P29>=$AB$7,$AB$1,P29>=$AA$7,$AA$1,P29>=$Z$7,$Z$1,P29>=$Y$7,$Y$1,P29>=$X$7,$X$1,P29>=$W$7,$W$1,P29<$W$2,$V$1),(IF(AND($N$2>=$T$8,$N$2<$U$8),_xlfn.IFS(P29>=$AD$8,$AD$1,P29>=$AC$8,$AC$1,P29>=$AB$8,$AB$1,P29>=$AA$8,$AA$1,P29>=$Z$8,$Z$1,P29>=$Y$8,$Y$1,P29>=$X$8,$X$1,P29>=$W$8,$W$1,P29<$W$2,$V$1),(IF(AND($N$2>=$T$9,$N$2<$U$9),_xlfn.IFS(P29>=$AD$9,$AD$1,P29>=$AC$9,$AC$1,P29>=$AB$9,$AB$1,P29>=$AA$9,$AA$1,P29>=$Z$9,$Z$1,P29>=$Y$9,$Y$1,P29>=$X$9,$X$1,P29>=$W$9,$W$1),$W$1))))))))))))))),IF(AND($N$2>=$T$2,$N$2<=$U$2),IF(P29>=$W$2,$W$1,$V$1),IF(AND($N$2>=$T$3,$N$2<$U$3),IF(P29>=$W$3,$W$1,$V$1),IF(AND($N$2>=$T$4,$N$2<$U$4),IF(P29>=$W$4,$W$1,$V$1),IF(AND($N$2>=$T$5,$N$2<$U$5),IF(P29>=$W$5,$W$1,$V$1),IF(AND($N$2>=$T$6,$N$2<$U$6),IF(P29>=$W$6,$W$1,$V$1),IF(AND($N$2>=$T$7,$N$2<$U$7),IF(P29>=$W$7,$W$1,$V$1),IF(AND($N$2>=$T$8,$N$2<$U$8),IF(P29>=$W$8,$W$1,$V$1),IF(AND($N$2>=$T$9,$N$2<$U$9),IF(P29>=$W$9,$W$1,$V$1),""))))))))),"") -> BB | M29: =IF(E29<>"",IF(AND(E29<>"GR",E29>=40,J29>=30),_xlfn.IFS(Q29>=$AG$2,$AD$19,Q29>=$AG$3,$AC$19,Q29>=$AG$4,$AB$19,Q29>=$AG$5,$AA$19,Q29>=$AG$6,$Z$19,Q29>=$AG$7,$Y$19,Q29>=$AG$8,$X$19,Q29>=$AG$9,$V$19),L29),"") -> BB | P29: 62 | Q29: 62 | R29: 1.24
A30: Öğrenci | B30: 29 | C30: 35 | D30: 84 | E30: GR | F30: 84 | G30: 35 | H30: 84 | I30: 64.4 | J30: 64.4 | K30: 4147.36 | L30: =IF(D30<>"",IF(AND(H30>=40,I30>=30),IF(AND($N$2>=$T$2,$N$2<=$U$2),_xlfn.IFS(P30>=$AD$2,$AD$1,P30>=$AC$2,$AC$1,P30>=$AB$2,$AB$1,P30>=$AA$2,$AA$1,P30>=$Z$2,$Z$1,P30>=$Y$2,$Y$1,P30>=$X$2,$X$1,P30>=$W$2,$W$1,P30<$W$2,$V$1),(IF(AND($N$2>=$T$3,$N$2<$U$3),_xlfn.IFS(P30>=$AD$3,$AD$1,P30>=$AC$3,$AC$1,P30>=$AB$3,$AB$1,P30>=$AA$3,$AA$1,P30>=$Z$3,$Z$1,P30>=$Y$3,$Y$1,P30>=$X$3,$X$1,P30>=$W$3,$W$1,P30<$W$2,$V$1),(IF(AND($N$2>=$T$4,$N$2<$U$4),_xlfn.IFS(P30>=$AD$4,$AD$1,P30>=$AC$4,$AC$1,P30>=$AB$4,$AB$1,P30>=$AA$4,$AA$1,P30>=$Z$4,$Z$1,P30>=$Y$4,$Y$1,P30>=$X$4,$X$1,P30>=$W$4,$W$1,P30<$W$2,$V$1),(IF(AND($N$2>=$T$5,$N$2<$U$5),_xlfn.IFS(P30>=$AD$5,$AD$1,P30>=$AC$5,$AC$1,P30>=$AB$5,$AB$1,P30>=$AA$5,$AA$1,P30>=$Z$5,$Z$1,P30>=$Y$5,$Y$1,P30>=$X$5,$X$1,P30>=$W$5,$W$1,P30<$W$2,$V$1),(IF(AND($N$2>=$T$6,$N$2<$U$6),_xlfn.IFS(P30>=$AD$6,$AD$1,P30>=$AC$6,$AC$1,P30>=$AB$6,$AB$1,P30>=$AA$6,$AA$1,P30>=$Z$6,$Z$1,P30>=$Y$6,$Y$1,P30>=$X$6,$X$1,P30>=$W$6,$W$1,P30<$W$2,$V$1),(IF(AND($N$2>=$T$7,$N$2<$U$7),_xlfn.IFS(P30>=$AD$7,$AD$1,P30>=$AC$7,$AC$1,P30>=$AB$7,$AB$1,P30>=$AA$7,$AA$1,P30>=$Z$7,$Z$1,P30>=$Y$7,$Y$1,P30>=$X$7,$X$1,P30>=$W$7,$W$1,P30<$W$2,$V$1),(IF(AND($N$2>=$T$8,$N$2<$U$8),_xlfn.IFS(P30>=$AD$8,$AD$1,P30>=$AC$8,$AC$1,P30>=$AB$8,$AB$1,P30>=$AA$8,$AA$1,P30>=$Z$8,$Z$1,P30>=$Y$8,$Y$1,P30>=$X$8,$X$1,P30>=$W$8,$W$1,P30<$W$2,$V$1),(IF(AND($N$2>=$T$9,$N$2<$U$9),_xlfn.IFS(P30>=$AD$9,$AD$1,P30>=$AC$9,$AC$1,P30>=$AB$9,$AB$1,P30>=$AA$9,$AA$1,P30>=$Z$9,$Z$1,P30>=$Y$9,$Y$1,P30>=$X$9,$X$1,P30>=$W$9,$W$1),$W$1))))))))))))))),IF(AND($N$2>=$T$2,$N$2<=$U$2),IF(P30>=$W$2,$W$1,$V$1),IF(AND($N$2>=$T$3,$N$2<$U$3),IF(P30>=$W$3,$W$1,$V$1),IF(AND($N$2>=$T$4,$N$2<$U$4),IF(P30>=$W$4,$W$1,$V$1),IF(AND($N$2>=$T$5,$N$2<$U$5),IF(P30>=$W$5,$W$1,$V$1),IF(AND($N$2>=$T$6,$N$2<$U$6),IF(P30>=$W$6,$W$1,$V$1),IF(AND($N$2>=$T$7,$N$2<$U$7),IF(P30>=$W$7,$W$1,$V$1),IF(AND($N$2>=$T$8,$N$2<$U$8),IF(P30>=$W$8,$W$1,$V$1),IF(AND($N$2>=$T$9,$N$2<$U$9),IF(P30>=$W$9,$W$1,$V$1),""))))))))),"") -> BB | M30: =IF(E30<>"",IF(AND(E30<>"GR",E30>=40,J30>=30),_xlfn.IFS(Q30>=$AG$2,$AD$19,Q30>=$AG$3,$AC$19,Q30>=$AG$4,$AB$19,Q30>=$AG$5,$AA$19,Q30>=$AG$6,$Z$19,Q30>=$AG$7,$Y$19,Q30>=$AG$8,$X$19,Q30>=$AG$9,$V$19),L30),"") -> BB | P30: 62 | Q30: 62 | R30: 1.21
A31: Öğrenci | B31: 30 | C31: 36 | D31: 83 | E31: GR | F31: 83 | G31: 36 | H31: 83 | I31: 64.2 | J31: 64.2 | K31: 4121.64 | L31: =IF(D31<>"",IF(AND(H31>=40,I31>=30),IF(AND($N$2>=$T$2,$N$2<=$U$2),_xlfn.IFS(P31>=$AD$2,$AD$1,P31>=$AC$2,$AC$1,P31>=$AB$2,$AB$1,P31>=$AA$2,$AA$1,P31>=$Z$2,$Z$1,P31>=$Y$2,$Y$1,P31>=$X$2,$X$1,P31>=$W$2,$W$1,P31<$W$2,$V$1),(IF(AND($N$2>=$T$3,$N$2<$U$3),_xlfn.IFS(P31>=$AD$3,$AD$1,P31>=$AC$3,$AC$1,P31>=$AB$3,$AB$1,P31>=$AA$3,$AA$1,P31>=$Z$3,$Z$1,P31>=$Y$3,$Y$1,P31>=$X$3,$X$1,P31>=$W$3,$W$1,P31<$W$2,$V$1),(IF(AND($N$2>=$T$4,$N$2<$U$4),_xlfn.IFS(P31>=$AD$4,$AD$1,P31>=$AC$4,$AC$1,P31>=$AB$4,$AB$1,P31>=$AA$4,$AA$1,P31>=$Z$4,$Z$1,P31>=$Y$4,$Y$1,P31>=$X$4,$X$1,P31>=$W$4,$W$1,P31<$W$2,$V$1),(IF(AND($N$2>=$T$5,$N$2<$U$5),_xlfn.IFS(P31>=$AD$5,$AD$1,P31>=$AC$5,$AC$1,P31>=$AB$5,$AB$1,P31>=$AA$5,$AA$1,P31>=$Z$5,$Z$1,P31>=$Y$5,$Y$1,P31>=$X$5,$X$1,P31>=$W$5,$W$1,P31<$W$2,$V$1),(IF(AND($N$2>=$T$6,$N$2<$U$6),_xlfn.IFS(P31>=$AD$6,$AD$1,P31>=$AC$6,$AC$1,P31>=$AB$6,$AB$1,P31>=$AA$6,$AA$1,P31>=$Z$6,$Z$1,P31>=$Y$6,$Y$1,P31>=$X$6,$X$1,P31>=$W$6,$W$1,P31<$W$2,$V$1),(IF(AND($N$2>=$T$7,$N$2<$U$7),_xlfn.IFS(P31>=$AD$7,$AD$1,P31>=$AC$7,$AC$1,P31>=$AB$7,$AB$1,P31>=$AA$7,$AA$1,P31>=$Z$7,$Z$1,P31>=$Y$7,$Y$1,P31>=$X$7,$X$1,P31>=$W$7,$W$1,P31<$W$2,$V$1),(IF(AND($N$2>=$T$8,$N$2<$U$8),_xlfn.IFS(P31>=$AD$8,$AD$1,P31>=$AC$8,$AC$1,P31>=$AB$8,$AB$1,P31>=$AA$8,$AA$1,P31>=$Z$8,$Z$1,P31>=$Y$8,$Y$1,P31>=$X$8,$X$1,P31>=$W$8,$W$1,P31<$W$2,$V$1),(IF(AND($N$2>=$T$9,$N$2<$U$9),_xlfn.IFS(P31>=$AD$9,$AD$1,P31>=$AC$9,$AC$1,P31>=$AB$9,$AB$1,P31>=$AA$9,$AA$1,P31>=$Z$9,$Z$1,P31>=$Y$9,$Y$1,P31>=$X$9,$X$1,P31>=$W$9,$W$1),$W$1))))))))))))))),IF(AND($N$2>=$T$2,$N$2<=$U$2),IF(P31>=$W$2,$W$1,$V$1),IF(AND($N$2>=$T$3,$N$2<$U$3),IF(P31>=$W$3,$W$1,$V$1),IF(AND($N$2>=$T$4,$N$2<$U$4),IF(P31>=$W$4,$W$1,$V$1),IF(AND($N$2>=$T$5,$N$2<$U$5),IF(P31>=$W$5,$W$1,$V$1),IF(AND($N$2>=$T$6,$N$2<$U$6),IF(P31>=$W$6,$W$1,$V$1),IF(AND($N$2>=$T$7,$N$2<$U$7),IF(P31>=$W$7,$W$1,$V$1),IF(AND($N$2>=$T$8,$N$2<$U$8),IF(P31>=$W$8,$W$1,$V$1),IF(AND($N$2>=$T$9,$N$2<$U$9),IF(P31>=$W$9,$W$1,$V$1),""))))))))),"") -> BB | M31: =IF(E31<>"",IF(AND(E31<>"GR",E31>=40,J31>=30),_xlfn.IFS(Q31>=$AG$2,$AD$19,Q31>=$AG$3,$AC$19,Q31>=$AG$4,$AB$19,Q31>=$AG$5,$AA$19,Q31>=$AG$6,$Z$19,Q31>=$AG$7,$Y$19,Q31>=$AG$8,$X$19,Q31>=$AG$9,$V$19),L31),"") -> BB | P31: 62 | Q31: 62 | R31: 1.2
A32: Öğrenci | B32: 31 | C32: 38 | D32: 81 | E32: GR | F32: 81 | G32: 38 | H32: 81 | I32: 63.8 | J32: 63.8 | K32: 4070.44 | L32: =IF(D32<>"",IF(AND(H32>=40,I32>=30),IF(AND($N$2>=$T$2,$N$2<=$U$2),_xlfn.IFS(P32>=$AD$2,$AD$1,P32>=$AC$2,$AC$1,P32>=$AB$2,$AB$1,P32>=$AA$2,$AA$1,P32>=$Z$2,$Z$1,P32>=$Y$2,$Y$1,P32>=$X$2,$X$1,P32>=$W$2,$W$1,P32<$W$2,$V$1),(IF(AND($N$2>=$T$3,$N$2<$U$3),_xlfn.IFS(P32>=$AD$3,$AD$1,P32>=$AC$3,$AC$1,P32>=$AB$3,$AB$1,P32>=$AA$3,$AA$1,P32>=$Z$3,$Z$1,P32>=$Y$3,$Y$1,P32>=$X$3,$X$1,P32>=$W$3,$W$1,P32<$W$2,$V$1),(IF(AND($N$2>=$T$4,$N$2<$U$4),_xlfn.IFS(P32>=$AD$4,$AD$1,P32>=$AC$4,$AC$1,P32>=$AB$4,$AB$1,P32>=$AA$4,$AA$1,P32>=$Z$4,$Z$1,P32>=$Y$4,$Y$1,P32>=$X$4,$X$1,P32>=$W$4,$W$1,P32<$W$2,$V$1),(IF(AND($N$2>=$T$5,$N$2<$U$5),_xlfn.IFS(P32>=$AD$5,$AD$1,P32>=$AC$5,$AC$1,P32>=$AB$5,$AB$1,P32>=$AA$5,$AA$1,P32>=$Z$5,$Z$1,P32>=$Y$5,$Y$1,P32>=$X$5,$X$1,P32>=$W$5,$W$1,P32<$W$2,$V$1),(IF(AND($N$2>=$T$6,$N$2<$U$6),_xlfn.IFS(P32>=$AD$6,$AD$1,P32>=$AC$6,$AC$1,P32>=$AB$6,$AB$1,P32>=$AA$6,$AA$1,P32>=$Z$6,$Z$1,P32>=$Y$6,$Y$1,P32>=$X$6,$X$1,P32>=$W$6,$W$1,P32<$W$2,$V$1),(IF(AND($N$2>=$T$7,$N$2<$U$7),_xlfn.IFS(P32>=$AD$7,$AD$1,P32>=$AC$7,$AC$1,P32>=$AB$7,$AB$1,P32>=$AA$7,$AA$1,P32>=$Z$7,$Z$1,P32>=$Y$7,$Y$1,P32>=$X$7,$X$1,P32>=$W$7,$W$1,P32<$W$2,$V$1),(IF(AND($N$2>=$T$8,$N$2<$U$8),_xlfn.IFS(P32>=$AD$8,$AD$1,P32>=$AC$8,$AC$1,P32>=$AB$8,$AB$1,P32>=$AA$8,$AA$1,P32>=$Z$8,$Z$1,P32>=$Y$8,$Y$1,P32>=$X$8,$X$1,P32>=$W$8,$W$1,P32<$W$2,$V$1),(IF(AND($N$2>=$T$9,$N$2<$U$9),_xlfn.IFS(P32>=$AD$9,$AD$1,P32>=$AC$9,$AC$1,P32>=$AB$9,$AB$1,P32>=$AA$9,$AA$1,P32>=$Z$9,$Z$1,P32>=$Y$9,$Y$1,P32>=$X$9,$X$1,P32>=$W$9,$W$1),$W$1))))))))))))))),IF(AND($N$2>=$T$2,$N$2<=$U$2),IF(P32>=$W$2,$W$1,$V$1),IF(AND($N$2>=$T$3,$N$2<$U$3),IF(P32>=$W$3,$W$1,$V$1),IF(AND($N$2>=$T$4,$N$2<$U$4),IF(P32>=$W$4,$W$1,$V$1),IF(AND($N$2>=$T$5,$N$2<$U$5),IF(P32>=$W$5,$W$1,$V$1),IF(AND($N$2>=$T$6,$N$2<$U$6),IF(P32>=$W$6,$W$1,$V$1),IF(AND($N$2>=$T$7,$N$2<$U$7),IF(P32>=$W$7,$W$1,$V$1),IF(AND($N$2>=$T$8,$N$2<$U$8),IF(P32>=$W$8,$W$1,$V$1),IF(AND($N$2>=$T$9,$N$2<$U$9),IF(P32>=$W$9,$W$1,$V$1),""))))))))),"") -> BB | M32: =IF(E32<>"",IF(AND(E32<>"GR",E32>=40,J32>=30),_xlfn.IFS(Q32>=$AG$2,$AD$19,Q32>=$AG$3,$AC$19,Q32>=$AG$4,$AB$19,Q32>=$AG$5,$AA$19,Q32>=$AG$6,$Z$19,Q32>=$AG$7,$Y$19,Q32>=$AG$8,$X$19,Q32>=$AG$9,$V$19),L32),"") -> BB | P32: 62 | Q32: 62 | R32: 1.17
A33: Öğrenci | B33: 32 | C33: 46 | D33: 75 | E33: GR | F33: 75 | G33: 46 | H33: 75 | I33: 63.4 | J33: 63.4 | K33: 4019.56 | L33: =IF(D33<>"",IF(AND(H33>=40,I33>=30),IF(AND($N$2>=$T$2,$N$2<=$U$2),_xlfn.IFS(P33>=$AD$2,$AD$1,P33>=$AC$2,$AC$1,P33>=$AB$2,$AB$1,P33>=$AA$2,$AA$1,P33>=$Z$2,$Z$1,P33>=$Y$2,$Y$1,P33>=$X$2,$X$1,P33>=$W$2,$W$1,P33<$W$2,$V$1),(IF(AND($N$2>=$T$3,$N$2<$U$3),_xlfn.IFS(P33>=$AD$3,$AD$1,P33>=$AC$3,$AC$1,P33>=$AB$3,$AB$1,P33>=$AA$3,$AA$1,P33>=$Z$3,$Z$1,P33>=$Y$3,$Y$1,P33>=$X$3,$X$1,P33>=$W$3,$W$1,P33<$W$2,$V$1),(IF(AND($N$2>=$T$4,$N$2<$U$4),_xlfn.IFS(P33>=$AD$4,$AD$1,P33>=$AC$4,$AC$1,P33>=$AB$4,$AB$1,P33>=$AA$4,$AA$1,P33>=$Z$4,$Z$1,P33>=$Y$4,$Y$1,P33>=$X$4,$X$1,P33>=$W$4,$W$1,P33<$W$2,$V$1),(IF(AND($N$2>=$T$5,$N$2<$U$5),_xlfn.IFS(P33>=$AD$5,$AD$1,P33>=$AC$5,$AC$1,P33>=$AB$5,$AB$1,P33>=$AA$5,$AA$1,P33>=$Z$5,$Z$1,P33>=$Y$5,$Y$1,P33>=$X$5,$X$1,P33>=$W$5,$W$1,P33<$W$2,$V$1),(IF(AND($N$2>=$T$6,$N$2<$U$6),_xlfn.IFS(P33>=$AD$6,$AD$1,P33>=$AC$6,$AC$1,P33>=$AB$6,$AB$1,P33>=$AA$6,$AA$1,P33>=$Z$6,$Z$1,P33>=$Y$6,$Y$1,P33>=$X$6,$X$1,P33>=$W$6,$W$1,P33<$W$2,$V$1),(IF(AND($N$2>=$T$7,$N$2<$U$7),_xlfn.IFS(P33>=$AD$7,$AD$1,P33>=$AC$7,$AC$1,P33>=$AB$7,$AB$1,P33>=$AA$7,$AA$1,P33>=$Z$7,$Z$1,P33>=$Y$7,$Y$1,P33>=$X$7,$X$1,P33>=$W$7,$W$1,P33<$W$2,$V$1),(IF(AND($N$2>=$T$8,$N$2<$U$8),_xlfn.IFS(P33>=$AD$8,$AD$1,P33>=$AC$8,$AC$1,P33>=$AB$8,$AB$1,P33>=$AA$8,$AA$1,P33>=$Z$8,$Z$1,P33>=$Y$8,$Y$1,P33>=$X$8,$X$1,P33>=$W$8,$W$1,P33<$W$2,$V$1),(IF(AND($N$2>=$T$9,$N$2<$U$9),_xlfn.IFS(P33>=$AD$9,$AD$1,P33>=$AC$9,$AC$1,P33>=$AB$9,$AB$1,P33>=$AA$9,$AA$1,P33>=$Z$9,$Z$1,P33>=$Y$9,$Y$1,P33>=$X$9,$X$1,P33>=$W$9,$W$1),$W$1))))))))))))))),IF(AND($N$2>=$T$2,$N$2<=$U$2),IF(P33>=$W$2,$W$1,$V$1),IF(AND($N$2>=$T$3,$N$2<$U$3),IF(P33>=$W$3,$W$1,$V$1),IF(AND($N$2>=$T$4,$N$2<$U$4),IF(P33>=$W$4,$W$1,$V$1),IF(AND($N$2>=$T$5,$N$2<$U$5),IF(P33>=$W$5,$W$1,$V$1),IF(AND($N$2>=$T$6,$N$2<$U$6),IF(P33>=$W$6,$W$1,$V$1),IF(AND($N$2>=$T$7,$N$2<$U$7),IF(P33>=$W$7,$W$1,$V$1),IF(AND($N$2>=$T$8,$N$2<$U$8),IF(P33>=$W$8,$W$1,$V$1),IF(AND($N$2>=$T$9,$N$2<$U$9),IF(P33>=$W$9,$W$1,$V$1),""))))))))),"") -> BB | M33: =IF(E33<>"",IF(AND(E33<>"GR",E33>=40,J33>=30),_xlfn.IFS(Q33>=$AG$2,$AD$19,Q33>=$AG$3,$AC$19,Q33>=$AG$4,$AB$19,Q33>=$AG$5,$AA$19,Q33>=$AG$6,$Z$19,Q33>=$AG$7,$Y$19,Q33>=$AG$8,$X$19,Q33>=$AG$9,$V$19),L33),"") -> BB | P33: 61 | Q33: 61 | R33: 1.14
A34: Öğrenci | B34: 33 | C34: 53 | D34: 70 | E34: GR | F34: 70 | G34: 53 | H34: 70 | I34: 63.2 | J34: 63.2 | K34: 3994.24 | L34: =IF(D34<>"",IF(AND(H34>=40,I34>=30),IF(AND($N$2>=$T$2,$N$2<=$U$2),_xlfn.IFS(P34>=$AD$2,$AD$1,P34>=$AC$2,$AC$1,P34>=$AB$2,$AB$1,P34>=$AA$2,$AA$1,P34>=$Z$2,$Z$1,P34>=$Y$2,$Y$1,P34>=$X$2,$X$1,P34>=$W$2,$W$1,P34<$W$2,$V$1),(IF(AND($N$2>=$T$3,$N$2<$U$3),_xlfn.IFS(P34>=$AD$3,$AD$1,P34>=$AC$3,$AC$1,P34>=$AB$3,$AB$1,P34>=$AA$3,$AA$1,P34>=$Z$3,$Z$1,P34>=$Y$3,$Y$1,P34>=$X$3,$X$1,P34>=$W$3,$W$1,P34<$W$2,$V$1),(IF(AND($N$2>=$T$4,$N$2<$U$4),_xlfn.IFS(P34>=$AD$4,$AD$1,P34>=$AC$4,$AC$1,P34>=$AB$4,$AB$1,P34>=$AA$4,$AA$1,P34>=$Z$4,$Z$1,P34>=$Y$4,$Y$1,P34>=$X$4,$X$1,P34>=$W$4,$W$1,P34<$W$2,$V$1),(IF(AND($N$2>=$T$5,$N$2<$U$5),_xlfn.IFS(P34>=$AD$5,$AD$1,P34>=$AC$5,$AC$1,P34>=$AB$5,$AB$1,P34>=$AA$5,$AA$1,P34>=$Z$5,$Z$1,P34>=$Y$5,$Y$1,P34>=$X$5,$X$1,P34>=$W$5,$W$1,P34<$W$2,$V$1),(IF(AND($N$2>=$T$6,$N$2<$U$6),_xlfn.IFS(P34>=$AD$6,$AD$1,P34>=$AC$6,$AC$1,P34>=$AB$6,$AB$1,P34>=$AA$6,$AA$1,P34>=$Z$6,$Z$1,P34>=$Y$6,$Y$1,P34>=$X$6,$X$1,P34>=$W$6,$W$1,P34<$W$2,$V$1),(IF(AND($N$2>=$T$7,$N$2<$U$7),_xlfn.IFS(P34>=$AD$7,$AD$1,P34>=$AC$7,$AC$1,P34>=$AB$7,$AB$1,P34>=$AA$7,$AA$1,P34>=$Z$7,$Z$1,P34>=$Y$7,$Y$1,P34>=$X$7,$X$1,P34>=$W$7,$W$1,P34<$W$2,$V$1),(IF(AND($N$2>=$T$8,$N$2<$U$8),_xlfn.IFS(P34>=$AD$8,$AD$1,P34>=$AC$8,$AC$1,P34>=$AB$8,$AB$1,P34>=$AA$8,$AA$1,P34>=$Z$8,$Z$1,P34>=$Y$8,$Y$1,P34>=$X$8,$X$1,P34>=$W$8,$W$1,P34<$W$2,$V$1),(IF(AND($N$2>=$T$9,$N$2<$U$9),_xlfn.IFS(P34>=$AD$9,$AD$1,P34>=$AC$9,$AC$1,P34>=$AB$9,$AB$1,P34>=$AA$9,$AA$1,P34>=$Z$9,$Z$1,P34>=$Y$9,$Y$1,P34>=$X$9,$X$1,P34>=$W$9,$W$1),$W$1))))))))))))))),IF(AND($N$2>=$T$2,$N$2<=$U$2),IF(P34>=$W$2,$W$1,$V$1),IF(AND($N$2>=$T$3,$N$2<$U$3),IF(P34>=$W$3,$W$1,$V$1),IF(AND($N$2>=$T$4,$N$2<$U$4),IF(P34>=$W$4,$W$1,$V$1),IF(AND($N$2>=$T$5,$N$2<$U$5),IF(P34>=$W$5,$W$1,$V$1),IF(AND($N$2>=$T$6,$N$2<$U$6),IF(P34>=$W$6,$W$1,$V$1),IF(AND($N$2>=$T$7,$N$2<$U$7),IF(P34>=$W$7,$W$1,$V$1),IF(AND($N$2>=$T$8,$N$2<$U$8),IF(P34>=$W$8,$W$1,$V$1),IF(AND($N$2>=$T$9,$N$2<$U$9),IF(P34>=$W$9,$W$1,$V$1),""))))))))),"") -> BB | M34: =IF(E34<>"",IF(AND(E34<>"GR",E34>=40,J34>=30),_xlfn.IFS(Q34>=$AG$2,$AD$19,Q34>=$AG$3,$AC$19,Q34>=$AG$4,$AB$19,Q34>=$AG$5,$AA$19,Q34>=$AG$6,$Z$19,Q34>=$AG$7,$Y$19,Q34>=$AG$8,$X$19,Q34>=$AG$9,$V$19),L34),"") -> BB | P34: 61 | Q34: 61 | R34: 1.13
A35: Öğrenci | B35: 34 | C35: 63 | D35: 63 | E35: GR | F35: 63 | G35: 63 | H35: 63 | I35: 63 | J35: 63 | K35: 3969 | L35: =IF(D35<>"",IF(AND(H35>=40,I35>=30),IF(AND($N$2>=$T$2,$N$2<=$U$2),_xlfn.IFS(P35>=$AD$2,$AD$1,P35>=$AC$2,$AC$1,P35>=$AB$2,$AB$1,P35>=$AA$2,$AA$1,P35>=$Z$2,$Z$1,P35>=$Y$2,$Y$1,P35>=$X$2,$X$1,P35>=$W$2,$W$1,P35<$W$2,$V$1),(IF(AND($N$2>=$T$3,$N$2<$U$3),_xlfn.IFS(P35>=$AD$3,$AD$1,P35>=$AC$3,$AC$1,P35>=$AB$3,$AB$1,P35>=$AA$3,$AA$1,P35>=$Z$3,$Z$1,P35>=$Y$3,$Y$1,P35>=$X$3,$X$1,P35>=$W$3,$W$1,P35<$W$2,$V$1),(IF(AND($N$2>=$T$4,$N$2<$U$4),_xlfn.IFS(P35>=$AD$4,$AD$1,P35>=$AC$4,$AC$1,P35>=$AB$4,$AB$1,P35>=$AA$4,$AA$1,P35>=$Z$4,$Z$1,P35>=$Y$4,$Y$1,P35>=$X$4,$X$1,P35>=$W$4,$W$1,P35<$W$2,$V$1),(IF(AND($N$2>=$T$5,$N$2<$U$5),_xlfn.IFS(P35>=$AD$5,$AD$1,P35>=$AC$5,$AC$1,P35>=$AB$5,$AB$1,P35>=$AA$5,$AA$1,P35>=$Z$5,$Z$1,P35>=$Y$5,$Y$1,P35>=$X$5,$X$1,P35>=$W$5,$W$1,P35<$W$2,$V$1),(IF(AND($N$2>=$T$6,$N$2<$U$6),_xlfn.IFS(P35>=$AD$6,$AD$1,P35>=$AC$6,$AC$1,P35>=$AB$6,$AB$1,P35>=$AA$6,$AA$1,P35>=$Z$6,$Z$1,P35>=$Y$6,$Y$1,P35>=$X$6,$X$1,P35>=$W$6,$W$1,P35<$W$2,$V$1),(IF(AND($N$2>=$T$7,$N$2<$U$7),_xlfn.IFS(P35>=$AD$7,$AD$1,P35>=$AC$7,$AC$1,P35>=$AB$7,$AB$1,P35>=$AA$7,$AA$1,P35>=$Z$7,$Z$1,P35>=$Y$7,$Y$1,P35>=$X$7,$X$1,P35>=$W$7,$W$1,P35<$W$2,$V$1),(IF(AND($N$2>=$T$8,$N$2<$U$8),_xlfn.IFS(P35>=$AD$8,$AD$1,P35>=$AC$8,$AC$1,P35>=$AB$8,$AB$1,P35>=$AA$8,$AA$1,P35>=$Z$8,$Z$1,P35>=$Y$8,$Y$1,P35>=$X$8,$X$1,P35>=$W$8,$W$1,P35<$W$2,$V$1),(IF(AND($N$2>=$T$9,$N$2<$U$9),_xlfn.IFS(P35>=$AD$9,$AD$1,P35>=$AC$9,$AC$1,P35>=$AB$9,$AB$1,P35>=$AA$9,$AA$1,P35>=$Z$9,$Z$1,P35>=$Y$9,$Y$1,P35>=$X$9,$X$1,P35>=$W$9,$W$1),$W$1))))))))))))))),IF(AND($N$2>=$T$2,$N$2<=$U$2),IF(P35>=$W$2,$W$1,$V$1),IF(AND($N$2>=$T$3,$N$2<$U$3),IF(P35>=$W$3,$W$1,$V$1),IF(AND($N$2>=$T$4,$N$2<$U$4),IF(P35>=$W$4,$W$1,$V$1),IF(AND($N$2>=$T$5,$N$2<$U$5),IF(P35>=$W$5,$W$1,$V$1),IF(AND($N$2>=$T$6,$N$2<$U$6),IF(P35>=$W$6,$W$1,$V$1),IF(AND($N$2>=$T$7,$N$2<$U$7),IF(P35>=$W$7,$W$1,$V$1),IF(AND($N$2>=$T$8,$N$2<$U$8),IF(P35>=$W$8,$W$1,$V$1),IF(AND($N$2>=$T$9,$N$2<$U$9),IF(P35>=$W$9,$W$1,$V$1),""))))))))),"") -> BB | M35: =IF(E35<>"",IF(AND(E35<>"GR",E35>=40,J35>=30),_xlfn.IFS(Q35>=$AG$2,$AD$19,Q35>=$AG$3,$AC$19,Q35>=$AG$4,$AB$19,Q35>=$AG$5,$AA$19,Q35>=$AG$6,$Z$19,Q35>=$AG$7,$Y$19,Q35>=$AG$8,$X$19,Q35>=$AG$9,$V$19),L35),"") -> BB | P35: 61 | Q35: 61 | R35: 1.12
A36: Öğrenci | B36: 35 | C36: 32 | D36: 82 | E36: GR | F36: 82 | G36: 32 | H36: 82 | I36: 62 | J36: 62 | K36: 3844 | L36: =IF(D36<>"",IF(AND(H36>=40,I36>=30),IF(AND($N$2>=$T$2,$N$2<=$U$2),_xlfn.IFS(P36>=$AD$2,$AD$1,P36>=$AC$2,$AC$1,P36>=$AB$2,$AB$1,P36>=$AA$2,$AA$1,P36>=$Z$2,$Z$1,P36>=$Y$2,$Y$1,P36>=$X$2,$X$1,P36>=$W$2,$W$1,P36<$W$2,$V$1),(IF(AND($N$2>=$T$3,$N$2<$U$3),_xlfn.IFS(P36>=$AD$3,$AD$1,P36>=$AC$3,$AC$1,P36>=$AB$3,$AB$1,P36>=$AA$3,$AA$1,P36>=$Z$3,$Z$1,P36>=$Y$3,$Y$1,P36>=$X$3,$X$1,P36>=$W$3,$W$1,P36<$W$2,$V$1),(IF(AND($N$2>=$T$4,$N$2<$U$4),_xlfn.IFS(P36>=$AD$4,$AD$1,P36>=$AC$4,$AC$1,P36>=$AB$4,$AB$1,P36>=$AA$4,$AA$1,P36>=$Z$4,$Z$1,P36>=$Y$4,$Y$1,P36>=$X$4,$X$1,P36>=$W$4,$W$1,P36<$W$2,$V$1),(IF(AND($N$2>=$T$5,$N$2<$U$5),_xlfn.IFS(P36>=$AD$5,$AD$1,P36>=$AC$5,$AC$1,P36>=$AB$5,$AB$1,P36>=$AA$5,$AA$1,P36>=$Z$5,$Z$1,P36>=$Y$5,$Y$1,P36>=$X$5,$X$1,P36>=$W$5,$W$1,P36<$W$2,$V$1),(IF(AND($N$2>=$T$6,$N$2<$U$6),_xlfn.IFS(P36>=$AD$6,$AD$1,P36>=$AC$6,$AC$1,P36>=$AB$6,$AB$1,P36>=$AA$6,$AA$1,P36>=$Z$6,$Z$1,P36>=$Y$6,$Y$1,P36>=$X$6,$X$1,P36>=$W$6,$W$1,P36<$W$2,$V$1),(IF(AND($N$2>=$T$7,$N$2<$U$7),_xlfn.IFS(P36>=$AD$7,$AD$1,P36>=$AC$7,$AC$1,P36>=$AB$7,$AB$1,P36>=$AA$7,$AA$1,P36>=$Z$7,$Z$1,P36>=$Y$7,$Y$1,P36>=$X$7,$X$1,P36>=$W$7,$W$1,P36<$W$2,$V$1),(IF(AND($N$2>=$T$8,$N$2<$U$8),_xlfn.IFS(P36>=$AD$8,$AD$1,P36>=$AC$8,$AC$1,P36>=$AB$8,$AB$1,P36>=$AA$8,$AA$1,P36>=$Z$8,$Z$1,P36>=$Y$8,$Y$1,P36>=$X$8,$X$1,P36>=$W$8,$W$1,P36<$W$2,$V$1),(IF(AND($N$2>=$T$9,$N$2<$U$9),_xlfn.IFS(P36>=$AD$9,$AD$1,P36>=$AC$9,$AC$1,P36>=$AB$9,$AB$1,P36>=$AA$9,$AA$1,P36>=$Z$9,$Z$1,P36>=$Y$9,$Y$1,P36>=$X$9,$X$1,P36>=$W$9,$W$1),$W$1))))))))))))))),IF(AND($N$2>=$T$2,$N$2<=$U$2),IF(P36>=$W$2,$W$1,$V$1),IF(AND($N$2>=$T$3,$N$2<$U$3),IF(P36>=$W$3,$W$1,$V$1),IF(AND($N$2>=$T$4,$N$2<$U$4),IF(P36>=$W$4,$W$1,$V$1),IF(AND($N$2>=$T$5,$N$2<$U$5),IF(P36>=$W$5,$W$1,$V$1),IF(AND($N$2>=$T$6,$N$2<$U$6),IF(P36>=$W$6,$W$1,$V$1),IF(AND($N$2>=$T$7,$N$2<$U$7),IF(P36>=$W$7,$W$1,$V$1),IF(AND($N$2>=$T$8,$N$2<$U$8),IF(P36>=$W$8,$W$1,$V$1),IF(AND($N$2>=$T$9,$N$2<$U$9),IF(P36>=$W$9,$W$1,$V$1),""))))))))),"") -> BB | M36: =IF(E36<>"",IF(AND(E36<>"GR",E36>=40,J36>=30),_xlfn.IFS(Q36>=$AG$2,$AD$19,Q36>=$AG$3,$AC$19,Q36>=$AG$4,$AB$19,Q36>=$AG$5,$AA$19,Q36>=$AG$6,$Z$19,Q36>=$AG$7,$Y$19,Q36>=$AG$8,$X$19,Q36>=$AG$9,$V$19),L36),"") -> BB | P36: 60 | Q36: 60 | R36: 1.05
A37: Öğrenci | B37: 36 | C37: 33 | D37: 81 | E37: GR | F37: 81 | G37: 33 | H37: 81 | I37: 61.8 | J37: 61.8 | K37: 3819.24 | L37: =IF(D37<>"",IF(AND(H37>=40,I37>=30),IF(AND($N$2>=$T$2,$N$2<=$U$2),_xlfn.IFS(P37>=$AD$2,$AD$1,P37>=$AC$2,$AC$1,P37>=$AB$2,$AB$1,P37>=$AA$2,$AA$1,P37>=$Z$2,$Z$1,P37>=$Y$2,$Y$1,P37>=$X$2,$X$1,P37>=$W$2,$W$1,P37<$W$2,$V$1),(IF(AND($N$2>=$T$3,$N$2<$U$3),_xlfn.IFS(P37>=$AD$3,$AD$1,P37>=$AC$3,$AC$1,P37>=$AB$3,$AB$1,P37>=$AA$3,$AA$1,P37>=$Z$3,$Z$1,P37>=$Y$3,$Y$1,P37>=$X$3,$X$1,P37>=$W$3,$W$1,P37<$W$2,$V$1),(IF(AND($N$2>=$T$4,$N$2<$U$4),_xlfn.IFS(P37>=$AD$4,$AD$1,P37>=$AC$4,$AC$1,P37>=$AB$4,$AB$1,P37>=$AA$4,$AA$1,P37>=$Z$4,$Z$1,P37>=$Y$4,$Y$1,P37>=$X$4,$X$1,P37>=$W$4,$W$1,P37<$W$2,$V$1),(IF(AND($N$2>=$T$5,$N$2<$U$5),_xlfn.IFS(P37>=$AD$5,$AD$1,P37>=$AC$5,$AC$1,P37>=$AB$5,$AB$1,P37>=$AA$5,$AA$1,P37>=$Z$5,$Z$1,P37>=$Y$5,$Y$1,P37>=$X$5,$X$1,P37>=$W$5,$W$1,P37<$W$2,$V$1),(IF(AND($N$2>=$T$6,$N$2<$U$6),_xlfn.IFS(P37>=$AD$6,$AD$1,P37>=$AC$6,$AC$1,P37>=$AB$6,$AB$1,P37>=$AA$6,$AA$1,P37>=$Z$6,$Z$1,P37>=$Y$6,$Y$1,P37>=$X$6,$X$1,P37>=$W$6,$W$1,P37<$W$2,$V$1),(IF(AND($N$2>=$T$7,$N$2<$U$7),_xlfn.IFS(P37>=$AD$7,$AD$1,P37>=$AC$7,$AC$1,P37>=$AB$7,$AB$1,P37>=$AA$7,$AA$1,P37>=$Z$7,$Z$1,P37>=$Y$7,$Y$1,P37>=$X$7,$X$1,P37>=$W$7,$W$1,P37<$W$2,$V$1),(IF(AND($N$2>=$T$8,$N$2<$U$8),_xlfn.IFS(P37>=$AD$8,$AD$1,P37>=$AC$8,$AC$1,P37>=$AB$8,$AB$1,P37>=$AA$8,$AA$1,P37>=$Z$8,$Z$1,P37>=$Y$8,$Y$1,P37>=$X$8,$X$1,P37>=$W$8,$W$1,P37<$W$2,$V$1),(IF(AND($N$2>=$T$9,$N$2<$U$9),_xlfn.IFS(P37>=$AD$9,$AD$1,P37>=$AC$9,$AC$1,P37>=$AB$9,$AB$1,P37>=$AA$9,$AA$1,P37>=$Z$9,$Z$1,P37>=$Y$9,$Y$1,P37>=$X$9,$X$1,P37>=$W$9,$W$1),$W$1))))))))))))))),IF(AND($N$2>=$T$2,$N$2<=$U$2),IF(P37>=$W$2,$W$1,$V$1),IF(AND($N$2>=$T$3,$N$2<$U$3),IF(P37>=$W$3,$W$1,$V$1),IF(AND($N$2>=$T$4,$N$2<$U$4),IF(P37>=$W$4,$W$1,$V$1),IF(AND($N$2>=$T$5,$N$2<$U$5),IF(P37>=$W$5,$W$1,$V$1),IF(AND($N$2>=$T$6,$N$2<$U$6),IF(P37>=$W$6,$W$1,$V$1),IF(AND($N$2>=$T$7,$N$2<$U$7),IF(P37>=$W$7,$W$1,$V$1),IF(AND($N$2>=$T$8,$N$2<$U$8),IF(P37>=$W$8,$W$1,$V$1),IF(AND($N$2>=$T$9,$N$2<$U$9),IF(P37>=$W$9,$W$1,$V$1),""))))))))),"") -> BB | M37: =IF(E37<>"",IF(AND(E37<>"GR",E37>=40,J37>=30),_xlfn.IFS(Q37>=$AG$2,$AD$19,Q37>=$AG$3,$AC$19,Q37>=$AG$4,$AB$19,Q37>=$AG$5,$AA$19,Q37>=$AG$6,$Z$19,Q37>=$AG$7,$Y$19,Q37>=$AG$8,$X$19,Q37>=$AG$9,$V$19),L37),"") -> BB | P37: 60 | Q37: 60 | R37: 1.03
A38: Öğrenci | B38: 37 | C38: 57 | D38: 65 | E38: GR | F38: 65 | G38: 57 | H38: 65 | I38: 61.8 | J38: 61.8 | K38: 3819.24 | L38: =IF(D38<>"",IF(AND(H38>=40,I38>=30),IF(AND($N$2>=$T$2,$N$2<=$U$2),_xlfn.IFS(P38>=$AD$2,$AD$1,P38>=$AC$2,$AC$1,P38>=$AB$2,$AB$1,P38>=$AA$2,$AA$1,P38>=$Z$2,$Z$1,P38>=$Y$2,$Y$1,P38>=$X$2,$X$1,P38>=$W$2,$W$1,P38<$W$2,$V$1),(IF(AND($N$2>=$T$3,$N$2<$U$3),_xlfn.IFS(P38>=$AD$3,$AD$1,P38>=$AC$3,$AC$1,P38>=$AB$3,$AB$1,P38>=$AA$3,$AA$1,P38>=$Z$3,$Z$1,P38>=$Y$3,$Y$1,P38>=$X$3,$X$1,P38>=$W$3,$W$1,P38<$W$2,$V$1),(IF(AND($N$2>=$T$4,$N$2<$U$4),_xlfn.IFS(P38>=$AD$4,$AD$1,P38>=$AC$4,$AC$1,P38>=$AB$4,$AB$1,P38>=$AA$4,$AA$1,P38>=$Z$4,$Z$1,P38>=$Y$4,$Y$1,P38>=$X$4,$X$1,P38>=$W$4,$W$1,P38<$W$2,$V$1),(IF(AND($N$2>=$T$5,$N$2<$U$5),_xlfn.IFS(P38>=$AD$5,$AD$1,P38>=$AC$5,$AC$1,P38>=$AB$5,$AB$1,P38>=$AA$5,$AA$1,P38>=$Z$5,$Z$1,P38>=$Y$5,$Y$1,P38>=$X$5,$X$1,P38>=$W$5,$W$1,P38<$W$2,$V$1),(IF(AND($N$2>=$T$6,$N$2<$U$6),_xlfn.IFS(P38>=$AD$6,$AD$1,P38>=$AC$6,$AC$1,P38>=$AB$6,$AB$1,P38>=$AA$6,$AA$1,P38>=$Z$6,$Z$1,P38>=$Y$6,$Y$1,P38>=$X$6,$X$1,P38>=$W$6,$W$1,P38<$W$2,$V$1),(IF(AND($N$2>=$T$7,$N$2<$U$7),_xlfn.IFS(P38>=$AD$7,$AD$1,P38>=$AC$7,$AC$1,P38>=$AB$7,$AB$1,P38>=$AA$7,$AA$1,P38>=$Z$7,$Z$1,P38>=$Y$7,$Y$1,P38>=$X$7,$X$1,P38>=$W$7,$W$1,P38<$W$2,$V$1),(IF(AND($N$2>=$T$8,$N$2<$U$8),_xlfn.IFS(P38>=$AD$8,$AD$1,P38>=$AC$8,$AC$1,P38>=$AB$8,$AB$1,P38>=$AA$8,$AA$1,P38>=$Z$8,$Z$1,P38>=$Y$8,$Y$1,P38>=$X$8,$X$1,P38>=$W$8,$W$1,P38<$W$2,$V$1),(IF(AND($N$2>=$T$9,$N$2<$U$9),_xlfn.IFS(P38>=$AD$9,$AD$1,P38>=$AC$9,$AC$1,P38>=$AB$9,$AB$1,P38>=$AA$9,$AA$1,P38>=$Z$9,$Z$1,P38>=$Y$9,$Y$1,P38>=$X$9,$X$1,P38>=$W$9,$W$1),$W$1))))))))))))))),IF(AND($N$2>=$T$2,$N$2<=$U$2),IF(P38>=$W$2,$W$1,$V$1),IF(AND($N$2>=$T$3,$N$2<$U$3),IF(P38>=$W$3,$W$1,$V$1),IF(AND($N$2>=$T$4,$N$2<$U$4),IF(P38>=$W$4,$W$1,$V$1),IF(AND($N$2>=$T$5,$N$2<$U$5),IF(P38>=$W$5,$W$1,$V$1),IF(AND($N$2>=$T$6,$N$2<$U$6),IF(P38>=$W$6,$W$1,$V$1),IF(AND($N$2>=$T$7,$N$2<$U$7),IF(P38>=$W$7,$W$1,$V$1),IF(AND($N$2>=$T$8,$N$2<$U$8),IF(P38>=$W$8,$W$1,$V$1),IF(AND($N$2>=$T$9,$N$2<$U$9),IF(P38>=$W$9,$W$1,$V$1),""))))))))),"") -> BB | M38: =IF(E38<>"",IF(AND(E38<>"GR",E38>=40,J38>=30),_xlfn.IFS(Q38>=$AG$2,$AD$19,Q38>=$AG$3,$AC$19,Q38>=$AG$4,$AB$19,Q38>=$AG$5,$AA$19,Q38>=$AG$6,$Z$19,Q38>=$AG$7,$Y$19,Q38>=$AG$8,$X$19,Q38>=$AG$9,$V$19),L38),"") -> BB | P38: 60 | Q38: 60 | R38: 1.03
A39: Öğrenci | B39: 38 | C39: 33 | D39: 81 | E39: GR | F39: =IF(E39="GR",D39,E39) -> 81 | G39: =IF(C39="GR",0,C39) -> 33 | H39: =IF(D39="GR",0,D39) -> 81 | I39: 61.8 | J39: =IF(E39<>"",ROUND(IF(E39<>"GR",((G39*0.4)+(E39*0.6)),I39),2),"") -> 61.8 | K39: 3819.24 | L39: =IF(D39<>"",IF(AND(H39>=40,I39>=30),IF(AND($N$2>=$T$2,$N$2<=$U$2),_xlfn.IFS(P39>=$AD$2,$AD$1,P39>=$AC$2,$AC$1,P39>=$AB$2,$AB$1,P39>=$AA$2,$AA$1,P39>=$Z$2,$Z$1,P39>=$Y$2,$Y$1,P39>=$X$2,$X$1,P39>=$W$2,$W$1,P39<$W$2,$V$1),(IF(AND($N$2>=$T$3,$N$2<$U$3),_xlfn.IFS(P39>=$AD$3,$AD$1,P39>=$AC$3,$AC$1,P39>=$AB$3,$AB$1,P39>=$AA$3,$AA$1,P39>=$Z$3,$Z$1,P39>=$Y$3,$Y$1,P39>=$X$3,$X$1,P39>=$W$3,$W$1,P39<$W$2,$V$1),(IF(AND($N$2>=$T$4,$N$2<$U$4),_xlfn.IFS(P39>=$AD$4,$AD$1,P39>=$AC$4,$AC$1,P39>=$AB$4,$AB$1,P39>=$AA$4,$AA$1,P39>=$Z$4,$Z$1,P39>=$Y$4,$Y$1,P39>=$X$4,$X$1,P39>=$W$4,$W$1,P39<$W$2,$V$1),(IF(AND($N$2>=$T$5,$N$2<$U$5),_xlfn.IFS(P39>=$AD$5,$AD$1,P39>=$AC$5,$AC$1,P39>=$AB$5,$AB$1,P39>=$AA$5,$AA$1,P39>=$Z$5,$Z$1,P39>=$Y$5,$Y$1,P39>=$X$5,$X$1,P39>=$W$5,$W$1,P39<$W$2,$V$1),(IF(AND($N$2>=$T$6,$N$2<$U$6),_xlfn.IFS(P39>=$AD$6,$AD$1,P39>=$AC$6,$AC$1,P39>=$AB$6,$AB$1,P39>=$AA$6,$AA$1,P39>=$Z$6,$Z$1,P39>=$Y$6,$Y$1,P39>=$X$6,$X$1,P39>=$W$6,$W$1,P39<$W$2,$V$1),(IF(AND($N$2>=$T$7,$N$2<$U$7),_xlfn.IFS(P39>=$AD$7,$AD$1,P39>=$AC$7,$AC$1,P39>=$AB$7,$AB$1,P39>=$AA$7,$AA$1,P39>=$Z$7,$Z$1,P39>=$Y$7,$Y$1,P39>=$X$7,$X$1,P39>=$W$7,$W$1,P39<$W$2,$V$1),(IF(AND($N$2>=$T$8,$N$2<$U$8),_xlfn.IFS(P39>=$AD$8,$AD$1,P39>=$AC$8,$AC$1,P39>=$AB$8,$AB$1,P39>=$AA$8,$AA$1,P39>=$Z$8,$Z$1,P39>=$Y$8,$Y$1,P39>=$X$8,$X$1,P39>=$W$8,$W$1,P39<$W$2,$V$1),(IF(AND($N$2>=$T$9,$N$2<$U$9),_xlfn.IFS(P39>=$AD$9,$AD$1,P39>=$AC$9,$AC$1,P39>=$AB$9,$AB$1,P39>=$AA$9,$AA$1,P39>=$Z$9,$Z$1,P39>=$Y$9,$Y$1,P39>=$X$9,$X$1,P39>=$W$9,$W$1),$W$1))))))))))))))),IF(AND($N$2>=$T$2,$N$2<=$U$2),IF(P39>=$W$2,$W$1,$V$1),IF(AND($N$2>=$T$3,$N$2<$U$3),IF(P39>=$W$3,$W$1,$V$1),IF(AND($N$2>=$T$4,$N$2<$U$4),IF(P39>=$W$4,$W$1,$V$1),IF(AND($N$2>=$T$5,$N$2<$U$5),IF(P39>=$W$5,$W$1,$V$1),IF(AND($N$2>=$T$6,$N$2<$U$6),IF(P39>=$W$6,$W$1,$V$1),IF(AND($N$2>=$T$7,$N$2<$U$7),IF(P39>=$W$7,$W$1,$V$1),IF(AND($N$2>=$T$8,$N$2<$U$8),IF(P39>=$W$8,$W$1,$V$1),IF(AND($N$2>=$T$9,$N$2<$U$9),IF(P39>=$W$9,$W$1,$V$1),""))))))))),"") -> BB | M39: =IF(E39<>"",IF(AND(E39<>"GR",E39>=40,J39>=30),_xlfn.IFS(Q39>=$AG$2,$AD$19,Q39>=$AG$3,$AC$19,Q39>=$AG$4,$AB$19,Q39>=$AG$5,$AA$19,Q39>=$AG$6,$Z$19,Q39>=$AG$7,$Y$19,Q39>=$AG$8,$X$19,Q39>=$AG$9,$V$19),L39),"") -> BB | P39: 60 | Q39: 60 | R39: 1.03
A40: Öğrenci | B40: 39 | C40: 17 | D40: 91 | E40: GR | F40: 91 | G40: 17 | H40: 91 | I40: 61.4 | J40: 61.4 | K40: 3769.96 | L40: =IF(D40<>"",IF(AND(H40>=40,I40>=30),IF(AND($N$2>=$T$2,$N$2<=$U$2),_xlfn.IFS(P40>=$AD$2,$AD$1,P40>=$AC$2,$AC$1,P40>=$AB$2,$AB$1,P40>=$AA$2,$AA$1,P40>=$Z$2,$Z$1,P40>=$Y$2,$Y$1,P40>=$X$2,$X$1,P40>=$W$2,$W$1,P40<$W$2,$V$1),(IF(AND($N$2>=$T$3,$N$2<$U$3),_xlfn.IFS(P40>=$AD$3,$AD$1,P40>=$AC$3,$AC$1,P40>=$AB$3,$AB$1,P40>=$AA$3,$AA$1,P40>=$Z$3,$Z$1,P40>=$Y$3,$Y$1,P40>=$X$3,$X$1,P40>=$W$3,$W$1,P40<$W$2,$V$1),(IF(AND($N$2>=$T$4,$N$2<$U$4),_xlfn.IFS(P40>=$AD$4,$AD$1,P40>=$AC$4,$AC$1,P40>=$AB$4,$AB$1,P40>=$AA$4,$AA$1,P40>=$Z$4,$Z$1,P40>=$Y$4,$Y$1,P40>=$X$4,$X$1,P40>=$W$4,$W$1,P40<$W$2,$V$1),(IF(AND($N$2>=$T$5,$N$2<$U$5),_xlfn.IFS(P40>=$AD$5,$AD$1,P40>=$AC$5,$AC$1,P40>=$AB$5,$AB$1,P40>=$AA$5,$AA$1,P40>=$Z$5,$Z$1,P40>=$Y$5,$Y$1,P40>=$X$5,$X$1,P40>=$W$5,$W$1,P40<$W$2,$V$1),(IF(AND($N$2>=$T$6,$N$2<$U$6),_xlfn.IFS(P40>=$AD$6,$AD$1,P40>=$AC$6,$AC$1,P40>=$AB$6,$AB$1,P40>=$AA$6,$AA$1,P40>=$Z$6,$Z$1,P40>=$Y$6,$Y$1,P40>=$X$6,$X$1,P40>=$W$6,$W$1,P40<$W$2,$V$1),(IF(AND($N$2>=$T$7,$N$2<$U$7),_xlfn.IFS(P40>=$AD$7,$AD$1,P40>=$AC$7,$AC$1,P40>=$AB$7,$AB$1,P40>=$AA$7,$AA$1,P40>=$Z$7,$Z$1,P40>=$Y$7,$Y$1,P40>=$X$7,$X$1,P40>=$W$7,$W$1,P40<$W$2,$V$1),(IF(AND($N$2>=$T$8,$N$2<$U$8),_xlfn.IFS(P40>=$AD$8,$AD$1,P40>=$AC$8,$AC$1,P40>=$AB$8,$AB$1,P40>=$AA$8,$AA$1,P40>=$Z$8,$Z$1,P40>=$Y$8,$Y$1,P40>=$X$8,$X$1,P40>=$W$8,$W$1,P40<$W$2,$V$1),(IF(AND($N$2>=$T$9,$N$2<$U$9),_xlfn.IFS(P40>=$AD$9,$AD$1,P40>=$AC$9,$AC$1,P40>=$AB$9,$AB$1,P40>=$AA$9,$AA$1,P40>=$Z$9,$Z$1,P40>=$Y$9,$Y$1,P40>=$X$9,$X$1,P40>=$W$9,$W$1),$W$1))))))))))))))),IF(AND($N$2>=$T$2,$N$2<=$U$2),IF(P40>=$W$2,$W$1,$V$1),IF(AND($N$2>=$T$3,$N$2<$U$3),IF(P40>=$W$3,$W$1,$V$1),IF(AND($N$2>=$T$4,$N$2<$U$4),IF(P40>=$W$4,$W$1,$V$1),IF(AND($N$2>=$T$5,$N$2<$U$5),IF(P40>=$W$5,$W$1,$V$1),IF(AND($N$2>=$T$6,$N$2<$U$6),IF(P40>=$W$6,$W$1,$V$1),IF(AND($N$2>=$T$7,$N$2<$U$7),IF(P40>=$W$7,$W$1,$V$1),IF(AND($N$2>=$T$8,$N$2<$U$8),IF(P40>=$W$8,$W$1,$V$1),IF(AND($N$2>=$T$9,$N$2<$U$9),IF(P40>=$W$9,$W$1,$V$1),""))))))))),"") -> BB | M40: =IF(E40<>"",IF(AND(E40<>"GR",E40>=40,J40>=30),_xlfn.IFS(Q40>=$AG$2,$AD$19,Q40>=$AG$3,$AC$19,Q40>=$AG$4,$AB$19,Q40>=$AG$5,$AA$19,Q40>=$AG$6,$Z$19,Q40>=$AG$7,$Y$19,Q40>=$AG$8,$X$19,Q40>=$AG$9,$V$19),L40),"") -> BB | P40: 60 | Q40: 60 | R40: 1.01
A41: Öğrenci | B41: 40 | C41: 30 | D41: 82 | E41: GR | F41: 82 | G41: 30 | H41: 82 | I41: 61.2 | J41: 61.2 | K41: 3745.44 | L41: =IF(D41<>"",IF(AND(H41>=40,I41>=30),IF(AND($N$2>=$T$2,$N$2<=$U$2),_xlfn.IFS(P41>=$AD$2,$AD$1,P41>=$AC$2,$AC$1,P41>=$AB$2,$AB$1,P41>=$AA$2,$AA$1,P41>=$Z$2,$Z$1,P41>=$Y$2,$Y$1,P41>=$X$2,$X$1,P41>=$W$2,$W$1,P41<$W$2,$V$1),(IF(AND($N$2>=$T$3,$N$2<$U$3),_xlfn.IFS(P41>=$AD$3,$AD$1,P41>=$AC$3,$AC$1,P41>=$AB$3,$AB$1,P41>=$AA$3,$AA$1,P41>=$Z$3,$Z$1,P41>=$Y$3,$Y$1,P41>=$X$3,$X$1,P41>=$W$3,$W$1,P41<$W$2,$V$1),(IF(AND($N$2>=$T$4,$N$2<$U$4),_xlfn.IFS(P41>=$AD$4,$AD$1,P41>=$AC$4,$AC$1,P41>=$AB$4,$AB$1,P41>=$AA$4,$AA$1,P41>=$Z$4,$Z$1,P41>=$Y$4,$Y$1,P41>=$X$4,$X$1,P41>=$W$4,$W$1,P41<$W$2,$V$1),(IF(AND($N$2>=$T$5,$N$2<$U$5),_xlfn.IFS(P41>=$AD$5,$AD$1,P41>=$AC$5,$AC$1,P41>=$AB$5,$AB$1,P41>=$AA$5,$AA$1,P41>=$Z$5,$Z$1,P41>=$Y$5,$Y$1,P41>=$X$5,$X$1,P41>=$W$5,$W$1,P41<$W$2,$V$1),(IF(AND($N$2>=$T$6,$N$2<$U$6),_xlfn.IFS(P41>=$AD$6,$AD$1,P41>=$AC$6,$AC$1,P41>=$AB$6,$AB$1,P41>=$AA$6,$AA$1,P41>=$Z$6,$Z$1,P41>=$Y$6,$Y$1,P41>=$X$6,$X$1,P41>=$W$6,$W$1,P41<$W$2,$V$1),(IF(AND($N$2>=$T$7,$N$2<$U$7),_xlfn.IFS(P41>=$AD$7,$AD$1,P41>=$AC$7,$AC$1,P41>=$AB$7,$AB$1,P41>=$AA$7,$AA$1,P41>=$Z$7,$Z$1,P41>=$Y$7,$Y$1,P41>=$X$7,$X$1,P41>=$W$7,$W$1,P41<$W$2,$V$1),(IF(AND($N$2>=$T$8,$N$2<$U$8),_xlfn.IFS(P41>=$AD$8,$AD$1,P41>=$AC$8,$AC$1,P41>=$AB$8,$AB$1,P41>=$AA$8,$AA$1,P41>=$Z$8,$Z$1,P41>=$Y$8,$Y$1,P41>=$X$8,$X$1,P41>=$W$8,$W$1,P41<$W$2,$V$1),(IF(AND($N$2>=$T$9,$N$2<$U$9),_xlfn.IFS(P41>=$AD$9,$AD$1,P41>=$AC$9,$AC$1,P41>=$AB$9,$AB$1,P41>=$AA$9,$AA$1,P41>=$Z$9,$Z$1,P41>=$Y$9,$Y$1,P41>=$X$9,$X$1,P41>=$W$9,$W$1),$W$1))))))))))))))),IF(AND($N$2>=$T$2,$N$2<=$U$2),IF(P41>=$W$2,$W$1,$V$1),IF(AND($N$2>=$T$3,$N$2<$U$3),IF(P41>=$W$3,$W$1,$V$1),IF(AND($N$2>=$T$4,$N$2<$U$4),IF(P41>=$W$4,$W$1,$V$1),IF(AND($N$2>=$T$5,$N$2<$U$5),IF(P41>=$W$5,$W$1,$V$1),IF(AND($N$2>=$T$6,$N$2<$U$6),IF(P41>=$W$6,$W$1,$V$1),IF(AND($N$2>=$T$7,$N$2<$U$7),IF(P41>=$W$7,$W$1,$V$1),IF(AND($N$2>=$T$8,$N$2<$U$8),IF(P41>=$W$8,$W$1,$V$1),IF(AND($N$2>=$T$9,$N$2<$U$9),IF(P41>=$W$9,$W$1,$V$1),""))))))))),"") -> BB | M41: =IF(E41<>"",IF(AND(E41<>"GR",E41>=40,J41>=30),_xlfn.IFS(Q41>=$AG$2,$AD$19,Q41>=$AG$3,$AC$19,Q41>=$AG$4,$AB$19,Q41>=$AG$5,$AA$19,Q41>=$AG$6,$Z$19,Q41>=$AG$7,$Y$19,Q41>=$AG$8,$X$19,Q41>=$AG$9,$V$19),L41),"") -> BB | P41: 60 | Q41: 60 | R41: 0.99
A42: Öğrenci | B42: 41 | C42: 55 | D42: 65 | E42: GR | F42: 65 | G42: 55 | H42: 65 | I42: 61 | J42: 61 | K42: 3721 | L42: =IF(D42<>"",IF(AND(H42>=40,I42>=30),IF(AND($N$2>=$T$2,$N$2<=$U$2),_xlfn.IFS(P42>=$AD$2,$AD$1,P42>=$AC$2,$AC$1,P42>=$AB$2,$AB$1,P42>=$AA$2,$AA$1,P42>=$Z$2,$Z$1,P42>=$Y$2,$Y$1,P42>=$X$2,$X$1,P42>=$W$2,$W$1,P42<$W$2,$V$1),(IF(AND($N$2>=$T$3,$N$2<$U$3),_xlfn.IFS(P42>=$AD$3,$AD$1,P42>=$AC$3,$AC$1,P42>=$AB$3,$AB$1,P42>=$AA$3,$AA$1,P42>=$Z$3,$Z$1,P42>=$Y$3,$Y$1,P42>=$X$3,$X$1,P42>=$W$3,$W$1,P42<$W$2,$V$1),(IF(AND($N$2>=$T$4,$N$2<$U$4),_xlfn.IFS(P42>=$AD$4,$AD$1,P42>=$AC$4,$AC$1,P42>=$AB$4,$AB$1,P42>=$AA$4,$AA$1,P42>=$Z$4,$Z$1,P42>=$Y$4,$Y$1,P42>=$X$4,$X$1,P42>=$W$4,$W$1,P42<$W$2,$V$1),(IF(AND($N$2>=$T$5,$N$2<$U$5),_xlfn.IFS(P42>=$AD$5,$AD$1,P42>=$AC$5,$AC$1,P42>=$AB$5,$AB$1,P42>=$AA$5,$AA$1,P42>=$Z$5,$Z$1,P42>=$Y$5,$Y$1,P42>=$X$5,$X$1,P42>=$W$5,$W$1,P42<$W$2,$V$1),(IF(AND($N$2>=$T$6,$N$2<$U$6),_xlfn.IFS(P42>=$AD$6,$AD$1,P42>=$AC$6,$AC$1,P42>=$AB$6,$AB$1,P42>=$AA$6,$AA$1,P42>=$Z$6,$Z$1,P42>=$Y$6,$Y$1,P42>=$X$6,$X$1,P42>=$W$6,$W$1,P42<$W$2,$V$1),(IF(AND($N$2>=$T$7,$N$2<$U$7),_xlfn.IFS(P42>=$AD$7,$AD$1,P42>=$AC$7,$AC$1,P42>=$AB$7,$AB$1,P42>=$AA$7,$AA$1,P42>=$Z$7,$Z$1,P42>=$Y$7,$Y$1,P42>=$X$7,$X$1,P42>=$W$7,$W$1,P42<$W$2,$V$1),(IF(AND($N$2>=$T$8,$N$2<$U$8),_xlfn.IFS(P42>=$AD$8,$AD$1,P42>=$AC$8,$AC$1,P42>=$AB$8,$AB$1,P42>=$AA$8,$AA$1,P42>=$Z$8,$Z$1,P42>=$Y$8,$Y$1,P42>=$X$8,$X$1,P42>=$W$8,$W$1,P42<$W$2,$V$1),(IF(AND($N$2>=$T$9,$N$2<$U$9),_xlfn.IFS(P42>=$AD$9,$AD$1,P42>=$AC$9,$AC$1,P42>=$AB$9,$AB$1,P42>=$AA$9,$AA$1,P42>=$Z$9,$Z$1,P42>=$Y$9,$Y$1,P42>=$X$9,$X$1,P42>=$W$9,$W$1),$W$1))))))))))))))),IF(AND($N$2>=$T$2,$N$2<=$U$2),IF(P42>=$W$2,$W$1,$V$1),IF(AND($N$2>=$T$3,$N$2<$U$3),IF(P42>=$W$3,$W$1,$V$1),IF(AND($N$2>=$T$4,$N$2<$U$4),IF(P42>=$W$4,$W$1,$V$1),IF(AND($N$2>=$T$5,$N$2<$U$5),IF(P42>=$W$5,$W$1,$V$1),IF(AND($N$2>=$T$6,$N$2<$U$6),IF(P42>=$W$6,$W$1,$V$1),IF(AND($N$2>=$T$7,$N$2<$U$7),IF(P42>=$W$7,$W$1,$V$1),IF(AND($N$2>=$T$8,$N$2<$U$8),IF(P42>=$W$8,$W$1,$V$1),IF(AND($N$2>=$T$9,$N$2<$U$9),IF(P42>=$W$9,$W$1,$V$1),""))))))))),"") -> BB | M42: =IF(E42<>"",IF(AND(E42<>"GR",E42>=40,J42>=30),_xlfn.IFS(Q42>=$AG$2,$AD$19,Q42>=$AG$3,$AC$19,Q42>=$AG$4,$AB$19,Q42>=$AG$5,$AA$19,Q42>=$AG$6,$Z$19,Q42>=$AG$7,$Y$19,Q42>=$AG$8,$X$19,Q42>=$AG$9,$V$19),L42),"") -> BB | P42: 60 | Q42: 60 | R42: 0.98
A43: Öğrenci | B43: 42 | C43: 31 | D43: 81 | E43: GR | F43: 81 | G43: 31 | H43: 81 | I43: 61 | J43: 61 | K43: 3721 | L43: =IF(D43<>"",IF(AND(H43>=40,I43>=30),IF(AND($N$2>=$T$2,$N$2<=$U$2),_xlfn.IFS(P43>=$AD$2,$AD$1,P43>=$AC$2,$AC$1,P43>=$AB$2,$AB$1,P43>=$AA$2,$AA$1,P43>=$Z$2,$Z$1,P43>=$Y$2,$Y$1,P43>=$X$2,$X$1,P43>=$W$2,$W$1,P43<$W$2,$V$1),(IF(AND($N$2>=$T$3,$N$2<$U$3),_xlfn.IFS(P43>=$AD$3,$AD$1,P43>=$AC$3,$AC$1,P43>=$AB$3,$AB$1,P43>=$AA$3,$AA$1,P43>=$Z$3,$Z$1,P43>=$Y$3,$Y$1,P43>=$X$3,$X$1,P43>=$W$3,$W$1,P43<$W$2,$V$1),(IF(AND($N$2>=$T$4,$N$2<$U$4),_xlfn.IFS(P43>=$AD$4,$AD$1,P43>=$AC$4,$AC$1,P43>=$AB$4,$AB$1,P43>=$AA$4,$AA$1,P43>=$Z$4,$Z$1,P43>=$Y$4,$Y$1,P43>=$X$4,$X$1,P43>=$W$4,$W$1,P43<$W$2,$V$1),(IF(AND($N$2>=$T$5,$N$2<$U$5),_xlfn.IFS(P43>=$AD$5,$AD$1,P43>=$AC$5,$AC$1,P43>=$AB$5,$AB$1,P43>=$AA$5,$AA$1,P43>=$Z$5,$Z$1,P43>=$Y$5,$Y$1,P43>=$X$5,$X$1,P43>=$W$5,$W$1,P43<$W$2,$V$1),(IF(AND($N$2>=$T$6,$N$2<$U$6),_xlfn.IFS(P43>=$AD$6,$AD$1,P43>=$AC$6,$AC$1,P43>=$AB$6,$AB$1,P43>=$AA$6,$AA$1,P43>=$Z$6,$Z$1,P43>=$Y$6,$Y$1,P43>=$X$6,$X$1,P43>=$W$6,$W$1,P43<$W$2,$V$1),(IF(AND($N$2>=$T$7,$N$2<$U$7),_xlfn.IFS(P43>=$AD$7,$AD$1,P43>=$AC$7,$AC$1,P43>=$AB$7,$AB$1,P43>=$AA$7,$AA$1,P43>=$Z$7,$Z$1,P43>=$Y$7,$Y$1,P43>=$X$7,$X$1,P43>=$W$7,$W$1,P43<$W$2,$V$1),(IF(AND($N$2>=$T$8,$N$2<$U$8),_xlfn.IFS(P43>=$AD$8,$AD$1,P43>=$AC$8,$AC$1,P43>=$AB$8,$AB$1,P43>=$AA$8,$AA$1,P43>=$Z$8,$Z$1,P43>=$Y$8,$Y$1,P43>=$X$8,$X$1,P43>=$W$8,$W$1,P43<$W$2,$V$1),(IF(AND($N$2>=$T$9,$N$2<$U$9),_xlfn.IFS(P43>=$AD$9,$AD$1,P43>=$AC$9,$AC$1,P43>=$AB$9,$AB$1,P43>=$AA$9,$AA$1,P43>=$Z$9,$Z$1,P43>=$Y$9,$Y$1,P43>=$X$9,$X$1,P43>=$W$9,$W$1),$W$1))))))))))))))),IF(AND($N$2>=$T$2,$N$2<=$U$2),IF(P43>=$W$2,$W$1,$V$1),IF(AND($N$2>=$T$3,$N$2<$U$3),IF(P43>=$W$3,$W$1,$V$1),IF(AND($N$2>=$T$4,$N$2<$U$4),IF(P43>=$W$4,$W$1,$V$1),IF(AND($N$2>=$T$5,$N$2<$U$5),IF(P43>=$W$5,$W$1,$V$1),IF(AND($N$2>=$T$6,$N$2<$U$6),IF(P43>=$W$6,$W$1,$V$1),IF(AND($N$2>=$T$7,$N$2<$U$7),IF(P43>=$W$7,$W$1,$V$1),IF(AND($N$2>=$T$8,$N$2<$U$8),IF(P43>=$W$8,$W$1,$V$1),IF(AND($N$2>=$T$9,$N$2<$U$9),IF(P43>=$W$9,$W$1,$V$1),""))))))))),"") -> BB | M43: =IF(E43<>"",IF(AND(E43<>"GR",E43>=40,J43>=30),_xlfn.IFS(Q43>=$AG$2,$AD$19,Q43>=$AG$3,$AC$19,Q43>=$AG$4,$AB$19,Q43>=$AG$5,$AA$19,Q43>=$AG$6,$Z$19,Q43>=$AG$7,$Y$19,Q43>=$AG$8,$X$19,Q43>=$AG$9,$V$19),L43),"") -> BB | P43: 60 | Q43: 60 | R43: 0.98
A44: Öğrenci | B44: 43 | C44: 53 | D44: 66 | E44: GR | F44: 66 | G44: 53 | H44: 66 | I44: 60.8 | J44: 60.8 | K44: 3696.64 | L44: =IF(D44<>"",IF(AND(H44>=40,I44>=30),IF(AND($N$2>=$T$2,$N$2<=$U$2),_xlfn.IFS(P44>=$AD$2,$AD$1,P44>=$AC$2,$AC$1,P44>=$AB$2,$AB$1,P44>=$AA$2,$AA$1,P44>=$Z$2,$Z$1,P44>=$Y$2,$Y$1,P44>=$X$2,$X$1,P44>=$W$2,$W$1,P44<$W$2,$V$1),(IF(AND($N$2>=$T$3,$N$2<$U$3),_xlfn.IFS(P44>=$AD$3,$AD$1,P44>=$AC$3,$AC$1,P44>=$AB$3,$AB$1,P44>=$AA$3,$AA$1,P44>=$Z$3,$Z$1,P44>=$Y$3,$Y$1,P44>=$X$3,$X$1,P44>=$W$3,$W$1,P44<$W$2,$V$1),(IF(AND($N$2>=$T$4,$N$2<$U$4),_xlfn.IFS(P44>=$AD$4,$AD$1,P44>=$AC$4,$AC$1,P44>=$AB$4,$AB$1,P44>=$AA$4,$AA$1,P44>=$Z$4,$Z$1,P44>=$Y$4,$Y$1,P44>=$X$4,$X$1,P44>=$W$4,$W$1,P44<$W$2,$V$1),(IF(AND($N$2>=$T$5,$N$2<$U$5),_xlfn.IFS(P44>=$AD$5,$AD$1,P44>=$AC$5,$AC$1,P44>=$AB$5,$AB$1,P44>=$AA$5,$AA$1,P44>=$Z$5,$Z$1,P44>=$Y$5,$Y$1,P44>=$X$5,$X$1,P44>=$W$5,$W$1,P44<$W$2,$V$1),(IF(AND($N$2>=$T$6,$N$2<$U$6),_xlfn.IFS(P44>=$AD$6,$AD$1,P44>=$AC$6,$AC$1,P44>=$AB$6,$AB$1,P44>=$AA$6,$AA$1,P44>=$Z$6,$Z$1,P44>=$Y$6,$Y$1,P44>=$X$6,$X$1,P44>=$W$6,$W$1,P44<$W$2,$V$1),(IF(AND($N$2>=$T$7,$N$2<$U$7),_xlfn.IFS(P44>=$AD$7,$AD$1,P44>=$AC$7,$AC$1,P44>=$AB$7,$AB$1,P44>=$AA$7,$AA$1,P44>=$Z$7,$Z$1,P44>=$Y$7,$Y$1,P44>=$X$7,$X$1,P44>=$W$7,$W$1,P44<$W$2,$V$1),(IF(AND($N$2>=$T$8,$N$2<$U$8),_xlfn.IFS(P44>=$AD$8,$AD$1,P44>=$AC$8,$AC$1,P44>=$AB$8,$AB$1,P44>=$AA$8,$AA$1,P44>=$Z$8,$Z$1,P44>=$Y$8,$Y$1,P44>=$X$8,$X$1,P44>=$W$8,$W$1,P44<$W$2,$V$1),(IF(AND($N$2>=$T$9,$N$2<$U$9),_xlfn.IFS(P44>=$AD$9,$AD$1,P44>=$AC$9,$AC$1,P44>=$AB$9,$AB$1,P44>=$AA$9,$AA$1,P44>=$Z$9,$Z$1,P44>=$Y$9,$Y$1,P44>=$X$9,$X$1,P44>=$W$9,$W$1),$W$1))))))))))))))),IF(AND($N$2>=$T$2,$N$2<=$U$2),IF(P44>=$W$2,$W$1,$V$1),IF(AND($N$2>=$T$3,$N$2<$U$3),IF(P44>=$W$3,$W$1,$V$1),IF(AND($N$2>=$T$4,$N$2<$U$4),IF(P44>=$W$4,$W$1,$V$1),IF(AND($N$2>=$T$5,$N$2<$U$5),IF(P44>=$W$5,$W$1,$V$1),IF(AND($N$2>=$T$6,$N$2<$U$6),IF(P44>=$W$6,$W$1,$V$1),IF(AND($N$2>=$T$7,$N$2<$U$7),IF(P44>=$W$7,$W$1,$V$1),IF(AND($N$2>=$T$8,$N$2<$U$8),IF(P44>=$W$8,$W$1,$V$1),IF(AND($N$2>=$T$9,$N$2<$U$9),IF(P44>=$W$9,$W$1,$V$1),""))))))))),"") -> BB | M44: =IF(E44<>"",IF(AND(E44<>"GR",E44>=40,J44>=30),_xlfn.IFS(Q44>=$AG$2,$AD$19,Q44>=$AG$3,$AC$19,Q44>=$AG$4,$AB$19,Q44>=$AG$5,$AA$19,Q44>=$AG$6,$Z$19,Q44>=$AG$7,$Y$19,Q44>=$AG$8,$X$19,Q44>=$AG$9,$V$19),L44),"") -> BB | P44: 60 | Q44: 60 | R44: 0.97
A45: Öğrenci | B45: 44 | C45: 67 | D45: 56 | E45: GR | F45: 56 | G45: 67 | H45: 56 | I45: 60.4 | J45: 60.4 | K45: 3648.16 | L45: =IF(D45<>"",IF(AND(H45>=40,I45>=30),IF(AND($N$2>=$T$2,$N$2<=$U$2),_xlfn.IFS(P45>=$AD$2,$AD$1,P45>=$AC$2,$AC$1,P45>=$AB$2,$AB$1,P45>=$AA$2,$AA$1,P45>=$Z$2,$Z$1,P45>=$Y$2,$Y$1,P45>=$X$2,$X$1,P45>=$W$2,$W$1,P45<$W$2,$V$1),(IF(AND($N$2>=$T$3,$N$2<$U$3),_xlfn.IFS(P45>=$AD$3,$AD$1,P45>=$AC$3,$AC$1,P45>=$AB$3,$AB$1,P45>=$AA$3,$AA$1,P45>=$Z$3,$Z$1,P45>=$Y$3,$Y$1,P45>=$X$3,$X$1,P45>=$W$3,$W$1,P45<$W$2,$V$1),(IF(AND($N$2>=$T$4,$N$2<$U$4),_xlfn.IFS(P45>=$AD$4,$AD$1,P45>=$AC$4,$AC$1,P45>=$AB$4,$AB$1,P45>=$AA$4,$AA$1,P45>=$Z$4,$Z$1,P45>=$Y$4,$Y$1,P45>=$X$4,$X$1,P45>=$W$4,$W$1,P45<$W$2,$V$1),(IF(AND($N$2>=$T$5,$N$2<$U$5),_xlfn.IFS(P45>=$AD$5,$AD$1,P45>=$AC$5,$AC$1,P45>=$AB$5,$AB$1,P45>=$AA$5,$AA$1,P45>=$Z$5,$Z$1,P45>=$Y$5,$Y$1,P45>=$X$5,$X$1,P45>=$W$5,$W$1,P45<$W$2,$V$1),(IF(AND($N$2>=$T$6,$N$2<$U$6),_xlfn.IFS(P45>=$AD$6,$AD$1,P45>=$AC$6,$AC$1,P45>=$AB$6,$AB$1,P45>=$AA$6,$AA$1,P45>=$Z$6,$Z$1,P45>=$Y$6,$Y$1,P45>=$X$6,$X$1,P45>=$W$6,$W$1,P45<$W$2,$V$1),(IF(AND($N$2>=$T$7,$N$2<$U$7),_xlfn.IFS(P45>=$AD$7,$AD$1,P45>=$AC$7,$AC$1,P45>=$AB$7,$AB$1,P45>=$AA$7,$AA$1,P45>=$Z$7,$Z$1,P45>=$Y$7,$Y$1,P45>=$X$7,$X$1,P45>=$W$7,$W$1,P45<$W$2,$V$1),(IF(AND($N$2>=$T$8,$N$2<$U$8),_xlfn.IFS(P45>=$AD$8,$AD$1,P45>=$AC$8,$AC$1,P45>=$AB$8,$AB$1,P45>=$AA$8,$AA$1,P45>=$Z$8,$Z$1,P45>=$Y$8,$Y$1,P45>=$X$8,$X$1,P45>=$W$8,$W$1,P45<$W$2,$V$1),(IF(AND($N$2>=$T$9,$N$2<$U$9),_xlfn.IFS(P45>=$AD$9,$AD$1,P45>=$AC$9,$AC$1,P45>=$AB$9,$AB$1,P45>=$AA$9,$AA$1,P45>=$Z$9,$Z$1,P45>=$Y$9,$Y$1,P45>=$X$9,$X$1,P45>=$W$9,$W$1),$W$1))))))))))))))),IF(AND($N$2>=$T$2,$N$2<=$U$2),IF(P45>=$W$2,$W$1,$V$1),IF(AND($N$2>=$T$3,$N$2<$U$3),IF(P45>=$W$3,$W$1,$V$1),IF(AND($N$2>=$T$4,$N$2<$U$4),IF(P45>=$W$4,$W$1,$V$1),IF(AND($N$2>=$T$5,$N$2<$U$5),IF(P45>=$W$5,$W$1,$V$1),IF(AND($N$2>=$T$6,$N$2<$U$6),IF(P45>=$W$6,$W$1,$V$1),IF(AND($N$2>=$T$7,$N$2<$U$7),IF(P45>=$W$7,$W$1,$V$1),IF(AND($N$2>=$T$8,$N$2<$U$8),IF(P45>=$W$8,$W$1,$V$1),IF(AND($N$2>=$T$9,$N$2<$U$9),IF(P45>=$W$9,$W$1,$V$1),""))))))))),"") -> BB | M45: =IF(E45<>"",IF(AND(E45<>"GR",E45>=40,J45>=30),_xlfn.IFS(Q45>=$AG$2,$AD$19,Q45>=$AG$3,$AC$19,Q45>=$AG$4,$AB$19,Q45>=$AG$5,$AA$19,Q45>=$AG$6,$Z$19,Q45>=$AG$7,$Y$19,Q45>=$AG$8,$X$19,Q45>=$AG$9,$V$19),L45),"") -> BB | P45: 59 | Q45: 59 | R45: 0.94
A46: Öğrenci | B46: 45 | C46: 53 | D46: 65 | E46: GR | F46: 65 | G46: 53 | H46: 65 | I46: 60.2 | J46: 60.2 | K46: 3624.04 | L46: =IF(D46<>"",IF(AND(H46>=40,I46>=30),IF(AND($N$2>=$T$2,$N$2<=$U$2),_xlfn.IFS(P46>=$AD$2,$AD$1,P46>=$AC$2,$AC$1,P46>=$AB$2,$AB$1,P46>=$AA$2,$AA$1,P46>=$Z$2,$Z$1,P46>=$Y$2,$Y$1,P46>=$X$2,$X$1,P46>=$W$2,$W$1,P46<$W$2,$V$1),(IF(AND($N$2>=$T$3,$N$2<$U$3),_xlfn.IFS(P46>=$AD$3,$AD$1,P46>=$AC$3,$AC$1,P46>=$AB$3,$AB$1,P46>=$AA$3,$AA$1,P46>=$Z$3,$Z$1,P46>=$Y$3,$Y$1,P46>=$X$3,$X$1,P46>=$W$3,$W$1,P46<$W$2,$V$1),(IF(AND($N$2>=$T$4,$N$2<$U$4),_xlfn.IFS(P46>=$AD$4,$AD$1,P46>=$AC$4,$AC$1,P46>=$AB$4,$AB$1,P46>=$AA$4,$AA$1,P46>=$Z$4,$Z$1,P46>=$Y$4,$Y$1,P46>=$X$4,$X$1,P46>=$W$4,$W$1,P46<$W$2,$V$1),(IF(AND($N$2>=$T$5,$N$2<$U$5),_xlfn.IFS(P46>=$AD$5,$AD$1,P46>=$AC$5,$AC$1,P46>=$AB$5,$AB$1,P46>=$AA$5,$AA$1,P46>=$Z$5,$Z$1,P46>=$Y$5,$Y$1,P46>=$X$5,$X$1,P46>=$W$5,$W$1,P46<$W$2,$V$1),(IF(AND($N$2>=$T$6,$N$2<$U$6),_xlfn.IFS(P46>=$AD$6,$AD$1,P46>=$AC$6,$AC$1,P46>=$AB$6,$AB$1,P46>=$AA$6,$AA$1,P46>=$Z$6,$Z$1,P46>=$Y$6,$Y$1,P46>=$X$6,$X$1,P46>=$W$6,$W$1,P46<$W$2,$V$1),(IF(AND($N$2>=$T$7,$N$2<$U$7),_xlfn.IFS(P46>=$AD$7,$AD$1,P46>=$AC$7,$AC$1,P46>=$AB$7,$AB$1,P46>=$AA$7,$AA$1,P46>=$Z$7,$Z$1,P46>=$Y$7,$Y$1,P46>=$X$7,$X$1,P46>=$W$7,$W$1,P46<$W$2,$V$1),(IF(AND($N$2>=$T$8,$N$2<$U$8),_xlfn.IFS(P46>=$AD$8,$AD$1,P46>=$AC$8,$AC$1,P46>=$AB$8,$AB$1,P46>=$AA$8,$AA$1,P46>=$Z$8,$Z$1,P46>=$Y$8,$Y$1,P46>=$X$8,$X$1,P46>=$W$8,$W$1,P46<$W$2,$V$1),(IF(AND($N$2>=$T$9,$N$2<$U$9),_xlfn.IFS(P46>=$AD$9,$AD$1,P46>=$AC$9,$AC$1,P46>=$AB$9,$AB$1,P46>=$AA$9,$AA$1,P46>=$Z$9,$Z$1,P46>=$Y$9,$Y$1,P46>=$X$9,$X$1,P46>=$W$9,$W$1),$W$1))))))))))))))),IF(AND($N$2>=$T$2,$N$2<=$U$2),IF(P46>=$W$2,$W$1,$V$1),IF(AND($N$2>=$T$3,$N$2<$U$3),IF(P46>=$W$3,$W$1,$V$1),IF(AND($N$2>=$T$4,$N$2<$U$4),IF(P46>=$W$4,$W$1,$V$1),IF(AND($N$2>=$T$5,$N$2<$U$5),IF(P46>=$W$5,$W$1,$V$1),IF(AND($N$2>=$T$6,$N$2<$U$6),IF(P46>=$W$6,$W$1,$V$1),IF(AND($N$2>=$T$7,$N$2<$U$7),IF(P46>=$W$7,$W$1,$V$1),IF(AND($N$2>=$T$8,$N$2<$U$8),IF(P46>=$W$8,$W$1,$V$1),IF(AND($N$2>=$T$9,$N$2<$U$9),IF(P46>=$W$9,$W$1,$V$1),""))))))))),"") -> BB | M46: =IF(E46<>"",IF(AND(E46<>"GR",E46>=40,J46>=30),_xlfn.IFS(Q46>=$AG$2,$AD$19,Q46>=$AG$3,$AC$19,Q46>=$AG$4,$AB$19,Q46>=$AG$5,$AA$19,Q46>=$AG$6,$Z$19,Q46>=$AG$7,$Y$19,Q46>=$AG$8,$X$19,Q46>=$AG$9,$V$19),L46),"") -> BB | P46: 59 | Q46: 59 | R46: 0.92
A47: Öğrenci | B47: 46 | C47: 47 | D47: 69 | E47: GR | F47: 69 | G47: 47 | H47: 69 | I47: 60.2 | J47: 60.2 | K47: 3624.04 | L47: =IF(D47<>"",IF(AND(H47>=40,I47>=30),IF(AND($N$2>=$T$2,$N$2<=$U$2),_xlfn.IFS(P47>=$AD$2,$AD$1,P47>=$AC$2,$AC$1,P47>=$AB$2,$AB$1,P47>=$AA$2,$AA$1,P47>=$Z$2,$Z$1,P47>=$Y$2,$Y$1,P47>=$X$2,$X$1,P47>=$W$2,$W$1,P47<$W$2,$V$1),(IF(AND($N$2>=$T$3,$N$2<$U$3),_xlfn.IFS(P47>=$AD$3,$AD$1,P47>=$AC$3,$AC$1,P47>=$AB$3,$AB$1,P47>=$AA$3,$AA$1,P47>=$Z$3,$Z$1,P47>=$Y$3,$Y$1,P47>=$X$3,$X$1,P47>=$W$3,$W$1,P47<$W$2,$V$1),(IF(AND($N$2>=$T$4,$N$2<$U$4),_xlfn.IFS(P47>=$AD$4,$AD$1,P47>=$AC$4,$AC$1,P47>=$AB$4,$AB$1,P47>=$AA$4,$AA$1,P47>=$Z$4,$Z$1,P47>=$Y$4,$Y$1,P47>=$X$4,$X$1,P47>=$W$4,$W$1,P47<$W$2,$V$1),(IF(AND($N$2>=$T$5,$N$2<$U$5),_xlfn.IFS(P47>=$AD$5,$AD$1,P47>=$AC$5,$AC$1,P47>=$AB$5,$AB$1,P47>=$AA$5,$AA$1,P47>=$Z$5,$Z$1,P47>=$Y$5,$Y$1,P47>=$X$5,$X$1,P47>=$W$5,$W$1,P47<$W$2,$V$1),(IF(AND($N$2>=$T$6,$N$2<$U$6),_xlfn.IFS(P47>=$AD$6,$AD$1,P47>=$AC$6,$AC$1,P47>=$AB$6,$AB$1,P47>=$AA$6,$AA$1,P47>=$Z$6,$Z$1,P47>=$Y$6,$Y$1,P47>=$X$6,$X$1,P47>=$W$6,$W$1,P47<$W$2,$V$1),(IF(AND($N$2>=$T$7,$N$2<$U$7),_xlfn.IFS(P47>=$AD$7,$AD$1,P47>=$AC$7,$AC$1,P47>=$AB$7,$AB$1,P47>=$AA$7,$AA$1,P47>=$Z$7,$Z$1,P47>=$Y$7,$Y$1,P47>=$X$7,$X$1,P47>=$W$7,$W$1,P47<$W$2,$V$1),(IF(AND($N$2>=$T$8,$N$2<$U$8),_xlfn.IFS(P47>=$AD$8,$AD$1,P47>=$AC$8,$AC$1,P47>=$AB$8,$AB$1,P47>=$AA$8,$AA$1,P47>=$Z$8,$Z$1,P47>=$Y$8,$Y$1,P47>=$X$8,$X$1,P47>=$W$8,$W$1,P47<$W$2,$V$1),(IF(AND($N$2>=$T$9,$N$2<$U$9),_xlfn.IFS(P47>=$AD$9,$AD$1,P47>=$AC$9,$AC$1,P47>=$AB$9,$AB$1,P47>=$AA$9,$AA$1,P47>=$Z$9,$Z$1,P47>=$Y$9,$Y$1,P47>=$X$9,$X$1,P47>=$W$9,$W$1),$W$1))))))))))))))),IF(AND($N$2>=$T$2,$N$2<=$U$2),IF(P47>=$W$2,$W$1,$V$1),IF(AND($N$2>=$T$3,$N$2<$U$3),IF(P47>=$W$3,$W$1,$V$1),IF(AND($N$2>=$T$4,$N$2<$U$4),IF(P47>=$W$4,$W$1,$V$1),IF(AND($N$2>=$T$5,$N$2<$U$5),IF(P47>=$W$5,$W$1,$V$1),IF(AND($N$2>=$T$6,$N$2<$U$6),IF(P47>=$W$6,$W$1,$V$1),IF(AND($N$2>=$T$7,$N$2<$U$7),IF(P47>=$W$7,$W$1,$V$1),IF(AND($N$2>=$T$8,$N$2<$U$8),IF(P47>=$W$8,$W$1,$V$1),IF(AND($N$2>=$T$9,$N$2<$U$9),IF(P47>=$W$9,$W$1,$V$1),""))))))))),"") -> BB | M47: =IF(E47<>"",IF(AND(E47<>"GR",E47>=40,J47>=30),_xlfn.IFS(Q47>=$AG$2,$AD$19,Q47>=$AG$3,$AC$19,Q47>=$AG$4,$AB$19,Q47>=$AG$5,$AA$19,Q47>=$AG$6,$Z$19,Q47>=$AG$7,$Y$19,Q47>=$AG$8,$X$19,Q47>=$AG$9,$V$19),L47),"") -> BB | P47: 59 | Q47: 59 | R47: 0.92
A48: Öğrenci | B48: 47 | C48: 48 | D48: 68 | E48: GR | F48: 68 | G48: 48 | H48: 68 | I48: 60 | J48: 60 | K48: 3600 | L48: =IF(D48<>"",IF(AND(H48>=40,I48>=30),IF(AND($N$2>=$T$2,$N$2<=$U$2),_xlfn.IFS(P48>=$AD$2,$AD$1,P48>=$AC$2,$AC$1,P48>=$AB$2,$AB$1,P48>=$AA$2,$AA$1,P48>=$Z$2,$Z$1,P48>=$Y$2,$Y$1,P48>=$X$2,$X$1,P48>=$W$2,$W$1,P48<$W$2,$V$1),(IF(AND($N$2>=$T$3,$N$2<$U$3),_xlfn.IFS(P48>=$AD$3,$AD$1,P48>=$AC$3,$AC$1,P48>=$AB$3,$AB$1,P48>=$AA$3,$AA$1,P48>=$Z$3,$Z$1,P48>=$Y$3,$Y$1,P48>=$X$3,$X$1,P48>=$W$3,$W$1,P48<$W$2,$V$1),(IF(AND($N$2>=$T$4,$N$2<$U$4),_xlfn.IFS(P48>=$AD$4,$AD$1,P48>=$AC$4,$AC$1,P48>=$AB$4,$AB$1,P48>=$AA$4,$AA$1,P48>=$Z$4,$Z$1,P48>=$Y$4,$Y$1,P48>=$X$4,$X$1,P48>=$W$4,$W$1,P48<$W$2,$V$1),(IF(AND($N$2>=$T$5,$N$2<$U$5),_xlfn.IFS(P48>=$AD$5,$AD$1,P48>=$AC$5,$AC$1,P48>=$AB$5,$AB$1,P48>=$AA$5,$AA$1,P48>=$Z$5,$Z$1,P48>=$Y$5,$Y$1,P48>=$X$5,$X$1,P48>=$W$5,$W$1,P48<$W$2,$V$1),(IF(AND($N$2>=$T$6,$N$2<$U$6),_xlfn.IFS(P48>=$AD$6,$AD$1,P48>=$AC$6,$AC$1,P48>=$AB$6,$AB$1,P48>=$AA$6,$AA$1,P48>=$Z$6,$Z$1,P48>=$Y$6,$Y$1,P48>=$X$6,$X$1,P48>=$W$6,$W$1,P48<$W$2,$V$1),(IF(AND($N$2>=$T$7,$N$2<$U$7),_xlfn.IFS(P48>=$AD$7,$AD$1,P48>=$AC$7,$AC$1,P48>=$AB$7,$AB$1,P48>=$AA$7,$AA$1,P48>=$Z$7,$Z$1,P48>=$Y$7,$Y$1,P48>=$X$7,$X$1,P48>=$W$7,$W$1,P48<$W$2,$V$1),(IF(AND($N$2>=$T$8,$N$2<$U$8),_xlfn.IFS(P48>=$AD$8,$AD$1,P48>=$AC$8,$AC$1,P48>=$AB$8,$AB$1,P48>=$AA$8,$AA$1,P48>=$Z$8,$Z$1,P48>=$Y$8,$Y$1,P48>=$X$8,$X$1,P48>=$W$8,$W$1,P48<$W$2,$V$1),(IF(AND($N$2>=$T$9,$N$2<$U$9),_xlfn.IFS(P48>=$AD$9,$AD$1,P48>=$AC$9,$AC$1,P48>=$AB$9,$AB$1,P48>=$AA$9,$AA$1,P48>=$Z$9,$Z$1,P48>=$Y$9,$Y$1,P48>=$X$9,$X$1,P48>=$W$9,$W$1),$W$1))))))))))))))),IF(AND($N$2>=$T$2,$N$2<=$U$2),IF(P48>=$W$2,$W$1,$V$1),IF(AND($N$2>=$T$3,$N$2<$U$3),IF(P48>=$W$3,$W$1,$V$1),IF(AND($N$2>=$T$4,$N$2<$U$4),IF(P48>=$W$4,$W$1,$V$1),IF(AND($N$2>=$T$5,$N$2<$U$5),IF(P48>=$W$5,$W$1,$V$1),IF(AND($N$2>=$T$6,$N$2<$U$6),IF(P48>=$W$6,$W$1,$V$1),IF(AND($N$2>=$T$7,$N$2<$U$7),IF(P48>=$W$7,$W$1,$V$1),IF(AND($N$2>=$T$8,$N$2<$U$8),IF(P48>=$W$8,$W$1,$V$1),IF(AND($N$2>=$T$9,$N$2<$U$9),IF(P48>=$W$9,$W$1,$V$1),""))))))))),"") -> BB | M48: =IF(E48<>"",IF(AND(E48<>"GR",E48>=40,J48>=30),_xlfn.IFS(Q48>=$AG$2,$AD$19,Q48>=$AG$3,$AC$19,Q48>=$AG$4,$AB$19,Q48>=$AG$5,$AA$19,Q48>=$AG$6,$Z$19,Q48>=$AG$7,$Y$19,Q48>=$AG$8,$X$19,Q48>=$AG$9,$V$19),L48),"") -> BB | P48: 59 | Q48: 59 | R48: 0.91
A49: Öğrenci | B49: 48 | C49: 40 | D49: 72 | E49: GR | F49: 72 | G49: 40 | H49: 72 | I49: 59.2 | J49: 59.2 | K49: 3504.64 | L49: =IF(D49<>"",IF(AND(H49>=40,I49>=30),IF(AND($N$2>=$T$2,$N$2<=$U$2),_xlfn.IFS(P49>=$AD$2,$AD$1,P49>=$AC$2,$AC$1,P49>=$AB$2,$AB$1,P49>=$AA$2,$AA$1,P49>=$Z$2,$Z$1,P49>=$Y$2,$Y$1,P49>=$X$2,$X$1,P49>=$W$2,$W$1,P49<$W$2,$V$1),(IF(AND($N$2>=$T$3,$N$2<$U$3),_xlfn.IFS(P49>=$AD$3,$AD$1,P49>=$AC$3,$AC$1,P49>=$AB$3,$AB$1,P49>=$AA$3,$AA$1,P49>=$Z$3,$Z$1,P49>=$Y$3,$Y$1,P49>=$X$3,$X$1,P49>=$W$3,$W$1,P49<$W$2,$V$1),(IF(AND($N$2>=$T$4,$N$2<$U$4),_xlfn.IFS(P49>=$AD$4,$AD$1,P49>=$AC$4,$AC$1,P49>=$AB$4,$AB$1,P49>=$AA$4,$AA$1,P49>=$Z$4,$Z$1,P49>=$Y$4,$Y$1,P49>=$X$4,$X$1,P49>=$W$4,$W$1,P49<$W$2,$V$1),(IF(AND($N$2>=$T$5,$N$2<$U$5),_xlfn.IFS(P49>=$AD$5,$AD$1,P49>=$AC$5,$AC$1,P49>=$AB$5,$AB$1,P49>=$AA$5,$AA$1,P49>=$Z$5,$Z$1,P49>=$Y$5,$Y$1,P49>=$X$5,$X$1,P49>=$W$5,$W$1,P49<$W$2,$V$1),(IF(AND($N$2>=$T$6,$N$2<$U$6),_xlfn.IFS(P49>=$AD$6,$AD$1,P49>=$AC$6,$AC$1,P49>=$AB$6,$AB$1,P49>=$AA$6,$AA$1,P49>=$Z$6,$Z$1,P49>=$Y$6,$Y$1,P49>=$X$6,$X$1,P49>=$W$6,$W$1,P49<$W$2,$V$1),(IF(AND($N$2>=$T$7,$N$2<$U$7),_xlfn.IFS(P49>=$AD$7,$AD$1,P49>=$AC$7,$AC$1,P49>=$AB$7,$AB$1,P49>=$AA$7,$AA$1,P49>=$Z$7,$Z$1,P49>=$Y$7,$Y$1,P49>=$X$7,$X$1,P49>=$W$7,$W$1,P49<$W$2,$V$1),(IF(AND($N$2>=$T$8,$N$2<$U$8),_xlfn.IFS(P49>=$AD$8,$AD$1,P49>=$AC$8,$AC$1,P49>=$AB$8,$AB$1,P49>=$AA$8,$AA$1,P49>=$Z$8,$Z$1,P49>=$Y$8,$Y$1,P49>=$X$8,$X$1,P49>=$W$8,$W$1,P49<$W$2,$V$1),(IF(AND($N$2>=$T$9,$N$2<$U$9),_xlfn.IFS(P49>=$AD$9,$AD$1,P49>=$AC$9,$AC$1,P49>=$AB$9,$AB$1,P49>=$AA$9,$AA$1,P49>=$Z$9,$Z$1,P49>=$Y$9,$Y$1,P49>=$X$9,$X$1,P49>=$W$9,$W$1),$W$1))))))))))))))),IF(AND($N$2>=$T$2,$N$2<=$U$2),IF(P49>=$W$2,$W$1,$V$1),IF(AND($N$2>=$T$3,$N$2<$U$3),IF(P49>=$W$3,$W$1,$V$1),IF(AND($N$2>=$T$4,$N$2<$U$4),IF(P49>=$W$4,$W$1,$V$1),IF(AND($N$2>=$T$5,$N$2<$U$5),IF(P49>=$W$5,$W$1,$V$1),IF(AND($N$2>=$T$6,$N$2<$U$6),IF(P49>=$W$6,$W$1,$V$1),IF(AND($N$2>=$T$7,$N$2<$U$7),IF(P49>=$W$7,$W$1,$V$1),IF(AND($N$2>=$T$8,$N$2<$U$8),IF(P49>=$W$8,$W$1,$V$1),IF(AND($N$2>=$T$9,$N$2<$U$9),IF(P49>=$W$9,$W$1,$V$1),""))))))))),"") -> BB | M49: =IF(E49<>"",IF(AND(E49<>"GR",E49>=40,J49>=30),_xlfn.IFS(Q49>=$AG$2,$AD$19,Q49>=$AG$3,$AC$19,Q49>=$AG$4,$AB$19,Q49>=$AG$5,$AA$19,Q49>=$AG$6,$Z$19,Q49>=$AG$7,$Y$19,Q49>=$AG$8,$X$19,Q49>=$AG$9,$V$19),L49),"") -> BB | P49: 59 | Q49: 59 | R49: 0.86
A50: Öğrenci | B50: 49 | C50: 45 | D50: 68 | E50: GR | F50: 68 | G50: 45 | H50: 68 | I50: 58.8 | J50: 58.8 | K50: 3457.44 | L50: =IF(D50<>"",IF(AND(H50>=40,I50>=30),IF(AND($N$2>=$T$2,$N$2<=$U$2),_xlfn.IFS(P50>=$AD$2,$AD$1,P50>=$AC$2,$AC$1,P50>=$AB$2,$AB$1,P50>=$AA$2,$AA$1,P50>=$Z$2,$Z$1,P50>=$Y$2,$Y$1,P50>=$X$2,$X$1,P50>=$W$2,$W$1,P50<$W$2,$V$1),(IF(AND($N$2>=$T$3,$N$2<$U$3),_xlfn.IFS(P50>=$AD$3,$AD$1,P50>=$AC$3,$AC$1,P50>=$AB$3,$AB$1,P50>=$AA$3,$AA$1,P50>=$Z$3,$Z$1,P50>=$Y$3,$Y$1,P50>=$X$3,$X$1,P50>=$W$3,$W$1,P50<$W$2,$V$1),(IF(AND($N$2>=$T$4,$N$2<$U$4),_xlfn.IFS(P50>=$AD$4,$AD$1,P50>=$AC$4,$AC$1,P50>=$AB$4,$AB$1,P50>=$AA$4,$AA$1,P50>=$Z$4,$Z$1,P50>=$Y$4,$Y$1,P50>=$X$4,$X$1,P50>=$W$4,$W$1,P50<$W$2,$V$1),(IF(AND($N$2>=$T$5,$N$2<$U$5),_xlfn.IFS(P50>=$AD$5,$AD$1,P50>=$AC$5,$AC$1,P50>=$AB$5,$AB$1,P50>=$AA$5,$AA$1,P50>=$Z$5,$Z$1,P50>=$Y$5,$Y$1,P50>=$X$5,$X$1,P50>=$W$5,$W$1,P50<$W$2,$V$1),(IF(AND($N$2>=$T$6,$N$2<$U$6),_xlfn.IFS(P50>=$AD$6,$AD$1,P50>=$AC$6,$AC$1,P50>=$AB$6,$AB$1,P50>=$AA$6,$AA$1,P50>=$Z$6,$Z$1,P50>=$Y$6,$Y$1,P50>=$X$6,$X$1,P50>=$W$6,$W$1,P50<$W$2,$V$1),(IF(AND($N$2>=$T$7,$N$2<$U$7),_xlfn.IFS(P50>=$AD$7,$AD$1,P50>=$AC$7,$AC$1,P50>=$AB$7,$AB$1,P50>=$AA$7,$AA$1,P50>=$Z$7,$Z$1,P50>=$Y$7,$Y$1,P50>=$X$7,$X$1,P50>=$W$7,$W$1,P50<$W$2,$V$1),(IF(AND($N$2>=$T$8,$N$2<$U$8),_xlfn.IFS(P50>=$AD$8,$AD$1,P50>=$AC$8,$AC$1,P50>=$AB$8,$AB$1,P50>=$AA$8,$AA$1,P50>=$Z$8,$Z$1,P50>=$Y$8,$Y$1,P50>=$X$8,$X$1,P50>=$W$8,$W$1,P50<$W$2,$V$1),(IF(AND($N$2>=$T$9,$N$2<$U$9),_xlfn.IFS(P50>=$AD$9,$AD$1,P50>=$AC$9,$AC$1,P50>=$AB$9,$AB$1,P50>=$AA$9,$AA$1,P50>=$Z$9,$Z$1,P50>=$Y$9,$Y$1,P50>=$X$9,$X$1,P50>=$W$9,$W$1),$W$1))))))))))))))),IF(AND($N$2>=$T$2,$N$2<=$U$2),IF(P50>=$W$2,$W$1,$V$1),IF(AND($N$2>=$T$3,$N$2<$U$3),IF(P50>=$W$3,$W$1,$V$1),IF(AND($N$2>=$T$4,$N$2<$U$4),IF(P50>=$W$4,$W$1,$V$1),IF(AND($N$2>=$T$5,$N$2<$U$5),IF(P50>=$W$5,$W$1,$V$1),IF(AND($N$2>=$T$6,$N$2<$U$6),IF(P50>=$W$6,$W$1,$V$1),IF(AND($N$2>=$T$7,$N$2<$U$7),IF(P50>=$W$7,$W$1,$V$1),IF(AND($N$2>=$T$8,$N$2<$U$8),IF(P50>=$W$8,$W$1,$V$1),IF(AND($N$2>=$T$9,$N$2<$U$9),IF(P50>=$W$9,$W$1,$V$1),""))))))))),"") -> CB | M50: =IF(E50<>"",IF(AND(E50<>"GR",E50>=40,J50>=30),_xlfn.IFS(Q50>=$AG$2,$AD$19,Q50>=$AG$3,$AC$19,Q50>=$AG$4,$AB$19,Q50>=$AG$5,$AA$19,Q50>=$AG$6,$Z$19,Q50>=$AG$7,$Y$19,Q50>=$AG$8,$X$19,Q50>=$AG$9,$V$19),L50),"") -> CB | P50: 58 | Q50: 58 | R50: 0.83
A51: Öğrenci | B51: 50 | C51: 33 | D51: 75 | E51: GR | F51: 75 | G51: 33 | H51: 75 | I51: 58.2 | J51: 58.2 | K51: 3387.24 | L51: =IF(D51<>"",IF(AND(H51>=40,I51>=30),IF(AND($N$2>=$T$2,$N$2<=$U$2),_xlfn.IFS(P51>=$AD$2,$AD$1,P51>=$AC$2,$AC$1,P51>=$AB$2,$AB$1,P51>=$AA$2,$AA$1,P51>=$Z$2,$Z$1,P51>=$Y$2,$Y$1,P51>=$X$2,$X$1,P51>=$W$2,$W$1,P51<$W$2,$V$1),(IF(AND($N$2>=$T$3,$N$2<$U$3),_xlfn.IFS(P51>=$AD$3,$AD$1,P51>=$AC$3,$AC$1,P51>=$AB$3,$AB$1,P51>=$AA$3,$AA$1,P51>=$Z$3,$Z$1,P51>=$Y$3,$Y$1,P51>=$X$3,$X$1,P51>=$W$3,$W$1,P51<$W$2,$V$1),(IF(AND($N$2>=$T$4,$N$2<$U$4),_xlfn.IFS(P51>=$AD$4,$AD$1,P51>=$AC$4,$AC$1,P51>=$AB$4,$AB$1,P51>=$AA$4,$AA$1,P51>=$Z$4,$Z$1,P51>=$Y$4,$Y$1,P51>=$X$4,$X$1,P51>=$W$4,$W$1,P51<$W$2,$V$1),(IF(AND($N$2>=$T$5,$N$2<$U$5),_xlfn.IFS(P51>=$AD$5,$AD$1,P51>=$AC$5,$AC$1,P51>=$AB$5,$AB$1,P51>=$AA$5,$AA$1,P51>=$Z$5,$Z$1,P51>=$Y$5,$Y$1,P51>=$X$5,$X$1,P51>=$W$5,$W$1,P51<$W$2,$V$1),(IF(AND($N$2>=$T$6,$N$2<$U$6),_xlfn.IFS(P51>=$AD$6,$AD$1,P51>=$AC$6,$AC$1,P51>=$AB$6,$AB$1,P51>=$AA$6,$AA$1,P51>=$Z$6,$Z$1,P51>=$Y$6,$Y$1,P51>=$X$6,$X$1,P51>=$W$6,$W$1,P51<$W$2,$V$1),(IF(AND($N$2>=$T$7,$N$2<$U$7),_xlfn.IFS(P51>=$AD$7,$AD$1,P51>=$AC$7,$AC$1,P51>=$AB$7,$AB$1,P51>=$AA$7,$AA$1,P51>=$Z$7,$Z$1,P51>=$Y$7,$Y$1,P51>=$X$7,$X$1,P51>=$W$7,$W$1,P51<$W$2,$V$1),(IF(AND($N$2>=$T$8,$N$2<$U$8),_xlfn.IFS(P51>=$AD$8,$AD$1,P51>=$AC$8,$AC$1,P51>=$AB$8,$AB$1,P51>=$AA$8,$AA$1,P51>=$Z$8,$Z$1,P51>=$Y$8,$Y$1,P51>=$X$8,$X$1,P51>=$W$8,$W$1,P51<$W$2,$V$1),(IF(AND($N$2>=$T$9,$N$2<$U$9),_xlfn.IFS(P51>=$AD$9,$AD$1,P51>=$AC$9,$AC$1,P51>=$AB$9,$AB$1,P51>=$AA$9,$AA$1,P51>=$Z$9,$Z$1,P51>=$Y$9,$Y$1,P51>=$X$9,$X$1,P51>=$W$9,$W$1),$W$1))))))))))))))),IF(AND($N$2>=$T$2,$N$2<=$U$2),IF(P51>=$W$2,$W$1,$V$1),IF(AND($N$2>=$T$3,$N$2<$U$3),IF(P51>=$W$3,$W$1,$V$1),IF(AND($N$2>=$T$4,$N$2<$U$4),IF(P51>=$W$4,$W$1,$V$1),IF(AND($N$2>=$T$5,$N$2<$U$5),IF(P51>=$W$5,$W$1,$V$1),IF(AND($N$2>=$T$6,$N$2<$U$6),IF(P51>=$W$6,$W$1,$V$1),IF(AND($N$2>=$T$7,$N$2<$U$7),IF(P51>=$W$7,$W$1,$V$1),IF(AND($N$2>=$T$8,$N$2<$U$8),IF(P51>=$W$8,$W$1,$V$1),IF(AND($N$2>=$T$9,$N$2<$U$9),IF(P51>=$W$9,$W$1,$V$1),""))))))))),"") -> CB | M51: =IF(E51<>"",IF(AND(E51<>"GR",E51>=40,J51>=30),_xlfn.IFS(Q51>=$AG$2,$AD$19,Q51>=$AG$3,$AC$19,Q51>=$AG$4,$AB$19,Q51>=$AG$5,$AA$19,Q51>=$AG$6,$Z$19,Q51>=$AG$7,$Y$19,Q51>=$AG$8,$X$19,Q51>=$AG$9,$V$19),L51),"") -> CB | P51: 58 | Q51: 58 | R51: 0.79
A52: Öğrenci | B52: 51 | C52: 39 | D52: 71 | E52: GR | F52: 71 | G52: 39 | H52: 71 | I52: 58.2 | J52: 58.2 | K52: 3387.24 | L52: =IF(D52<>"",IF(AND(H52>=40,I52>=30),IF(AND($N$2>=$T$2,$N$2<=$U$2),_xlfn.IFS(P52>=$AD$2,$AD$1,P52>=$AC$2,$AC$1,P52>=$AB$2,$AB$1,P52>=$AA$2,$AA$1,P52>=$Z$2,$Z$1,P52>=$Y$2,$Y$1,P52>=$X$2,$X$1,P52>=$W$2,$W$1,P52<$W$2,$V$1),(IF(AND($N$2>=$T$3,$N$2<$U$3),_xlfn.IFS(P52>=$AD$3,$AD$1,P52>=$AC$3,$AC$1,P52>=$AB$3,$AB$1,P52>=$AA$3,$AA$1,P52>=$Z$3,$Z$1,P52>=$Y$3,$Y$1,P52>=$X$3,$X$1,P52>=$W$3,$W$1,P52<$W$2,$V$1),(IF(AND($N$2>=$T$4,$N$2<$U$4),_xlfn.IFS(P52>=$AD$4,$AD$1,P52>=$AC$4,$AC$1,P52>=$AB$4,$AB$1,P52>=$AA$4,$AA$1,P52>=$Z$4,$Z$1,P52>=$Y$4,$Y$1,P52>=$X$4,$X$1,P52>=$W$4,$W$1,P52<$W$2,$V$1),(IF(AND($N$2>=$T$5,$N$2<$U$5),_xlfn.IFS(P52>=$AD$5,$AD$1,P52>=$AC$5,$AC$1,P52>=$AB$5,$AB$1,P52>=$AA$5,$AA$1,P52>=$Z$5,$Z$1,P52>=$Y$5,$Y$1,P52>=$X$5,$X$1,P52>=$W$5,$W$1,P52<$W$2,$V$1),(IF(AND($N$2>=$T$6,$N$2<$U$6),_xlfn.IFS(P52>=$AD$6,$AD$1,P52>=$AC$6,$AC$1,P52>=$AB$6,$AB$1,P52>=$AA$6,$AA$1,P52>=$Z$6,$Z$1,P52>=$Y$6,$Y$1,P52>=$X$6,$X$1,P52>=$W$6,$W$1,P52<$W$2,$V$1),(IF(AND($N$2>=$T$7,$N$2<$U$7),_xlfn.IFS(P52>=$AD$7,$AD$1,P52>=$AC$7,$AC$1,P52>=$AB$7,$AB$1,P52>=$AA$7,$AA$1,P52>=$Z$7,$Z$1,P52>=$Y$7,$Y$1,P52>=$X$7,$X$1,P52>=$W$7,$W$1,P52<$W$2,$V$1),(IF(AND($N$2>=$T$8,$N$2<$U$8),_xlfn.IFS(P52>=$AD$8,$AD$1,P52>=$AC$8,$AC$1,P52>=$AB$8,$AB$1,P52>=$AA$8,$AA$1,P52>=$Z$8,$Z$1,P52>=$Y$8,$Y$1,P52>=$X$8,$X$1,P52>=$W$8,$W$1,P52<$W$2,$V$1),(IF(AND($N$2>=$T$9,$N$2<$U$9),_xlfn.IFS(P52>=$AD$9,$AD$1,P52>=$AC$9,$AC$1,P52>=$AB$9,$AB$1,P52>=$AA$9,$AA$1,P52>=$Z$9,$Z$1,P52>=$Y$9,$Y$1,P52>=$X$9,$X$1,P52>=$W$9,$W$1),$W$1))))))))))))))),IF(AND($N$2>=$T$2,$N$2<=$U$2),IF(P52>=$W$2,$W$1,$V$1),IF(AND($N$2>=$T$3,$N$2<$U$3),IF(P52>=$W$3,$W$1,$V$1),IF(AND($N$2>=$T$4,$N$2<$U$4),IF(P52>=$W$4,$W$1,$V$1),IF(AND($N$2>=$T$5,$N$2<$U$5),IF(P52>=$W$5,$W$1,$V$1),IF(AND($N$2>=$T$6,$N$2<$U$6),IF(P52>=$W$6,$W$1,$V$1),IF(AND($N$2>=$T$7,$N$2<$U$7),IF(P52>=$W$7,$W$1,$V$1),IF(AND($N$2>=$T$8,$N$2<$U$8),IF(P52>=$W$8,$W$1,$V$1),IF(AND($N$2>=$T$9,$N$2<$U$9),IF(P52>=$W$9,$W$1,$V$1),""))))))))),"") -> CB | M52: =IF(E52<>"",IF(AND(E52<>"GR",E52>=40,J52>=30),_xlfn.IFS(Q52>=$AG$2,$AD$19,Q52>=$AG$3,$AC$19,Q52>=$AG$4,$AB$19,Q52>=$AG$5,$AA$19,Q52>=$AG$6,$Z$19,Q52>=$AG$7,$Y$19,Q52>=$AG$8,$X$19,Q52>=$AG$9,$V$19),L52),"") -> CB | P52: 58 | Q52: 58 | R52: 0.79
A53: Öğrenci | B53: 52 | C53: 26 | D53: 79 | E53: GR | F53: 79 | G53: 26 | H53: 79 | I53: 57.8 | J53: 57.8 | K53: 3340.84 | L53: =IF(D53<>"",IF(AND(H53>=40,I53>=30),IF(AND($N$2>=$T$2,$N$2<=$U$2),_xlfn.IFS(P53>=$AD$2,$AD$1,P53>=$AC$2,$AC$1,P53>=$AB$2,$AB$1,P53>=$AA$2,$AA$1,P53>=$Z$2,$Z$1,P53>=$Y$2,$Y$1,P53>=$X$2,$X$1,P53>=$W$2,$W$1,P53<$W$2,$V$1),(IF(AND($N$2>=$T$3,$N$2<$U$3),_xlfn.IFS(P53>=$AD$3,$AD$1,P53>=$AC$3,$AC$1,P53>=$AB$3,$AB$1,P53>=$AA$3,$AA$1,P53>=$Z$3,$Z$1,P53>=$Y$3,$Y$1,P53>=$X$3,$X$1,P53>=$W$3,$W$1,P53<$W$2,$V$1),(IF(AND($N$2>=$T$4,$N$2<$U$4),_xlfn.IFS(P53>=$AD$4,$AD$1,P53>=$AC$4,$AC$1,P53>=$AB$4,$AB$1,P53>=$AA$4,$AA$1,P53>=$Z$4,$Z$1,P53>=$Y$4,$Y$1,P53>=$X$4,$X$1,P53>=$W$4,$W$1,P53<$W$2,$V$1),(IF(AND($N$2>=$T$5,$N$2<$U$5),_xlfn.IFS(P53>=$AD$5,$AD$1,P53>=$AC$5,$AC$1,P53>=$AB$5,$AB$1,P53>=$AA$5,$AA$1,P53>=$Z$5,$Z$1,P53>=$Y$5,$Y$1,P53>=$X$5,$X$1,P53>=$W$5,$W$1,P53<$W$2,$V$1),(IF(AND($N$2>=$T$6,$N$2<$U$6),_xlfn.IFS(P53>=$AD$6,$AD$1,P53>=$AC$6,$AC$1,P53>=$AB$6,$AB$1,P53>=$AA$6,$AA$1,P53>=$Z$6,$Z$1,P53>=$Y$6,$Y$1,P53>=$X$6,$X$1,P53>=$W$6,$W$1,P53<$W$2,$V$1),(IF(AND($N$2>=$T$7,$N$2<$U$7),_xlfn.IFS(P53>=$AD$7,$AD$1,P53>=$AC$7,$AC$1,P53>=$AB$7,$AB$1,P53>=$AA$7,$AA$1,P53>=$Z$7,$Z$1,P53>=$Y$7,$Y$1,P53>=$X$7,$X$1,P53>=$W$7,$W$1,P53<$W$2,$V$1),(IF(AND($N$2>=$T$8,$N$2<$U$8),_xlfn.IFS(P53>=$AD$8,$AD$1,P53>=$AC$8,$AC$1,P53>=$AB$8,$AB$1,P53>=$AA$8,$AA$1,P53>=$Z$8,$Z$1,P53>=$Y$8,$Y$1,P53>=$X$8,$X$1,P53>=$W$8,$W$1,P53<$W$2,$V$1),(IF(AND($N$2>=$T$9,$N$2<$U$9),_xlfn.IFS(P53>=$AD$9,$AD$1,P53>=$AC$9,$AC$1,P53>=$AB$9,$AB$1,P53>=$AA$9,$AA$1,P53>=$Z$9,$Z$1,P53>=$Y$9,$Y$1,P53>=$X$9,$X$1,P53>=$W$9,$W$1),$W$1))))))))))))))),IF(AND($N$2>=$T$2,$N$2<=$U$2),IF(P53>=$W$2,$W$1,$V$1),IF(AND($N$2>=$T$3,$N$2<$U$3),IF(P53>=$W$3,$W$1,$V$1),IF(AND($N$2>=$T$4,$N$2<$U$4),IF(P53>=$W$4,$W$1,$V$1),IF(AND($N$2>=$T$5,$N$2<$U$5),IF(P53>=$W$5,$W$1,$V$1),IF(AND($N$2>=$T$6,$N$2<$U$6),IF(P53>=$W$6,$W$1,$V$1),IF(AND($N$2>=$T$7,$N$2<$U$7),IF(P53>=$W$7,$W$1,$V$1),IF(AND($N$2>=$T$8,$N$2<$U$8),IF(P53>=$W$8,$W$1,$V$1),IF(AND($N$2>=$T$9,$N$2<$U$9),IF(P53>=$W$9,$W$1,$V$1),""))))))))),"") -> CB | M53: =IF(E53<>"",IF(AND(E53<>"GR",E53>=40,J53>=30),_xlfn.IFS(Q53>=$AG$2,$AD$19,Q53>=$AG$3,$AC$19,Q53>=$AG$4,$AB$19,Q53>=$AG$5,$AA$19,Q53>=$AG$6,$Z$19,Q53>=$AG$7,$Y$19,Q53>=$AG$8,$X$19,Q53>=$AG$9,$V$19),L53),"") -> CB | P53: 58 | Q53: 58 | R53: 0.76
A54: Öğrenci | B54: 53 | C54: 42 | D54: 68 | E54: GR | F54: 68 | G54: 42 | H54: 68 | I54: 57.6 | J54: 57.6 | K54: 3317.76 | L54: =IF(D54<>"",IF(AND(H54>=40,I54>=30),IF(AND($N$2>=$T$2,$N$2<=$U$2),_xlfn.IFS(P54>=$AD$2,$AD$1,P54>=$AC$2,$AC$1,P54>=$AB$2,$AB$1,P54>=$AA$2,$AA$1,P54>=$Z$2,$Z$1,P54>=$Y$2,$Y$1,P54>=$X$2,$X$1,P54>=$W$2,$W$1,P54<$W$2,$V$1),(IF(AND($N$2>=$T$3,$N$2<$U$3),_xlfn.IFS(P54>=$AD$3,$AD$1,P54>=$AC$3,$AC$1,P54>=$AB$3,$AB$1,P54>=$AA$3,$AA$1,P54>=$Z$3,$Z$1,P54>=$Y$3,$Y$1,P54>=$X$3,$X$1,P54>=$W$3,$W$1,P54<$W$2,$V$1),(IF(AND($N$2>=$T$4,$N$2<$U$4),_xlfn.IFS(P54>=$AD$4,$AD$1,P54>=$AC$4,$AC$1,P54>=$AB$4,$AB$1,P54>=$AA$4,$AA$1,P54>=$Z$4,$Z$1,P54>=$Y$4,$Y$1,P54>=$X$4,$X$1,P54>=$W$4,$W$1,P54<$W$2,$V$1),(IF(AND($N$2>=$T$5,$N$2<$U$5),_xlfn.IFS(P54>=$AD$5,$AD$1,P54>=$AC$5,$AC$1,P54>=$AB$5,$AB$1,P54>=$AA$5,$AA$1,P54>=$Z$5,$Z$1,P54>=$Y$5,$Y$1,P54>=$X$5,$X$1,P54>=$W$5,$W$1,P54<$W$2,$V$1),(IF(AND($N$2>=$T$6,$N$2<$U$6),_xlfn.IFS(P54>=$AD$6,$AD$1,P54>=$AC$6,$AC$1,P54>=$AB$6,$AB$1,P54>=$AA$6,$AA$1,P54>=$Z$6,$Z$1,P54>=$Y$6,$Y$1,P54>=$X$6,$X$1,P54>=$W$6,$W$1,P54<$W$2,$V$1),(IF(AND($N$2>=$T$7,$N$2<$U$7),_xlfn.IFS(P54>=$AD$7,$AD$1,P54>=$AC$7,$AC$1,P54>=$AB$7,$AB$1,P54>=$AA$7,$AA$1,P54>=$Z$7,$Z$1,P54>=$Y$7,$Y$1,P54>=$X$7,$X$1,P54>=$W$7,$W$1,P54<$W$2,$V$1),(IF(AND($N$2>=$T$8,$N$2<$U$8),_xlfn.IFS(P54>=$AD$8,$AD$1,P54>=$AC$8,$AC$1,P54>=$AB$8,$AB$1,P54>=$AA$8,$AA$1,P54>=$Z$8,$Z$1,P54>=$Y$8,$Y$1,P54>=$X$8,$X$1,P54>=$W$8,$W$1,P54<$W$2,$V$1),(IF(AND($N$2>=$T$9,$N$2<$U$9),_xlfn.IFS(P54>=$AD$9,$AD$1,P54>=$AC$9,$AC$1,P54>=$AB$9,$AB$1,P54>=$AA$9,$AA$1,P54>=$Z$9,$Z$1,P54>=$Y$9,$Y$1,P54>=$X$9,$X$1,P54>=$W$9,$W$1),$W$1))))))))))))))),IF(AND($N$2>=$T$2,$N$2<=$U$2),IF(P54>=$W$2,$W$1,$V$1),IF(AND($N$2>=$T$3,$N$2<$U$3),IF(P54>=$W$3,$W$1,$V$1),IF(AND($N$2>=$T$4,$N$2<$U$4),IF(P54>=$W$4,$W$1,$V$1),IF(AND($N$2>=$T$5,$N$2<$U$5),IF(P54>=$W$5,$W$1,$V$1),IF(AND($N$2>=$T$6,$N$2<$U$6),IF(P54>=$W$6,$W$1,$V$1),IF(AND($N$2>=$T$7,$N$2<$U$7),IF(P54>=$W$7,$W$1,$V$1),IF(AND($N$2>=$T$8,$N$2<$U$8),IF(P54>=$W$8,$W$1,$V$1),IF(AND($N$2>=$T$9,$N$2<$U$9),IF(P54>=$W$9,$W$1,$V$1),""))))))))),"") -> CB | M54: =IF(E54<>"",IF(AND(E54<>"GR",E54>=40,J54>=30),_xlfn.IFS(Q54>=$AG$2,$AD$19,Q54>=$AG$3,$AC$19,Q54>=$AG$4,$AB$19,Q54>=$AG$5,$AA$19,Q54>=$AG$6,$Z$19,Q54>=$AG$7,$Y$19,Q54>=$AG$8,$X$19,Q54>=$AG$9,$V$19),L54),"") -> CB | P54: 57 | Q54: 57 | R54: 0.75
A55: Öğrenci | B55: 54 | C55: 38 | D55: 70 | E55: GR | F55: 70 | G55: 38 | H55: 70 | I55: 57.2 | J55: 57.2 | K55: 3271.84 | L55: =IF(D55<>"",IF(AND(H55>=40,I55>=30),IF(AND($N$2>=$T$2,$N$2<=$U$2),_xlfn.IFS(P55>=$AD$2,$AD$1,P55>=$AC$2,$AC$1,P55>=$AB$2,$AB$1,P55>=$AA$2,$AA$1,P55>=$Z$2,$Z$1,P55>=$Y$2,$Y$1,P55>=$X$2,$X$1,P55>=$W$2,$W$1,P55<$W$2,$V$1),(IF(AND($N$2>=$T$3,$N$2<$U$3),_xlfn.IFS(P55>=$AD$3,$AD$1,P55>=$AC$3,$AC$1,P55>=$AB$3,$AB$1,P55>=$AA$3,$AA$1,P55>=$Z$3,$Z$1,P55>=$Y$3,$Y$1,P55>=$X$3,$X$1,P55>=$W$3,$W$1,P55<$W$2,$V$1),(IF(AND($N$2>=$T$4,$N$2<$U$4),_xlfn.IFS(P55>=$AD$4,$AD$1,P55>=$AC$4,$AC$1,P55>=$AB$4,$AB$1,P55>=$AA$4,$AA$1,P55>=$Z$4,$Z$1,P55>=$Y$4,$Y$1,P55>=$X$4,$X$1,P55>=$W$4,$W$1,P55<$W$2,$V$1),(IF(AND($N$2>=$T$5,$N$2<$U$5),_xlfn.IFS(P55>=$AD$5,$AD$1,P55>=$AC$5,$AC$1,P55>=$AB$5,$AB$1,P55>=$AA$5,$AA$1,P55>=$Z$5,$Z$1,P55>=$Y$5,$Y$1,P55>=$X$5,$X$1,P55>=$W$5,$W$1,P55<$W$2,$V$1),(IF(AND($N$2>=$T$6,$N$2<$U$6),_xlfn.IFS(P55>=$AD$6,$AD$1,P55>=$AC$6,$AC$1,P55>=$AB$6,$AB$1,P55>=$AA$6,$AA$1,P55>=$Z$6,$Z$1,P55>=$Y$6,$Y$1,P55>=$X$6,$X$1,P55>=$W$6,$W$1,P55<$W$2,$V$1),(IF(AND($N$2>=$T$7,$N$2<$U$7),_xlfn.IFS(P55>=$AD$7,$AD$1,P55>=$AC$7,$AC$1,P55>=$AB$7,$AB$1,P55>=$AA$7,$AA$1,P55>=$Z$7,$Z$1,P55>=$Y$7,$Y$1,P55>=$X$7,$X$1,P55>=$W$7,$W$1,P55<$W$2,$V$1),(IF(AND($N$2>=$T$8,$N$2<$U$8),_xlfn.IFS(P55>=$AD$8,$AD$1,P55>=$AC$8,$AC$1,P55>=$AB$8,$AB$1,P55>=$AA$8,$AA$1,P55>=$Z$8,$Z$1,P55>=$Y$8,$Y$1,P55>=$X$8,$X$1,P55>=$W$8,$W$1,P55<$W$2,$V$1),(IF(AND($N$2>=$T$9,$N$2<$U$9),_xlfn.IFS(P55>=$AD$9,$AD$1,P55>=$AC$9,$AC$1,P55>=$AB$9,$AB$1,P55>=$AA$9,$AA$1,P55>=$Z$9,$Z$1,P55>=$Y$9,$Y$1,P55>=$X$9,$X$1,P55>=$W$9,$W$1),$W$1))))))))))))))),IF(AND($N$2>=$T$2,$N$2<=$U$2),IF(P55>=$W$2,$W$1,$V$1),IF(AND($N$2>=$T$3,$N$2<$U$3),IF(P55>=$W$3,$W$1,$V$1),IF(AND($N$2>=$T$4,$N$2<$U$4),IF(P55>=$W$4,$W$1,$V$1),IF(AND($N$2>=$T$5,$N$2<$U$5),IF(P55>=$W$5,$W$1,$V$1),IF(AND($N$2>=$T$6,$N$2<$U$6),IF(P55>=$W$6,$W$1,$V$1),IF(AND($N$2>=$T$7,$N$2<$U$7),IF(P55>=$W$7,$W$1,$V$1),IF(AND($N$2>=$T$8,$N$2<$U$8),IF(P55>=$W$8,$W$1,$V$1),IF(AND($N$2>=$T$9,$N$2<$U$9),IF(P55>=$W$9,$W$1,$V$1),""))))))))),"") -> CB | M55: =IF(E55<>"",IF(AND(E55<>"GR",E55>=40,J55>=30),_xlfn.IFS(Q55>=$AG$2,$AD$19,Q55>=$AG$3,$AC$19,Q55>=$AG$4,$AB$19,Q55>=$AG$5,$AA$19,Q55>=$AG$6,$Z$19,Q55>=$AG$7,$Y$19,Q55>=$AG$8,$X$19,Q55>=$AG$9,$V$19),L55),"") -> CB | P55: 57 | Q55: 57 | R55: 0.72
A56: Öğrenci | B56: 55 | C56: 45 | D56: 65 | E56: GR | F56: 65 | G56: 45 | H56: 65 | I56: 57 | J56: 57 | K56: 3249 | L56: =IF(D56<>"",IF(AND(H56>=40,I56>=30),IF(AND($N$2>=$T$2,$N$2<=$U$2),_xlfn.IFS(P56>=$AD$2,$AD$1,P56>=$AC$2,$AC$1,P56>=$AB$2,$AB$1,P56>=$AA$2,$AA$1,P56>=$Z$2,$Z$1,P56>=$Y$2,$Y$1,P56>=$X$2,$X$1,P56>=$W$2,$W$1,P56<$W$2,$V$1),(IF(AND($N$2>=$T$3,$N$2<$U$3),_xlfn.IFS(P56>=$AD$3,$AD$1,P56>=$AC$3,$AC$1,P56>=$AB$3,$AB$1,P56>=$AA$3,$AA$1,P56>=$Z$3,$Z$1,P56>=$Y$3,$Y$1,P56>=$X$3,$X$1,P56>=$W$3,$W$1,P56<$W$2,$V$1),(IF(AND($N$2>=$T$4,$N$2<$U$4),_xlfn.IFS(P56>=$AD$4,$AD$1,P56>=$AC$4,$AC$1,P56>=$AB$4,$AB$1,P56>=$AA$4,$AA$1,P56>=$Z$4,$Z$1,P56>=$Y$4,$Y$1,P56>=$X$4,$X$1,P56>=$W$4,$W$1,P56<$W$2,$V$1),(IF(AND($N$2>=$T$5,$N$2<$U$5),_xlfn.IFS(P56>=$AD$5,$AD$1,P56>=$AC$5,$AC$1,P56>=$AB$5,$AB$1,P56>=$AA$5,$AA$1,P56>=$Z$5,$Z$1,P56>=$Y$5,$Y$1,P56>=$X$5,$X$1,P56>=$W$5,$W$1,P56<$W$2,$V$1),(IF(AND($N$2>=$T$6,$N$2<$U$6),_xlfn.IFS(P56>=$AD$6,$AD$1,P56>=$AC$6,$AC$1,P56>=$AB$6,$AB$1,P56>=$AA$6,$AA$1,P56>=$Z$6,$Z$1,P56>=$Y$6,$Y$1,P56>=$X$6,$X$1,P56>=$W$6,$W$1,P56<$W$2,$V$1),(IF(AND($N$2>=$T$7,$N$2<$U$7),_xlfn.IFS(P56>=$AD$7,$AD$1,P56>=$AC$7,$AC$1,P56>=$AB$7,$AB$1,P56>=$AA$7,$AA$1,P56>=$Z$7,$Z$1,P56>=$Y$7,$Y$1,P56>=$X$7,$X$1,P56>=$W$7,$W$1,P56<$W$2,$V$1),(IF(AND($N$2>=$T$8,$N$2<$U$8),_xlfn.IFS(P56>=$AD$8,$AD$1,P56>=$AC$8,$AC$1,P56>=$AB$8,$AB$1,P56>=$AA$8,$AA$1,P56>=$Z$8,$Z$1,P56>=$Y$8,$Y$1,P56>=$X$8,$X$1,P56>=$W$8,$W$1,P56<$W$2,$V$1),(IF(AND($N$2>=$T$9,$N$2<$U$9),_xlfn.IFS(P56>=$AD$9,$AD$1,P56>=$AC$9,$AC$1,P56>=$AB$9,$AB$1,P56>=$AA$9,$AA$1,P56>=$Z$9,$Z$1,P56>=$Y$9,$Y$1,P56>=$X$9,$X$1,P56>=$W$9,$W$1),$W$1))))))))))))))),IF(AND($N$2>=$T$2,$N$2<=$U$2),IF(P56>=$W$2,$W$1,$V$1),IF(AND($N$2>=$T$3,$N$2<$U$3),IF(P56>=$W$3,$W$1,$V$1),IF(AND($N$2>=$T$4,$N$2<$U$4),IF(P56>=$W$4,$W$1,$V$1),IF(AND($N$2>=$T$5,$N$2<$U$5),IF(P56>=$W$5,$W$1,$V$1),IF(AND($N$2>=$T$6,$N$2<$U$6),IF(P56>=$W$6,$W$1,$V$1),IF(AND($N$2>=$T$7,$N$2<$U$7),IF(P56>=$W$7,$W$1,$V$1),IF(AND($N$2>=$T$8,$N$2<$U$8),IF(P56>=$W$8,$W$1,$V$1),IF(AND($N$2>=$T$9,$N$2<$U$9),IF(P56>=$W$9,$W$1,$V$1),""))))))))),"") -> CB | M56: =IF(E56<>"",IF(AND(E56<>"GR",E56>=40,J56>=30),_xlfn.IFS(Q56>=$AG$2,$AD$19,Q56>=$AG$3,$AC$19,Q56>=$AG$4,$AB$19,Q56>=$AG$5,$AA$19,Q56>=$AG$6,$Z$19,Q56>=$AG$7,$Y$19,Q56>=$AG$8,$X$19,Q56>=$AG$9,$V$19),L56),"") -> CB | P56: 57 | Q56: 57 | R56: 0.71
A57: Öğrenci | B57: 56 | C57: 47 | D57: 63 | E57: GR | F57: 63 | G57: 47 | H57: 63 | I57: 56.6 | J57: 56.6 | K57: 3203.56 | L57: =IF(D57<>"",IF(AND(H57>=40,I57>=30),IF(AND($N$2>=$T$2,$N$2<=$U$2),_xlfn.IFS(P57>=$AD$2,$AD$1,P57>=$AC$2,$AC$1,P57>=$AB$2,$AB$1,P57>=$AA$2,$AA$1,P57>=$Z$2,$Z$1,P57>=$Y$2,$Y$1,P57>=$X$2,$X$1,P57>=$W$2,$W$1,P57<$W$2,$V$1),(IF(AND($N$2>=$T$3,$N$2<$U$3),_xlfn.IFS(P57>=$AD$3,$AD$1,P57>=$AC$3,$AC$1,P57>=$AB$3,$AB$1,P57>=$AA$3,$AA$1,P57>=$Z$3,$Z$1,P57>=$Y$3,$Y$1,P57>=$X$3,$X$1,P57>=$W$3,$W$1,P57<$W$2,$V$1),(IF(AND($N$2>=$T$4,$N$2<$U$4),_xlfn.IFS(P57>=$AD$4,$AD$1,P57>=$AC$4,$AC$1,P57>=$AB$4,$AB$1,P57>=$AA$4,$AA$1,P57>=$Z$4,$Z$1,P57>=$Y$4,$Y$1,P57>=$X$4,$X$1,P57>=$W$4,$W$1,P57<$W$2,$V$1),(IF(AND($N$2>=$T$5,$N$2<$U$5),_xlfn.IFS(P57>=$AD$5,$AD$1,P57>=$AC$5,$AC$1,P57>=$AB$5,$AB$1,P57>=$AA$5,$AA$1,P57>=$Z$5,$Z$1,P57>=$Y$5,$Y$1,P57>=$X$5,$X$1,P57>=$W$5,$W$1,P57<$W$2,$V$1),(IF(AND($N$2>=$T$6,$N$2<$U$6),_xlfn.IFS(P57>=$AD$6,$AD$1,P57>=$AC$6,$AC$1,P57>=$AB$6,$AB$1,P57>=$AA$6,$AA$1,P57>=$Z$6,$Z$1,P57>=$Y$6,$Y$1,P57>=$X$6,$X$1,P57>=$W$6,$W$1,P57<$W$2,$V$1),(IF(AND($N$2>=$T$7,$N$2<$U$7),_xlfn.IFS(P57>=$AD$7,$AD$1,P57>=$AC$7,$AC$1,P57>=$AB$7,$AB$1,P57>=$AA$7,$AA$1,P57>=$Z$7,$Z$1,P57>=$Y$7,$Y$1,P57>=$X$7,$X$1,P57>=$W$7,$W$1,P57<$W$2,$V$1),(IF(AND($N$2>=$T$8,$N$2<$U$8),_xlfn.IFS(P57>=$AD$8,$AD$1,P57>=$AC$8,$AC$1,P57>=$AB$8,$AB$1,P57>=$AA$8,$AA$1,P57>=$Z$8,$Z$1,P57>=$Y$8,$Y$1,P57>=$X$8,$X$1,P57>=$W$8,$W$1,P57<$W$2,$V$1),(IF(AND($N$2>=$T$9,$N$2<$U$9),_xlfn.IFS(P57>=$AD$9,$AD$1,P57>=$AC$9,$AC$1,P57>=$AB$9,$AB$1,P57>=$AA$9,$AA$1,P57>=$Z$9,$Z$1,P57>=$Y$9,$Y$1,P57>=$X$9,$X$1,P57>=$W$9,$W$1),$W$1))))))))))))))),IF(AND($N$2>=$T$2,$N$2<=$U$2),IF(P57>=$W$2,$W$1,$V$1),IF(AND($N$2>=$T$3,$N$2<$U$3),IF(P57>=$W$3,$W$1,$V$1),IF(AND($N$2>=$T$4,$N$2<$U$4),IF(P57>=$W$4,$W$1,$V$1),IF(AND($N$2>=$T$5,$N$2<$U$5),IF(P57>=$W$5,$W$1,$V$1),IF(AND($N$2>=$T$6,$N$2<$U$6),IF(P57>=$W$6,$W$1,$V$1),IF(AND($N$2>=$T$7,$N$2<$U$7),IF(P57>=$W$7,$W$1,$V$1),IF(AND($N$2>=$T$8,$N$2<$U$8),IF(P57>=$W$8,$W$1,$V$1),IF(AND($N$2>=$T$9,$N$2<$U$9),IF(P57>=$W$9,$W$1,$V$1),""))))))))),"") -> CB | M57: =IF(E57<>"",IF(AND(E57<>"GR",E57>=40,J57>=30),_xlfn.IFS(Q57>=$AG$2,$AD$19,Q57>=$AG$3,$AC$19,Q57>=$AG$4,$AB$19,Q57>=$AG$5,$AA$19,Q57>=$AG$6,$Z$19,Q57>=$AG$7,$Y$19,Q57>=$AG$8,$X$19,Q57>=$AG$9,$V$19),L57),"") -> CB | P57: 57 | Q57: 57 | R57: 0.68
A58: Öğrenci | B58: 57 | C58: 27 | D58: 76 | E58: GR | F58: 76 | G58: 27 | H58: 76 | I58: 56.4 | J58: 56.4 | K58: 3180.96 | L58: =IF(D58<>"",IF(AND(H58>=40,I58>=30),IF(AND($N$2>=$T$2,$N$2<=$U$2),_xlfn.IFS(P58>=$AD$2,$AD$1,P58>=$AC$2,$AC$1,P58>=$AB$2,$AB$1,P58>=$AA$2,$AA$1,P58>=$Z$2,$Z$1,P58>=$Y$2,$Y$1,P58>=$X$2,$X$1,P58>=$W$2,$W$1,P58<$W$2,$V$1),(IF(AND($N$2>=$T$3,$N$2<$U$3),_xlfn.IFS(P58>=$AD$3,$AD$1,P58>=$AC$3,$AC$1,P58>=$AB$3,$AB$1,P58>=$AA$3,$AA$1,P58>=$Z$3,$Z$1,P58>=$Y$3,$Y$1,P58>=$X$3,$X$1,P58>=$W$3,$W$1,P58<$W$2,$V$1),(IF(AND($N$2>=$T$4,$N$2<$U$4),_xlfn.IFS(P58>=$AD$4,$AD$1,P58>=$AC$4,$AC$1,P58>=$AB$4,$AB$1,P58>=$AA$4,$AA$1,P58>=$Z$4,$Z$1,P58>=$Y$4,$Y$1,P58>=$X$4,$X$1,P58>=$W$4,$W$1,P58<$W$2,$V$1),(IF(AND($N$2>=$T$5,$N$2<$U$5),_xlfn.IFS(P58>=$AD$5,$AD$1,P58>=$AC$5,$AC$1,P58>=$AB$5,$AB$1,P58>=$AA$5,$AA$1,P58>=$Z$5,$Z$1,P58>=$Y$5,$Y$1,P58>=$X$5,$X$1,P58>=$W$5,$W$1,P58<$W$2,$V$1),(IF(AND($N$2>=$T$6,$N$2<$U$6),_xlfn.IFS(P58>=$AD$6,$AD$1,P58>=$AC$6,$AC$1,P58>=$AB$6,$AB$1,P58>=$AA$6,$AA$1,P58>=$Z$6,$Z$1,P58>=$Y$6,$Y$1,P58>=$X$6,$X$1,P58>=$W$6,$W$1,P58<$W$2,$V$1),(IF(AND($N$2>=$T$7,$N$2<$U$7),_xlfn.IFS(P58>=$AD$7,$AD$1,P58>=$AC$7,$AC$1,P58>=$AB$7,$AB$1,P58>=$AA$7,$AA$1,P58>=$Z$7,$Z$1,P58>=$Y$7,$Y$1,P58>=$X$7,$X$1,P58>=$W$7,$W$1,P58<$W$2,$V$1),(IF(AND($N$2>=$T$8,$N$2<$U$8),_xlfn.IFS(P58>=$AD$8,$AD$1,P58>=$AC$8,$AC$1,P58>=$AB$8,$AB$1,P58>=$AA$8,$AA$1,P58>=$Z$8,$Z$1,P58>=$Y$8,$Y$1,P58>=$X$8,$X$1,P58>=$W$8,$W$1,P58<$W$2,$V$1),(IF(AND($N$2>=$T$9,$N$2<$U$9),_xlfn.IFS(P58>=$AD$9,$AD$1,P58>=$AC$9,$AC$1,P58>=$AB$9,$AB$1,P58>=$AA$9,$AA$1,P58>=$Z$9,$Z$1,P58>=$Y$9,$Y$1,P58>=$X$9,$X$1,P58>=$W$9,$W$1),$W$1))))))))))))))),IF(AND($N$2>=$T$2,$N$2<=$U$2),IF(P58>=$W$2,$W$1,$V$1),IF(AND($N$2>=$T$3,$N$2<$U$3),IF(P58>=$W$3,$W$1,$V$1),IF(AND($N$2>=$T$4,$N$2<$U$4),IF(P58>=$W$4,$W$1,$V$1),IF(AND($N$2>=$T$5,$N$2<$U$5),IF(P58>=$W$5,$W$1,$V$1),IF(AND($N$2>=$T$6,$N$2<$U$6),IF(P58>=$W$6,$W$1,$V$1),IF(AND($N$2>=$T$7,$N$2<$U$7),IF(P58>=$W$7,$W$1,$V$1),IF(AND($N$2>=$T$8,$N$2<$U$8),IF(P58>=$W$8,$W$1,$V$1),IF(AND($N$2>=$T$9,$N$2<$U$9),IF(P58>=$W$9,$W$1,$V$1),""))))))))),"") -> CB | M58: =IF(E58<>"",IF(AND(E58<>"GR",E58>=40,J58>=30),_xlfn.IFS(Q58>=$AG$2,$AD$19,Q58>=$AG$3,$AC$19,Q58>=$AG$4,$AB$19,Q58>=$AG$5,$AA$19,Q58>=$AG$6,$Z$19,Q58>=$AG$7,$Y$19,Q58>=$AG$8,$X$19,Q58>=$AG$9,$V$19),L58),"") -> CB | P58: 57 | Q58: 57 | R58: 0.66
A59: Öğrenci | B59: 58 | C59: 45 | D59: 64 | E59: GR | F59: 64 | G59: 45 | H59: 64 | I59: 56.4 | J59: 56.4 | K59: 3180.96 | L59: =IF(D59<>"",IF(AND(H59>=40,I59>=30),IF(AND($N$2>=$T$2,$N$2<=$U$2),_xlfn.IFS(P59>=$AD$2,$AD$1,P59>=$AC$2,$AC$1,P59>=$AB$2,$AB$1,P59>=$AA$2,$AA$1,P59>=$Z$2,$Z$1,P59>=$Y$2,$Y$1,P59>=$X$2,$X$1,P59>=$W$2,$W$1,P59<$W$2,$V$1),(IF(AND($N$2>=$T$3,$N$2<$U$3),_xlfn.IFS(P59>=$AD$3,$AD$1,P59>=$AC$3,$AC$1,P59>=$AB$3,$AB$1,P59>=$AA$3,$AA$1,P59>=$Z$3,$Z$1,P59>=$Y$3,$Y$1,P59>=$X$3,$X$1,P59>=$W$3,$W$1,P59<$W$2,$V$1),(IF(AND($N$2>=$T$4,$N$2<$U$4),_xlfn.IFS(P59>=$AD$4,$AD$1,P59>=$AC$4,$AC$1,P59>=$AB$4,$AB$1,P59>=$AA$4,$AA$1,P59>=$Z$4,$Z$1,P59>=$Y$4,$Y$1,P59>=$X$4,$X$1,P59>=$W$4,$W$1,P59<$W$2,$V$1),(IF(AND($N$2>=$T$5,$N$2<$U$5),_xlfn.IFS(P59>=$AD$5,$AD$1,P59>=$AC$5,$AC$1,P59>=$AB$5,$AB$1,P59>=$AA$5,$AA$1,P59>=$Z$5,$Z$1,P59>=$Y$5,$Y$1,P59>=$X$5,$X$1,P59>=$W$5,$W$1,P59<$W$2,$V$1),(IF(AND($N$2>=$T$6,$N$2<$U$6),_xlfn.IFS(P59>=$AD$6,$AD$1,P59>=$AC$6,$AC$1,P59>=$AB$6,$AB$1,P59>=$AA$6,$AA$1,P59>=$Z$6,$Z$1,P59>=$Y$6,$Y$1,P59>=$X$6,$X$1,P59>=$W$6,$W$1,P59<$W$2,$V$1),(IF(AND($N$2>=$T$7,$N$2<$U$7),_xlfn.IFS(P59>=$AD$7,$AD$1,P59>=$AC$7,$AC$1,P59>=$AB$7,$AB$1,P59>=$AA$7,$AA$1,P59>=$Z$7,$Z$1,P59>=$Y$7,$Y$1,P59>=$X$7,$X$1,P59>=$W$7,$W$1,P59<$W$2,$V$1),(IF(AND($N$2>=$T$8,$N$2<$U$8),_xlfn.IFS(P59>=$AD$8,$AD$1,P59>=$AC$8,$AC$1,P59>=$AB$8,$AB$1,P59>=$AA$8,$AA$1,P59>=$Z$8,$Z$1,P59>=$Y$8,$Y$1,P59>=$X$8,$X$1,P59>=$W$8,$W$1,P59<$W$2,$V$1),(IF(AND($N$2>=$T$9,$N$2<$U$9),_xlfn.IFS(P59>=$AD$9,$AD$1,P59>=$AC$9,$AC$1,P59>=$AB$9,$AB$1,P59>=$AA$9,$AA$1,P59>=$Z$9,$Z$1,P59>=$Y$9,$Y$1,P59>=$X$9,$X$1,P59>=$W$9,$W$1),$W$1))))))))))))))),IF(AND($N$2>=$T$2,$N$2<=$U$2),IF(P59>=$W$2,$W$1,$V$1),IF(AND($N$2>=$T$3,$N$2<$U$3),IF(P59>=$W$3,$W$1,$V$1),IF(AND($N$2>=$T$4,$N$2<$U$4),IF(P59>=$W$4,$W$1,$V$1),IF(AND($N$2>=$T$5,$N$2<$U$5),IF(P59>=$W$5,$W$1,$V$1),IF(AND($N$2>=$T$6,$N$2<$U$6),IF(P59>=$W$6,$W$1,$V$1),IF(AND($N$2>=$T$7,$N$2<$U$7),IF(P59>=$W$7,$W$1,$V$1),IF(AND($N$2>=$T$8,$N$2<$U$8),IF(P59>=$W$8,$W$1,$V$1),IF(AND($N$2>=$T$9,$N$2<$U$9),IF(P59>=$W$9,$W$1,$V$1),""))))))))),"") -> CB | M59: =IF(E59<>"",IF(AND(E59<>"GR",E59>=40,J59>=30),_xlfn.IFS(Q59>=$AG$2,$AD$19,Q59>=$AG$3,$AC$19,Q59>=$AG$4,$AB$19,Q59>=$AG$5,$AA$19,Q59>=$AG$6,$Z$19,Q59>=$AG$7,$Y$19,Q59>=$AG$8,$X$19,Q59>=$AG$9,$V$19),L59),"") -> CB | P59: 57 | Q59: 57 | R59: 0.66
A60: Öğrenci | B60: 59 | C60: 43 | D60: 65 | E60: GR | F60: 65 | G60: 43 | H60: 65 | I60: 56.2 | J60: 56.2 | K60: 3158.44 | L60: =IF(D60<>"",IF(AND(H60>=40,I60>=30),IF(AND($N$2>=$T$2,$N$2<=$U$2),_xlfn.IFS(P60>=$AD$2,$AD$1,P60>=$AC$2,$AC$1,P60>=$AB$2,$AB$1,P60>=$AA$2,$AA$1,P60>=$Z$2,$Z$1,P60>=$Y$2,$Y$1,P60>=$X$2,$X$1,P60>=$W$2,$W$1,P60<$W$2,$V$1),(IF(AND($N$2>=$T$3,$N$2<$U$3),_xlfn.IFS(P60>=$AD$3,$AD$1,P60>=$AC$3,$AC$1,P60>=$AB$3,$AB$1,P60>=$AA$3,$AA$1,P60>=$Z$3,$Z$1,P60>=$Y$3,$Y$1,P60>=$X$3,$X$1,P60>=$W$3,$W$1,P60<$W$2,$V$1),(IF(AND($N$2>=$T$4,$N$2<$U$4),_xlfn.IFS(P60>=$AD$4,$AD$1,P60>=$AC$4,$AC$1,P60>=$AB$4,$AB$1,P60>=$AA$4,$AA$1,P60>=$Z$4,$Z$1,P60>=$Y$4,$Y$1,P60>=$X$4,$X$1,P60>=$W$4,$W$1,P60<$W$2,$V$1),(IF(AND($N$2>=$T$5,$N$2<$U$5),_xlfn.IFS(P60>=$AD$5,$AD$1,P60>=$AC$5,$AC$1,P60>=$AB$5,$AB$1,P60>=$AA$5,$AA$1,P60>=$Z$5,$Z$1,P60>=$Y$5,$Y$1,P60>=$X$5,$X$1,P60>=$W$5,$W$1,P60<$W$2,$V$1),(IF(AND($N$2>=$T$6,$N$2<$U$6),_xlfn.IFS(P60>=$AD$6,$AD$1,P60>=$AC$6,$AC$1,P60>=$AB$6,$AB$1,P60>=$AA$6,$AA$1,P60>=$Z$6,$Z$1,P60>=$Y$6,$Y$1,P60>=$X$6,$X$1,P60>=$W$6,$W$1,P60<$W$2,$V$1),(IF(AND($N$2>=$T$7,$N$2<$U$7),_xlfn.IFS(P60>=$AD$7,$AD$1,P60>=$AC$7,$AC$1,P60>=$AB$7,$AB$1,P60>=$AA$7,$AA$1,P60>=$Z$7,$Z$1,P60>=$Y$7,$Y$1,P60>=$X$7,$X$1,P60>=$W$7,$W$1,P60<$W$2,$V$1),(IF(AND($N$2>=$T$8,$N$2<$U$8),_xlfn.IFS(P60>=$AD$8,$AD$1,P60>=$AC$8,$AC$1,P60>=$AB$8,$AB$1,P60>=$AA$8,$AA$1,P60>=$Z$8,$Z$1,P60>=$Y$8,$Y$1,P60>=$X$8,$X$1,P60>=$W$8,$W$1,P60<$W$2,$V$1),(IF(AND($N$2>=$T$9,$N$2<$U$9),_xlfn.IFS(P60>=$AD$9,$AD$1,P60>=$AC$9,$AC$1,P60>=$AB$9,$AB$1,P60>=$AA$9,$AA$1,P60>=$Z$9,$Z$1,P60>=$Y$9,$Y$1,P60>=$X$9,$X$1,P60>=$W$9,$W$1),$W$1))))))))))))))),IF(AND($N$2>=$T$2,$N$2<=$U$2),IF(P60>=$W$2,$W$1,$V$1),IF(AND($N$2>=$T$3,$N$2<$U$3),IF(P60>=$W$3,$W$1,$V$1),IF(AND($N$2>=$T$4,$N$2<$U$4),IF(P60>=$W$4,$W$1,$V$1),IF(AND($N$2>=$T$5,$N$2<$U$5),IF(P60>=$W$5,$W$1,$V$1),IF(AND($N$2>=$T$6,$N$2<$U$6),IF(P60>=$W$6,$W$1,$V$1),IF(AND($N$2>=$T$7,$N$2<$U$7),IF(P60>=$W$7,$W$1,$V$1),IF(AND($N$2>=$T$8,$N$2<$U$8),IF(P60>=$W$8,$W$1,$V$1),IF(AND($N$2>=$T$9,$N$2<$U$9),IF(P60>=$W$9,$W$1,$V$1),""))))))))),"") -> CB | M60: =IF(E60<>"",IF(AND(E60<>"GR",E60>=40,J60>=30),_xlfn.IFS(Q60>=$AG$2,$AD$19,Q60>=$AG$3,$AC$19,Q60>=$AG$4,$AB$19,Q60>=$AG$5,$AA$19,Q60>=$AG$6,$Z$19,Q60>=$AG$7,$Y$19,Q60>=$AG$8,$X$19,Q60>=$AG$9,$V$19),L60),"") -> CB | P60: 57 | Q60: 57 | R60: 0.65
A61: Öğrenci | B61: 60 | C61: 38 | D61: 68 | E61: GR | F61: 68 | G61: 38 | H61: 68 | I61: 56 | J61: 56 | K61: 3136 | L61: =IF(D61<>"",IF(AND(H61>=40,I61>=30),IF(AND($N$2>=$T$2,$N$2<=$U$2),_xlfn.IFS(P61>=$AD$2,$AD$1,P61>=$AC$2,$AC$1,P61>=$AB$2,$AB$1,P61>=$AA$2,$AA$1,P61>=$Z$2,$Z$1,P61>=$Y$2,$Y$1,P61>=$X$2,$X$1,P61>=$W$2,$W$1,P61<$W$2,$V$1),(IF(AND($N$2>=$T$3,$N$2<$U$3),_xlfn.IFS(P61>=$AD$3,$AD$1,P61>=$AC$3,$AC$1,P61>=$AB$3,$AB$1,P61>=$AA$3,$AA$1,P61>=$Z$3,$Z$1,P61>=$Y$3,$Y$1,P61>=$X$3,$X$1,P61>=$W$3,$W$1,P61<$W$2,$V$1),(IF(AND($N$2>=$T$4,$N$2<$U$4),_xlfn.IFS(P61>=$AD$4,$AD$1,P61>=$AC$4,$AC$1,P61>=$AB$4,$AB$1,P61>=$AA$4,$AA$1,P61>=$Z$4,$Z$1,P61>=$Y$4,$Y$1,P61>=$X$4,$X$1,P61>=$W$4,$W$1,P61<$W$2,$V$1),(IF(AND($N$2>=$T$5,$N$2<$U$5),_xlfn.IFS(P61>=$AD$5,$AD$1,P61>=$AC$5,$AC$1,P61>=$AB$5,$AB$1,P61>=$AA$5,$AA$1,P61>=$Z$5,$Z$1,P61>=$Y$5,$Y$1,P61>=$X$5,$X$1,P61>=$W$5,$W$1,P61<$W$2,$V$1),(IF(AND($N$2>=$T$6,$N$2<$U$6),_xlfn.IFS(P61>=$AD$6,$AD$1,P61>=$AC$6,$AC$1,P61>=$AB$6,$AB$1,P61>=$AA$6,$AA$1,P61>=$Z$6,$Z$1,P61>=$Y$6,$Y$1,P61>=$X$6,$X$1,P61>=$W$6,$W$1,P61<$W$2,$V$1),(IF(AND($N$2>=$T$7,$N$2<$U$7),_xlfn.IFS(P61>=$AD$7,$AD$1,P61>=$AC$7,$AC$1,P61>=$AB$7,$AB$1,P61>=$AA$7,$AA$1,P61>=$Z$7,$Z$1,P61>=$Y$7,$Y$1,P61>=$X$7,$X$1,P61>=$W$7,$W$1,P61<$W$2,$V$1),(IF(AND($N$2>=$T$8,$N$2<$U$8),_xlfn.IFS(P61>=$AD$8,$AD$1,P61>=$AC$8,$AC$1,P61>=$AB$8,$AB$1,P61>=$AA$8,$AA$1,P61>=$Z$8,$Z$1,P61>=$Y$8,$Y$1,P61>=$X$8,$X$1,P61>=$W$8,$W$1,P61<$W$2,$V$1),(IF(AND($N$2>=$T$9,$N$2<$U$9),_xlfn.IFS(P61>=$AD$9,$AD$1,P61>=$AC$9,$AC$1,P61>=$AB$9,$AB$1,P61>=$AA$9,$AA$1,P61>=$Z$9,$Z$1,P61>=$Y$9,$Y$1,P61>=$X$9,$X$1,P61>=$W$9,$W$1),$W$1))))))))))))))),IF(AND($N$2>=$T$2,$N$2<=$U$2),IF(P61>=$W$2,$W$1,$V$1),IF(AND($N$2>=$T$3,$N$2<$U$3),IF(P61>=$W$3,$W$1,$V$1),IF(AND($N$2>=$T$4,$N$2<$U$4),IF(P61>=$W$4,$W$1,$V$1),IF(AND($N$2>=$T$5,$N$2<$U$5),IF(P61>=$W$5,$W$1,$V$1),IF(AND($N$2>=$T$6,$N$2<$U$6),IF(P61>=$W$6,$W$1,$V$1),IF(AND($N$2>=$T$7,$N$2<$U$7),IF(P61>=$W$7,$W$1,$V$1),IF(AND($N$2>=$T$8,$N$2<$U$8),IF(P61>=$W$8,$W$1,$V$1),IF(AND($N$2>=$T$9,$N$2<$U$9),IF(P61>=$W$9,$W$1,$V$1),""))))))))),"") -> CB | M61: =IF(E61<>"",IF(AND(E61<>"GR",E61>=40,J61>=30),_xlfn.IFS(Q61>=$AG$2,$AD$19,Q61>=$AG$3,$AC$19,Q61>=$AG$4,$AB$19,Q61>=$AG$5,$AA$19,Q61>=$AG$6,$Z$19,Q61>=$AG$7,$Y$19,Q61>=$AG$8,$X$19,Q61>=$AG$9,$V$19),L61),"") -> CB | P61: 56 | Q61: 56 | R61: 0.64
A62: Öğrenci | B62: 61 | C62: 29 | D62: 74 | E62: GR | F62: 74 | G62: 29 | H62: 74 | I62: 56 | J62: 56 | K62: 3136 | L62: =IF(D62<>"",IF(AND(H62>=40,I62>=30),IF(AND($N$2>=$T$2,$N$2<=$U$2),_xlfn.IFS(P62>=$AD$2,$AD$1,P62>=$AC$2,$AC$1,P62>=$AB$2,$AB$1,P62>=$AA$2,$AA$1,P62>=$Z$2,$Z$1,P62>=$Y$2,$Y$1,P62>=$X$2,$X$1,P62>=$W$2,$W$1,P62<$W$2,$V$1),(IF(AND($N$2>=$T$3,$N$2<$U$3),_xlfn.IFS(P62>=$AD$3,$AD$1,P62>=$AC$3,$AC$1,P62>=$AB$3,$AB$1,P62>=$AA$3,$AA$1,P62>=$Z$3,$Z$1,P62>=$Y$3,$Y$1,P62>=$X$3,$X$1,P62>=$W$3,$W$1,P62<$W$2,$V$1),(IF(AND($N$2>=$T$4,$N$2<$U$4),_xlfn.IFS(P62>=$AD$4,$AD$1,P62>=$AC$4,$AC$1,P62>=$AB$4,$AB$1,P62>=$AA$4,$AA$1,P62>=$Z$4,$Z$1,P62>=$Y$4,$Y$1,P62>=$X$4,$X$1,P62>=$W$4,$W$1,P62<$W$2,$V$1),(IF(AND($N$2>=$T$5,$N$2<$U$5),_xlfn.IFS(P62>=$AD$5,$AD$1,P62>=$AC$5,$AC$1,P62>=$AB$5,$AB$1,P62>=$AA$5,$AA$1,P62>=$Z$5,$Z$1,P62>=$Y$5,$Y$1,P62>=$X$5,$X$1,P62>=$W$5,$W$1,P62<$W$2,$V$1),(IF(AND($N$2>=$T$6,$N$2<$U$6),_xlfn.IFS(P62>=$AD$6,$AD$1,P62>=$AC$6,$AC$1,P62>=$AB$6,$AB$1,P62>=$AA$6,$AA$1,P62>=$Z$6,$Z$1,P62>=$Y$6,$Y$1,P62>=$X$6,$X$1,P62>=$W$6,$W$1,P62<$W$2,$V$1),(IF(AND($N$2>=$T$7,$N$2<$U$7),_xlfn.IFS(P62>=$AD$7,$AD$1,P62>=$AC$7,$AC$1,P62>=$AB$7,$AB$1,P62>=$AA$7,$AA$1,P62>=$Z$7,$Z$1,P62>=$Y$7,$Y$1,P62>=$X$7,$X$1,P62>=$W$7,$W$1,P62<$W$2,$V$1),(IF(AND($N$2>=$T$8,$N$2<$U$8),_xlfn.IFS(P62>=$AD$8,$AD$1,P62>=$AC$8,$AC$1,P62>=$AB$8,$AB$1,P62>=$AA$8,$AA$1,P62>=$Z$8,$Z$1,P62>=$Y$8,$Y$1,P62>=$X$8,$X$1,P62>=$W$8,$W$1,P62<$W$2,$V$1),(IF(AND($N$2>=$T$9,$N$2<$U$9),_xlfn.IFS(P62>=$AD$9,$AD$1,P62>=$AC$9,$AC$1,P62>=$AB$9,$AB$1,P62>=$AA$9,$AA$1,P62>=$Z$9,$Z$1,P62>=$Y$9,$Y$1,P62>=$X$9,$X$1,P62>=$W$9,$W$1),$W$1))))))))))))))),IF(AND($N$2>=$T$2,$N$2<=$U$2),IF(P62>=$W$2,$W$1,$V$1),IF(AND($N$2>=$T$3,$N$2<$U$3),IF(P62>=$W$3,$W$1,$V$1),IF(AND($N$2>=$T$4,$N$2<$U$4),IF(P62>=$W$4,$W$1,$V$1),IF(AND($N$2>=$T$5,$N$2<$U$5),IF(P62>=$W$5,$W$1,$V$1),IF(AND($N$2>=$T$6,$N$2<$U$6),IF(P62>=$W$6,$W$1,$V$1),IF(AND($N$2>=$T$7,$N$2<$U$7),IF(P62>=$W$7,$W$1,$V$1),IF(AND($N$2>=$T$8,$N$2<$U$8),IF(P62>=$W$8,$W$1,$V$1),IF(AND($N$2>=$T$9,$N$2<$U$9),IF(P62>=$W$9,$W$1,$V$1),""))))))))),"") -> CB | M62: =IF(E62<>"",IF(AND(E62<>"GR",E62>=40,J62>=30),_xlfn.IFS(Q62>=$AG$2,$AD$19,Q62>=$AG$3,$AC$19,Q62>=$AG$4,$AB$19,Q62>=$AG$5,$AA$19,Q62>=$AG$6,$Z$19,Q62>=$AG$7,$Y$19,Q62>=$AG$8,$X$19,Q62>=$AG$9,$V$19),L62),"") -> CB | P62: 56 | Q62: 56 | R62: 0.64
A63: Öğrenci | B63: 62 | C63: 42 | D63: 65 | E63: GR | F63: 65 | G63: 42 | H63: 65 | I63: 55.8 | J63: 55.8 | K63: 3113.64 | L63: =IF(D63<>"",IF(AND(H63>=40,I63>=30),IF(AND($N$2>=$T$2,$N$2<=$U$2),_xlfn.IFS(P63>=$AD$2,$AD$1,P63>=$AC$2,$AC$1,P63>=$AB$2,$AB$1,P63>=$AA$2,$AA$1,P63>=$Z$2,$Z$1,P63>=$Y$2,$Y$1,P63>=$X$2,$X$1,P63>=$W$2,$W$1,P63<$W$2,$V$1),(IF(AND($N$2>=$T$3,$N$2<$U$3),_xlfn.IFS(P63>=$AD$3,$AD$1,P63>=$AC$3,$AC$1,P63>=$AB$3,$AB$1,P63>=$AA$3,$AA$1,P63>=$Z$3,$Z$1,P63>=$Y$3,$Y$1,P63>=$X$3,$X$1,P63>=$W$3,$W$1,P63<$W$2,$V$1),(IF(AND($N$2>=$T$4,$N$2<$U$4),_xlfn.IFS(P63>=$AD$4,$AD$1,P63>=$AC$4,$AC$1,P63>=$AB$4,$AB$1,P63>=$AA$4,$AA$1,P63>=$Z$4,$Z$1,P63>=$Y$4,$Y$1,P63>=$X$4,$X$1,P63>=$W$4,$W$1,P63<$W$2,$V$1),(IF(AND($N$2>=$T$5,$N$2<$U$5),_xlfn.IFS(P63>=$AD$5,$AD$1,P63>=$AC$5,$AC$1,P63>=$AB$5,$AB$1,P63>=$AA$5,$AA$1,P63>=$Z$5,$Z$1,P63>=$Y$5,$Y$1,P63>=$X$5,$X$1,P63>=$W$5,$W$1,P63<$W$2,$V$1),(IF(AND($N$2>=$T$6,$N$2<$U$6),_xlfn.IFS(P63>=$AD$6,$AD$1,P63>=$AC$6,$AC$1,P63>=$AB$6,$AB$1,P63>=$AA$6,$AA$1,P63>=$Z$6,$Z$1,P63>=$Y$6,$Y$1,P63>=$X$6,$X$1,P63>=$W$6,$W$1,P63<$W$2,$V$1),(IF(AND($N$2>=$T$7,$N$2<$U$7),_xlfn.IFS(P63>=$AD$7,$AD$1,P63>=$AC$7,$AC$1,P63>=$AB$7,$AB$1,P63>=$AA$7,$AA$1,P63>=$Z$7,$Z$1,P63>=$Y$7,$Y$1,P63>=$X$7,$X$1,P63>=$W$7,$W$1,P63<$W$2,$V$1),(IF(AND($N$2>=$T$8,$N$2<$U$8),_xlfn.IFS(P63>=$AD$8,$AD$1,P63>=$AC$8,$AC$1,P63>=$AB$8,$AB$1,P63>=$AA$8,$AA$1,P63>=$Z$8,$Z$1,P63>=$Y$8,$Y$1,P63>=$X$8,$X$1,P63>=$W$8,$W$1,P63<$W$2,$V$1),(IF(AND($N$2>=$T$9,$N$2<$U$9),_xlfn.IFS(P63>=$AD$9,$AD$1,P63>=$AC$9,$AC$1,P63>=$AB$9,$AB$1,P63>=$AA$9,$AA$1,P63>=$Z$9,$Z$1,P63>=$Y$9,$Y$1,P63>=$X$9,$X$1,P63>=$W$9,$W$1),$W$1))))))))))))))),IF(AND($N$2>=$T$2,$N$2<=$U$2),IF(P63>=$W$2,$W$1,$V$1),IF(AND($N$2>=$T$3,$N$2<$U$3),IF(P63>=$W$3,$W$1,$V$1),IF(AND($N$2>=$T$4,$N$2<$U$4),IF(P63>=$W$4,$W$1,$V$1),IF(AND($N$2>=$T$5,$N$2<$U$5),IF(P63>=$W$5,$W$1,$V$1),IF(AND($N$2>=$T$6,$N$2<$U$6),IF(P63>=$W$6,$W$1,$V$1),IF(AND($N$2>=$T$7,$N$2<$U$7),IF(P63>=$W$7,$W$1,$V$1),IF(AND($N$2>=$T$8,$N$2<$U$8),IF(P63>=$W$8,$W$1,$V$1),IF(AND($N$2>=$T$9,$N$2<$U$9),IF(P63>=$W$9,$W$1,$V$1),""))))))))),"") -> CB | M63: =IF(E63<>"",IF(AND(E63<>"GR",E63>=40,J63>=30),_xlfn.IFS(Q63>=$AG$2,$AD$19,Q63>=$AG$3,$AC$19,Q63>=$AG$4,$AB$19,Q63>=$AG$5,$AA$19,Q63>=$AG$6,$Z$19,Q63>=$AG$7,$Y$19,Q63>=$AG$8,$X$19,Q63>=$AG$9,$V$19),L63),"") -> CB | P63: 56 | Q63: 56 | R63: 0.62
A64: Öğrenci | B64: 63 | C64: 54 | D64: 57 | E64: GR | F64: 57 | G64: 54 | H64: 57 | I64: 55.8 | J64: 55.8 | K64: 3113.64 | L64: =IF(D64<>"",IF(AND(H64>=40,I64>=30),IF(AND($N$2>=$T$2,$N$2<=$U$2),_xlfn.IFS(P64>=$AD$2,$AD$1,P64>=$AC$2,$AC$1,P64>=$AB$2,$AB$1,P64>=$AA$2,$AA$1,P64>=$Z$2,$Z$1,P64>=$Y$2,$Y$1,P64>=$X$2,$X$1,P64>=$W$2,$W$1,P64<$W$2,$V$1),(IF(AND($N$2>=$T$3,$N$2<$U$3),_xlfn.IFS(P64>=$AD$3,$AD$1,P64>=$AC$3,$AC$1,P64>=$AB$3,$AB$1,P64>=$AA$3,$AA$1,P64>=$Z$3,$Z$1,P64>=$Y$3,$Y$1,P64>=$X$3,$X$1,P64>=$W$3,$W$1,P64<$W$2,$V$1),(IF(AND($N$2>=$T$4,$N$2<$U$4),_xlfn.IFS(P64>=$AD$4,$AD$1,P64>=$AC$4,$AC$1,P64>=$AB$4,$AB$1,P64>=$AA$4,$AA$1,P64>=$Z$4,$Z$1,P64>=$Y$4,$Y$1,P64>=$X$4,$X$1,P64>=$W$4,$W$1,P64<$W$2,$V$1),(IF(AND($N$2>=$T$5,$N$2<$U$5),_xlfn.IFS(P64>=$AD$5,$AD$1,P64>=$AC$5,$AC$1,P64>=$AB$5,$AB$1,P64>=$AA$5,$AA$1,P64>=$Z$5,$Z$1,P64>=$Y$5,$Y$1,P64>=$X$5,$X$1,P64>=$W$5,$W$1,P64<$W$2,$V$1),(IF(AND($N$2>=$T$6,$N$2<$U$6),_xlfn.IFS(P64>=$AD$6,$AD$1,P64>=$AC$6,$AC$1,P64>=$AB$6,$AB$1,P64>=$AA$6,$AA$1,P64>=$Z$6,$Z$1,P64>=$Y$6,$Y$1,P64>=$X$6,$X$1,P64>=$W$6,$W$1,P64<$W$2,$V$1),(IF(AND($N$2>=$T$7,$N$2<$U$7),_xlfn.IFS(P64>=$AD$7,$AD$1,P64>=$AC$7,$AC$1,P64>=$AB$7,$AB$1,P64>=$AA$7,$AA$1,P64>=$Z$7,$Z$1,P64>=$Y$7,$Y$1,P64>=$X$7,$X$1,P64>=$W$7,$W$1,P64<$W$2,$V$1),(IF(AND($N$2>=$T$8,$N$2<$U$8),_xlfn.IFS(P64>=$AD$8,$AD$1,P64>=$AC$8,$AC$1,P64>=$AB$8,$AB$1,P64>=$AA$8,$AA$1,P64>=$Z$8,$Z$1,P64>=$Y$8,$Y$1,P64>=$X$8,$X$1,P64>=$W$8,$W$1,P64<$W$2,$V$1),(IF(AND($N$2>=$T$9,$N$2<$U$9),_xlfn.IFS(P64>=$AD$9,$AD$1,P64>=$AC$9,$AC$1,P64>=$AB$9,$AB$1,P64>=$AA$9,$AA$1,P64>=$Z$9,$Z$1,P64>=$Y$9,$Y$1,P64>=$X$9,$X$1,P64>=$W$9,$W$1),$W$1))))))))))))))),IF(AND($N$2>=$T$2,$N$2<=$U$2),IF(P64>=$W$2,$W$1,$V$1),IF(AND($N$2>=$T$3,$N$2<$U$3),IF(P64>=$W$3,$W$1,$V$1),IF(AND($N$2>=$T$4,$N$2<$U$4),IF(P64>=$W$4,$W$1,$V$1),IF(AND($N$2>=$T$5,$N$2<$U$5),IF(P64>=$W$5,$W$1,$V$1),IF(AND($N$2>=$T$6,$N$2<$U$6),IF(P64>=$W$6,$W$1,$V$1),IF(AND($N$2>=$T$7,$N$2<$U$7),IF(P64>=$W$7,$W$1,$V$1),IF(AND($N$2>=$T$8,$N$2<$U$8),IF(P64>=$W$8,$W$1,$V$1),IF(AND($N$2>=$T$9,$N$2<$U$9),IF(P64>=$W$9,$W$1,$V$1),""))))))))),"") -> CB | M64: =IF(E64<>"",IF(AND(E64<>"GR",E64>=40,J64>=30),_xlfn.IFS(Q64>=$AG$2,$AD$19,Q64>=$AG$3,$AC$19,Q64>=$AG$4,$AB$19,Q64>=$AG$5,$AA$19,Q64>=$AG$6,$Z$19,Q64>=$AG$7,$Y$19,Q64>=$AG$8,$X$19,Q64>=$AG$9,$V$19),L64),"") -> CB | P64: 56 | Q64: 56 | R64: 0.62
A65: Öğrenci | B65: 64 | C65: 21 | D65: 79 | E65: GR | F65: 79 | G65: 21 | H65: 79 | I65: 55.8 | J65: 55.8 | K65: 3113.64 | L65: =IF(D65<>"",IF(AND(H65>=40,I65>=30),IF(AND($N$2>=$T$2,$N$2<=$U$2),_xlfn.IFS(P65>=$AD$2,$AD$1,P65>=$AC$2,$AC$1,P65>=$AB$2,$AB$1,P65>=$AA$2,$AA$1,P65>=$Z$2,$Z$1,P65>=$Y$2,$Y$1,P65>=$X$2,$X$1,P65>=$W$2,$W$1,P65<$W$2,$V$1),(IF(AND($N$2>=$T$3,$N$2<$U$3),_xlfn.IFS(P65>=$AD$3,$AD$1,P65>=$AC$3,$AC$1,P65>=$AB$3,$AB$1,P65>=$AA$3,$AA$1,P65>=$Z$3,$Z$1,P65>=$Y$3,$Y$1,P65>=$X$3,$X$1,P65>=$W$3,$W$1,P65<$W$2,$V$1),(IF(AND($N$2>=$T$4,$N$2<$U$4),_xlfn.IFS(P65>=$AD$4,$AD$1,P65>=$AC$4,$AC$1,P65>=$AB$4,$AB$1,P65>=$AA$4,$AA$1,P65>=$Z$4,$Z$1,P65>=$Y$4,$Y$1,P65>=$X$4,$X$1,P65>=$W$4,$W$1,P65<$W$2,$V$1),(IF(AND($N$2>=$T$5,$N$2<$U$5),_xlfn.IFS(P65>=$AD$5,$AD$1,P65>=$AC$5,$AC$1,P65>=$AB$5,$AB$1,P65>=$AA$5,$AA$1,P65>=$Z$5,$Z$1,P65>=$Y$5,$Y$1,P65>=$X$5,$X$1,P65>=$W$5,$W$1,P65<$W$2,$V$1),(IF(AND($N$2>=$T$6,$N$2<$U$6),_xlfn.IFS(P65>=$AD$6,$AD$1,P65>=$AC$6,$AC$1,P65>=$AB$6,$AB$1,P65>=$AA$6,$AA$1,P65>=$Z$6,$Z$1,P65>=$Y$6,$Y$1,P65>=$X$6,$X$1,P65>=$W$6,$W$1,P65<$W$2,$V$1),(IF(AND($N$2>=$T$7,$N$2<$U$7),_xlfn.IFS(P65>=$AD$7,$AD$1,P65>=$AC$7,$AC$1,P65>=$AB$7,$AB$1,P65>=$AA$7,$AA$1,P65>=$Z$7,$Z$1,P65>=$Y$7,$Y$1,P65>=$X$7,$X$1,P65>=$W$7,$W$1,P65<$W$2,$V$1),(IF(AND($N$2>=$T$8,$N$2<$U$8),_xlfn.IFS(P65>=$AD$8,$AD$1,P65>=$AC$8,$AC$1,P65>=$AB$8,$AB$1,P65>=$AA$8,$AA$1,P65>=$Z$8,$Z$1,P65>=$Y$8,$Y$1,P65>=$X$8,$X$1,P65>=$W$8,$W$1,P65<$W$2,$V$1),(IF(AND($N$2>=$T$9,$N$2<$U$9),_xlfn.IFS(P65>=$AD$9,$AD$1,P65>=$AC$9,$AC$1,P65>=$AB$9,$AB$1,P65>=$AA$9,$AA$1,P65>=$Z$9,$Z$1,P65>=$Y$9,$Y$1,P65>=$X$9,$X$1,P65>=$W$9,$W$1),$W$1))))))))))))))),IF(AND($N$2>=$T$2,$N$2<=$U$2),IF(P65>=$W$2,$W$1,$V$1),IF(AND($N$2>=$T$3,$N$2<$U$3),IF(P65>=$W$3,$W$1,$V$1),IF(AND($N$2>=$T$4,$N$2<$U$4),IF(P65>=$W$4,$W$1,$V$1),IF(AND($N$2>=$T$5,$N$2<$U$5),IF(P65>=$W$5,$W$1,$V$1),IF(AND($N$2>=$T$6,$N$2<$U$6),IF(P65>=$W$6,$W$1,$V$1),IF(AND($N$2>=$T$7,$N$2<$U$7),IF(P65>=$W$7,$W$1,$V$1),IF(AND($N$2>=$T$8,$N$2<$U$8),IF(P65>=$W$8,$W$1,$V$1),IF(AND($N$2>=$T$9,$N$2<$U$9),IF(P65>=$W$9,$W$1,$V$1),""))))))))),"") -> CB | M65: =IF(E65<>"",IF(AND(E65<>"GR",E65>=40,J65>=30),_xlfn.IFS(Q65>=$AG$2,$AD$19,Q65>=$AG$3,$AC$19,Q65>=$AG$4,$AB$19,Q65>=$AG$5,$AA$19,Q65>=$AG$6,$Z$19,Q65>=$AG$7,$Y$19,Q65>=$AG$8,$X$19,Q65>=$AG$9,$V$19),L65),"") -> CB | P65: 56 | Q65: 56 | R65: 0.62
A66: Öğrenci | B66: 65 | C66: 52 | D66: 30 | E66: 58 | F66: 58 | G66: 52 | H66: 30 | I66: 38.8 | J66: =IF(E66<>"",ROUND(IF(E66<>"GR",((G66*0.4)+(E66*0.6)),I66),2),"") -> 55.6 | K66: =I66*I66 -> 1505.44 | L66: =IF(D66<>"",IF(AND(H66>=40,I66>=30),IF(AND($N$2>=$T$2,$N$2<=$U$2),_xlfn.IFS(P66>=$AD$2,$AD$1,P66>=$AC$2,$AC$1,P66>=$AB$2,$AB$1,P66>=$AA$2,$AA$1,P66>=$Z$2,$Z$1,P66>=$Y$2,$Y$1,P66>=$X$2,$X$1,P66>=$W$2,$W$1,P66<$W$2,$V$1),(IF(AND($N$2>=$T$3,$N$2<$U$3),_xlfn.IFS(P66>=$AD$3,$AD$1,P66>=$AC$3,$AC$1,P66>=$AB$3,$AB$1,P66>=$AA$3,$AA$1,P66>=$Z$3,$Z$1,P66>=$Y$3,$Y$1,P66>=$X$3,$X$1,P66>=$W$3,$W$1,P66<$W$2,$V$1),(IF(AND($N$2>=$T$4,$N$2<$U$4),_xlfn.IFS(P66>=$AD$4,$AD$1,P66>=$AC$4,$AC$1,P66>=$AB$4,$AB$1,P66>=$AA$4,$AA$1,P66>=$Z$4,$Z$1,P66>=$Y$4,$Y$1,P66>=$X$4,$X$1,P66>=$W$4,$W$1,P66<$W$2,$V$1),(IF(AND($N$2>=$T$5,$N$2<$U$5),_xlfn.IFS(P66>=$AD$5,$AD$1,P66>=$AC$5,$AC$1,P66>=$AB$5,$AB$1,P66>=$AA$5,$AA$1,P66>=$Z$5,$Z$1,P66>=$Y$5,$Y$1,P66>=$X$5,$X$1,P66>=$W$5,$W$1,P66<$W$2,$V$1),(IF(AND($N$2>=$T$6,$N$2<$U$6),_xlfn.IFS(P66>=$AD$6,$AD$1,P66>=$AC$6,$AC$1,P66>=$AB$6,$AB$1,P66>=$AA$6,$AA$1,P66>=$Z$6,$Z$1,P66>=$Y$6,$Y$1,P66>=$X$6,$X$1,P66>=$W$6,$W$1,P66<$W$2,$V$1),(IF(AND($N$2>=$T$7,$N$2<$U$7),_xlfn.IFS(P66>=$AD$7,$AD$1,P66>=$AC$7,$AC$1,P66>=$AB$7,$AB$1,P66>=$AA$7,$AA$1,P66>=$Z$7,$Z$1,P66>=$Y$7,$Y$1,P66>=$X$7,$X$1,P66>=$W$7,$W$1,P66<$W$2,$V$1),(IF(AND($N$2>=$T$8,$N$2<$U$8),_xlfn.IFS(P66>=$AD$8,$AD$1,P66>=$AC$8,$AC$1,P66>=$AB$8,$AB$1,P66>=$AA$8,$AA$1,P66>=$Z$8,$Z$1,P66>=$Y$8,$Y$1,P66>=$X$8,$X$1,P66>=$W$8,$W$1,P66<$W$2,$V$1),(IF(AND($N$2>=$T$9,$N$2<$U$9),_xlfn.IFS(P66>=$AD$9,$AD$1,P66>=$AC$9,$AC$1,P66>=$AB$9,$AB$1,P66>=$AA$9,$AA$1,P66>=$Z$9,$Z$1,P66>=$Y$9,$Y$1,P66>=$X$9,$X$1,P66>=$W$9,$W$1),$W$1))))))))))))))),IF(AND($N$2>=$T$2,$N$2<=$U$2),IF(P66>=$W$2,$W$1,$V$1),IF(AND($N$2>=$T$3,$N$2<$U$3),IF(P66>=$W$3,$W$1,$V$1),IF(AND($N$2>=$T$4,$N$2<$U$4),IF(P66>=$W$4,$W$1,$V$1),IF(AND($N$2>=$T$5,$N$2<$U$5),IF(P66>=$W$5,$W$1,$V$1),IF(AND($N$2>=$T$6,$N$2<$U$6),IF(P66>=$W$6,$W$1,$V$1),IF(AND($N$2>=$T$7,$N$2<$U$7),IF(P66>=$W$7,$W$1,$V$1),IF(AND($N$2>=$T$8,$N$2<$U$8),IF(P66>=$W$8,$W$1,$V$1),IF(AND($N$2>=$T$9,$N$2<$U$9),IF(P66>=$W$9,$W$1,$V$1),""))))))))),"") -> FD | M66: =IF(E66<>"",IF(AND(E66<>"GR",E66>=40,J66>=30),_xlfn.IFS(Q66>=$AG$2,$AD$19,Q66>=$AG$3,$AC$19,Q66>=$AG$4,$AB$19,Q66>=$AG$5,$AA$19,Q66>=$AG$6,$Z$19,Q66>=$AG$7,$Y$19,Q66>=$AG$8,$X$19,Q66>=$AG$9,$V$19),L66),"") -> CB | P66: =IF(I66>0,ROUND((10*((I66-$N$2)/$O$2)+50),0),0) -> 45 | Q66: =IF(AND(E66<>"",E66<>"GR"),IF(J66>0,ROUND((10*((J66-$N$2)/$O$2)+50),0),0),P66) -> 56 | R66: =ROUND(((I66-$N$2)/$O$2),2) -> -0.54
A67: Öğrenci | B67: 66 | C67: 28 | D67: 74 | E67: GR | F67: =IF(E67="GR",D67,E67) -> 74 | G67: =IF(C67="GR",0,C67) -> 28 | H67: =IF(D67="GR",0,D67) -> 74 | I67: =(G67*0.4)+(H67*0.6) -> 55.6 | J67: 55.6 | K67: 3091.36 | L67: =IF(D67<>"",IF(AND(H67>=40,I67>=30),IF(AND($N$2>=$T$2,$N$2<=$U$2),_xlfn.IFS(P67>=$AD$2,$AD$1,P67>=$AC$2,$AC$1,P67>=$AB$2,$AB$1,P67>=$AA$2,$AA$1,P67>=$Z$2,$Z$1,P67>=$Y$2,$Y$1,P67>=$X$2,$X$1,P67>=$W$2,$W$1,P67<$W$2,$V$1),(IF(AND($N$2>=$T$3,$N$2<$U$3),_xlfn.IFS(P67>=$AD$3,$AD$1,P67>=$AC$3,$AC$1,P67>=$AB$3,$AB$1,P67>=$AA$3,$AA$1,P67>=$Z$3,$Z$1,P67>=$Y$3,$Y$1,P67>=$X$3,$X$1,P67>=$W$3,$W$1,P67<$W$2,$V$1),(IF(AND($N$2>=$T$4,$N$2<$U$4),_xlfn.IFS(P67>=$AD$4,$AD$1,P67>=$AC$4,$AC$1,P67>=$AB$4,$AB$1,P67>=$AA$4,$AA$1,P67>=$Z$4,$Z$1,P67>=$Y$4,$Y$1,P67>=$X$4,$X$1,P67>=$W$4,$W$1,P67<$W$2,$V$1),(IF(AND($N$2>=$T$5,$N$2<$U$5),_xlfn.IFS(P67>=$AD$5,$AD$1,P67>=$AC$5,$AC$1,P67>=$AB$5,$AB$1,P67>=$AA$5,$AA$1,P67>=$Z$5,$Z$1,P67>=$Y$5,$Y$1,P67>=$X$5,$X$1,P67>=$W$5,$W$1,P67<$W$2,$V$1),(IF(AND($N$2>=$T$6,$N$2<$U$6),_xlfn.IFS(P67>=$AD$6,$AD$1,P67>=$AC$6,$AC$1,P67>=$AB$6,$AB$1,P67>=$AA$6,$AA$1,P67>=$Z$6,$Z$1,P67>=$Y$6,$Y$1,P67>=$X$6,$X$1,P67>=$W$6,$W$1,P67<$W$2,$V$1),(IF(AND($N$2>=$T$7,$N$2<$U$7),_xlfn.IFS(P67>=$AD$7,$AD$1,P67>=$AC$7,$AC$1,P67>=$AB$7,$AB$1,P67>=$AA$7,$AA$1,P67>=$Z$7,$Z$1,P67>=$Y$7,$Y$1,P67>=$X$7,$X$1,P67>=$W$7,$W$1,P67<$W$2,$V$1),(IF(AND($N$2>=$T$8,$N$2<$U$8),_xlfn.IFS(P67>=$AD$8,$AD$1,P67>=$AC$8,$AC$1,P67>=$AB$8,$AB$1,P67>=$AA$8,$AA$1,P67>=$Z$8,$Z$1,P67>=$Y$8,$Y$1,P67>=$X$8,$X$1,P67>=$W$8,$W$1,P67<$W$2,$V$1),(IF(AND($N$2>=$T$9,$N$2<$U$9),_xlfn.IFS(P67>=$AD$9,$AD$1,P67>=$AC$9,$AC$1,P67>=$AB$9,$AB$1,P67>=$AA$9,$AA$1,P67>=$Z$9,$Z$1,P67>=$Y$9,$Y$1,P67>=$X$9,$X$1,P67>=$W$9,$W$1),$W$1))))))))))))))),IF(AND($N$2>=$T$2,$N$2<=$U$2),IF(P67>=$W$2,$W$1,$V$1),IF(AND($N$2>=$T$3,$N$2<$U$3),IF(P67>=$W$3,$W$1,$V$1),IF(AND($N$2>=$T$4,$N$2<$U$4),IF(P67>=$W$4,$W$1,$V$1),IF(AND($N$2>=$T$5,$N$2<$U$5),IF(P67>=$W$5,$W$1,$V$1),IF(AND($N$2>=$T$6,$N$2<$U$6),IF(P67>=$W$6,$W$1,$V$1),IF(AND($N$2>=$T$7,$N$2<$U$7),IF(P67>=$W$7,$W$1,$V$1),IF(AND($N$2>=$T$8,$N$2<$U$8),IF(P67>=$W$8,$W$1,$V$1),IF(AND($N$2>=$T$9,$N$2<$U$9),IF(P67>=$W$9,$W$1,$V$1),""))))))))),"") -> CB | M67: =IF(E67<>"",IF(AND(E67<>"GR",E67>=40,J67>=30),_xlfn.IFS(Q67>=$AG$2,$AD$19,Q67>=$AG$3,$AC$19,Q67>=$AG$4,$AB$19,Q67>=$AG$5,$AA$19,Q67>=$AG$6,$Z$19,Q67>=$AG$7,$Y$19,Q67>=$AG$8,$X$19,Q67>=$AG$9,$V$19),L67),"") -> CB | P67: 56 | Q67: 56 | R67: 0.61
A68: Öğrenci | B68: 67 | C68: 50 | D68: 59 | E68: GR | F68: 59 | G68: 50 | H68: 59 | I68: 55.4 | J68: 55.4 | K68: 3069.16 | L68: =IF(D68<>"",IF(AND(H68>=40,I68>=30),IF(AND($N$2>=$T$2,$N$2<=$U$2),_xlfn.IFS(P68>=$AD$2,$AD$1,P68>=$AC$2,$AC$1,P68>=$AB$2,$AB$1,P68>=$AA$2,$AA$1,P68>=$Z$2,$Z$1,P68>=$Y$2,$Y$1,P68>=$X$2,$X$1,P68>=$W$2,$W$1,P68<$W$2,$V$1),(IF(AND($N$2>=$T$3,$N$2<$U$3),_xlfn.IFS(P68>=$AD$3,$AD$1,P68>=$AC$3,$AC$1,P68>=$AB$3,$AB$1,P68>=$AA$3,$AA$1,P68>=$Z$3,$Z$1,P68>=$Y$3,$Y$1,P68>=$X$3,$X$1,P68>=$W$3,$W$1,P68<$W$2,$V$1),(IF(AND($N$2>=$T$4,$N$2<$U$4),_xlfn.IFS(P68>=$AD$4,$AD$1,P68>=$AC$4,$AC$1,P68>=$AB$4,$AB$1,P68>=$AA$4,$AA$1,P68>=$Z$4,$Z$1,P68>=$Y$4,$Y$1,P68>=$X$4,$X$1,P68>=$W$4,$W$1,P68<$W$2,$V$1),(IF(AND($N$2>=$T$5,$N$2<$U$5),_xlfn.IFS(P68>=$AD$5,$AD$1,P68>=$AC$5,$AC$1,P68>=$AB$5,$AB$1,P68>=$AA$5,$AA$1,P68>=$Z$5,$Z$1,P68>=$Y$5,$Y$1,P68>=$X$5,$X$1,P68>=$W$5,$W$1,P68<$W$2,$V$1),(IF(AND($N$2>=$T$6,$N$2<$U$6),_xlfn.IFS(P68>=$AD$6,$AD$1,P68>=$AC$6,$AC$1,P68>=$AB$6,$AB$1,P68>=$AA$6,$AA$1,P68>=$Z$6,$Z$1,P68>=$Y$6,$Y$1,P68>=$X$6,$X$1,P68>=$W$6,$W$1,P68<$W$2,$V$1),(IF(AND($N$2>=$T$7,$N$2<$U$7),_xlfn.IFS(P68>=$AD$7,$AD$1,P68>=$AC$7,$AC$1,P68>=$AB$7,$AB$1,P68>=$AA$7,$AA$1,P68>=$Z$7,$Z$1,P68>=$Y$7,$Y$1,P68>=$X$7,$X$1,P68>=$W$7,$W$1,P68<$W$2,$V$1),(IF(AND($N$2>=$T$8,$N$2<$U$8),_xlfn.IFS(P68>=$AD$8,$AD$1,P68>=$AC$8,$AC$1,P68>=$AB$8,$AB$1,P68>=$AA$8,$AA$1,P68>=$Z$8,$Z$1,P68>=$Y$8,$Y$1,P68>=$X$8,$X$1,P68>=$W$8,$W$1,P68<$W$2,$V$1),(IF(AND($N$2>=$T$9,$N$2<$U$9),_xlfn.IFS(P68>=$AD$9,$AD$1,P68>=$AC$9,$AC$1,P68>=$AB$9,$AB$1,P68>=$AA$9,$AA$1,P68>=$Z$9,$Z$1,P68>=$Y$9,$Y$1,P68>=$X$9,$X$1,P68>=$W$9,$W$1),$W$1))))))))))))))),IF(AND($N$2>=$T$2,$N$2<=$U$2),IF(P68>=$W$2,$W$1,$V$1),IF(AND($N$2>=$T$3,$N$2<$U$3),IF(P68>=$W$3,$W$1,$V$1),IF(AND($N$2>=$T$4,$N$2<$U$4),IF(P68>=$W$4,$W$1,$V$1),IF(AND($N$2>=$T$5,$N$2<$U$5),IF(P68>=$W$5,$W$1,$V$1),IF(AND($N$2>=$T$6,$N$2<$U$6),IF(P68>=$W$6,$W$1,$V$1),IF(AND($N$2>=$T$7,$N$2<$U$7),IF(P68>=$W$7,$W$1,$V$1),IF(AND($N$2>=$T$8,$N$2<$U$8),IF(P68>=$W$8,$W$1,$V$1),IF(AND($N$2>=$T$9,$N$2<$U$9),IF(P68>=$W$9,$W$1,$V$1),""))))))))),"") -> CB | M68: =IF(E68<>"",IF(AND(E68<>"GR",E68>=40,J68>=30),_xlfn.IFS(Q68>=$AG$2,$AD$19,Q68>=$AG$3,$AC$19,Q68>=$AG$4,$AB$19,Q68>=$AG$5,$AA$19,Q68>=$AG$6,$Z$19,Q68>=$AG$7,$Y$19,Q68>=$AG$8,$X$19,Q68>=$AG$9,$V$19),L68),"") -> CB | P68: 56 | Q68: 56 | R68: 0.6
A69: Öğrenci | B69: 68 | C69: 40 | D69: 65 | E69: GR | F69: 65 | G69: 40 | H69: 65 | I69: 55 | J69: 55 | K69: 3025 | L69: =IF(D69<>"",IF(AND(H69>=40,I69>=30),IF(AND($N$2>=$T$2,$N$2<=$U$2),_xlfn.IFS(P69>=$AD$2,$AD$1,P69>=$AC$2,$AC$1,P69>=$AB$2,$AB$1,P69>=$AA$2,$AA$1,P69>=$Z$2,$Z$1,P69>=$Y$2,$Y$1,P69>=$X$2,$X$1,P69>=$W$2,$W$1,P69<$W$2,$V$1),(IF(AND($N$2>=$T$3,$N$2<$U$3),_xlfn.IFS(P69>=$AD$3,$AD$1,P69>=$AC$3,$AC$1,P69>=$AB$3,$AB$1,P69>=$AA$3,$AA$1,P69>=$Z$3,$Z$1,P69>=$Y$3,$Y$1,P69>=$X$3,$X$1,P69>=$W$3,$W$1,P69<$W$2,$V$1),(IF(AND($N$2>=$T$4,$N$2<$U$4),_xlfn.IFS(P69>=$AD$4,$AD$1,P69>=$AC$4,$AC$1,P69>=$AB$4,$AB$1,P69>=$AA$4,$AA$1,P69>=$Z$4,$Z$1,P69>=$Y$4,$Y$1,P69>=$X$4,$X$1,P69>=$W$4,$W$1,P69<$W$2,$V$1),(IF(AND($N$2>=$T$5,$N$2<$U$5),_xlfn.IFS(P69>=$AD$5,$AD$1,P69>=$AC$5,$AC$1,P69>=$AB$5,$AB$1,P69>=$AA$5,$AA$1,P69>=$Z$5,$Z$1,P69>=$Y$5,$Y$1,P69>=$X$5,$X$1,P69>=$W$5,$W$1,P69<$W$2,$V$1),(IF(AND($N$2>=$T$6,$N$2<$U$6),_xlfn.IFS(P69>=$AD$6,$AD$1,P69>=$AC$6,$AC$1,P69>=$AB$6,$AB$1,P69>=$AA$6,$AA$1,P69>=$Z$6,$Z$1,P69>=$Y$6,$Y$1,P69>=$X$6,$X$1,P69>=$W$6,$W$1,P69<$W$2,$V$1),(IF(AND($N$2>=$T$7,$N$2<$U$7),_xlfn.IFS(P69>=$AD$7,$AD$1,P69>=$AC$7,$AC$1,P69>=$AB$7,$AB$1,P69>=$AA$7,$AA$1,P69>=$Z$7,$Z$1,P69>=$Y$7,$Y$1,P69>=$X$7,$X$1,P69>=$W$7,$W$1,P69<$W$2,$V$1),(IF(AND($N$2>=$T$8,$N$2<$U$8),_xlfn.IFS(P69>=$AD$8,$AD$1,P69>=$AC$8,$AC$1,P69>=$AB$8,$AB$1,P69>=$AA$8,$AA$1,P69>=$Z$8,$Z$1,P69>=$Y$8,$Y$1,P69>=$X$8,$X$1,P69>=$W$8,$W$1,P69<$W$2,$V$1),(IF(AND($N$2>=$T$9,$N$2<$U$9),_xlfn.IFS(P69>=$AD$9,$AD$1,P69>=$AC$9,$AC$1,P69>=$AB$9,$AB$1,P69>=$AA$9,$AA$1,P69>=$Z$9,$Z$1,P69>=$Y$9,$Y$1,P69>=$X$9,$X$1,P69>=$W$9,$W$1),$W$1))))))))))))))),IF(AND($N$2>=$T$2,$N$2<=$U$2),IF(P69>=$W$2,$W$1,$V$1),IF(AND($N$2>=$T$3,$N$2<$U$3),IF(P69>=$W$3,$W$1,$V$1),IF(AND($N$2>=$T$4,$N$2<$U$4),IF(P69>=$W$4,$W$1,$V$1),IF(AND($N$2>=$T$5,$N$2<$U$5),IF(P69>=$W$5,$W$1,$V$1),IF(AND($N$2>=$T$6,$N$2<$U$6),IF(P69>=$W$6,$W$1,$V$1),IF(AND($N$2>=$T$7,$N$2<$U$7),IF(P69>=$W$7,$W$1,$V$1),IF(AND($N$2>=$T$8,$N$2<$U$8),IF(P69>=$W$8,$W$1,$V$1),IF(AND($N$2>=$T$9,$N$2<$U$9),IF(P69>=$W$9,$W$1,$V$1),""))))))))),"") -> CB | M69: =IF(E69<>"",IF(AND(E69<>"GR",E69>=40,J69>=30),_xlfn.IFS(Q69>=$AG$2,$AD$19,Q69>=$AG$3,$AC$19,Q69>=$AG$4,$AB$19,Q69>=$AG$5,$AA$19,Q69>=$AG$6,$Z$19,Q69>=$AG$7,$Y$19,Q69>=$AG$8,$X$19,Q69>=$AG$9,$V$19),L69),"") -> CB | P69: 56 | Q69: 56 | R69: 0.57
A70: Öğrenci | B70: 69 | C70: 43 | D70: 62 | E70: GR | F70: 62 | G70: 43 | H70: 62 | I70: 54.4 | J70: 54.4 | K70: 2959.36 | L70: =IF(D70<>"",IF(AND(H70>=40,I70>=30),IF(AND($N$2>=$T$2,$N$2<=$U$2),_xlfn.IFS(P70>=$AD$2,$AD$1,P70>=$AC$2,$AC$1,P70>=$AB$2,$AB$1,P70>=$AA$2,$AA$1,P70>=$Z$2,$Z$1,P70>=$Y$2,$Y$1,P70>=$X$2,$X$1,P70>=$W$2,$W$1,P70<$W$2,$V$1),(IF(AND($N$2>=$T$3,$N$2<$U$3),_xlfn.IFS(P70>=$AD$3,$AD$1,P70>=$AC$3,$AC$1,P70>=$AB$3,$AB$1,P70>=$AA$3,$AA$1,P70>=$Z$3,$Z$1,P70>=$Y$3,$Y$1,P70>=$X$3,$X$1,P70>=$W$3,$W$1,P70<$W$2,$V$1),(IF(AND($N$2>=$T$4,$N$2<$U$4),_xlfn.IFS(P70>=$AD$4,$AD$1,P70>=$AC$4,$AC$1,P70>=$AB$4,$AB$1,P70>=$AA$4,$AA$1,P70>=$Z$4,$Z$1,P70>=$Y$4,$Y$1,P70>=$X$4,$X$1,P70>=$W$4,$W$1,P70<$W$2,$V$1),(IF(AND($N$2>=$T$5,$N$2<$U$5),_xlfn.IFS(P70>=$AD$5,$AD$1,P70>=$AC$5,$AC$1,P70>=$AB$5,$AB$1,P70>=$AA$5,$AA$1,P70>=$Z$5,$Z$1,P70>=$Y$5,$Y$1,P70>=$X$5,$X$1,P70>=$W$5,$W$1,P70<$W$2,$V$1),(IF(AND($N$2>=$T$6,$N$2<$U$6),_xlfn.IFS(P70>=$AD$6,$AD$1,P70>=$AC$6,$AC$1,P70>=$AB$6,$AB$1,P70>=$AA$6,$AA$1,P70>=$Z$6,$Z$1,P70>=$Y$6,$Y$1,P70>=$X$6,$X$1,P70>=$W$6,$W$1,P70<$W$2,$V$1),(IF(AND($N$2>=$T$7,$N$2<$U$7),_xlfn.IFS(P70>=$AD$7,$AD$1,P70>=$AC$7,$AC$1,P70>=$AB$7,$AB$1,P70>=$AA$7,$AA$1,P70>=$Z$7,$Z$1,P70>=$Y$7,$Y$1,P70>=$X$7,$X$1,P70>=$W$7,$W$1,P70<$W$2,$V$1),(IF(AND($N$2>=$T$8,$N$2<$U$8),_xlfn.IFS(P70>=$AD$8,$AD$1,P70>=$AC$8,$AC$1,P70>=$AB$8,$AB$1,P70>=$AA$8,$AA$1,P70>=$Z$8,$Z$1,P70>=$Y$8,$Y$1,P70>=$X$8,$X$1,P70>=$W$8,$W$1,P70<$W$2,$V$1),(IF(AND($N$2>=$T$9,$N$2<$U$9),_xlfn.IFS(P70>=$AD$9,$AD$1,P70>=$AC$9,$AC$1,P70>=$AB$9,$AB$1,P70>=$AA$9,$AA$1,P70>=$Z$9,$Z$1,P70>=$Y$9,$Y$1,P70>=$X$9,$X$1,P70>=$W$9,$W$1),$W$1))))))))))))))),IF(AND($N$2>=$T$2,$N$2<=$U$2),IF(P70>=$W$2,$W$1,$V$1),IF(AND($N$2>=$T$3,$N$2<$U$3),IF(P70>=$W$3,$W$1,$V$1),IF(AND($N$2>=$T$4,$N$2<$U$4),IF(P70>=$W$4,$W$1,$V$1),IF(AND($N$2>=$T$5,$N$2<$U$5),IF(P70>=$W$5,$W$1,$V$1),IF(AND($N$2>=$T$6,$N$2<$U$6),IF(P70>=$W$6,$W$1,$V$1),IF(AND($N$2>=$T$7,$N$2<$U$7),IF(P70>=$W$7,$W$1,$V$1),IF(AND($N$2>=$T$8,$N$2<$U$8),IF(P70>=$W$8,$W$1,$V$1),IF(AND($N$2>=$T$9,$N$2<$U$9),IF(P70>=$W$9,$W$1,$V$1),""))))))))),"") -> CB | M70: =IF(E70<>"",IF(AND(E70<>"GR",E70>=40,J70>=30),_xlfn.IFS(Q70>=$AG$2,$AD$19,Q70>=$AG$3,$AC$19,Q70>=$AG$4,$AB$19,Q70>=$AG$5,$AA$19,Q70>=$AG$6,$Z$19,Q70>=$AG$7,$Y$19,Q70>=$AG$8,$X$19,Q70>=$AG$9,$V$19),L70),"") -> CB | P70: 55 | Q70: 55 | R70: 0.53
A71: Öğrenci | B71: 70 | C71: 18 | D71: 78 | E71: GR | F71: 78 | G71: 18 | H71: 78 | I71: 54 | J71: 54 | K71: 2916 | L71: =IF(D71<>"",IF(AND(H71>=40,I71>=30),IF(AND($N$2>=$T$2,$N$2<=$U$2),_xlfn.IFS(P71>=$AD$2,$AD$1,P71>=$AC$2,$AC$1,P71>=$AB$2,$AB$1,P71>=$AA$2,$AA$1,P71>=$Z$2,$Z$1,P71>=$Y$2,$Y$1,P71>=$X$2,$X$1,P71>=$W$2,$W$1,P71<$W$2,$V$1),(IF(AND($N$2>=$T$3,$N$2<$U$3),_xlfn.IFS(P71>=$AD$3,$AD$1,P71>=$AC$3,$AC$1,P71>=$AB$3,$AB$1,P71>=$AA$3,$AA$1,P71>=$Z$3,$Z$1,P71>=$Y$3,$Y$1,P71>=$X$3,$X$1,P71>=$W$3,$W$1,P71<$W$2,$V$1),(IF(AND($N$2>=$T$4,$N$2<$U$4),_xlfn.IFS(P71>=$AD$4,$AD$1,P71>=$AC$4,$AC$1,P71>=$AB$4,$AB$1,P71>=$AA$4,$AA$1,P71>=$Z$4,$Z$1,P71>=$Y$4,$Y$1,P71>=$X$4,$X$1,P71>=$W$4,$W$1,P71<$W$2,$V$1),(IF(AND($N$2>=$T$5,$N$2<$U$5),_xlfn.IFS(P71>=$AD$5,$AD$1,P71>=$AC$5,$AC$1,P71>=$AB$5,$AB$1,P71>=$AA$5,$AA$1,P71>=$Z$5,$Z$1,P71>=$Y$5,$Y$1,P71>=$X$5,$X$1,P71>=$W$5,$W$1,P71<$W$2,$V$1),(IF(AND($N$2>=$T$6,$N$2<$U$6),_xlfn.IFS(P71>=$AD$6,$AD$1,P71>=$AC$6,$AC$1,P71>=$AB$6,$AB$1,P71>=$AA$6,$AA$1,P71>=$Z$6,$Z$1,P71>=$Y$6,$Y$1,P71>=$X$6,$X$1,P71>=$W$6,$W$1,P71<$W$2,$V$1),(IF(AND($N$2>=$T$7,$N$2<$U$7),_xlfn.IFS(P71>=$AD$7,$AD$1,P71>=$AC$7,$AC$1,P71>=$AB$7,$AB$1,P71>=$AA$7,$AA$1,P71>=$Z$7,$Z$1,P71>=$Y$7,$Y$1,P71>=$X$7,$X$1,P71>=$W$7,$W$1,P71<$W$2,$V$1),(IF(AND($N$2>=$T$8,$N$2<$U$8),_xlfn.IFS(P71>=$AD$8,$AD$1,P71>=$AC$8,$AC$1,P71>=$AB$8,$AB$1,P71>=$AA$8,$AA$1,P71>=$Z$8,$Z$1,P71>=$Y$8,$Y$1,P71>=$X$8,$X$1,P71>=$W$8,$W$1,P71<$W$2,$V$1),(IF(AND($N$2>=$T$9,$N$2<$U$9),_xlfn.IFS(P71>=$AD$9,$AD$1,P71>=$AC$9,$AC$1,P71>=$AB$9,$AB$1,P71>=$AA$9,$AA$1,P71>=$Z$9,$Z$1,P71>=$Y$9,$Y$1,P71>=$X$9,$X$1,P71>=$W$9,$W$1),$W$1))))))))))))))),IF(AND($N$2>=$T$2,$N$2<=$U$2),IF(P71>=$W$2,$W$1,$V$1),IF(AND($N$2>=$T$3,$N$2<$U$3),IF(P71>=$W$3,$W$1,$V$1),IF(AND($N$2>=$T$4,$N$2<$U$4),IF(P71>=$W$4,$W$1,$V$1),IF(AND($N$2>=$T$5,$N$2<$U$5),IF(P71>=$W$5,$W$1,$V$1),IF(AND($N$2>=$T$6,$N$2<$U$6),IF(P71>=$W$6,$W$1,$V$1),IF(AND($N$2>=$T$7,$N$2<$U$7),IF(P71>=$W$7,$W$1,$V$1),IF(AND($N$2>=$T$8,$N$2<$U$8),IF(P71>=$W$8,$W$1,$V$1),IF(AND($N$2>=$T$9,$N$2<$U$9),IF(P71>=$W$9,$W$1,$V$1),""))))))))),"") -> CB | M71: =IF(E71<>"",IF(AND(E71<>"GR",E71>=40,J71>=30),_xlfn.IFS(Q71>=$AG$2,$AD$19,Q71>=$AG$3,$AC$19,Q71>=$AG$4,$AB$19,Q71>=$AG$5,$AA$19,Q71>=$AG$6,$Z$19,Q71>=$AG$7,$Y$19,Q71>=$AG$8,$X$19,Q71>=$AG$9,$V$19),L71),"") -> CB | P71: 55 | Q71: 55 | R71: 0.5
A72: Öğrenci | B72: 71 | C72: 40 | D72: 63 | E72: GR | F72: 63 | G72: 40 | H72: 63 | I72: 53.8 | J72: 53.8 | K72: 2894.44 | L72: =IF(D72<>"",IF(AND(H72>=40,I72>=30),IF(AND($N$2>=$T$2,$N$2<=$U$2),_xlfn.IFS(P72>=$AD$2,$AD$1,P72>=$AC$2,$AC$1,P72>=$AB$2,$AB$1,P72>=$AA$2,$AA$1,P72>=$Z$2,$Z$1,P72>=$Y$2,$Y$1,P72>=$X$2,$X$1,P72>=$W$2,$W$1,P72<$W$2,$V$1),(IF(AND($N$2>=$T$3,$N$2<$U$3),_xlfn.IFS(P72>=$AD$3,$AD$1,P72>=$AC$3,$AC$1,P72>=$AB$3,$AB$1,P72>=$AA$3,$AA$1,P72>=$Z$3,$Z$1,P72>=$Y$3,$Y$1,P72>=$X$3,$X$1,P72>=$W$3,$W$1,P72<$W$2,$V$1),(IF(AND($N$2>=$T$4,$N$2<$U$4),_xlfn.IFS(P72>=$AD$4,$AD$1,P72>=$AC$4,$AC$1,P72>=$AB$4,$AB$1,P72>=$AA$4,$AA$1,P72>=$Z$4,$Z$1,P72>=$Y$4,$Y$1,P72>=$X$4,$X$1,P72>=$W$4,$W$1,P72<$W$2,$V$1),(IF(AND($N$2>=$T$5,$N$2<$U$5),_xlfn.IFS(P72>=$AD$5,$AD$1,P72>=$AC$5,$AC$1,P72>=$AB$5,$AB$1,P72>=$AA$5,$AA$1,P72>=$Z$5,$Z$1,P72>=$Y$5,$Y$1,P72>=$X$5,$X$1,P72>=$W$5,$W$1,P72<$W$2,$V$1),(IF(AND($N$2>=$T$6,$N$2<$U$6),_xlfn.IFS(P72>=$AD$6,$AD$1,P72>=$AC$6,$AC$1,P72>=$AB$6,$AB$1,P72>=$AA$6,$AA$1,P72>=$Z$6,$Z$1,P72>=$Y$6,$Y$1,P72>=$X$6,$X$1,P72>=$W$6,$W$1,P72<$W$2,$V$1),(IF(AND($N$2>=$T$7,$N$2<$U$7),_xlfn.IFS(P72>=$AD$7,$AD$1,P72>=$AC$7,$AC$1,P72>=$AB$7,$AB$1,P72>=$AA$7,$AA$1,P72>=$Z$7,$Z$1,P72>=$Y$7,$Y$1,P72>=$X$7,$X$1,P72>=$W$7,$W$1,P72<$W$2,$V$1),(IF(AND($N$2>=$T$8,$N$2<$U$8),_xlfn.IFS(P72>=$AD$8,$AD$1,P72>=$AC$8,$AC$1,P72>=$AB$8,$AB$1,P72>=$AA$8,$AA$1,P72>=$Z$8,$Z$1,P72>=$Y$8,$Y$1,P72>=$X$8,$X$1,P72>=$W$8,$W$1,P72<$W$2,$V$1),(IF(AND($N$2>=$T$9,$N$2<$U$9),_xlfn.IFS(P72>=$AD$9,$AD$1,P72>=$AC$9,$AC$1,P72>=$AB$9,$AB$1,P72>=$AA$9,$AA$1,P72>=$Z$9,$Z$1,P72>=$Y$9,$Y$1,P72>=$X$9,$X$1,P72>=$W$9,$W$1),$W$1))))))))))))))),IF(AND($N$2>=$T$2,$N$2<=$U$2),IF(P72>=$W$2,$W$1,$V$1),IF(AND($N$2>=$T$3,$N$2<$U$3),IF(P72>=$W$3,$W$1,$V$1),IF(AND($N$2>=$T$4,$N$2<$U$4),IF(P72>=$W$4,$W$1,$V$1),IF(AND($N$2>=$T$5,$N$2<$U$5),IF(P72>=$W$5,$W$1,$V$1),IF(AND($N$2>=$T$6,$N$2<$U$6),IF(P72>=$W$6,$W$1,$V$1),IF(AND($N$2>=$T$7,$N$2<$U$7),IF(P72>=$W$7,$W$1,$V$1),IF(AND($N$2>=$T$8,$N$2<$U$8),IF(P72>=$W$8,$W$1,$V$1),IF(AND($N$2>=$T$9,$N$2<$U$9),IF(P72>=$W$9,$W$1,$V$1),""))))))))),"") -> CB | M72: =IF(E72<>"",IF(AND(E72<>"GR",E72>=40,J72>=30),_xlfn.IFS(Q72>=$AG$2,$AD$19,Q72>=$AG$3,$AC$19,Q72>=$AG$4,$AB$19,Q72>=$AG$5,$AA$19,Q72>=$AG$6,$Z$19,Q72>=$AG$7,$Y$19,Q72>=$AG$8,$X$19,Q72>=$AG$9,$V$19),L72),"") -> CB | P72: 55 | Q72: 55 | R72: 0.49
A73: Öğrenci | B73: 72 | C73: 40 | D73: 63 | E73: GR | F73: 63 | G73: 40 | H73: 63 | I73: 53.8 | J73: 53.8 | K73: 2894.44 | L73: =IF(D73<>"",IF(AND(H73>=40,I73>=30),IF(AND($N$2>=$T$2,$N$2<=$U$2),_xlfn.IFS(P73>=$AD$2,$AD$1,P73>=$AC$2,$AC$1,P73>=$AB$2,$AB$1,P73>=$AA$2,$AA$1,P73>=$Z$2,$Z$1,P73>=$Y$2,$Y$1,P73>=$X$2,$X$1,P73>=$W$2,$W$1,P73<$W$2,$V$1),(IF(AND($N$2>=$T$3,$N$2<$U$3),_xlfn.IFS(P73>=$AD$3,$AD$1,P73>=$AC$3,$AC$1,P73>=$AB$3,$AB$1,P73>=$AA$3,$AA$1,P73>=$Z$3,$Z$1,P73>=$Y$3,$Y$1,P73>=$X$3,$X$1,P73>=$W$3,$W$1,P73<$W$2,$V$1),(IF(AND($N$2>=$T$4,$N$2<$U$4),_xlfn.IFS(P73>=$AD$4,$AD$1,P73>=$AC$4,$AC$1,P73>=$AB$4,$AB$1,P73>=$AA$4,$AA$1,P73>=$Z$4,$Z$1,P73>=$Y$4,$Y$1,P73>=$X$4,$X$1,P73>=$W$4,$W$1,P73<$W$2,$V$1),(IF(AND($N$2>=$T$5,$N$2<$U$5),_xlfn.IFS(P73>=$AD$5,$AD$1,P73>=$AC$5,$AC$1,P73>=$AB$5,$AB$1,P73>=$AA$5,$AA$1,P73>=$Z$5,$Z$1,P73>=$Y$5,$Y$1,P73>=$X$5,$X$1,P73>=$W$5,$W$1,P73<$W$2,$V$1),(IF(AND($N$2>=$T$6,$N$2<$U$6),_xlfn.IFS(P73>=$AD$6,$AD$1,P73>=$AC$6,$AC$1,P73>=$AB$6,$AB$1,P73>=$AA$6,$AA$1,P73>=$Z$6,$Z$1,P73>=$Y$6,$Y$1,P73>=$X$6,$X$1,P73>=$W$6,$W$1,P73<$W$2,$V$1),(IF(AND($N$2>=$T$7,$N$2<$U$7),_xlfn.IFS(P73>=$AD$7,$AD$1,P73>=$AC$7,$AC$1,P73>=$AB$7,$AB$1,P73>=$AA$7,$AA$1,P73>=$Z$7,$Z$1,P73>=$Y$7,$Y$1,P73>=$X$7,$X$1,P73>=$W$7,$W$1,P73<$W$2,$V$1),(IF(AND($N$2>=$T$8,$N$2<$U$8),_xlfn.IFS(P73>=$AD$8,$AD$1,P73>=$AC$8,$AC$1,P73>=$AB$8,$AB$1,P73>=$AA$8,$AA$1,P73>=$Z$8,$Z$1,P73>=$Y$8,$Y$1,P73>=$X$8,$X$1,P73>=$W$8,$W$1,P73<$W$2,$V$1),(IF(AND($N$2>=$T$9,$N$2<$U$9),_xlfn.IFS(P73>=$AD$9,$AD$1,P73>=$AC$9,$AC$1,P73>=$AB$9,$AB$1,P73>=$AA$9,$AA$1,P73>=$Z$9,$Z$1,P73>=$Y$9,$Y$1,P73>=$X$9,$X$1,P73>=$W$9,$W$1),$W$1))))))))))))))),IF(AND($N$2>=$T$2,$N$2<=$U$2),IF(P73>=$W$2,$W$1,$V$1),IF(AND($N$2>=$T$3,$N$2<$U$3),IF(P73>=$W$3,$W$1,$V$1),IF(AND($N$2>=$T$4,$N$2<$U$4),IF(P73>=$W$4,$W$1,$V$1),IF(AND($N$2>=$T$5,$N$2<$U$5),IF(P73>=$W$5,$W$1,$V$1),IF(AND($N$2>=$T$6,$N$2<$U$6),IF(P73>=$W$6,$W$1,$V$1),IF(AND($N$2>=$T$7,$N$2<$U$7),IF(P73>=$W$7,$W$1,$V$1),IF(AND($N$2>=$T$8,$N$2<$U$8),IF(P73>=$W$8,$W$1,$V$1),IF(AND($N$2>=$T$9,$N$2<$U$9),IF(P73>=$W$9,$W$1,$V$1),""))))))))),"") -> CB | M73: =IF(E73<>"",IF(AND(E73<>"GR",E73>=40,J73>=30),_xlfn.IFS(Q73>=$AG$2,$AD$19,Q73>=$AG$3,$AC$19,Q73>=$AG$4,$AB$19,Q73>=$AG$5,$AA$19,Q73>=$AG$6,$Z$19,Q73>=$AG$7,$Y$19,Q73>=$AG$8,$X$19,Q73>=$AG$9,$V$19),L73),"") -> CB | P73: 55 | Q73: 55 | R73: 0.49
A74: Öğrenci | B74: 73 | C74: 67 | D74: 45 | E74: GR | F74: 45 | G74: 67 | H74: 45 | I74: 53.8 | J74: 53.8 | K74: 2894.44 | L74: =IF(D74<>"",IF(AND(H74>=40,I74>=30),IF(AND($N$2>=$T$2,$N$2<=$U$2),_xlfn.IFS(P74>=$AD$2,$AD$1,P74>=$AC$2,$AC$1,P74>=$AB$2,$AB$1,P74>=$AA$2,$AA$1,P74>=$Z$2,$Z$1,P74>=$Y$2,$Y$1,P74>=$X$2,$X$1,P74>=$W$2,$W$1,P74<$W$2,$V$1),(IF(AND($N$2>=$T$3,$N$2<$U$3),_xlfn.IFS(P74>=$AD$3,$AD$1,P74>=$AC$3,$AC$1,P74>=$AB$3,$AB$1,P74>=$AA$3,$AA$1,P74>=$Z$3,$Z$1,P74>=$Y$3,$Y$1,P74>=$X$3,$X$1,P74>=$W$3,$W$1,P74<$W$2,$V$1),(IF(AND($N$2>=$T$4,$N$2<$U$4),_xlfn.IFS(P74>=$AD$4,$AD$1,P74>=$AC$4,$AC$1,P74>=$AB$4,$AB$1,P74>=$AA$4,$AA$1,P74>=$Z$4,$Z$1,P74>=$Y$4,$Y$1,P74>=$X$4,$X$1,P74>=$W$4,$W$1,P74<$W$2,$V$1),(IF(AND($N$2>=$T$5,$N$2<$U$5),_xlfn.IFS(P74>=$AD$5,$AD$1,P74>=$AC$5,$AC$1,P74>=$AB$5,$AB$1,P74>=$AA$5,$AA$1,P74>=$Z$5,$Z$1,P74>=$Y$5,$Y$1,P74>=$X$5,$X$1,P74>=$W$5,$W$1,P74<$W$2,$V$1),(IF(AND($N$2>=$T$6,$N$2<$U$6),_xlfn.IFS(P74>=$AD$6,$AD$1,P74>=$AC$6,$AC$1,P74>=$AB$6,$AB$1,P74>=$AA$6,$AA$1,P74>=$Z$6,$Z$1,P74>=$Y$6,$Y$1,P74>=$X$6,$X$1,P74>=$W$6,$W$1,P74<$W$2,$V$1),(IF(AND($N$2>=$T$7,$N$2<$U$7),_xlfn.IFS(P74>=$AD$7,$AD$1,P74>=$AC$7,$AC$1,P74>=$AB$7,$AB$1,P74>=$AA$7,$AA$1,P74>=$Z$7,$Z$1,P74>=$Y$7,$Y$1,P74>=$X$7,$X$1,P74>=$W$7,$W$1,P74<$W$2,$V$1),(IF(AND($N$2>=$T$8,$N$2<$U$8),_xlfn.IFS(P74>=$AD$8,$AD$1,P74>=$AC$8,$AC$1,P74>=$AB$8,$AB$1,P74>=$AA$8,$AA$1,P74>=$Z$8,$Z$1,P74>=$Y$8,$Y$1,P74>=$X$8,$X$1,P74>=$W$8,$W$1,P74<$W$2,$V$1),(IF(AND($N$2>=$T$9,$N$2<$U$9),_xlfn.IFS(P74>=$AD$9,$AD$1,P74>=$AC$9,$AC$1,P74>=$AB$9,$AB$1,P74>=$AA$9,$AA$1,P74>=$Z$9,$Z$1,P74>=$Y$9,$Y$1,P74>=$X$9,$X$1,P74>=$W$9,$W$1),$W$1))))))))))))))),IF(AND($N$2>=$T$2,$N$2<=$U$2),IF(P74>=$W$2,$W$1,$V$1),IF(AND($N$2>=$T$3,$N$2<$U$3),IF(P74>=$W$3,$W$1,$V$1),IF(AND($N$2>=$T$4,$N$2<$U$4),IF(P74>=$W$4,$W$1,$V$1),IF(AND($N$2>=$T$5,$N$2<$U$5),IF(P74>=$W$5,$W$1,$V$1),IF(AND($N$2>=$T$6,$N$2<$U$6),IF(P74>=$W$6,$W$1,$V$1),IF(AND($N$2>=$T$7,$N$2<$U$7),IF(P74>=$W$7,$W$1,$V$1),IF(AND($N$2>=$T$8,$N$2<$U$8),IF(P74>=$W$8,$W$1,$V$1),IF(AND($N$2>=$T$9,$N$2<$U$9),IF(P74>=$W$9,$W$1,$V$1),""))))))))),"") -> CB | M74: =IF(E74<>"",IF(AND(E74<>"GR",E74>=40,J74>=30),_xlfn.IFS(Q74>=$AG$2,$AD$19,Q74>=$AG$3,$AC$19,Q74>=$AG$4,$AB$19,Q74>=$AG$5,$AA$19,Q74>=$AG$6,$Z$19,Q74>=$AG$7,$Y$19,Q74>=$AG$8,$X$19,Q74>=$AG$9,$V$19),L74),"") -> CB | P74: 55 | Q74: 55 | R74: 0.49
A75: Öğrenci | B75: 74 | C75: 34 | D75: 67 | E75: GR | F75: 67 | G75: 34 | H75: 67 | I75: 53.8 | J75: 53.8 | K75: 2894.44 | L75: =IF(D75<>"",IF(AND(H75>=40,I75>=30),IF(AND($N$2>=$T$2,$N$2<=$U$2),_xlfn.IFS(P75>=$AD$2,$AD$1,P75>=$AC$2,$AC$1,P75>=$AB$2,$AB$1,P75>=$AA$2,$AA$1,P75>=$Z$2,$Z$1,P75>=$Y$2,$Y$1,P75>=$X$2,$X$1,P75>=$W$2,$W$1,P75<$W$2,$V$1),(IF(AND($N$2>=$T$3,$N$2<$U$3),_xlfn.IFS(P75>=$AD$3,$AD$1,P75>=$AC$3,$AC$1,P75>=$AB$3,$AB$1,P75>=$AA$3,$AA$1,P75>=$Z$3,$Z$1,P75>=$Y$3,$Y$1,P75>=$X$3,$X$1,P75>=$W$3,$W$1,P75<$W$2,$V$1),(IF(AND($N$2>=$T$4,$N$2<$U$4),_xlfn.IFS(P75>=$AD$4,$AD$1,P75>=$AC$4,$AC$1,P75>=$AB$4,$AB$1,P75>=$AA$4,$AA$1,P75>=$Z$4,$Z$1,P75>=$Y$4,$Y$1,P75>=$X$4,$X$1,P75>=$W$4,$W$1,P75<$W$2,$V$1),(IF(AND($N$2>=$T$5,$N$2<$U$5),_xlfn.IFS(P75>=$AD$5,$AD$1,P75>=$AC$5,$AC$1,P75>=$AB$5,$AB$1,P75>=$AA$5,$AA$1,P75>=$Z$5,$Z$1,P75>=$Y$5,$Y$1,P75>=$X$5,$X$1,P75>=$W$5,$W$1,P75<$W$2,$V$1),(IF(AND($N$2>=$T$6,$N$2<$U$6),_xlfn.IFS(P75>=$AD$6,$AD$1,P75>=$AC$6,$AC$1,P75>=$AB$6,$AB$1,P75>=$AA$6,$AA$1,P75>=$Z$6,$Z$1,P75>=$Y$6,$Y$1,P75>=$X$6,$X$1,P75>=$W$6,$W$1,P75<$W$2,$V$1),(IF(AND($N$2>=$T$7,$N$2<$U$7),_xlfn.IFS(P75>=$AD$7,$AD$1,P75>=$AC$7,$AC$1,P75>=$AB$7,$AB$1,P75>=$AA$7,$AA$1,P75>=$Z$7,$Z$1,P75>=$Y$7,$Y$1,P75>=$X$7,$X$1,P75>=$W$7,$W$1,P75<$W$2,$V$1),(IF(AND($N$2>=$T$8,$N$2<$U$8),_xlfn.IFS(P75>=$AD$8,$AD$1,P75>=$AC$8,$AC$1,P75>=$AB$8,$AB$1,P75>=$AA$8,$AA$1,P75>=$Z$8,$Z$1,P75>=$Y$8,$Y$1,P75>=$X$8,$X$1,P75>=$W$8,$W$1,P75<$W$2,$V$1),(IF(AND($N$2>=$T$9,$N$2<$U$9),_xlfn.IFS(P75>=$AD$9,$AD$1,P75>=$AC$9,$AC$1,P75>=$AB$9,$AB$1,P75>=$AA$9,$AA$1,P75>=$Z$9,$Z$1,P75>=$Y$9,$Y$1,P75>=$X$9,$X$1,P75>=$W$9,$W$1),$W$1))))))))))))))),IF(AND($N$2>=$T$2,$N$2<=$U$2),IF(P75>=$W$2,$W$1,$V$1),IF(AND($N$2>=$T$3,$N$2<$U$3),IF(P75>=$W$3,$W$1,$V$1),IF(AND($N$2>=$T$4,$N$2<$U$4),IF(P75>=$W$4,$W$1,$V$1),IF(AND($N$2>=$T$5,$N$2<$U$5),IF(P75>=$W$5,$W$1,$V$1),IF(AND($N$2>=$T$6,$N$2<$U$6),IF(P75>=$W$6,$W$1,$V$1),IF(AND($N$2>=$T$7,$N$2<$U$7),IF(P75>=$W$7,$W$1,$V$1),IF(AND($N$2>=$T$8,$N$2<$U$8),IF(P75>=$W$8,$W$1,$V$1),IF(AND($N$2>=$T$9,$N$2<$U$9),IF(P75>=$W$9,$W$1,$V$1),""))))))))),"") -> CB | M75: =IF(E75<>"",IF(AND(E75<>"GR",E75>=40,J75>=30),_xlfn.IFS(Q75>=$AG$2,$AD$19,Q75>=$AG$3,$AC$19,Q75>=$AG$4,$AB$19,Q75>=$AG$5,$AA$19,Q75>=$AG$6,$Z$19,Q75>=$AG$7,$Y$19,Q75>=$AG$8,$X$19,Q75>=$AG$9,$V$19),L75),"") -> CB | P75: 55 | Q75: 55 | R75: 0.49
A76: Öğrenci | B76: 75 | C76: 40 | D76: 63 | E76: GR | F76: 63 | G76: 40 | H76: 63 | I76: 53.8 | J76: 53.8 | K76: 2894.44 | L76: =IF(D76<>"",IF(AND(H76>=40,I76>=30),IF(AND($N$2>=$T$2,$N$2<=$U$2),_xlfn.IFS(P76>=$AD$2,$AD$1,P76>=$AC$2,$AC$1,P76>=$AB$2,$AB$1,P76>=$AA$2,$AA$1,P76>=$Z$2,$Z$1,P76>=$Y$2,$Y$1,P76>=$X$2,$X$1,P76>=$W$2,$W$1,P76<$W$2,$V$1),(IF(AND($N$2>=$T$3,$N$2<$U$3),_xlfn.IFS(P76>=$AD$3,$AD$1,P76>=$AC$3,$AC$1,P76>=$AB$3,$AB$1,P76>=$AA$3,$AA$1,P76>=$Z$3,$Z$1,P76>=$Y$3,$Y$1,P76>=$X$3,$X$1,P76>=$W$3,$W$1,P76<$W$2,$V$1),(IF(AND($N$2>=$T$4,$N$2<$U$4),_xlfn.IFS(P76>=$AD$4,$AD$1,P76>=$AC$4,$AC$1,P76>=$AB$4,$AB$1,P76>=$AA$4,$AA$1,P76>=$Z$4,$Z$1,P76>=$Y$4,$Y$1,P76>=$X$4,$X$1,P76>=$W$4,$W$1,P76<$W$2,$V$1),(IF(AND($N$2>=$T$5,$N$2<$U$5),_xlfn.IFS(P76>=$AD$5,$AD$1,P76>=$AC$5,$AC$1,P76>=$AB$5,$AB$1,P76>=$AA$5,$AA$1,P76>=$Z$5,$Z$1,P76>=$Y$5,$Y$1,P76>=$X$5,$X$1,P76>=$W$5,$W$1,P76<$W$2,$V$1),(IF(AND($N$2>=$T$6,$N$2<$U$6),_xlfn.IFS(P76>=$AD$6,$AD$1,P76>=$AC$6,$AC$1,P76>=$AB$6,$AB$1,P76>=$AA$6,$AA$1,P76>=$Z$6,$Z$1,P76>=$Y$6,$Y$1,P76>=$X$6,$X$1,P76>=$W$6,$W$1,P76<$W$2,$V$1),(IF(AND($N$2>=$T$7,$N$2<$U$7),_xlfn.IFS(P76>=$AD$7,$AD$1,P76>=$AC$7,$AC$1,P76>=$AB$7,$AB$1,P76>=$AA$7,$AA$1,P76>=$Z$7,$Z$1,P76>=$Y$7,$Y$1,P76>=$X$7,$X$1,P76>=$W$7,$W$1,P76<$W$2,$V$1),(IF(AND($N$2>=$T$8,$N$2<$U$8),_xlfn.IFS(P76>=$AD$8,$AD$1,P76>=$AC$8,$AC$1,P76>=$AB$8,$AB$1,P76>=$AA$8,$AA$1,P76>=$Z$8,$Z$1,P76>=$Y$8,$Y$1,P76>=$X$8,$X$1,P76>=$W$8,$W$1,P76<$W$2,$V$1),(IF(AND($N$2>=$T$9,$N$2<$U$9),_xlfn.IFS(P76>=$AD$9,$AD$1,P76>=$AC$9,$AC$1,P76>=$AB$9,$AB$1,P76>=$AA$9,$AA$1,P76>=$Z$9,$Z$1,P76>=$Y$9,$Y$1,P76>=$X$9,$X$1,P76>=$W$9,$W$1),$W$1))))))))))))))),IF(AND($N$2>=$T$2,$N$2<=$U$2),IF(P76>=$W$2,$W$1,$V$1),IF(AND($N$2>=$T$3,$N$2<$U$3),IF(P76>=$W$3,$W$1,$V$1),IF(AND($N$2>=$T$4,$N$2<$U$4),IF(P76>=$W$4,$W$1,$V$1),IF(AND($N$2>=$T$5,$N$2<$U$5),IF(P76>=$W$5,$W$1,$V$1),IF(AND($N$2>=$T$6,$N$2<$U$6),IF(P76>=$W$6,$W$1,$V$1),IF(AND($N$2>=$T$7,$N$2<$U$7),IF(P76>=$W$7,$W$1,$V$1),IF(AND($N$2>=$T$8,$N$2<$U$8),IF(P76>=$W$8,$W$1,$V$1),IF(AND($N$2>=$T$9,$N$2<$U$9),IF(P76>=$W$9,$W$1,$V$1),""))))))))),"") -> CB | M76: =IF(E76<>"",IF(AND(E76<>"GR",E76>=40,J76>=30),_xlfn.IFS(Q76>=$AG$2,$AD$19,Q76>=$AG$3,$AC$19,Q76>=$AG$4,$AB$19,Q76>=$AG$5,$AA$19,Q76>=$AG$6,$Z$19,Q76>=$AG$7,$Y$19,Q76>=$AG$8,$X$19,Q76>=$AG$9,$V$19),L76),"") -> CB | P76: 55 | Q76: 55 | R76: 0.49
A77: Öğrenci | B77: 76 | C77: 29 | D77: 31 | E77: 70 | F77: 70 | G77: 29 | H77: 31 | I77: 30.2 | J77: 53.6 | K77: 912.04 | L77: =IF(D77<>"",IF(AND(H77>=40,I77>=30),IF(AND($N$2>=$T$2,$N$2<=$U$2),_xlfn.IFS(P77>=$AD$2,$AD$1,P77>=$AC$2,$AC$1,P77>=$AB$2,$AB$1,P77>=$AA$2,$AA$1,P77>=$Z$2,$Z$1,P77>=$Y$2,$Y$1,P77>=$X$2,$X$1,P77>=$W$2,$W$1,P77<$W$2,$V$1),(IF(AND($N$2>=$T$3,$N$2<$U$3),_xlfn.IFS(P77>=$AD$3,$AD$1,P77>=$AC$3,$AC$1,P77>=$AB$3,$AB$1,P77>=$AA$3,$AA$1,P77>=$Z$3,$Z$1,P77>=$Y$3,$Y$1,P77>=$X$3,$X$1,P77>=$W$3,$W$1,P77<$W$2,$V$1),(IF(AND($N$2>=$T$4,$N$2<$U$4),_xlfn.IFS(P77>=$AD$4,$AD$1,P77>=$AC$4,$AC$1,P77>=$AB$4,$AB$1,P77>=$AA$4,$AA$1,P77>=$Z$4,$Z$1,P77>=$Y$4,$Y$1,P77>=$X$4,$X$1,P77>=$W$4,$W$1,P77<$W$2,$V$1),(IF(AND($N$2>=$T$5,$N$2<$U$5),_xlfn.IFS(P77>=$AD$5,$AD$1,P77>=$AC$5,$AC$1,P77>=$AB$5,$AB$1,P77>=$AA$5,$AA$1,P77>=$Z$5,$Z$1,P77>=$Y$5,$Y$1,P77>=$X$5,$X$1,P77>=$W$5,$W$1,P77<$W$2,$V$1),(IF(AND($N$2>=$T$6,$N$2<$U$6),_xlfn.IFS(P77>=$AD$6,$AD$1,P77>=$AC$6,$AC$1,P77>=$AB$6,$AB$1,P77>=$AA$6,$AA$1,P77>=$Z$6,$Z$1,P77>=$Y$6,$Y$1,P77>=$X$6,$X$1,P77>=$W$6,$W$1,P77<$W$2,$V$1),(IF(AND($N$2>=$T$7,$N$2<$U$7),_xlfn.IFS(P77>=$AD$7,$AD$1,P77>=$AC$7,$AC$1,P77>=$AB$7,$AB$1,P77>=$AA$7,$AA$1,P77>=$Z$7,$Z$1,P77>=$Y$7,$Y$1,P77>=$X$7,$X$1,P77>=$W$7,$W$1,P77<$W$2,$V$1),(IF(AND($N$2>=$T$8,$N$2<$U$8),_xlfn.IFS(P77>=$AD$8,$AD$1,P77>=$AC$8,$AC$1,P77>=$AB$8,$AB$1,P77>=$AA$8,$AA$1,P77>=$Z$8,$Z$1,P77>=$Y$8,$Y$1,P77>=$X$8,$X$1,P77>=$W$8,$W$1,P77<$W$2,$V$1),(IF(AND($N$2>=$T$9,$N$2<$U$9),_xlfn.IFS(P77>=$AD$9,$AD$1,P77>=$AC$9,$AC$1,P77>=$AB$9,$AB$1,P77>=$AA$9,$AA$1,P77>=$Z$9,$Z$1,P77>=$Y$9,$Y$1,P77>=$X$9,$X$1,P77>=$W$9,$W$1),$W$1))))))))))))))),IF(AND($N$2>=$T$2,$N$2<=$U$2),IF(P77>=$W$2,$W$1,$V$1),IF(AND($N$2>=$T$3,$N$2<$U$3),IF(P77>=$W$3,$W$1,$V$1),IF(AND($N$2>=$T$4,$N$2<$U$4),IF(P77>=$W$4,$W$1,$V$1),IF(AND($N$2>=$T$5,$N$2<$U$5),IF(P77>=$W$5,$W$1,$V$1),IF(AND($N$2>=$T$6,$N$2<$U$6),IF(P77>=$W$6,$W$1,$V$1),IF(AND($N$2>=$T$7,$N$2<$U$7),IF(P77>=$W$7,$W$1,$V$1),IF(AND($N$2>=$T$8,$N$2<$U$8),IF(P77>=$W$8,$W$1,$V$1),IF(AND($N$2>=$T$9,$N$2<$U$9),IF(P77>=$W$9,$W$1,$V$1),""))))))))),"") -> FD | M77: =IF(E77<>"",IF(AND(E77<>"GR",E77>=40,J77>=30),_xlfn.IFS(Q77>=$AG$2,$AD$19,Q77>=$AG$3,$AC$19,Q77>=$AG$4,$AB$19,Q77>=$AG$5,$AA$19,Q77>=$AG$6,$Z$19,Q77>=$AG$7,$Y$19,Q77>=$AG$8,$X$19,Q77>=$AG$9,$V$19),L77),"") -> CB | P77: 39 | Q77: 55 | R77: -1.13
A78: Öğrenci | B78: 77 | C78: 38 | D78: 64 | E78: GR | F78: 64 | G78: 38 | H78: 64 | I78: 53.6 | J78: 53.6 | K78: 2872.96 | L78: =IF(D78<>"",IF(AND(H78>=40,I78>=30),IF(AND($N$2>=$T$2,$N$2<=$U$2),_xlfn.IFS(P78>=$AD$2,$AD$1,P78>=$AC$2,$AC$1,P78>=$AB$2,$AB$1,P78>=$AA$2,$AA$1,P78>=$Z$2,$Z$1,P78>=$Y$2,$Y$1,P78>=$X$2,$X$1,P78>=$W$2,$W$1,P78<$W$2,$V$1),(IF(AND($N$2>=$T$3,$N$2<$U$3),_xlfn.IFS(P78>=$AD$3,$AD$1,P78>=$AC$3,$AC$1,P78>=$AB$3,$AB$1,P78>=$AA$3,$AA$1,P78>=$Z$3,$Z$1,P78>=$Y$3,$Y$1,P78>=$X$3,$X$1,P78>=$W$3,$W$1,P78<$W$2,$V$1),(IF(AND($N$2>=$T$4,$N$2<$U$4),_xlfn.IFS(P78>=$AD$4,$AD$1,P78>=$AC$4,$AC$1,P78>=$AB$4,$AB$1,P78>=$AA$4,$AA$1,P78>=$Z$4,$Z$1,P78>=$Y$4,$Y$1,P78>=$X$4,$X$1,P78>=$W$4,$W$1,P78<$W$2,$V$1),(IF(AND($N$2>=$T$5,$N$2<$U$5),_xlfn.IFS(P78>=$AD$5,$AD$1,P78>=$AC$5,$AC$1,P78>=$AB$5,$AB$1,P78>=$AA$5,$AA$1,P78>=$Z$5,$Z$1,P78>=$Y$5,$Y$1,P78>=$X$5,$X$1,P78>=$W$5,$W$1,P78<$W$2,$V$1),(IF(AND($N$2>=$T$6,$N$2<$U$6),_xlfn.IFS(P78>=$AD$6,$AD$1,P78>=$AC$6,$AC$1,P78>=$AB$6,$AB$1,P78>=$AA$6,$AA$1,P78>=$Z$6,$Z$1,P78>=$Y$6,$Y$1,P78>=$X$6,$X$1,P78>=$W$6,$W$1,P78<$W$2,$V$1),(IF(AND($N$2>=$T$7,$N$2<$U$7),_xlfn.IFS(P78>=$AD$7,$AD$1,P78>=$AC$7,$AC$1,P78>=$AB$7,$AB$1,P78>=$AA$7,$AA$1,P78>=$Z$7,$Z$1,P78>=$Y$7,$Y$1,P78>=$X$7,$X$1,P78>=$W$7,$W$1,P78<$W$2,$V$1),(IF(AND($N$2>=$T$8,$N$2<$U$8),_xlfn.IFS(P78>=$AD$8,$AD$1,P78>=$AC$8,$AC$1,P78>=$AB$8,$AB$1,P78>=$AA$8,$AA$1,P78>=$Z$8,$Z$1,P78>=$Y$8,$Y$1,P78>=$X$8,$X$1,P78>=$W$8,$W$1,P78<$W$2,$V$1),(IF(AND($N$2>=$T$9,$N$2<$U$9),_xlfn.IFS(P78>=$AD$9,$AD$1,P78>=$AC$9,$AC$1,P78>=$AB$9,$AB$1,P78>=$AA$9,$AA$1,P78>=$Z$9,$Z$1,P78>=$Y$9,$Y$1,P78>=$X$9,$X$1,P78>=$W$9,$W$1),$W$1))))))))))))))),IF(AND($N$2>=$T$2,$N$2<=$U$2),IF(P78>=$W$2,$W$1,$V$1),IF(AND($N$2>=$T$3,$N$2<$U$3),IF(P78>=$W$3,$W$1,$V$1),IF(AND($N$2>=$T$4,$N$2<$U$4),IF(P78>=$W$4,$W$1,$V$1),IF(AND($N$2>=$T$5,$N$2<$U$5),IF(P78>=$W$5,$W$1,$V$1),IF(AND($N$2>=$T$6,$N$2<$U$6),IF(P78>=$W$6,$W$1,$V$1),IF(AND($N$2>=$T$7,$N$2<$U$7),IF(P78>=$W$7,$W$1,$V$1),IF(AND($N$2>=$T$8,$N$2<$U$8),IF(P78>=$W$8,$W$1,$V$1),IF(AND($N$2>=$T$9,$N$2<$U$9),IF(P78>=$W$9,$W$1,$V$1),""))))))))),"") -> CB | M78: =IF(E78<>"",IF(AND(E78<>"GR",E78>=40,J78>=30),_xlfn.IFS(Q78>=$AG$2,$AD$19,Q78>=$AG$3,$AC$19,Q78>=$AG$4,$AB$19,Q78>=$AG$5,$AA$19,Q78>=$AG$6,$Z$19,Q78>=$AG$7,$Y$19,Q78>=$AG$8,$X$19,Q78>=$AG$9,$V$19),L78),"") -> CB | P78: 55 | Q78: 55 | R78: 0.47
A79: Öğrenci | B79: 78 | C79: 43 | D79: 30 | E79: 60 | F79: 60 | G79: 43 | H79: 30 | I79: 35.2 | J79: 53.2 | K79: 1239.04 | L79: =IF(D79<>"",IF(AND(H79>=40,I79>=30),IF(AND($N$2>=$T$2,$N$2<=$U$2),_xlfn.IFS(P79>=$AD$2,$AD$1,P79>=$AC$2,$AC$1,P79>=$AB$2,$AB$1,P79>=$AA$2,$AA$1,P79>=$Z$2,$Z$1,P79>=$Y$2,$Y$1,P79>=$X$2,$X$1,P79>=$W$2,$W$1,P79<$W$2,$V$1),(IF(AND($N$2>=$T$3,$N$2<$U$3),_xlfn.IFS(P79>=$AD$3,$AD$1,P79>=$AC$3,$AC$1,P79>=$AB$3,$AB$1,P79>=$AA$3,$AA$1,P79>=$Z$3,$Z$1,P79>=$Y$3,$Y$1,P79>=$X$3,$X$1,P79>=$W$3,$W$1,P79<$W$2,$V$1),(IF(AND($N$2>=$T$4,$N$2<$U$4),_xlfn.IFS(P79>=$AD$4,$AD$1,P79>=$AC$4,$AC$1,P79>=$AB$4,$AB$1,P79>=$AA$4,$AA$1,P79>=$Z$4,$Z$1,P79>=$Y$4,$Y$1,P79>=$X$4,$X$1,P79>=$W$4,$W$1,P79<$W$2,$V$1),(IF(AND($N$2>=$T$5,$N$2<$U$5),_xlfn.IFS(P79>=$AD$5,$AD$1,P79>=$AC$5,$AC$1,P79>=$AB$5,$AB$1,P79>=$AA$5,$AA$1,P79>=$Z$5,$Z$1,P79>=$Y$5,$Y$1,P79>=$X$5,$X$1,P79>=$W$5,$W$1,P79<$W$2,$V$1),(IF(AND($N$2>=$T$6,$N$2<$U$6),_xlfn.IFS(P79>=$AD$6,$AD$1,P79>=$AC$6,$AC$1,P79>=$AB$6,$AB$1,P79>=$AA$6,$AA$1,P79>=$Z$6,$Z$1,P79>=$Y$6,$Y$1,P79>=$X$6,$X$1,P79>=$W$6,$W$1,P79<$W$2,$V$1),(IF(AND($N$2>=$T$7,$N$2<$U$7),_xlfn.IFS(P79>=$AD$7,$AD$1,P79>=$AC$7,$AC$1,P79>=$AB$7,$AB$1,P79>=$AA$7,$AA$1,P79>=$Z$7,$Z$1,P79>=$Y$7,$Y$1,P79>=$X$7,$X$1,P79>=$W$7,$W$1,P79<$W$2,$V$1),(IF(AND($N$2>=$T$8,$N$2<$U$8),_xlfn.IFS(P79>=$AD$8,$AD$1,P79>=$AC$8,$AC$1,P79>=$AB$8,$AB$1,P79>=$AA$8,$AA$1,P79>=$Z$8,$Z$1,P79>=$Y$8,$Y$1,P79>=$X$8,$X$1,P79>=$W$8,$W$1,P79<$W$2,$V$1),(IF(AND($N$2>=$T$9,$N$2<$U$9),_xlfn.IFS(P79>=$AD$9,$AD$1,P79>=$AC$9,$AC$1,P79>=$AB$9,$AB$1,P79>=$AA$9,$AA$1,P79>=$Z$9,$Z$1,P79>=$Y$9,$Y$1,P79>=$X$9,$X$1,P79>=$W$9,$W$1),$W$1))))))))))))))),IF(AND($N$2>=$T$2,$N$2<=$U$2),IF(P79>=$W$2,$W$1,$V$1),IF(AND($N$2>=$T$3,$N$2<$U$3),IF(P79>=$W$3,$W$1,$V$1),IF(AND($N$2>=$T$4,$N$2<$U$4),IF(P79>=$W$4,$W$1,$V$1),IF(AND($N$2>=$T$5,$N$2<$U$5),IF(P79>=$W$5,$W$1,$V$1),IF(AND($N$2>=$T$6,$N$2<$U$6),IF(P79>=$W$6,$W$1,$V$1),IF(AND($N$2>=$T$7,$N$2<$U$7),IF(P79>=$W$7,$W$1,$V$1),IF(AND($N$2>=$T$8,$N$2<$U$8),IF(P79>=$W$8,$W$1,$V$1),IF(AND($N$2>=$T$9,$N$2<$U$9),IF(P79>=$W$9,$W$1,$V$1),""))))))))),"") -> FD | M79: =IF(E79<>"",IF(AND(E79<>"GR",E79>=40,J79>=30),_xlfn.IFS(Q79>=$AG$2,$AD$19,Q79>=$AG$3,$AC$19,Q79>=$AG$4,$AB$19,Q79>=$AG$5,$AA$19,Q79>=$AG$6,$Z$19,Q79>=$AG$7,$Y$19,Q79>=$AG$8,$X$19,Q79>=$AG$9,$V$19),L79),"") -> CB | P79: 42 | Q79: 54 | R79: -0.79
A80: Öğrenci | B80: 79 | C80: 50 | D80: 55 | E80: GR | F80: 55 | G80: 50 | H80: 55 | I80: 53 | J80: 53 | K80: 2809 | L80: =IF(D80<>"",IF(AND(H80>=40,I80>=30),IF(AND($N$2>=$T$2,$N$2<=$U$2),_xlfn.IFS(P80>=$AD$2,$AD$1,P80>=$AC$2,$AC$1,P80>=$AB$2,$AB$1,P80>=$AA$2,$AA$1,P80>=$Z$2,$Z$1,P80>=$Y$2,$Y$1,P80>=$X$2,$X$1,P80>=$W$2,$W$1,P80<$W$2,$V$1),(IF(AND($N$2>=$T$3,$N$2<$U$3),_xlfn.IFS(P80>=$AD$3,$AD$1,P80>=$AC$3,$AC$1,P80>=$AB$3,$AB$1,P80>=$AA$3,$AA$1,P80>=$Z$3,$Z$1,P80>=$Y$3,$Y$1,P80>=$X$3,$X$1,P80>=$W$3,$W$1,P80<$W$2,$V$1),(IF(AND($N$2>=$T$4,$N$2<$U$4),_xlfn.IFS(P80>=$AD$4,$AD$1,P80>=$AC$4,$AC$1,P80>=$AB$4,$AB$1,P80>=$AA$4,$AA$1,P80>=$Z$4,$Z$1,P80>=$Y$4,$Y$1,P80>=$X$4,$X$1,P80>=$W$4,$W$1,P80<$W$2,$V$1),(IF(AND($N$2>=$T$5,$N$2<$U$5),_xlfn.IFS(P80>=$AD$5,$AD$1,P80>=$AC$5,$AC$1,P80>=$AB$5,$AB$1,P80>=$AA$5,$AA$1,P80>=$Z$5,$Z$1,P80>=$Y$5,$Y$1,P80>=$X$5,$X$1,P80>=$W$5,$W$1,P80<$W$2,$V$1),(IF(AND($N$2>=$T$6,$N$2<$U$6),_xlfn.IFS(P80>=$AD$6,$AD$1,P80>=$AC$6,$AC$1,P80>=$AB$6,$AB$1,P80>=$AA$6,$AA$1,P80>=$Z$6,$Z$1,P80>=$Y$6,$Y$1,P80>=$X$6,$X$1,P80>=$W$6,$W$1,P80<$W$2,$V$1),(IF(AND($N$2>=$T$7,$N$2<$U$7),_xlfn.IFS(P80>=$AD$7,$AD$1,P80>=$AC$7,$AC$1,P80>=$AB$7,$AB$1,P80>=$AA$7,$AA$1,P80>=$Z$7,$Z$1,P80>=$Y$7,$Y$1,P80>=$X$7,$X$1,P80>=$W$7,$W$1,P80<$W$2,$V$1),(IF(AND($N$2>=$T$8,$N$2<$U$8),_xlfn.IFS(P80>=$AD$8,$AD$1,P80>=$AC$8,$AC$1,P80>=$AB$8,$AB$1,P80>=$AA$8,$AA$1,P80>=$Z$8,$Z$1,P80>=$Y$8,$Y$1,P80>=$X$8,$X$1,P80>=$W$8,$W$1,P80<$W$2,$V$1),(IF(AND($N$2>=$T$9,$N$2<$U$9),_xlfn.IFS(P80>=$AD$9,$AD$1,P80>=$AC$9,$AC$1,P80>=$AB$9,$AB$1,P80>=$AA$9,$AA$1,P80>=$Z$9,$Z$1,P80>=$Y$9,$Y$1,P80>=$X$9,$X$1,P80>=$W$9,$W$1),$W$1))))))))))))))),IF(AND($N$2>=$T$2,$N$2<=$U$2),IF(P80>=$W$2,$W$1,$V$1),IF(AND($N$2>=$T$3,$N$2<$U$3),IF(P80>=$W$3,$W$1,$V$1),IF(AND($N$2>=$T$4,$N$2<$U$4),IF(P80>=$W$4,$W$1,$V$1),IF(AND($N$2>=$T$5,$N$2<$U$5),IF(P80>=$W$5,$W$1,$V$1),IF(AND($N$2>=$T$6,$N$2<$U$6),IF(P80>=$W$6,$W$1,$V$1),IF(AND($N$2>=$T$7,$N$2<$U$7),IF(P80>=$W$7,$W$1,$V$1),IF(AND($N$2>=$T$8,$N$2<$U$8),IF(P80>=$W$8,$W$1,$V$1),IF(AND($N$2>=$T$9,$N$2<$U$9),IF(P80>=$W$9,$W$1,$V$1),""))))))))),"") -> CB | M80: =IF(E80<>"",IF(AND(E80<>"GR",E80>=40,J80>=30),_xlfn.IFS(Q80>=$AG$2,$AD$19,Q80>=$AG$3,$AC$19,Q80>=$AG$4,$AB$19,Q80>=$AG$5,$AA$19,Q80>=$AG$6,$Z$19,Q80>=$AG$7,$Y$19,Q80>=$AG$8,$X$19,Q80>=$AG$9,$V$19),L80),"") -> CB | P80: 54 | Q80: 54 | R80: 0.43
A81: Öğrenci | B81: 80 | C81: 35 | D81: 65 | E81: GR | F81: 65 | G81: 35 | H81: 65 | I81: 53 | J81: 53 | K81: 2809 | L81: =IF(D81<>"",IF(AND(H81>=40,I81>=30),IF(AND($N$2>=$T$2,$N$2<=$U$2),_xlfn.IFS(P81>=$AD$2,$AD$1,P81>=$AC$2,$AC$1,P81>=$AB$2,$AB$1,P81>=$AA$2,$AA$1,P81>=$Z$2,$Z$1,P81>=$Y$2,$Y$1,P81>=$X$2,$X$1,P81>=$W$2,$W$1,P81<$W$2,$V$1),(IF(AND($N$2>=$T$3,$N$2<$U$3),_xlfn.IFS(P81>=$AD$3,$AD$1,P81>=$AC$3,$AC$1,P81>=$AB$3,$AB$1,P81>=$AA$3,$AA$1,P81>=$Z$3,$Z$1,P81>=$Y$3,$Y$1,P81>=$X$3,$X$1,P81>=$W$3,$W$1,P81<$W$2,$V$1),(IF(AND($N$2>=$T$4,$N$2<$U$4),_xlfn.IFS(P81>=$AD$4,$AD$1,P81>=$AC$4,$AC$1,P81>=$AB$4,$AB$1,P81>=$AA$4,$AA$1,P81>=$Z$4,$Z$1,P81>=$Y$4,$Y$1,P81>=$X$4,$X$1,P81>=$W$4,$W$1,P81<$W$2,$V$1),(IF(AND($N$2>=$T$5,$N$2<$U$5),_xlfn.IFS(P81>=$AD$5,$AD$1,P81>=$AC$5,$AC$1,P81>=$AB$5,$AB$1,P81>=$AA$5,$AA$1,P81>=$Z$5,$Z$1,P81>=$Y$5,$Y$1,P81>=$X$5,$X$1,P81>=$W$5,$W$1,P81<$W$2,$V$1),(IF(AND($N$2>=$T$6,$N$2<$U$6),_xlfn.IFS(P81>=$AD$6,$AD$1,P81>=$AC$6,$AC$1,P81>=$AB$6,$AB$1,P81>=$AA$6,$AA$1,P81>=$Z$6,$Z$1,P81>=$Y$6,$Y$1,P81>=$X$6,$X$1,P81>=$W$6,$W$1,P81<$W$2,$V$1),(IF(AND($N$2>=$T$7,$N$2<$U$7),_xlfn.IFS(P81>=$AD$7,$AD$1,P81>=$AC$7,$AC$1,P81>=$AB$7,$AB$1,P81>=$AA$7,$AA$1,P81>=$Z$7,$Z$1,P81>=$Y$7,$Y$1,P81>=$X$7,$X$1,P81>=$W$7,$W$1,P81<$W$2,$V$1),(IF(AND($N$2>=$T$8,$N$2<$U$8),_xlfn.IFS(P81>=$AD$8,$AD$1,P81>=$AC$8,$AC$1,P81>=$AB$8,$AB$1,P81>=$AA$8,$AA$1,P81>=$Z$8,$Z$1,P81>=$Y$8,$Y$1,P81>=$X$8,$X$1,P81>=$W$8,$W$1,P81<$W$2,$V$1),(IF(AND($N$2>=$T$9,$N$2<$U$9),_xlfn.IFS(P81>=$AD$9,$AD$1,P81>=$AC$9,$AC$1,P81>=$AB$9,$AB$1,P81>=$AA$9,$AA$1,P81>=$Z$9,$Z$1,P81>=$Y$9,$Y$1,P81>=$X$9,$X$1,P81>=$W$9,$W$1),$W$1))))))))))))))),IF(AND($N$2>=$T$2,$N$2<=$U$2),IF(P81>=$W$2,$W$1,$V$1),IF(AND($N$2>=$T$3,$N$2<$U$3),IF(P81>=$W$3,$W$1,$V$1),IF(AND($N$2>=$T$4,$N$2<$U$4),IF(P81>=$W$4,$W$1,$V$1),IF(AND($N$2>=$T$5,$N$2<$U$5),IF(P81>=$W$5,$W$1,$V$1),IF(AND($N$2>=$T$6,$N$2<$U$6),IF(P81>=$W$6,$W$1,$V$1),IF(AND($N$2>=$T$7,$N$2<$U$7),IF(P81>=$W$7,$W$1,$V$1),IF(AND($N$2>=$T$8,$N$2<$U$8),IF(P81>=$W$8,$W$1,$V$1),IF(AND($N$2>=$T$9,$N$2<$U$9),IF(P81>=$W$9,$W$1,$V$1),""))))))))),"") -> CB | M81: =IF(E81<>"",IF(AND(E81<>"GR",E81>=40,J81>=30),_xlfn.IFS(Q81>=$AG$2,$AD$19,Q81>=$AG$3,$AC$19,Q81>=$AG$4,$AB$19,Q81>=$AG$5,$AA$19,Q81>=$AG$6,$Z$19,Q81>=$AG$7,$Y$19,Q81>=$AG$8,$X$19,Q81>=$AG$9,$V$19),L81),"") -> CB | P81: 54 | Q81: 54 | R81: 0.43
A82: Öğrenci | B82: 81 | C82: 39 | D82: 62 | E82: GR | F82: 62 | G82: 39 | H82: 62 | I82: 52.8 | J82: 52.8 | K82: 2787.84 | L82: =IF(D82<>"",IF(AND(H82>=40,I82>=30),IF(AND($N$2>=$T$2,$N$2<=$U$2),_xlfn.IFS(P82>=$AD$2,$AD$1,P82>=$AC$2,$AC$1,P82>=$AB$2,$AB$1,P82>=$AA$2,$AA$1,P82>=$Z$2,$Z$1,P82>=$Y$2,$Y$1,P82>=$X$2,$X$1,P82>=$W$2,$W$1,P82<$W$2,$V$1),(IF(AND($N$2>=$T$3,$N$2<$U$3),_xlfn.IFS(P82>=$AD$3,$AD$1,P82>=$AC$3,$AC$1,P82>=$AB$3,$AB$1,P82>=$AA$3,$AA$1,P82>=$Z$3,$Z$1,P82>=$Y$3,$Y$1,P82>=$X$3,$X$1,P82>=$W$3,$W$1,P82<$W$2,$V$1),(IF(AND($N$2>=$T$4,$N$2<$U$4),_xlfn.IFS(P82>=$AD$4,$AD$1,P82>=$AC$4,$AC$1,P82>=$AB$4,$AB$1,P82>=$AA$4,$AA$1,P82>=$Z$4,$Z$1,P82>=$Y$4,$Y$1,P82>=$X$4,$X$1,P82>=$W$4,$W$1,P82<$W$2,$V$1),(IF(AND($N$2>=$T$5,$N$2<$U$5),_xlfn.IFS(P82>=$AD$5,$AD$1,P82>=$AC$5,$AC$1,P82>=$AB$5,$AB$1,P82>=$AA$5,$AA$1,P82>=$Z$5,$Z$1,P82>=$Y$5,$Y$1,P82>=$X$5,$X$1,P82>=$W$5,$W$1,P82<$W$2,$V$1),(IF(AND($N$2>=$T$6,$N$2<$U$6),_xlfn.IFS(P82>=$AD$6,$AD$1,P82>=$AC$6,$AC$1,P82>=$AB$6,$AB$1,P82>=$AA$6,$AA$1,P82>=$Z$6,$Z$1,P82>=$Y$6,$Y$1,P82>=$X$6,$X$1,P82>=$W$6,$W$1,P82<$W$2,$V$1),(IF(AND($N$2>=$T$7,$N$2<$U$7),_xlfn.IFS(P82>=$AD$7,$AD$1,P82>=$AC$7,$AC$1,P82>=$AB$7,$AB$1,P82>=$AA$7,$AA$1,P82>=$Z$7,$Z$1,P82>=$Y$7,$Y$1,P82>=$X$7,$X$1,P82>=$W$7,$W$1,P82<$W$2,$V$1),(IF(AND($N$2>=$T$8,$N$2<$U$8),_xlfn.IFS(P82>=$AD$8,$AD$1,P82>=$AC$8,$AC$1,P82>=$AB$8,$AB$1,P82>=$AA$8,$AA$1,P82>=$Z$8,$Z$1,P82>=$Y$8,$Y$1,P82>=$X$8,$X$1,P82>=$W$8,$W$1,P82<$W$2,$V$1),(IF(AND($N$2>=$T$9,$N$2<$U$9),_xlfn.IFS(P82>=$AD$9,$AD$1,P82>=$AC$9,$AC$1,P82>=$AB$9,$AB$1,P82>=$AA$9,$AA$1,P82>=$Z$9,$Z$1,P82>=$Y$9,$Y$1,P82>=$X$9,$X$1,P82>=$W$9,$W$1),$W$1))))))))))))))),IF(AND($N$2>=$T$2,$N$2<=$U$2),IF(P82>=$W$2,$W$1,$V$1),IF(AND($N$2>=$T$3,$N$2<$U$3),IF(P82>=$W$3,$W$1,$V$1),IF(AND($N$2>=$T$4,$N$2<$U$4),IF(P82>=$W$4,$W$1,$V$1),IF(AND($N$2>=$T$5,$N$2<$U$5),IF(P82>=$W$5,$W$1,$V$1),IF(AND($N$2>=$T$6,$N$2<$U$6),IF(P82>=$W$6,$W$1,$V$1),IF(AND($N$2>=$T$7,$N$2<$U$7),IF(P82>=$W$7,$W$1,$V$1),IF(AND($N$2>=$T$8,$N$2<$U$8),IF(P82>=$W$8,$W$1,$V$1),IF(AND($N$2>=$T$9,$N$2<$U$9),IF(P82>=$W$9,$W$1,$V$1),""))))))))),"") -> CB | M82: =IF(E82<>"",IF(AND(E82<>"GR",E82>=40,J82>=30),_xlfn.IFS(Q82>=$AG$2,$AD$19,Q82>=$AG$3,$AC$19,Q82>=$AG$4,$AB$19,Q82>=$AG$5,$AA$19,Q82>=$AG$6,$Z$19,Q82>=$AG$7,$Y$19,Q82>=$AG$8,$X$19,Q82>=$AG$9,$V$19),L82),"") -> CB | P82: 54 | Q82: 54 | R82: 0.42
A83: Öğrenci | B83: 82 | C83: 30 | D83: 68 | E83: GR | F83: 68 | G83: 30 | H83: 68 | I83: 52.8 | J83: 52.8 | K83: 2787.84 | L83: =IF(D83<>"",IF(AND(H83>=40,I83>=30),IF(AND($N$2>=$T$2,$N$2<=$U$2),_xlfn.IFS(P83>=$AD$2,$AD$1,P83>=$AC$2,$AC$1,P83>=$AB$2,$AB$1,P83>=$AA$2,$AA$1,P83>=$Z$2,$Z$1,P83>=$Y$2,$Y$1,P83>=$X$2,$X$1,P83>=$W$2,$W$1,P83<$W$2,$V$1),(IF(AND($N$2>=$T$3,$N$2<$U$3),_xlfn.IFS(P83>=$AD$3,$AD$1,P83>=$AC$3,$AC$1,P83>=$AB$3,$AB$1,P83>=$AA$3,$AA$1,P83>=$Z$3,$Z$1,P83>=$Y$3,$Y$1,P83>=$X$3,$X$1,P83>=$W$3,$W$1,P83<$W$2,$V$1),(IF(AND($N$2>=$T$4,$N$2<$U$4),_xlfn.IFS(P83>=$AD$4,$AD$1,P83>=$AC$4,$AC$1,P83>=$AB$4,$AB$1,P83>=$AA$4,$AA$1,P83>=$Z$4,$Z$1,P83>=$Y$4,$Y$1,P83>=$X$4,$X$1,P83>=$W$4,$W$1,P83<$W$2,$V$1),(IF(AND($N$2>=$T$5,$N$2<$U$5),_xlfn.IFS(P83>=$AD$5,$AD$1,P83>=$AC$5,$AC$1,P83>=$AB$5,$AB$1,P83>=$AA$5,$AA$1,P83>=$Z$5,$Z$1,P83>=$Y$5,$Y$1,P83>=$X$5,$X$1,P83>=$W$5,$W$1,P83<$W$2,$V$1),(IF(AND($N$2>=$T$6,$N$2<$U$6),_xlfn.IFS(P83>=$AD$6,$AD$1,P83>=$AC$6,$AC$1,P83>=$AB$6,$AB$1,P83>=$AA$6,$AA$1,P83>=$Z$6,$Z$1,P83>=$Y$6,$Y$1,P83>=$X$6,$X$1,P83>=$W$6,$W$1,P83<$W$2,$V$1),(IF(AND($N$2>=$T$7,$N$2<$U$7),_xlfn.IFS(P83>=$AD$7,$AD$1,P83>=$AC$7,$AC$1,P83>=$AB$7,$AB$1,P83>=$AA$7,$AA$1,P83>=$Z$7,$Z$1,P83>=$Y$7,$Y$1,P83>=$X$7,$X$1,P83>=$W$7,$W$1,P83<$W$2,$V$1),(IF(AND($N$2>=$T$8,$N$2<$U$8),_xlfn.IFS(P83>=$AD$8,$AD$1,P83>=$AC$8,$AC$1,P83>=$AB$8,$AB$1,P83>=$AA$8,$AA$1,P83>=$Z$8,$Z$1,P83>=$Y$8,$Y$1,P83>=$X$8,$X$1,P83>=$W$8,$W$1,P83<$W$2,$V$1),(IF(AND($N$2>=$T$9,$N$2<$U$9),_xlfn.IFS(P83>=$AD$9,$AD$1,P83>=$AC$9,$AC$1,P83>=$AB$9,$AB$1,P83>=$AA$9,$AA$1,P83>=$Z$9,$Z$1,P83>=$Y$9,$Y$1,P83>=$X$9,$X$1,P83>=$W$9,$W$1),$W$1))))))))))))))),IF(AND($N$2>=$T$2,$N$2<=$U$2),IF(P83>=$W$2,$W$1,$V$1),IF(AND($N$2>=$T$3,$N$2<$U$3),IF(P83>=$W$3,$W$1,$V$1),IF(AND($N$2>=$T$4,$N$2<$U$4),IF(P83>=$W$4,$W$1,$V$1),IF(AND($N$2>=$T$5,$N$2<$U$5),IF(P83>=$W$5,$W$1,$V$1),IF(AND($N$2>=$T$6,$N$2<$U$6),IF(P83>=$W$6,$W$1,$V$1),IF(AND($N$2>=$T$7,$N$2<$U$7),IF(P83>=$W$7,$W$1,$V$1),IF(AND($N$2>=$T$8,$N$2<$U$8),IF(P83>=$W$8,$W$1,$V$1),IF(AND($N$2>=$T$9,$N$2<$U$9),IF(P83>=$W$9,$W$1,$V$1),""))))))))),"") -> CB | M83: =IF(E83<>"",IF(AND(E83<>"GR",E83>=40,J83>=30),_xlfn.IFS(Q83>=$AG$2,$AD$19,Q83>=$AG$3,$AC$19,Q83>=$AG$4,$AB$19,Q83>=$AG$5,$AA$19,Q83>=$AG$6,$Z$19,Q83>=$AG$7,$Y$19,Q83>=$AG$8,$X$19,Q83>=$AG$9,$V$19),L83),"") -> CB | P83: 54 | Q83: 54 | R83: 0.42
A84: Öğrenci | B84: 83 | C84: 41 | D84: 60 | E84: GR | F84: 60 | G84: 41 | H84: 60 | I84: 52.4 | J84: 52.4 | K84: 2745.76 | L84: =IF(D84<>"",IF(AND(H84>=40,I84>=30),IF(AND($N$2>=$T$2,$N$2<=$U$2),_xlfn.IFS(P84>=$AD$2,$AD$1,P84>=$AC$2,$AC$1,P84>=$AB$2,$AB$1,P84>=$AA$2,$AA$1,P84>=$Z$2,$Z$1,P84>=$Y$2,$Y$1,P84>=$X$2,$X$1,P84>=$W$2,$W$1,P84<$W$2,$V$1),(IF(AND($N$2>=$T$3,$N$2<$U$3),_xlfn.IFS(P84>=$AD$3,$AD$1,P84>=$AC$3,$AC$1,P84>=$AB$3,$AB$1,P84>=$AA$3,$AA$1,P84>=$Z$3,$Z$1,P84>=$Y$3,$Y$1,P84>=$X$3,$X$1,P84>=$W$3,$W$1,P84<$W$2,$V$1),(IF(AND($N$2>=$T$4,$N$2<$U$4),_xlfn.IFS(P84>=$AD$4,$AD$1,P84>=$AC$4,$AC$1,P84>=$AB$4,$AB$1,P84>=$AA$4,$AA$1,P84>=$Z$4,$Z$1,P84>=$Y$4,$Y$1,P84>=$X$4,$X$1,P84>=$W$4,$W$1,P84<$W$2,$V$1),(IF(AND($N$2>=$T$5,$N$2<$U$5),_xlfn.IFS(P84>=$AD$5,$AD$1,P84>=$AC$5,$AC$1,P84>=$AB$5,$AB$1,P84>=$AA$5,$AA$1,P84>=$Z$5,$Z$1,P84>=$Y$5,$Y$1,P84>=$X$5,$X$1,P84>=$W$5,$W$1,P84<$W$2,$V$1),(IF(AND($N$2>=$T$6,$N$2<$U$6),_xlfn.IFS(P84>=$AD$6,$AD$1,P84>=$AC$6,$AC$1,P84>=$AB$6,$AB$1,P84>=$AA$6,$AA$1,P84>=$Z$6,$Z$1,P84>=$Y$6,$Y$1,P84>=$X$6,$X$1,P84>=$W$6,$W$1,P84<$W$2,$V$1),(IF(AND($N$2>=$T$7,$N$2<$U$7),_xlfn.IFS(P84>=$AD$7,$AD$1,P84>=$AC$7,$AC$1,P84>=$AB$7,$AB$1,P84>=$AA$7,$AA$1,P84>=$Z$7,$Z$1,P84>=$Y$7,$Y$1,P84>=$X$7,$X$1,P84>=$W$7,$W$1,P84<$W$2,$V$1),(IF(AND($N$2>=$T$8,$N$2<$U$8),_xlfn.IFS(P84>=$AD$8,$AD$1,P84>=$AC$8,$AC$1,P84>=$AB$8,$AB$1,P84>=$AA$8,$AA$1,P84>=$Z$8,$Z$1,P84>=$Y$8,$Y$1,P84>=$X$8,$X$1,P84>=$W$8,$W$1,P84<$W$2,$V$1),(IF(AND($N$2>=$T$9,$N$2<$U$9),_xlfn.IFS(P84>=$AD$9,$AD$1,P84>=$AC$9,$AC$1,P84>=$AB$9,$AB$1,P84>=$AA$9,$AA$1,P84>=$Z$9,$Z$1,P84>=$Y$9,$Y$1,P84>=$X$9,$X$1,P84>=$W$9,$W$1),$W$1))))))))))))))),IF(AND($N$2>=$T$2,$N$2<=$U$2),IF(P84>=$W$2,$W$1,$V$1),IF(AND($N$2>=$T$3,$N$2<$U$3),IF(P84>=$W$3,$W$1,$V$1),IF(AND($N$2>=$T$4,$N$2<$U$4),IF(P84>=$W$4,$W$1,$V$1),IF(AND($N$2>=$T$5,$N$2<$U$5),IF(P84>=$W$5,$W$1,$V$1),IF(AND($N$2>=$T$6,$N$2<$U$6),IF(P84>=$W$6,$W$1,$V$1),IF(AND($N$2>=$T$7,$N$2<$U$7),IF(P84>=$W$7,$W$1,$V$1),IF(AND($N$2>=$T$8,$N$2<$U$8),IF(P84>=$W$8,$W$1,$V$1),IF(AND($N$2>=$T$9,$N$2<$U$9),IF(P84>=$W$9,$W$1,$V$1),""))))))))),"") -> CB | M84: =IF(E84<>"",IF(AND(E84<>"GR",E84>=40,J84>=30),_xlfn.IFS(Q84>=$AG$2,$AD$19,Q84>=$AG$3,$AC$19,Q84>=$AG$4,$AB$19,Q84>=$AG$5,$AA$19,Q84>=$AG$6,$Z$19,Q84>=$AG$7,$Y$19,Q84>=$AG$8,$X$19,Q84>=$AG$9,$V$19),L84),"") -> CB | P84: 54 | Q84: 54 | R84: 0.39
A85: Öğrenci | B85: 84 | C85: 23 | D85: 72 | E85: GR | F85: 72 | G85: 23 | H85: 72 | I85: 52.4 | J85: 52.4 | K85: 2745.76 | L85: =IF(D85<>"",IF(AND(H85>=40,I85>=30),IF(AND($N$2>=$T$2,$N$2<=$U$2),_xlfn.IFS(P85>=$AD$2,$AD$1,P85>=$AC$2,$AC$1,P85>=$AB$2,$AB$1,P85>=$AA$2,$AA$1,P85>=$Z$2,$Z$1,P85>=$Y$2,$Y$1,P85>=$X$2,$X$1,P85>=$W$2,$W$1,P85<$W$2,$V$1),(IF(AND($N$2>=$T$3,$N$2<$U$3),_xlfn.IFS(P85>=$AD$3,$AD$1,P85>=$AC$3,$AC$1,P85>=$AB$3,$AB$1,P85>=$AA$3,$AA$1,P85>=$Z$3,$Z$1,P85>=$Y$3,$Y$1,P85>=$X$3,$X$1,P85>=$W$3,$W$1,P85<$W$2,$V$1),(IF(AND($N$2>=$T$4,$N$2<$U$4),_xlfn.IFS(P85>=$AD$4,$AD$1,P85>=$AC$4,$AC$1,P85>=$AB$4,$AB$1,P85>=$AA$4,$AA$1,P85>=$Z$4,$Z$1,P85>=$Y$4,$Y$1,P85>=$X$4,$X$1,P85>=$W$4,$W$1,P85<$W$2,$V$1),(IF(AND($N$2>=$T$5,$N$2<$U$5),_xlfn.IFS(P85>=$AD$5,$AD$1,P85>=$AC$5,$AC$1,P85>=$AB$5,$AB$1,P85>=$AA$5,$AA$1,P85>=$Z$5,$Z$1,P85>=$Y$5,$Y$1,P85>=$X$5,$X$1,P85>=$W$5,$W$1,P85<$W$2,$V$1),(IF(AND($N$2>=$T$6,$N$2<$U$6),_xlfn.IFS(P85>=$AD$6,$AD$1,P85>=$AC$6,$AC$1,P85>=$AB$6,$AB$1,P85>=$AA$6,$AA$1,P85>=$Z$6,$Z$1,P85>=$Y$6,$Y$1,P85>=$X$6,$X$1,P85>=$W$6,$W$1,P85<$W$2,$V$1),(IF(AND($N$2>=$T$7,$N$2<$U$7),_xlfn.IFS(P85>=$AD$7,$AD$1,P85>=$AC$7,$AC$1,P85>=$AB$7,$AB$1,P85>=$AA$7,$AA$1,P85>=$Z$7,$Z$1,P85>=$Y$7,$Y$1,P85>=$X$7,$X$1,P85>=$W$7,$W$1,P85<$W$2,$V$1),(IF(AND($N$2>=$T$8,$N$2<$U$8),_xlfn.IFS(P85>=$AD$8,$AD$1,P85>=$AC$8,$AC$1,P85>=$AB$8,$AB$1,P85>=$AA$8,$AA$1,P85>=$Z$8,$Z$1,P85>=$Y$8,$Y$1,P85>=$X$8,$X$1,P85>=$W$8,$W$1,P85<$W$2,$V$1),(IF(AND($N$2>=$T$9,$N$2<$U$9),_xlfn.IFS(P85>=$AD$9,$AD$1,P85>=$AC$9,$AC$1,P85>=$AB$9,$AB$1,P85>=$AA$9,$AA$1,P85>=$Z$9,$Z$1,P85>=$Y$9,$Y$1,P85>=$X$9,$X$1,P85>=$W$9,$W$1),$W$1))))))))))))))),IF(AND($N$2>=$T$2,$N$2<=$U$2),IF(P85>=$W$2,$W$1,$V$1),IF(AND($N$2>=$T$3,$N$2<$U$3),IF(P85>=$W$3,$W$1,$V$1),IF(AND($N$2>=$T$4,$N$2<$U$4),IF(P85>=$W$4,$W$1,$V$1),IF(AND($N$2>=$T$5,$N$2<$U$5),IF(P85>=$W$5,$W$1,$V$1),IF(AND($N$2>=$T$6,$N$2<$U$6),IF(P85>=$W$6,$W$1,$V$1),IF(AND($N$2>=$T$7,$N$2<$U$7),IF(P85>=$W$7,$W$1,$V$1),IF(AND($N$2>=$T$8,$N$2<$U$8),IF(P85>=$W$8,$W$1,$V$1),IF(AND($N$2>=$T$9,$N$2<$U$9),IF(P85>=$W$9,$W$1,$V$1),""))))))))),"") -> CB | M85: =IF(E85<>"",IF(AND(E85<>"GR",E85>=40,J85>=30),_xlfn.IFS(Q85>=$AG$2,$AD$19,Q85>=$AG$3,$AC$19,Q85>=$AG$4,$AB$19,Q85>=$AG$5,$AA$19,Q85>=$AG$6,$Z$19,Q85>=$AG$7,$Y$19,Q85>=$AG$8,$X$19,Q85>=$AG$9,$V$19),L85),"") -> CB | P85: 54 | Q85: 54 | R85: 0.39
A86: Öğrenci | B86: 85 | C86: 23 | D86: 72 | E86: GR | F86: 72 | G86: 23 | H86: 72 | I86: 52.4 | J86: 52.4 | K86: 2745.76 | L86: =IF(D86<>"",IF(AND(H86>=40,I86>=30),IF(AND($N$2>=$T$2,$N$2<=$U$2),_xlfn.IFS(P86>=$AD$2,$AD$1,P86>=$AC$2,$AC$1,P86>=$AB$2,$AB$1,P86>=$AA$2,$AA$1,P86>=$Z$2,$Z$1,P86>=$Y$2,$Y$1,P86>=$X$2,$X$1,P86>=$W$2,$W$1,P86<$W$2,$V$1),(IF(AND($N$2>=$T$3,$N$2<$U$3),_xlfn.IFS(P86>=$AD$3,$AD$1,P86>=$AC$3,$AC$1,P86>=$AB$3,$AB$1,P86>=$AA$3,$AA$1,P86>=$Z$3,$Z$1,P86>=$Y$3,$Y$1,P86>=$X$3,$X$1,P86>=$W$3,$W$1,P86<$W$2,$V$1),(IF(AND($N$2>=$T$4,$N$2<$U$4),_xlfn.IFS(P86>=$AD$4,$AD$1,P86>=$AC$4,$AC$1,P86>=$AB$4,$AB$1,P86>=$AA$4,$AA$1,P86>=$Z$4,$Z$1,P86>=$Y$4,$Y$1,P86>=$X$4,$X$1,P86>=$W$4,$W$1,P86<$W$2,$V$1),(IF(AND($N$2>=$T$5,$N$2<$U$5),_xlfn.IFS(P86>=$AD$5,$AD$1,P86>=$AC$5,$AC$1,P86>=$AB$5,$AB$1,P86>=$AA$5,$AA$1,P86>=$Z$5,$Z$1,P86>=$Y$5,$Y$1,P86>=$X$5,$X$1,P86>=$W$5,$W$1,P86<$W$2,$V$1),(IF(AND($N$2>=$T$6,$N$2<$U$6),_xlfn.IFS(P86>=$AD$6,$AD$1,P86>=$AC$6,$AC$1,P86>=$AB$6,$AB$1,P86>=$AA$6,$AA$1,P86>=$Z$6,$Z$1,P86>=$Y$6,$Y$1,P86>=$X$6,$X$1,P86>=$W$6,$W$1,P86<$W$2,$V$1),(IF(AND($N$2>=$T$7,$N$2<$U$7),_xlfn.IFS(P86>=$AD$7,$AD$1,P86>=$AC$7,$AC$1,P86>=$AB$7,$AB$1,P86>=$AA$7,$AA$1,P86>=$Z$7,$Z$1,P86>=$Y$7,$Y$1,P86>=$X$7,$X$1,P86>=$W$7,$W$1,P86<$W$2,$V$1),(IF(AND($N$2>=$T$8,$N$2<$U$8),_xlfn.IFS(P86>=$AD$8,$AD$1,P86>=$AC$8,$AC$1,P86>=$AB$8,$AB$1,P86>=$AA$8,$AA$1,P86>=$Z$8,$Z$1,P86>=$Y$8,$Y$1,P86>=$X$8,$X$1,P86>=$W$8,$W$1,P86<$W$2,$V$1),(IF(AND($N$2>=$T$9,$N$2<$U$9),_xlfn.IFS(P86>=$AD$9,$AD$1,P86>=$AC$9,$AC$1,P86>=$AB$9,$AB$1,P86>=$AA$9,$AA$1,P86>=$Z$9,$Z$1,P86>=$Y$9,$Y$1,P86>=$X$9,$X$1,P86>=$W$9,$W$1),$W$1))))))))))))))),IF(AND($N$2>=$T$2,$N$2<=$U$2),IF(P86>=$W$2,$W$1,$V$1),IF(AND($N$2>=$T$3,$N$2<$U$3),IF(P86>=$W$3,$W$1,$V$1),IF(AND($N$2>=$T$4,$N$2<$U$4),IF(P86>=$W$4,$W$1,$V$1),IF(AND($N$2>=$T$5,$N$2<$U$5),IF(P86>=$W$5,$W$1,$V$1),IF(AND($N$2>=$T$6,$N$2<$U$6),IF(P86>=$W$6,$W$1,$V$1),IF(AND($N$2>=$T$7,$N$2<$U$7),IF(P86>=$W$7,$W$1,$V$1),IF(AND($N$2>=$T$8,$N$2<$U$8),IF(P86>=$W$8,$W$1,$V$1),IF(AND($N$2>=$T$9,$N$2<$U$9),IF(P86>=$W$9,$W$1,$V$1),""))))))))),"") -> CB | M86: =IF(E86<>"",IF(AND(E86<>"GR",E86>=40,J86>=30),_xlfn.IFS(Q86>=$AG$2,$AD$19,Q86>=$AG$3,$AC$19,Q86>=$AG$4,$AB$19,Q86>=$AG$5,$AA$19,Q86>=$AG$6,$Z$19,Q86>=$AG$7,$Y$19,Q86>=$AG$8,$X$19,Q86>=$AG$9,$V$19),L86),"") -> CB | P86: 54 | Q86: 54 | R86: 0.39
A87: Öğrenci | B87: 86 | C87: 47 | D87: 56 | E87: GR | F87: 56 | G87: 47 | H87: 56 | I87: 52.4 | J87: 52.4 | K87: 2745.76 | L87: =IF(D87<>"",IF(AND(H87>=40,I87>=30),IF(AND($N$2>=$T$2,$N$2<=$U$2),_xlfn.IFS(P87>=$AD$2,$AD$1,P87>=$AC$2,$AC$1,P87>=$AB$2,$AB$1,P87>=$AA$2,$AA$1,P87>=$Z$2,$Z$1,P87>=$Y$2,$Y$1,P87>=$X$2,$X$1,P87>=$W$2,$W$1,P87<$W$2,$V$1),(IF(AND($N$2>=$T$3,$N$2<$U$3),_xlfn.IFS(P87>=$AD$3,$AD$1,P87>=$AC$3,$AC$1,P87>=$AB$3,$AB$1,P87>=$AA$3,$AA$1,P87>=$Z$3,$Z$1,P87>=$Y$3,$Y$1,P87>=$X$3,$X$1,P87>=$W$3,$W$1,P87<$W$2,$V$1),(IF(AND($N$2>=$T$4,$N$2<$U$4),_xlfn.IFS(P87>=$AD$4,$AD$1,P87>=$AC$4,$AC$1,P87>=$AB$4,$AB$1,P87>=$AA$4,$AA$1,P87>=$Z$4,$Z$1,P87>=$Y$4,$Y$1,P87>=$X$4,$X$1,P87>=$W$4,$W$1,P87<$W$2,$V$1),(IF(AND($N$2>=$T$5,$N$2<$U$5),_xlfn.IFS(P87>=$AD$5,$AD$1,P87>=$AC$5,$AC$1,P87>=$AB$5,$AB$1,P87>=$AA$5,$AA$1,P87>=$Z$5,$Z$1,P87>=$Y$5,$Y$1,P87>=$X$5,$X$1,P87>=$W$5,$W$1,P87<$W$2,$V$1),(IF(AND($N$2>=$T$6,$N$2<$U$6),_xlfn.IFS(P87>=$AD$6,$AD$1,P87>=$AC$6,$AC$1,P87>=$AB$6,$AB$1,P87>=$AA$6,$AA$1,P87>=$Z$6,$Z$1,P87>=$Y$6,$Y$1,P87>=$X$6,$X$1,P87>=$W$6,$W$1,P87<$W$2,$V$1),(IF(AND($N$2>=$T$7,$N$2<$U$7),_xlfn.IFS(P87>=$AD$7,$AD$1,P87>=$AC$7,$AC$1,P87>=$AB$7,$AB$1,P87>=$AA$7,$AA$1,P87>=$Z$7,$Z$1,P87>=$Y$7,$Y$1,P87>=$X$7,$X$1,P87>=$W$7,$W$1,P87<$W$2,$V$1),(IF(AND($N$2>=$T$8,$N$2<$U$8),_xlfn.IFS(P87>=$AD$8,$AD$1,P87>=$AC$8,$AC$1,P87>=$AB$8,$AB$1,P87>=$AA$8,$AA$1,P87>=$Z$8,$Z$1,P87>=$Y$8,$Y$1,P87>=$X$8,$X$1,P87>=$W$8,$W$1,P87<$W$2,$V$1),(IF(AND($N$2>=$T$9,$N$2<$U$9),_xlfn.IFS(P87>=$AD$9,$AD$1,P87>=$AC$9,$AC$1,P87>=$AB$9,$AB$1,P87>=$AA$9,$AA$1,P87>=$Z$9,$Z$1,P87>=$Y$9,$Y$1,P87>=$X$9,$X$1,P87>=$W$9,$W$1),$W$1))))))))))))))),IF(AND($N$2>=$T$2,$N$2<=$U$2),IF(P87>=$W$2,$W$1,$V$1),IF(AND($N$2>=$T$3,$N$2<$U$3),IF(P87>=$W$3,$W$1,$V$1),IF(AND($N$2>=$T$4,$N$2<$U$4),IF(P87>=$W$4,$W$1,$V$1),IF(AND($N$2>=$T$5,$N$2<$U$5),IF(P87>=$W$5,$W$1,$V$1),IF(AND($N$2>=$T$6,$N$2<$U$6),IF(P87>=$W$6,$W$1,$V$1),IF(AND($N$2>=$T$7,$N$2<$U$7),IF(P87>=$W$7,$W$1,$V$1),IF(AND($N$2>=$T$8,$N$2<$U$8),IF(P87>=$W$8,$W$1,$V$1),IF(AND($N$2>=$T$9,$N$2<$U$9),IF(P87>=$W$9,$W$1,$V$1),""))))))))),"") -> CB | M87: =IF(E87<>"",IF(AND(E87<>"GR",E87>=40,J87>=30),_xlfn.IFS(Q87>=$AG$2,$AD$19,Q87>=$AG$3,$AC$19,Q87>=$AG$4,$AB$19,Q87>=$AG$5,$AA$19,Q87>=$AG$6,$Z$19,Q87>=$AG$7,$Y$19,Q87>=$AG$8,$X$19,Q87>=$AG$9,$V$19),L87),"") -> CB | P87: 54 | Q87: 54 | R87: 0.39
A88: Öğrenci | B88: 87 | C88: 29 | D88: 67 | E88: GR | F88: 67 | G88: 29 | H88: 67 | I88: 51.8 | J88: 51.8 | K88: 2683.24 | L88: =IF(D88<>"",IF(AND(H88>=40,I88>=30),IF(AND($N$2>=$T$2,$N$2<=$U$2),_xlfn.IFS(P88>=$AD$2,$AD$1,P88>=$AC$2,$AC$1,P88>=$AB$2,$AB$1,P88>=$AA$2,$AA$1,P88>=$Z$2,$Z$1,P88>=$Y$2,$Y$1,P88>=$X$2,$X$1,P88>=$W$2,$W$1,P88<$W$2,$V$1),(IF(AND($N$2>=$T$3,$N$2<$U$3),_xlfn.IFS(P88>=$AD$3,$AD$1,P88>=$AC$3,$AC$1,P88>=$AB$3,$AB$1,P88>=$AA$3,$AA$1,P88>=$Z$3,$Z$1,P88>=$Y$3,$Y$1,P88>=$X$3,$X$1,P88>=$W$3,$W$1,P88<$W$2,$V$1),(IF(AND($N$2>=$T$4,$N$2<$U$4),_xlfn.IFS(P88>=$AD$4,$AD$1,P88>=$AC$4,$AC$1,P88>=$AB$4,$AB$1,P88>=$AA$4,$AA$1,P88>=$Z$4,$Z$1,P88>=$Y$4,$Y$1,P88>=$X$4,$X$1,P88>=$W$4,$W$1,P88<$W$2,$V$1),(IF(AND($N$2>=$T$5,$N$2<$U$5),_xlfn.IFS(P88>=$AD$5,$AD$1,P88>=$AC$5,$AC$1,P88>=$AB$5,$AB$1,P88>=$AA$5,$AA$1,P88>=$Z$5,$Z$1,P88>=$Y$5,$Y$1,P88>=$X$5,$X$1,P88>=$W$5,$W$1,P88<$W$2,$V$1),(IF(AND($N$2>=$T$6,$N$2<$U$6),_xlfn.IFS(P88>=$AD$6,$AD$1,P88>=$AC$6,$AC$1,P88>=$AB$6,$AB$1,P88>=$AA$6,$AA$1,P88>=$Z$6,$Z$1,P88>=$Y$6,$Y$1,P88>=$X$6,$X$1,P88>=$W$6,$W$1,P88<$W$2,$V$1),(IF(AND($N$2>=$T$7,$N$2<$U$7),_xlfn.IFS(P88>=$AD$7,$AD$1,P88>=$AC$7,$AC$1,P88>=$AB$7,$AB$1,P88>=$AA$7,$AA$1,P88>=$Z$7,$Z$1,P88>=$Y$7,$Y$1,P88>=$X$7,$X$1,P88>=$W$7,$W$1,P88<$W$2,$V$1),(IF(AND($N$2>=$T$8,$N$2<$U$8),_xlfn.IFS(P88>=$AD$8,$AD$1,P88>=$AC$8,$AC$1,P88>=$AB$8,$AB$1,P88>=$AA$8,$AA$1,P88>=$Z$8,$Z$1,P88>=$Y$8,$Y$1,P88>=$X$8,$X$1,P88>=$W$8,$W$1,P88<$W$2,$V$1),(IF(AND($N$2>=$T$9,$N$2<$U$9),_xlfn.IFS(P88>=$AD$9,$AD$1,P88>=$AC$9,$AC$1,P88>=$AB$9,$AB$1,P88>=$AA$9,$AA$1,P88>=$Z$9,$Z$1,P88>=$Y$9,$Y$1,P88>=$X$9,$X$1,P88>=$W$9,$W$1),$W$1))))))))))))))),IF(AND($N$2>=$T$2,$N$2<=$U$2),IF(P88>=$W$2,$W$1,$V$1),IF(AND($N$2>=$T$3,$N$2<$U$3),IF(P88>=$W$3,$W$1,$V$1),IF(AND($N$2>=$T$4,$N$2<$U$4),IF(P88>=$W$4,$W$1,$V$1),IF(AND($N$2>=$T$5,$N$2<$U$5),IF(P88>=$W$5,$W$1,$V$1),IF(AND($N$2>=$T$6,$N$2<$U$6),IF(P88>=$W$6,$W$1,$V$1),IF(AND($N$2>=$T$7,$N$2<$U$7),IF(P88>=$W$7,$W$1,$V$1),IF(AND($N$2>=$T$8,$N$2<$U$8),IF(P88>=$W$8,$W$1,$V$1),IF(AND($N$2>=$T$9,$N$2<$U$9),IF(P88>=$W$9,$W$1,$V$1),""))))))))),"") -> CC | M88: =IF(E88<>"",IF(AND(E88<>"GR",E88>=40,J88>=30),_xlfn.IFS(Q88>=$AG$2,$AD$19,Q88>=$AG$3,$AC$19,Q88>=$AG$4,$AB$19,Q88>=$AG$5,$AA$19,Q88>=$AG$6,$Z$19,Q88>=$AG$7,$Y$19,Q88>=$AG$8,$X$19,Q88>=$AG$9,$V$19),L88),"") -> CC | P88: 53 | Q88: 53 | R88: 0.35
A89: Öğrenci | B89: 88 | C89: 30 | D89: 66 | E89: GR | F89: 66 | G89: 30 | H89: 66 | I89: 51.6 | J89: 51.6 | K89: 2662.56 | L89: =IF(D89<>"",IF(AND(H89>=40,I89>=30),IF(AND($N$2>=$T$2,$N$2<=$U$2),_xlfn.IFS(P89>=$AD$2,$AD$1,P89>=$AC$2,$AC$1,P89>=$AB$2,$AB$1,P89>=$AA$2,$AA$1,P89>=$Z$2,$Z$1,P89>=$Y$2,$Y$1,P89>=$X$2,$X$1,P89>=$W$2,$W$1,P89<$W$2,$V$1),(IF(AND($N$2>=$T$3,$N$2<$U$3),_xlfn.IFS(P89>=$AD$3,$AD$1,P89>=$AC$3,$AC$1,P89>=$AB$3,$AB$1,P89>=$AA$3,$AA$1,P89>=$Z$3,$Z$1,P89>=$Y$3,$Y$1,P89>=$X$3,$X$1,P89>=$W$3,$W$1,P89<$W$2,$V$1),(IF(AND($N$2>=$T$4,$N$2<$U$4),_xlfn.IFS(P89>=$AD$4,$AD$1,P89>=$AC$4,$AC$1,P89>=$AB$4,$AB$1,P89>=$AA$4,$AA$1,P89>=$Z$4,$Z$1,P89>=$Y$4,$Y$1,P89>=$X$4,$X$1,P89>=$W$4,$W$1,P89<$W$2,$V$1),(IF(AND($N$2>=$T$5,$N$2<$U$5),_xlfn.IFS(P89>=$AD$5,$AD$1,P89>=$AC$5,$AC$1,P89>=$AB$5,$AB$1,P89>=$AA$5,$AA$1,P89>=$Z$5,$Z$1,P89>=$Y$5,$Y$1,P89>=$X$5,$X$1,P89>=$W$5,$W$1,P89<$W$2,$V$1),(IF(AND($N$2>=$T$6,$N$2<$U$6),_xlfn.IFS(P89>=$AD$6,$AD$1,P89>=$AC$6,$AC$1,P89>=$AB$6,$AB$1,P89>=$AA$6,$AA$1,P89>=$Z$6,$Z$1,P89>=$Y$6,$Y$1,P89>=$X$6,$X$1,P89>=$W$6,$W$1,P89<$W$2,$V$1),(IF(AND($N$2>=$T$7,$N$2<$U$7),_xlfn.IFS(P89>=$AD$7,$AD$1,P89>=$AC$7,$AC$1,P89>=$AB$7,$AB$1,P89>=$AA$7,$AA$1,P89>=$Z$7,$Z$1,P89>=$Y$7,$Y$1,P89>=$X$7,$X$1,P89>=$W$7,$W$1,P89<$W$2,$V$1),(IF(AND($N$2>=$T$8,$N$2<$U$8),_xlfn.IFS(P89>=$AD$8,$AD$1,P89>=$AC$8,$AC$1,P89>=$AB$8,$AB$1,P89>=$AA$8,$AA$1,P89>=$Z$8,$Z$1,P89>=$Y$8,$Y$1,P89>=$X$8,$X$1,P89>=$W$8,$W$1,P89<$W$2,$V$1),(IF(AND($N$2>=$T$9,$N$2<$U$9),_xlfn.IFS(P89>=$AD$9,$AD$1,P89>=$AC$9,$AC$1,P89>=$AB$9,$AB$1,P89>=$AA$9,$AA$1,P89>=$Z$9,$Z$1,P89>=$Y$9,$Y$1,P89>=$X$9,$X$1,P89>=$W$9,$W$1),$W$1))))))))))))))),IF(AND($N$2>=$T$2,$N$2<=$U$2),IF(P89>=$W$2,$W$1,$V$1),IF(AND($N$2>=$T$3,$N$2<$U$3),IF(P89>=$W$3,$W$1,$V$1),IF(AND($N$2>=$T$4,$N$2<$U$4),IF(P89>=$W$4,$W$1,$V$1),IF(AND($N$2>=$T$5,$N$2<$U$5),IF(P89>=$W$5,$W$1,$V$1),IF(AND($N$2>=$T$6,$N$2<$U$6),IF(P89>=$W$6,$W$1,$V$1),IF(AND($N$2>=$T$7,$N$2<$U$7),IF(P89>=$W$7,$W$1,$V$1),IF(AND($N$2>=$T$8,$N$2<$U$8),IF(P89>=$W$8,$W$1,$V$1),IF(AND($N$2>=$T$9,$N$2<$U$9),IF(P89>=$W$9,$W$1,$V$1),""))))))))),"") -> CC | M89: =IF(E89<>"",IF(AND(E89<>"GR",E89>=40,J89>=30),_xlfn.IFS(Q89>=$AG$2,$AD$19,Q89>=$AG$3,$AC$19,Q89>=$AG$4,$AB$19,Q89>=$AG$5,$AA$19,Q89>=$AG$6,$Z$19,Q89>=$AG$7,$Y$19,Q89>=$AG$8,$X$19,Q89>=$AG$9,$V$19),L89),"") -> CC | P89: 53 | Q89: 53 | R89: 0.33
A90: Öğrenci | B90: 89 | C90: 54 | D90: 28 | E90: 50 | F90: 50 | G90: 54 | H90: 28 | I90: 38.4 | J90: 51.6 | K90: 1474.56 | L90: =IF(D90<>"",IF(AND(H90>=40,I90>=30),IF(AND($N$2>=$T$2,$N$2<=$U$2),_xlfn.IFS(P90>=$AD$2,$AD$1,P90>=$AC$2,$AC$1,P90>=$AB$2,$AB$1,P90>=$AA$2,$AA$1,P90>=$Z$2,$Z$1,P90>=$Y$2,$Y$1,P90>=$X$2,$X$1,P90>=$W$2,$W$1,P90<$W$2,$V$1),(IF(AND($N$2>=$T$3,$N$2<$U$3),_xlfn.IFS(P90>=$AD$3,$AD$1,P90>=$AC$3,$AC$1,P90>=$AB$3,$AB$1,P90>=$AA$3,$AA$1,P90>=$Z$3,$Z$1,P90>=$Y$3,$Y$1,P90>=$X$3,$X$1,P90>=$W$3,$W$1,P90<$W$2,$V$1),(IF(AND($N$2>=$T$4,$N$2<$U$4),_xlfn.IFS(P90>=$AD$4,$AD$1,P90>=$AC$4,$AC$1,P90>=$AB$4,$AB$1,P90>=$AA$4,$AA$1,P90>=$Z$4,$Z$1,P90>=$Y$4,$Y$1,P90>=$X$4,$X$1,P90>=$W$4,$W$1,P90<$W$2,$V$1),(IF(AND($N$2>=$T$5,$N$2<$U$5),_xlfn.IFS(P90>=$AD$5,$AD$1,P90>=$AC$5,$AC$1,P90>=$AB$5,$AB$1,P90>=$AA$5,$AA$1,P90>=$Z$5,$Z$1,P90>=$Y$5,$Y$1,P90>=$X$5,$X$1,P90>=$W$5,$W$1,P90<$W$2,$V$1),(IF(AND($N$2>=$T$6,$N$2<$U$6),_xlfn.IFS(P90>=$AD$6,$AD$1,P90>=$AC$6,$AC$1,P90>=$AB$6,$AB$1,P90>=$AA$6,$AA$1,P90>=$Z$6,$Z$1,P90>=$Y$6,$Y$1,P90>=$X$6,$X$1,P90>=$W$6,$W$1,P90<$W$2,$V$1),(IF(AND($N$2>=$T$7,$N$2<$U$7),_xlfn.IFS(P90>=$AD$7,$AD$1,P90>=$AC$7,$AC$1,P90>=$AB$7,$AB$1,P90>=$AA$7,$AA$1,P90>=$Z$7,$Z$1,P90>=$Y$7,$Y$1,P90>=$X$7,$X$1,P90>=$W$7,$W$1,P90<$W$2,$V$1),(IF(AND($N$2>=$T$8,$N$2<$U$8),_xlfn.IFS(P90>=$AD$8,$AD$1,P90>=$AC$8,$AC$1,P90>=$AB$8,$AB$1,P90>=$AA$8,$AA$1,P90>=$Z$8,$Z$1,P90>=$Y$8,$Y$1,P90>=$X$8,$X$1,P90>=$W$8,$W$1,P90<$W$2,$V$1),(IF(AND($N$2>=$T$9,$N$2<$U$9),_xlfn.IFS(P90>=$AD$9,$AD$1,P90>=$AC$9,$AC$1,P90>=$AB$9,$AB$1,P90>=$AA$9,$AA$1,P90>=$Z$9,$Z$1,P90>=$Y$9,$Y$1,P90>=$X$9,$X$1,P90>=$W$9,$W$1),$W$1))))))))))))))),IF(AND($N$2>=$T$2,$N$2<=$U$2),IF(P90>=$W$2,$W$1,$V$1),IF(AND($N$2>=$T$3,$N$2<$U$3),IF(P90>=$W$3,$W$1,$V$1),IF(AND($N$2>=$T$4,$N$2<$U$4),IF(P90>=$W$4,$W$1,$V$1),IF(AND($N$2>=$T$5,$N$2<$U$5),IF(P90>=$W$5,$W$1,$V$1),IF(AND($N$2>=$T$6,$N$2<$U$6),IF(P90>=$W$6,$W$1,$V$1),IF(AND($N$2>=$T$7,$N$2<$U$7),IF(P90>=$W$7,$W$1,$V$1),IF(AND($N$2>=$T$8,$N$2<$U$8),IF(P90>=$W$8,$W$1,$V$1),IF(AND($N$2>=$T$9,$N$2<$U$9),IF(P90>=$W$9,$W$1,$V$1),""))))))))),"") -> FD | M90: =IF(E90<>"",IF(AND(E90<>"GR",E90>=40,J90>=30),_xlfn.IFS(Q90>=$AG$2,$AD$19,Q90>=$AG$3,$AC$19,Q90>=$AG$4,$AB$19,Q90>=$AG$5,$AA$19,Q90>=$AG$6,$Z$19,Q90>=$AG$7,$Y$19,Q90>=$AG$8,$X$19,Q90>=$AG$9,$V$19),L90),"") -> CC | P90: 44 | Q90: 53 | R90: -0.57
A91: Öğrenci | B91: 90 | C91: 18 | D91: 74 | E91: GR | F91: 74 | G91: 18 | H91: 74 | I91: 51.6 | J91: 51.6 | K91: 2662.56 | L91: =IF(D91<>"",IF(AND(H91>=40,I91>=30),IF(AND($N$2>=$T$2,$N$2<=$U$2),_xlfn.IFS(P91>=$AD$2,$AD$1,P91>=$AC$2,$AC$1,P91>=$AB$2,$AB$1,P91>=$AA$2,$AA$1,P91>=$Z$2,$Z$1,P91>=$Y$2,$Y$1,P91>=$X$2,$X$1,P91>=$W$2,$W$1,P91<$W$2,$V$1),(IF(AND($N$2>=$T$3,$N$2<$U$3),_xlfn.IFS(P91>=$AD$3,$AD$1,P91>=$AC$3,$AC$1,P91>=$AB$3,$AB$1,P91>=$AA$3,$AA$1,P91>=$Z$3,$Z$1,P91>=$Y$3,$Y$1,P91>=$X$3,$X$1,P91>=$W$3,$W$1,P91<$W$2,$V$1),(IF(AND($N$2>=$T$4,$N$2<$U$4),_xlfn.IFS(P91>=$AD$4,$AD$1,P91>=$AC$4,$AC$1,P91>=$AB$4,$AB$1,P91>=$AA$4,$AA$1,P91>=$Z$4,$Z$1,P91>=$Y$4,$Y$1,P91>=$X$4,$X$1,P91>=$W$4,$W$1,P91<$W$2,$V$1),(IF(AND($N$2>=$T$5,$N$2<$U$5),_xlfn.IFS(P91>=$AD$5,$AD$1,P91>=$AC$5,$AC$1,P91>=$AB$5,$AB$1,P91>=$AA$5,$AA$1,P91>=$Z$5,$Z$1,P91>=$Y$5,$Y$1,P91>=$X$5,$X$1,P91>=$W$5,$W$1,P91<$W$2,$V$1),(IF(AND($N$2>=$T$6,$N$2<$U$6),_xlfn.IFS(P91>=$AD$6,$AD$1,P91>=$AC$6,$AC$1,P91>=$AB$6,$AB$1,P91>=$AA$6,$AA$1,P91>=$Z$6,$Z$1,P91>=$Y$6,$Y$1,P91>=$X$6,$X$1,P91>=$W$6,$W$1,P91<$W$2,$V$1),(IF(AND($N$2>=$T$7,$N$2<$U$7),_xlfn.IFS(P91>=$AD$7,$AD$1,P91>=$AC$7,$AC$1,P91>=$AB$7,$AB$1,P91>=$AA$7,$AA$1,P91>=$Z$7,$Z$1,P91>=$Y$7,$Y$1,P91>=$X$7,$X$1,P91>=$W$7,$W$1,P91<$W$2,$V$1),(IF(AND($N$2>=$T$8,$N$2<$U$8),_xlfn.IFS(P91>=$AD$8,$AD$1,P91>=$AC$8,$AC$1,P91>=$AB$8,$AB$1,P91>=$AA$8,$AA$1,P91>=$Z$8,$Z$1,P91>=$Y$8,$Y$1,P91>=$X$8,$X$1,P91>=$W$8,$W$1,P91<$W$2,$V$1),(IF(AND($N$2>=$T$9,$N$2<$U$9),_xlfn.IFS(P91>=$AD$9,$AD$1,P91>=$AC$9,$AC$1,P91>=$AB$9,$AB$1,P91>=$AA$9,$AA$1,P91>=$Z$9,$Z$1,P91>=$Y$9,$Y$1,P91>=$X$9,$X$1,P91>=$W$9,$W$1),$W$1))))))))))))))),IF(AND($N$2>=$T$2,$N$2<=$U$2),IF(P91>=$W$2,$W$1,$V$1),IF(AND($N$2>=$T$3,$N$2<$U$3),IF(P91>=$W$3,$W$1,$V$1),IF(AND($N$2>=$T$4,$N$2<$U$4),IF(P91>=$W$4,$W$1,$V$1),IF(AND($N$2>=$T$5,$N$2<$U$5),IF(P91>=$W$5,$W$1,$V$1),IF(AND($N$2>=$T$6,$N$2<$U$6),IF(P91>=$W$6,$W$1,$V$1),IF(AND($N$2>=$T$7,$N$2<$U$7),IF(P91>=$W$7,$W$1,$V$1),IF(AND($N$2>=$T$8,$N$2<$U$8),IF(P91>=$W$8,$W$1,$V$1),IF(AND($N$2>=$T$9,$N$2<$U$9),IF(P91>=$W$9,$W$1,$V$1),""))))))))),"") -> CC | M91: =IF(E91<>"",IF(AND(E91<>"GR",E91>=40,J91>=30),_xlfn.IFS(Q91>=$AG$2,$AD$19,Q91>=$AG$3,$AC$19,Q91>=$AG$4,$AB$19,Q91>=$AG$5,$AA$19,Q91>=$AG$6,$Z$19,Q91>=$AG$7,$Y$19,Q91>=$AG$8,$X$19,Q91>=$AG$9,$V$19),L91),"") -> CC | P91: 53 | Q91: 53 | R91: 0.33
A92: Öğrenci | B92: 91 | C92: 30 | D92: 65 | E92: GR | F92: 65 | G92: 30 | H92: 65 | I92: 51 | J92: 51 | K92: 2601 | L92: =IF(D92<>"",IF(AND(H92>=40,I92>=30),IF(AND($N$2>=$T$2,$N$2<=$U$2),_xlfn.IFS(P92>=$AD$2,$AD$1,P92>=$AC$2,$AC$1,P92>=$AB$2,$AB$1,P92>=$AA$2,$AA$1,P92>=$Z$2,$Z$1,P92>=$Y$2,$Y$1,P92>=$X$2,$X$1,P92>=$W$2,$W$1,P92<$W$2,$V$1),(IF(AND($N$2>=$T$3,$N$2<$U$3),_xlfn.IFS(P92>=$AD$3,$AD$1,P92>=$AC$3,$AC$1,P92>=$AB$3,$AB$1,P92>=$AA$3,$AA$1,P92>=$Z$3,$Z$1,P92>=$Y$3,$Y$1,P92>=$X$3,$X$1,P92>=$W$3,$W$1,P92<$W$2,$V$1),(IF(AND($N$2>=$T$4,$N$2<$U$4),_xlfn.IFS(P92>=$AD$4,$AD$1,P92>=$AC$4,$AC$1,P92>=$AB$4,$AB$1,P92>=$AA$4,$AA$1,P92>=$Z$4,$Z$1,P92>=$Y$4,$Y$1,P92>=$X$4,$X$1,P92>=$W$4,$W$1,P92<$W$2,$V$1),(IF(AND($N$2>=$T$5,$N$2<$U$5),_xlfn.IFS(P92>=$AD$5,$AD$1,P92>=$AC$5,$AC$1,P92>=$AB$5,$AB$1,P92>=$AA$5,$AA$1,P92>=$Z$5,$Z$1,P92>=$Y$5,$Y$1,P92>=$X$5,$X$1,P92>=$W$5,$W$1,P92<$W$2,$V$1),(IF(AND($N$2>=$T$6,$N$2<$U$6),_xlfn.IFS(P92>=$AD$6,$AD$1,P92>=$AC$6,$AC$1,P92>=$AB$6,$AB$1,P92>=$AA$6,$AA$1,P92>=$Z$6,$Z$1,P92>=$Y$6,$Y$1,P92>=$X$6,$X$1,P92>=$W$6,$W$1,P92<$W$2,$V$1),(IF(AND($N$2>=$T$7,$N$2<$U$7),_xlfn.IFS(P92>=$AD$7,$AD$1,P92>=$AC$7,$AC$1,P92>=$AB$7,$AB$1,P92>=$AA$7,$AA$1,P92>=$Z$7,$Z$1,P92>=$Y$7,$Y$1,P92>=$X$7,$X$1,P92>=$W$7,$W$1,P92<$W$2,$V$1),(IF(AND($N$2>=$T$8,$N$2<$U$8),_xlfn.IFS(P92>=$AD$8,$AD$1,P92>=$AC$8,$AC$1,P92>=$AB$8,$AB$1,P92>=$AA$8,$AA$1,P92>=$Z$8,$Z$1,P92>=$Y$8,$Y$1,P92>=$X$8,$X$1,P92>=$W$8,$W$1,P92<$W$2,$V$1),(IF(AND($N$2>=$T$9,$N$2<$U$9),_xlfn.IFS(P92>=$AD$9,$AD$1,P92>=$AC$9,$AC$1,P92>=$AB$9,$AB$1,P92>=$AA$9,$AA$1,P92>=$Z$9,$Z$1,P92>=$Y$9,$Y$1,P92>=$X$9,$X$1,P92>=$W$9,$W$1),$W$1))))))))))))))),IF(AND($N$2>=$T$2,$N$2<=$U$2),IF(P92>=$W$2,$W$1,$V$1),IF(AND($N$2>=$T$3,$N$2<$U$3),IF(P92>=$W$3,$W$1,$V$1),IF(AND($N$2>=$T$4,$N$2<$U$4),IF(P92>=$W$4,$W$1,$V$1),IF(AND($N$2>=$T$5,$N$2<$U$5),IF(P92>=$W$5,$W$1,$V$1),IF(AND($N$2>=$T$6,$N$2<$U$6),IF(P92>=$W$6,$W$1,$V$1),IF(AND($N$2>=$T$7,$N$2<$U$7),IF(P92>=$W$7,$W$1,$V$1),IF(AND($N$2>=$T$8,$N$2<$U$8),IF(P92>=$W$8,$W$1,$V$1),IF(AND($N$2>=$T$9,$N$2<$U$9),IF(P92>=$W$9,$W$1,$V$1),""))))))))),"") -> CC | M92: =IF(E92<>"",IF(AND(E92<>"GR",E92>=40,J92>=30),_xlfn.IFS(Q92>=$AG$2,$AD$19,Q92>=$AG$3,$AC$19,Q92>=$AG$4,$AB$19,Q92>=$AG$5,$AA$19,Q92>=$AG$6,$Z$19,Q92>=$AG$7,$Y$19,Q92>=$AG$8,$X$19,Q92>=$AG$9,$V$19),L92),"") -> CC | P92: 53 | Q92: 53 | R92: 0.29
A93: Öğrenci | B93: 92 | C93: 27 | D93: 67 | E93: GR | F93: 67 | G93: 27 | H93: 67 | I93: 51 | J93: 51 | K93: 2601 | L93: =IF(D93<>"",IF(AND(H93>=40,I93>=30),IF(AND($N$2>=$T$2,$N$2<=$U$2),_xlfn.IFS(P93>=$AD$2,$AD$1,P93>=$AC$2,$AC$1,P93>=$AB$2,$AB$1,P93>=$AA$2,$AA$1,P93>=$Z$2,$Z$1,P93>=$Y$2,$Y$1,P93>=$X$2,$X$1,P93>=$W$2,$W$1,P93<$W$2,$V$1),(IF(AND($N$2>=$T$3,$N$2<$U$3),_xlfn.IFS(P93>=$AD$3,$AD$1,P93>=$AC$3,$AC$1,P93>=$AB$3,$AB$1,P93>=$AA$3,$AA$1,P93>=$Z$3,$Z$1,P93>=$Y$3,$Y$1,P93>=$X$3,$X$1,P93>=$W$3,$W$1,P93<$W$2,$V$1),(IF(AND($N$2>=$T$4,$N$2<$U$4),_xlfn.IFS(P93>=$AD$4,$AD$1,P93>=$AC$4,$AC$1,P93>=$AB$4,$AB$1,P93>=$AA$4,$AA$1,P93>=$Z$4,$Z$1,P93>=$Y$4,$Y$1,P93>=$X$4,$X$1,P93>=$W$4,$W$1,P93<$W$2,$V$1),(IF(AND($N$2>=$T$5,$N$2<$U$5),_xlfn.IFS(P93>=$AD$5,$AD$1,P93>=$AC$5,$AC$1,P93>=$AB$5,$AB$1,P93>=$AA$5,$AA$1,P93>=$Z$5,$Z$1,P93>=$Y$5,$Y$1,P93>=$X$5,$X$1,P93>=$W$5,$W$1,P93<$W$2,$V$1),(IF(AND($N$2>=$T$6,$N$2<$U$6),_xlfn.IFS(P93>=$AD$6,$AD$1,P93>=$AC$6,$AC$1,P93>=$AB$6,$AB$1,P93>=$AA$6,$AA$1,P93>=$Z$6,$Z$1,P93>=$Y$6,$Y$1,P93>=$X$6,$X$1,P93>=$W$6,$W$1,P93<$W$2,$V$1),(IF(AND($N$2>=$T$7,$N$2<$U$7),_xlfn.IFS(P93>=$AD$7,$AD$1,P93>=$AC$7,$AC$1,P93>=$AB$7,$AB$1,P93>=$AA$7,$AA$1,P93>=$Z$7,$Z$1,P93>=$Y$7,$Y$1,P93>=$X$7,$X$1,P93>=$W$7,$W$1,P93<$W$2,$V$1),(IF(AND($N$2>=$T$8,$N$2<$U$8),_xlfn.IFS(P93>=$AD$8,$AD$1,P93>=$AC$8,$AC$1,P93>=$AB$8,$AB$1,P93>=$AA$8,$AA$1,P93>=$Z$8,$Z$1,P93>=$Y$8,$Y$1,P93>=$X$8,$X$1,P93>=$W$8,$W$1,P93<$W$2,$V$1),(IF(AND($N$2>=$T$9,$N$2<$U$9),_xlfn.IFS(P93>=$AD$9,$AD$1,P93>=$AC$9,$AC$1,P93>=$AB$9,$AB$1,P93>=$AA$9,$AA$1,P93>=$Z$9,$Z$1,P93>=$Y$9,$Y$1,P93>=$X$9,$X$1,P93>=$W$9,$W$1),$W$1))))))))))))))),IF(AND($N$2>=$T$2,$N$2<=$U$2),IF(P93>=$W$2,$W$1,$V$1),IF(AND($N$2>=$T$3,$N$2<$U$3),IF(P93>=$W$3,$W$1,$V$1),IF(AND($N$2>=$T$4,$N$2<$U$4),IF(P93>=$W$4,$W$1,$V$1),IF(AND($N$2>=$T$5,$N$2<$U$5),IF(P93>=$W$5,$W$1,$V$1),IF(AND($N$2>=$T$6,$N$2<$U$6),IF(P93>=$W$6,$W$1,$V$1),IF(AND($N$2>=$T$7,$N$2<$U$7),IF(P93>=$W$7,$W$1,$V$1),IF(AND($N$2>=$T$8,$N$2<$U$8),IF(P93>=$W$8,$W$1,$V$1),IF(AND($N$2>=$T$9,$N$2<$U$9),IF(P93>=$W$9,$W$1,$V$1),""))))))))),"") -> CC | M93: =IF(E93<>"",IF(AND(E93<>"GR",E93>=40,J93>=30),_xlfn.IFS(Q93>=$AG$2,$AD$19,Q93>=$AG$3,$AC$19,Q93>=$AG$4,$AB$19,Q93>=$AG$5,$AA$19,Q93>=$AG$6,$Z$19,Q93>=$AG$7,$Y$19,Q93>=$AG$8,$X$19,Q93>=$AG$9,$V$19),L93),"") -> CC | P93: 53 | Q93: 53 | R93: 0.29
A94: Öğrenci | B94: 93 | C94: 33 | D94: 63 | E94: GR | F94: 63 | G94: 33 | H94: 63 | I94: 51 | J94: 51 | K94: 2601 | L94: =IF(D94<>"",IF(AND(H94>=40,I94>=30),IF(AND($N$2>=$T$2,$N$2<=$U$2),_xlfn.IFS(P94>=$AD$2,$AD$1,P94>=$AC$2,$AC$1,P94>=$AB$2,$AB$1,P94>=$AA$2,$AA$1,P94>=$Z$2,$Z$1,P94>=$Y$2,$Y$1,P94>=$X$2,$X$1,P94>=$W$2,$W$1,P94<$W$2,$V$1),(IF(AND($N$2>=$T$3,$N$2<$U$3),_xlfn.IFS(P94>=$AD$3,$AD$1,P94>=$AC$3,$AC$1,P94>=$AB$3,$AB$1,P94>=$AA$3,$AA$1,P94>=$Z$3,$Z$1,P94>=$Y$3,$Y$1,P94>=$X$3,$X$1,P94>=$W$3,$W$1,P94<$W$2,$V$1),(IF(AND($N$2>=$T$4,$N$2<$U$4),_xlfn.IFS(P94>=$AD$4,$AD$1,P94>=$AC$4,$AC$1,P94>=$AB$4,$AB$1,P94>=$AA$4,$AA$1,P94>=$Z$4,$Z$1,P94>=$Y$4,$Y$1,P94>=$X$4,$X$1,P94>=$W$4,$W$1,P94<$W$2,$V$1),(IF(AND($N$2>=$T$5,$N$2<$U$5),_xlfn.IFS(P94>=$AD$5,$AD$1,P94>=$AC$5,$AC$1,P94>=$AB$5,$AB$1,P94>=$AA$5,$AA$1,P94>=$Z$5,$Z$1,P94>=$Y$5,$Y$1,P94>=$X$5,$X$1,P94>=$W$5,$W$1,P94<$W$2,$V$1),(IF(AND($N$2>=$T$6,$N$2<$U$6),_xlfn.IFS(P94>=$AD$6,$AD$1,P94>=$AC$6,$AC$1,P94>=$AB$6,$AB$1,P94>=$AA$6,$AA$1,P94>=$Z$6,$Z$1,P94>=$Y$6,$Y$1,P94>=$X$6,$X$1,P94>=$W$6,$W$1,P94<$W$2,$V$1),(IF(AND($N$2>=$T$7,$N$2<$U$7),_xlfn.IFS(P94>=$AD$7,$AD$1,P94>=$AC$7,$AC$1,P94>=$AB$7,$AB$1,P94>=$AA$7,$AA$1,P94>=$Z$7,$Z$1,P94>=$Y$7,$Y$1,P94>=$X$7,$X$1,P94>=$W$7,$W$1,P94<$W$2,$V$1),(IF(AND($N$2>=$T$8,$N$2<$U$8),_xlfn.IFS(P94>=$AD$8,$AD$1,P94>=$AC$8,$AC$1,P94>=$AB$8,$AB$1,P94>=$AA$8,$AA$1,P94>=$Z$8,$Z$1,P94>=$Y$8,$Y$1,P94>=$X$8,$X$1,P94>=$W$8,$W$1,P94<$W$2,$V$1),(IF(AND($N$2>=$T$9,$N$2<$U$9),_xlfn.IFS(P94>=$AD$9,$AD$1,P94>=$AC$9,$AC$1,P94>=$AB$9,$AB$1,P94>=$AA$9,$AA$1,P94>=$Z$9,$Z$1,P94>=$Y$9,$Y$1,P94>=$X$9,$X$1,P94>=$W$9,$W$1),$W$1))))))))))))))),IF(AND($N$2>=$T$2,$N$2<=$U$2),IF(P94>=$W$2,$W$1,$V$1),IF(AND($N$2>=$T$3,$N$2<$U$3),IF(P94>=$W$3,$W$1,$V$1),IF(AND($N$2>=$T$4,$N$2<$U$4),IF(P94>=$W$4,$W$1,$V$1),IF(AND($N$2>=$T$5,$N$2<$U$5),IF(P94>=$W$5,$W$1,$V$1),IF(AND($N$2>=$T$6,$N$2<$U$6),IF(P94>=$W$6,$W$1,$V$1),IF(AND($N$2>=$T$7,$N$2<$U$7),IF(P94>=$W$7,$W$1,$V$1),IF(AND($N$2>=$T$8,$N$2<$U$8),IF(P94>=$W$8,$W$1,$V$1),IF(AND($N$2>=$T$9,$N$2<$U$9),IF(P94>=$W$9,$W$1,$V$1),""))))))))),"") -> CC | M94: =IF(E94<>"",IF(AND(E94<>"GR",E94>=40,J94>=30),_xlfn.IFS(Q94>=$AG$2,$AD$19,Q94>=$AG$3,$AC$19,Q94>=$AG$4,$AB$19,Q94>=$AG$5,$AA$19,Q94>=$AG$6,$Z$19,Q94>=$AG$7,$Y$19,Q94>=$AG$8,$X$19,Q94>=$AG$9,$V$19),L94),"") -> CC | P94: 53 | Q94: 53 | R94: 0.29
A95: Öğrenci | B95: 94 | C95: 20 | D95: 71 | E95: GR | F95: 71 | G95: 20 | H95: 71 | I95: =(H95*0.6)+(G95*0.4) -> 50.6 | J95: 50.6 | K95: 2560.36 | L95: =IF(D95<>"",IF(AND(H95>=40,I95>=30),IF(AND($N$2>=$T$2,$N$2<=$U$2),_xlfn.IFS(P95>=$AD$2,$AD$1,P95>=$AC$2,$AC$1,P95>=$AB$2,$AB$1,P95>=$AA$2,$AA$1,P95>=$Z$2,$Z$1,P95>=$Y$2,$Y$1,P95>=$X$2,$X$1,P95>=$W$2,$W$1,P95<$W$2,$V$1),(IF(AND($N$2>=$T$3,$N$2<$U$3),_xlfn.IFS(P95>=$AD$3,$AD$1,P95>=$AC$3,$AC$1,P95>=$AB$3,$AB$1,P95>=$AA$3,$AA$1,P95>=$Z$3,$Z$1,P95>=$Y$3,$Y$1,P95>=$X$3,$X$1,P95>=$W$3,$W$1,P95<$W$2,$V$1),(IF(AND($N$2>=$T$4,$N$2<$U$4),_xlfn.IFS(P95>=$AD$4,$AD$1,P95>=$AC$4,$AC$1,P95>=$AB$4,$AB$1,P95>=$AA$4,$AA$1,P95>=$Z$4,$Z$1,P95>=$Y$4,$Y$1,P95>=$X$4,$X$1,P95>=$W$4,$W$1,P95<$W$2,$V$1),(IF(AND($N$2>=$T$5,$N$2<$U$5),_xlfn.IFS(P95>=$AD$5,$AD$1,P95>=$AC$5,$AC$1,P95>=$AB$5,$AB$1,P95>=$AA$5,$AA$1,P95>=$Z$5,$Z$1,P95>=$Y$5,$Y$1,P95>=$X$5,$X$1,P95>=$W$5,$W$1,P95<$W$2,$V$1),(IF(AND($N$2>=$T$6,$N$2<$U$6),_xlfn.IFS(P95>=$AD$6,$AD$1,P95>=$AC$6,$AC$1,P95>=$AB$6,$AB$1,P95>=$AA$6,$AA$1,P95>=$Z$6,$Z$1,P95>=$Y$6,$Y$1,P95>=$X$6,$X$1,P95>=$W$6,$W$1,P95<$W$2,$V$1),(IF(AND($N$2>=$T$7,$N$2<$U$7),_xlfn.IFS(P95>=$AD$7,$AD$1,P95>=$AC$7,$AC$1,P95>=$AB$7,$AB$1,P95>=$AA$7,$AA$1,P95>=$Z$7,$Z$1,P95>=$Y$7,$Y$1,P95>=$X$7,$X$1,P95>=$W$7,$W$1,P95<$W$2,$V$1),(IF(AND($N$2>=$T$8,$N$2<$U$8),_xlfn.IFS(P95>=$AD$8,$AD$1,P95>=$AC$8,$AC$1,P95>=$AB$8,$AB$1,P95>=$AA$8,$AA$1,P95>=$Z$8,$Z$1,P95>=$Y$8,$Y$1,P95>=$X$8,$X$1,P95>=$W$8,$W$1,P95<$W$2,$V$1),(IF(AND($N$2>=$T$9,$N$2<$U$9),_xlfn.IFS(P95>=$AD$9,$AD$1,P95>=$AC$9,$AC$1,P95>=$AB$9,$AB$1,P95>=$AA$9,$AA$1,P95>=$Z$9,$Z$1,P95>=$Y$9,$Y$1,P95>=$X$9,$X$1,P95>=$W$9,$W$1),$W$1))))))))))))))),IF(AND($N$2>=$T$2,$N$2<=$U$2),IF(P95>=$W$2,$W$1,$V$1),IF(AND($N$2>=$T$3,$N$2<$U$3),IF(P95>=$W$3,$W$1,$V$1),IF(AND($N$2>=$T$4,$N$2<$U$4),IF(P95>=$W$4,$W$1,$V$1),IF(AND($N$2>=$T$5,$N$2<$U$5),IF(P95>=$W$5,$W$1,$V$1),IF(AND($N$2>=$T$6,$N$2<$U$6),IF(P95>=$W$6,$W$1,$V$1),IF(AND($N$2>=$T$7,$N$2<$U$7),IF(P95>=$W$7,$W$1,$V$1),IF(AND($N$2>=$T$8,$N$2<$U$8),IF(P95>=$W$8,$W$1,$V$1),IF(AND($N$2>=$T$9,$N$2<$U$9),IF(P95>=$W$9,$W$1,$V$1),""))))))))),"") -> CC | M95: =IF(E95<>"",IF(AND(E95<>"GR",E95>=40,J95>=30),_xlfn.IFS(Q95>=$AG$2,$AD$19,Q95>=$AG$3,$AC$19,Q95>=$AG$4,$AB$19,Q95>=$AG$5,$AA$19,Q95>=$AG$6,$Z$19,Q95>=$AG$7,$Y$19,Q95>=$AG$8,$X$19,Q95>=$AG$9,$V$19),L95),"") -> CC | P95: 53 | Q95: 53 | R95: 0.27
A96: Öğrenci | B96: 95 | C96: 18 | D96: 72 | E96: GR | F96: 72 | G96: 18 | H96: 72 | I96: =(H96*0.6)+(G96*0.4) -> 50.4 | J96: 50.4 | K96: 2540.16 | L96: =IF(D96<>"",IF(AND(H96>=40,I96>=30),IF(AND($N$2>=$T$2,$N$2<=$U$2),_xlfn.IFS(P96>=$AD$2,$AD$1,P96>=$AC$2,$AC$1,P96>=$AB$2,$AB$1,P96>=$AA$2,$AA$1,P96>=$Z$2,$Z$1,P96>=$Y$2,$Y$1,P96>=$X$2,$X$1,P96>=$W$2,$W$1,P96<$W$2,$V$1),(IF(AND($N$2>=$T$3,$N$2<$U$3),_xlfn.IFS(P96>=$AD$3,$AD$1,P96>=$AC$3,$AC$1,P96>=$AB$3,$AB$1,P96>=$AA$3,$AA$1,P96>=$Z$3,$Z$1,P96>=$Y$3,$Y$1,P96>=$X$3,$X$1,P96>=$W$3,$W$1,P96<$W$2,$V$1),(IF(AND($N$2>=$T$4,$N$2<$U$4),_xlfn.IFS(P96>=$AD$4,$AD$1,P96>=$AC$4,$AC$1,P96>=$AB$4,$AB$1,P96>=$AA$4,$AA$1,P96>=$Z$4,$Z$1,P96>=$Y$4,$Y$1,P96>=$X$4,$X$1,P96>=$W$4,$W$1,P96<$W$2,$V$1),(IF(AND($N$2>=$T$5,$N$2<$U$5),_xlfn.IFS(P96>=$AD$5,$AD$1,P96>=$AC$5,$AC$1,P96>=$AB$5,$AB$1,P96>=$AA$5,$AA$1,P96>=$Z$5,$Z$1,P96>=$Y$5,$Y$1,P96>=$X$5,$X$1,P96>=$W$5,$W$1,P96<$W$2,$V$1),(IF(AND($N$2>=$T$6,$N$2<$U$6),_xlfn.IFS(P96>=$AD$6,$AD$1,P96>=$AC$6,$AC$1,P96>=$AB$6,$AB$1,P96>=$AA$6,$AA$1,P96>=$Z$6,$Z$1,P96>=$Y$6,$Y$1,P96>=$X$6,$X$1,P96>=$W$6,$W$1,P96<$W$2,$V$1),(IF(AND($N$2>=$T$7,$N$2<$U$7),_xlfn.IFS(P96>=$AD$7,$AD$1,P96>=$AC$7,$AC$1,P96>=$AB$7,$AB$1,P96>=$AA$7,$AA$1,P96>=$Z$7,$Z$1,P96>=$Y$7,$Y$1,P96>=$X$7,$X$1,P96>=$W$7,$W$1,P96<$W$2,$V$1),(IF(AND($N$2>=$T$8,$N$2<$U$8),_xlfn.IFS(P96>=$AD$8,$AD$1,P96>=$AC$8,$AC$1,P96>=$AB$8,$AB$1,P96>=$AA$8,$AA$1,P96>=$Z$8,$Z$1,P96>=$Y$8,$Y$1,P96>=$X$8,$X$1,P96>=$W$8,$W$1,P96<$W$2,$V$1),(IF(AND($N$2>=$T$9,$N$2<$U$9),_xlfn.IFS(P96>=$AD$9,$AD$1,P96>=$AC$9,$AC$1,P96>=$AB$9,$AB$1,P96>=$AA$9,$AA$1,P96>=$Z$9,$Z$1,P96>=$Y$9,$Y$1,P96>=$X$9,$X$1,P96>=$W$9,$W$1),$W$1))))))))))))))),IF(AND($N$2>=$T$2,$N$2<=$U$2),IF(P96>=$W$2,$W$1,$V$1),IF(AND($N$2>=$T$3,$N$2<$U$3),IF(P96>=$W$3,$W$1,$V$1),IF(AND($N$2>=$T$4,$N$2<$U$4),IF(P96>=$W$4,$W$1,$V$1),IF(AND($N$2>=$T$5,$N$2<$U$5),IF(P96>=$W$5,$W$1,$V$1),IF(AND($N$2>=$T$6,$N$2<$U$6),IF(P96>=$W$6,$W$1,$V$1),IF(AND($N$2>=$T$7,$N$2<$U$7),IF(P96>=$W$7,$W$1,$V$1),IF(AND($N$2>=$T$8,$N$2<$U$8),IF(P96>=$W$8,$W$1,$V$1),IF(AND($N$2>=$T$9,$N$2<$U$9),IF(P96>=$W$9,$W$1,$V$1),""))))))))),"") -> CC | M96: =IF(E96<>"",IF(AND(E96<>"GR",E96>=40,J96>=30),_xlfn.IFS(Q96>=$AG$2,$AD$19,Q96>=$AG$3,$AC$19,Q96>=$AG$4,$AB$19,Q96>=$AG$5,$AA$19,Q96>=$AG$6,$Z$19,Q96>=$AG$7,$Y$19,Q96>=$AG$8,$X$19,Q96>=$AG$9,$V$19),L96),"") -> CC | P96: 53 | Q96: 53 | R96: 0.25
A97: Öğrenci | B97: 96 | C97: 21 | D97: 70 | E97: GR | F97: 70 | G97: 21 | H97: 70 | I97: 50.4 | J97: 50.4 | K97: 2540.16 | L97: =IF(D97<>"",IF(AND(H97>=40,I97>=30),IF(AND($N$2>=$T$2,$N$2<=$U$2),_xlfn.IFS(P97>=$AD$2,$AD$1,P97>=$AC$2,$AC$1,P97>=$AB$2,$AB$1,P97>=$AA$2,$AA$1,P97>=$Z$2,$Z$1,P97>=$Y$2,$Y$1,P97>=$X$2,$X$1,P97>=$W$2,$W$1,P97<$W$2,$V$1),(IF(AND($N$2>=$T$3,$N$2<$U$3),_xlfn.IFS(P97>=$AD$3,$AD$1,P97>=$AC$3,$AC$1,P97>=$AB$3,$AB$1,P97>=$AA$3,$AA$1,P97>=$Z$3,$Z$1,P97>=$Y$3,$Y$1,P97>=$X$3,$X$1,P97>=$W$3,$W$1,P97<$W$2,$V$1),(IF(AND($N$2>=$T$4,$N$2<$U$4),_xlfn.IFS(P97>=$AD$4,$AD$1,P97>=$AC$4,$AC$1,P97>=$AB$4,$AB$1,P97>=$AA$4,$AA$1,P97>=$Z$4,$Z$1,P97>=$Y$4,$Y$1,P97>=$X$4,$X$1,P97>=$W$4,$W$1,P97<$W$2,$V$1),(IF(AND($N$2>=$T$5,$N$2<$U$5),_xlfn.IFS(P97>=$AD$5,$AD$1,P97>=$AC$5,$AC$1,P97>=$AB$5,$AB$1,P97>=$AA$5,$AA$1,P97>=$Z$5,$Z$1,P97>=$Y$5,$Y$1,P97>=$X$5,$X$1,P97>=$W$5,$W$1,P97<$W$2,$V$1),(IF(AND($N$2>=$T$6,$N$2<$U$6),_xlfn.IFS(P97>=$AD$6,$AD$1,P97>=$AC$6,$AC$1,P97>=$AB$6,$AB$1,P97>=$AA$6,$AA$1,P97>=$Z$6,$Z$1,P97>=$Y$6,$Y$1,P97>=$X$6,$X$1,P97>=$W$6,$W$1,P97<$W$2,$V$1),(IF(AND($N$2>=$T$7,$N$2<$U$7),_xlfn.IFS(P97>=$AD$7,$AD$1,P97>=$AC$7,$AC$1,P97>=$AB$7,$AB$1,P97>=$AA$7,$AA$1,P97>=$Z$7,$Z$1,P97>=$Y$7,$Y$1,P97>=$X$7,$X$1,P97>=$W$7,$W$1,P97<$W$2,$V$1),(IF(AND($N$2>=$T$8,$N$2<$U$8),_xlfn.IFS(P97>=$AD$8,$AD$1,P97>=$AC$8,$AC$1,P97>=$AB$8,$AB$1,P97>=$AA$8,$AA$1,P97>=$Z$8,$Z$1,P97>=$Y$8,$Y$1,P97>=$X$8,$X$1,P97>=$W$8,$W$1,P97<$W$2,$V$1),(IF(AND($N$2>=$T$9,$N$2<$U$9),_xlfn.IFS(P97>=$AD$9,$AD$1,P97>=$AC$9,$AC$1,P97>=$AB$9,$AB$1,P97>=$AA$9,$AA$1,P97>=$Z$9,$Z$1,P97>=$Y$9,$Y$1,P97>=$X$9,$X$1,P97>=$W$9,$W$1),$W$1))))))))))))))),IF(AND($N$2>=$T$2,$N$2<=$U$2),IF(P97>=$W$2,$W$1,$V$1),IF(AND($N$2>=$T$3,$N$2<$U$3),IF(P97>=$W$3,$W$1,$V$1),IF(AND($N$2>=$T$4,$N$2<$U$4),IF(P97>=$W$4,$W$1,$V$1),IF(AND($N$2>=$T$5,$N$2<$U$5),IF(P97>=$W$5,$W$1,$V$1),IF(AND($N$2>=$T$6,$N$2<$U$6),IF(P97>=$W$6,$W$1,$V$1),IF(AND($N$2>=$T$7,$N$2<$U$7),IF(P97>=$W$7,$W$1,$V$1),IF(AND($N$2>=$T$8,$N$2<$U$8),IF(P97>=$W$8,$W$1,$V$1),IF(AND($N$2>=$T$9,$N$2<$U$9),IF(P97>=$W$9,$W$1,$V$1),""))))))))),"") -> CC | M97: =IF(E97<>"",IF(AND(E97<>"GR",E97>=40,J97>=30),_xlfn.IFS(Q97>=$AG$2,$AD$19,Q97>=$AG$3,$AC$19,Q97>=$AG$4,$AB$19,Q97>=$AG$5,$AA$19,Q97>=$AG$6,$Z$19,Q97>=$AG$7,$Y$19,Q97>=$AG$8,$X$19,Q97>=$AG$9,$V$19),L97),"") -> CC | P97: 53 | Q97: 53 | R97: 0.25
A98: Öğrenci | B98: 97 | C98: 15 | D98: 74 | E98: GR | F98: 74 | G98: 15 | H98: 74 | I98: 50.4 | J98: 50.4 | K98: 2540.16 | L98: =IF(D98<>"",IF(AND(H98>=40,I98>=30),IF(AND($N$2>=$T$2,$N$2<=$U$2),_xlfn.IFS(P98>=$AD$2,$AD$1,P98>=$AC$2,$AC$1,P98>=$AB$2,$AB$1,P98>=$AA$2,$AA$1,P98>=$Z$2,$Z$1,P98>=$Y$2,$Y$1,P98>=$X$2,$X$1,P98>=$W$2,$W$1,P98<$W$2,$V$1),(IF(AND($N$2>=$T$3,$N$2<$U$3),_xlfn.IFS(P98>=$AD$3,$AD$1,P98>=$AC$3,$AC$1,P98>=$AB$3,$AB$1,P98>=$AA$3,$AA$1,P98>=$Z$3,$Z$1,P98>=$Y$3,$Y$1,P98>=$X$3,$X$1,P98>=$W$3,$W$1,P98<$W$2,$V$1),(IF(AND($N$2>=$T$4,$N$2<$U$4),_xlfn.IFS(P98>=$AD$4,$AD$1,P98>=$AC$4,$AC$1,P98>=$AB$4,$AB$1,P98>=$AA$4,$AA$1,P98>=$Z$4,$Z$1,P98>=$Y$4,$Y$1,P98>=$X$4,$X$1,P98>=$W$4,$W$1,P98<$W$2,$V$1),(IF(AND($N$2>=$T$5,$N$2<$U$5),_xlfn.IFS(P98>=$AD$5,$AD$1,P98>=$AC$5,$AC$1,P98>=$AB$5,$AB$1,P98>=$AA$5,$AA$1,P98>=$Z$5,$Z$1,P98>=$Y$5,$Y$1,P98>=$X$5,$X$1,P98>=$W$5,$W$1,P98<$W$2,$V$1),(IF(AND($N$2>=$T$6,$N$2<$U$6),_xlfn.IFS(P98>=$AD$6,$AD$1,P98>=$AC$6,$AC$1,P98>=$AB$6,$AB$1,P98>=$AA$6,$AA$1,P98>=$Z$6,$Z$1,P98>=$Y$6,$Y$1,P98>=$X$6,$X$1,P98>=$W$6,$W$1,P98<$W$2,$V$1),(IF(AND($N$2>=$T$7,$N$2<$U$7),_xlfn.IFS(P98>=$AD$7,$AD$1,P98>=$AC$7,$AC$1,P98>=$AB$7,$AB$1,P98>=$AA$7,$AA$1,P98>=$Z$7,$Z$1,P98>=$Y$7,$Y$1,P98>=$X$7,$X$1,P98>=$W$7,$W$1,P98<$W$2,$V$1),(IF(AND($N$2>=$T$8,$N$2<$U$8),_xlfn.IFS(P98>=$AD$8,$AD$1,P98>=$AC$8,$AC$1,P98>=$AB$8,$AB$1,P98>=$AA$8,$AA$1,P98>=$Z$8,$Z$1,P98>=$Y$8,$Y$1,P98>=$X$8,$X$1,P98>=$W$8,$W$1,P98<$W$2,$V$1),(IF(AND($N$2>=$T$9,$N$2<$U$9),_xlfn.IFS(P98>=$AD$9,$AD$1,P98>=$AC$9,$AC$1,P98>=$AB$9,$AB$1,P98>=$AA$9,$AA$1,P98>=$Z$9,$Z$1,P98>=$Y$9,$Y$1,P98>=$X$9,$X$1,P98>=$W$9,$W$1),$W$1))))))))))))))),IF(AND($N$2>=$T$2,$N$2<=$U$2),IF(P98>=$W$2,$W$1,$V$1),IF(AND($N$2>=$T$3,$N$2<$U$3),IF(P98>=$W$3,$W$1,$V$1),IF(AND($N$2>=$T$4,$N$2<$U$4),IF(P98>=$W$4,$W$1,$V$1),IF(AND($N$2>=$T$5,$N$2<$U$5),IF(P98>=$W$5,$W$1,$V$1),IF(AND($N$2>=$T$6,$N$2<$U$6),IF(P98>=$W$6,$W$1,$V$1),IF(AND($N$2>=$T$7,$N$2<$U$7),IF(P98>=$W$7,$W$1,$V$1),IF(AND($N$2>=$T$8,$N$2<$U$8),IF(P98>=$W$8,$W$1,$V$1),IF(AND($N$2>=$T$9,$N$2<$U$9),IF(P98>=$W$9,$W$1,$V$1),""))))))))),"") -> CC | M98: =IF(E98<>"",IF(AND(E98<>"GR",E98>=40,J98>=30),_xlfn.IFS(Q98>=$AG$2,$AD$19,Q98>=$AG$3,$AC$19,Q98>=$AG$4,$AB$19,Q98>=$AG$5,$AA$19,Q98>=$AG$6,$Z$19,Q98>=$AG$7,$Y$19,Q98>=$AG$8,$X$19,Q98>=$AG$9,$V$19),L98),"") -> CC | P98: 53 | Q98: 53 | R98: 0.25
A99: Öğrenci | B99: 98 | C99: 25 | D99: 67 | E99: GR | F99: 67 | G99: 25 | H99: 67 | I99: 50.20 | J99: 50.2 | K99: 2520.04 | L99: =IF(D99<>"",IF(AND(H99>=40,I99>=30),IF(AND($N$2>=$T$2,$N$2<=$U$2),_xlfn.IFS(P99>=$AD$2,$AD$1,P99>=$AC$2,$AC$1,P99>=$AB$2,$AB$1,P99>=$AA$2,$AA$1,P99>=$Z$2,$Z$1,P99>=$Y$2,$Y$1,P99>=$X$2,$X$1,P99>=$W$2,$W$1,P99<$W$2,$V$1),(IF(AND($N$2>=$T$3,$N$2<$U$3),_xlfn.IFS(P99>=$AD$3,$AD$1,P99>=$AC$3,$AC$1,P99>=$AB$3,$AB$1,P99>=$AA$3,$AA$1,P99>=$Z$3,$Z$1,P99>=$Y$3,$Y$1,P99>=$X$3,$X$1,P99>=$W$3,$W$1,P99<$W$2,$V$1),(IF(AND($N$2>=$T$4,$N$2<$U$4),_xlfn.IFS(P99>=$AD$4,$AD$1,P99>=$AC$4,$AC$1,P99>=$AB$4,$AB$1,P99>=$AA$4,$AA$1,P99>=$Z$4,$Z$1,P99>=$Y$4,$Y$1,P99>=$X$4,$X$1,P99>=$W$4,$W$1,P99<$W$2,$V$1),(IF(AND($N$2>=$T$5,$N$2<$U$5),_xlfn.IFS(P99>=$AD$5,$AD$1,P99>=$AC$5,$AC$1,P99>=$AB$5,$AB$1,P99>=$AA$5,$AA$1,P99>=$Z$5,$Z$1,P99>=$Y$5,$Y$1,P99>=$X$5,$X$1,P99>=$W$5,$W$1,P99<$W$2,$V$1),(IF(AND($N$2>=$T$6,$N$2<$U$6),_xlfn.IFS(P99>=$AD$6,$AD$1,P99>=$AC$6,$AC$1,P99>=$AB$6,$AB$1,P99>=$AA$6,$AA$1,P99>=$Z$6,$Z$1,P99>=$Y$6,$Y$1,P99>=$X$6,$X$1,P99>=$W$6,$W$1,P99<$W$2,$V$1),(IF(AND($N$2>=$T$7,$N$2<$U$7),_xlfn.IFS(P99>=$AD$7,$AD$1,P99>=$AC$7,$AC$1,P99>=$AB$7,$AB$1,P99>=$AA$7,$AA$1,P99>=$Z$7,$Z$1,P99>=$Y$7,$Y$1,P99>=$X$7,$X$1,P99>=$W$7,$W$1,P99<$W$2,$V$1),(IF(AND($N$2>=$T$8,$N$2<$U$8),_xlfn.IFS(P99>=$AD$8,$AD$1,P99>=$AC$8,$AC$1,P99>=$AB$8,$AB$1,P99>=$AA$8,$AA$1,P99>=$Z$8,$Z$1,P99>=$Y$8,$Y$1,P99>=$X$8,$X$1,P99>=$W$8,$W$1,P99<$W$2,$V$1),(IF(AND($N$2>=$T$9,$N$2<$U$9),_xlfn.IFS(P99>=$AD$9,$AD$1,P99>=$AC$9,$AC$1,P99>=$AB$9,$AB$1,P99>=$AA$9,$AA$1,P99>=$Z$9,$Z$1,P99>=$Y$9,$Y$1,P99>=$X$9,$X$1,P99>=$W$9,$W$1),$W$1))))))))))))))),IF(AND($N$2>=$T$2,$N$2<=$U$2),IF(P99>=$W$2,$W$1,$V$1),IF(AND($N$2>=$T$3,$N$2<$U$3),IF(P99>=$W$3,$W$1,$V$1),IF(AND($N$2>=$T$4,$N$2<$U$4),IF(P99>=$W$4,$W$1,$V$1),IF(AND($N$2>=$T$5,$N$2<$U$5),IF(P99>=$W$5,$W$1,$V$1),IF(AND($N$2>=$T$6,$N$2<$U$6),IF(P99>=$W$6,$W$1,$V$1),IF(AND($N$2>=$T$7,$N$2<$U$7),IF(P99>=$W$7,$W$1,$V$1),IF(AND($N$2>=$T$8,$N$2<$U$8),IF(P99>=$W$8,$W$1,$V$1),IF(AND($N$2>=$T$9,$N$2<$U$9),IF(P99>=$W$9,$W$1,$V$1),""))))))))),"") -> CC | M99: =IF(E99<>"",IF(AND(E99<>"GR",E99>=40,J99>=30),_xlfn.IFS(Q99>=$AG$2,$AD$19,Q99>=$AG$3,$AC$19,Q99>=$AG$4,$AB$19,Q99>=$AG$5,$AA$19,Q99>=$AG$6,$Z$19,Q99>=$AG$7,$Y$19,Q99>=$AG$8,$X$19,Q99>=$AG$9,$V$19),L99),"") -> CC | P99: 52 | Q99: 52 | R99: 0.24
A100: Öğrenci | B100: 99 | C100: 13 | D100: 75 | E100: GR | F100: 75 | G100: 13 | H100: 75 | I100: 50.20 | J100: 50.2 | K100: 2520.04 | L100: =IF(D100<>"",IF(AND(H100>=40,I100>=30),IF(AND($N$2>=$T$2,$N$2<=$U$2),_xlfn.IFS(P100>=$AD$2,$AD$1,P100>=$AC$2,$AC$1,P100>=$AB$2,$AB$1,P100>=$AA$2,$AA$1,P100>=$Z$2,$Z$1,P100>=$Y$2,$Y$1,P100>=$X$2,$X$1,P100>=$W$2,$W$1,P100<$W$2,$V$1),(IF(AND($N$2>=$T$3,$N$2<$U$3),_xlfn.IFS(P100>=$AD$3,$AD$1,P100>=$AC$3,$AC$1,P100>=$AB$3,$AB$1,P100>=$AA$3,$AA$1,P100>=$Z$3,$Z$1,P100>=$Y$3,$Y$1,P100>=$X$3,$X$1,P100>=$W$3,$W$1,P100<$W$2,$V$1),(IF(AND($N$2>=$T$4,$N$2<$U$4),_xlfn.IFS(P100>=$AD$4,$AD$1,P100>=$AC$4,$AC$1,P100>=$AB$4,$AB$1,P100>=$AA$4,$AA$1,P100>=$Z$4,$Z$1,P100>=$Y$4,$Y$1,P100>=$X$4,$X$1,P100>=$W$4,$W$1,P100<$W$2,$V$1),(IF(AND($N$2>=$T$5,$N$2<$U$5),_xlfn.IFS(P100>=$AD$5,$AD$1,P100>=$AC$5,$AC$1,P100>=$AB$5,$AB$1,P100>=$AA$5,$AA$1,P100>=$Z$5,$Z$1,P100>=$Y$5,$Y$1,P100>=$X$5,$X$1,P100>=$W$5,$W$1,P100<$W$2,$V$1),(IF(AND($N$2>=$T$6,$N$2<$U$6),_xlfn.IFS(P100>=$AD$6,$AD$1,P100>=$AC$6,$AC$1,P100>=$AB$6,$AB$1,P100>=$AA$6,$AA$1,P100>=$Z$6,$Z$1,P100>=$Y$6,$Y$1,P100>=$X$6,$X$1,P100>=$W$6,$W$1,P100<$W$2,$V$1),(IF(AND($N$2>=$T$7,$N$2<$U$7),_xlfn.IFS(P100>=$AD$7,$AD$1,P100>=$AC$7,$AC$1,P100>=$AB$7,$AB$1,P100>=$AA$7,$AA$1,P100>=$Z$7,$Z$1,P100>=$Y$7,$Y$1,P100>=$X$7,$X$1,P100>=$W$7,$W$1,P100<$W$2,$V$1),(IF(AND($N$2>=$T$8,$N$2<$U$8),_xlfn.IFS(P100>=$AD$8,$AD$1,P100>=$AC$8,$AC$1,P100>=$AB$8,$AB$1,P100>=$AA$8,$AA$1,P100>=$Z$8,$Z$1,P100>=$Y$8,$Y$1,P100>=$X$8,$X$1,P100>=$W$8,$W$1,P100<$W$2,$V$1),(IF(AND($N$2>=$T$9,$N$2<$U$9),_xlfn.IFS(P100>=$AD$9,$AD$1,P100>=$AC$9,$AC$1,P100>=$AB$9,$AB$1,P100>=$AA$9,$AA$1,P100>=$Z$9,$Z$1,P100>=$Y$9,$Y$1,P100>=$X$9,$X$1,P100>=$W$9,$W$1),$W$1))))))))))))))),IF(AND($N$2>=$T$2,$N$2<=$U$2),IF(P100>=$W$2,$W$1,$V$1),IF(AND($N$2>=$T$3,$N$2<$U$3),IF(P100>=$W$3,$W$1,$V$1),IF(AND($N$2>=$T$4,$N$2<$U$4),IF(P100>=$W$4,$W$1,$V$1),IF(AND($N$2>=$T$5,$N$2<$U$5),IF(P100>=$W$5,$W$1,$V$1),IF(AND($N$2>=$T$6,$N$2<$U$6),IF(P100>=$W$6,$W$1,$V$1),IF(AND($N$2>=$T$7,$N$2<$U$7),IF(P100>=$W$7,$W$1,$V$1),IF(AND($N$2>=$T$8,$N$2<$U$8),IF(P100>=$W$8,$W$1,$V$1),IF(AND($N$2>=$T$9,$N$2<$U$9),IF(P100>=$W$9,$W$1,$V$1),""))))))))),"") -> CC | M100: =IF(E100<>"",IF(AND(E100<>"GR",E100>=40,J100>=30),_xlfn.IFS(Q100>=$AG$2,$AD$19,Q100>=$AG$3,$AC$19,Q100>=$AG$4,$AB$19,Q100>=$AG$5,$AA$19,Q100>=$AG$6,$Z$19,Q100>=$AG$7,$Y$19,Q100>=$AG$8,$X$19,Q100>=$AG$9,$V$19),L100),"") -> CC | P100: 52 | Q100: 52 | R100: 0.24
A101: Öğrenci | B101: 100 | C101: 44 | D101: 54 | E101: GR | F101: 54 | G101: 44 | H101: 54 | I101: 50 | J101: 50 | K101: 2500 | L101: =IF(D101<>"",IF(AND(H101>=40,I101>=30),IF(AND($N$2>=$T$2,$N$2<=$U$2),_xlfn.IFS(P101>=$AD$2,$AD$1,P101>=$AC$2,$AC$1,P101>=$AB$2,$AB$1,P101>=$AA$2,$AA$1,P101>=$Z$2,$Z$1,P101>=$Y$2,$Y$1,P101>=$X$2,$X$1,P101>=$W$2,$W$1,P101<$W$2,$V$1),(IF(AND($N$2>=$T$3,$N$2<$U$3),_xlfn.IFS(P101>=$AD$3,$AD$1,P101>=$AC$3,$AC$1,P101>=$AB$3,$AB$1,P101>=$AA$3,$AA$1,P101>=$Z$3,$Z$1,P101>=$Y$3,$Y$1,P101>=$X$3,$X$1,P101>=$W$3,$W$1,P101<$W$2,$V$1),(IF(AND($N$2>=$T$4,$N$2<$U$4),_xlfn.IFS(P101>=$AD$4,$AD$1,P101>=$AC$4,$AC$1,P101>=$AB$4,$AB$1,P101>=$AA$4,$AA$1,P101>=$Z$4,$Z$1,P101>=$Y$4,$Y$1,P101>=$X$4,$X$1,P101>=$W$4,$W$1,P101<$W$2,$V$1),(IF(AND($N$2>=$T$5,$N$2<$U$5),_xlfn.IFS(P101>=$AD$5,$AD$1,P101>=$AC$5,$AC$1,P101>=$AB$5,$AB$1,P101>=$AA$5,$AA$1,P101>=$Z$5,$Z$1,P101>=$Y$5,$Y$1,P101>=$X$5,$X$1,P101>=$W$5,$W$1,P101<$W$2,$V$1),(IF(AND($N$2>=$T$6,$N$2<$U$6),_xlfn.IFS(P101>=$AD$6,$AD$1,P101>=$AC$6,$AC$1,P101>=$AB$6,$AB$1,P101>=$AA$6,$AA$1,P101>=$Z$6,$Z$1,P101>=$Y$6,$Y$1,P101>=$X$6,$X$1,P101>=$W$6,$W$1,P101<$W$2,$V$1),(IF(AND($N$2>=$T$7,$N$2<$U$7),_xlfn.IFS(P101>=$AD$7,$AD$1,P101>=$AC$7,$AC$1,P101>=$AB$7,$AB$1,P101>=$AA$7,$AA$1,P101>=$Z$7,$Z$1,P101>=$Y$7,$Y$1,P101>=$X$7,$X$1,P101>=$W$7,$W$1,P101<$W$2,$V$1),(IF(AND($N$2>=$T$8,$N$2<$U$8),_xlfn.IFS(P101>=$AD$8,$AD$1,P101>=$AC$8,$AC$1,P101>=$AB$8,$AB$1,P101>=$AA$8,$AA$1,P101>=$Z$8,$Z$1,P101>=$Y$8,$Y$1,P101>=$X$8,$X$1,P101>=$W$8,$W$1,P101<$W$2,$V$1),(IF(AND($N$2>=$T$9,$N$2<$U$9),_xlfn.IFS(P101>=$AD$9,$AD$1,P101>=$AC$9,$AC$1,P101>=$AB$9,$AB$1,P101>=$AA$9,$AA$1,P101>=$Z$9,$Z$1,P101>=$Y$9,$Y$1,P101>=$X$9,$X$1,P101>=$W$9,$W$1),$W$1))))))))))))))),IF(AND($N$2>=$T$2,$N$2<=$U$2),IF(P101>=$W$2,$W$1,$V$1),IF(AND($N$2>=$T$3,$N$2<$U$3),IF(P101>=$W$3,$W$1,$V$1),IF(AND($N$2>=$T$4,$N$2<$U$4),IF(P101>=$W$4,$W$1,$V$1),IF(AND($N$2>=$T$5,$N$2<$U$5),IF(P101>=$W$5,$W$1,$V$1),IF(AND($N$2>=$T$6,$N$2<$U$6),IF(P101>=$W$6,$W$1,$V$1),IF(AND($N$2>=$T$7,$N$2<$U$7),IF(P101>=$W$7,$W$1,$V$1),IF(AND($N$2>=$T$8,$N$2<$U$8),IF(P101>=$W$8,$W$1,$V$1),IF(AND($N$2>=$T$9,$N$2<$U$9),IF(P101>=$W$9,$W$1,$V$1),""))))))))),"") -> CC | M101: =IF(E101<>"",IF(AND(E101<>"GR",E101>=40,J101>=30),_xlfn.IFS(Q101>=$AG$2,$AD$19,Q101>=$AG$3,$AC$19,Q101>=$AG$4,$AB$19,Q101>=$AG$5,$AA$19,Q101>=$AG$6,$Z$19,Q101>=$AG$7,$Y$19,Q101>=$AG$8,$X$19,Q101>=$AG$9,$V$19),L101),"") -> CC | P101: 52 | Q101: 52 | R101: 0.22
A102: Öğrenci | B102: 101 | C102: 51 | D102: 49 | E102: GR | F102: 49 | G102: 51 | H102: 49 | I102: 49.8 | J102: 49.8 | K102: 2480.04 | L102: =IF(D102<>"",IF(AND(H102>=40,I102>=30),IF(AND($N$2>=$T$2,$N$2<=$U$2),_xlfn.IFS(P102>=$AD$2,$AD$1,P102>=$AC$2,$AC$1,P102>=$AB$2,$AB$1,P102>=$AA$2,$AA$1,P102>=$Z$2,$Z$1,P102>=$Y$2,$Y$1,P102>=$X$2,$X$1,P102>=$W$2,$W$1,P102<$W$2,$V$1),(IF(AND($N$2>=$T$3,$N$2<$U$3),_xlfn.IFS(P102>=$AD$3,$AD$1,P102>=$AC$3,$AC$1,P102>=$AB$3,$AB$1,P102>=$AA$3,$AA$1,P102>=$Z$3,$Z$1,P102>=$Y$3,$Y$1,P102>=$X$3,$X$1,P102>=$W$3,$W$1,P102<$W$2,$V$1),(IF(AND($N$2>=$T$4,$N$2<$U$4),_xlfn.IFS(P102>=$AD$4,$AD$1,P102>=$AC$4,$AC$1,P102>=$AB$4,$AB$1,P102>=$AA$4,$AA$1,P102>=$Z$4,$Z$1,P102>=$Y$4,$Y$1,P102>=$X$4,$X$1,P102>=$W$4,$W$1,P102<$W$2,$V$1),(IF(AND($N$2>=$T$5,$N$2<$U$5),_xlfn.IFS(P102>=$AD$5,$AD$1,P102>=$AC$5,$AC$1,P102>=$AB$5,$AB$1,P102>=$AA$5,$AA$1,P102>=$Z$5,$Z$1,P102>=$Y$5,$Y$1,P102>=$X$5,$X$1,P102>=$W$5,$W$1,P102<$W$2,$V$1),(IF(AND($N$2>=$T$6,$N$2<$U$6),_xlfn.IFS(P102>=$AD$6,$AD$1,P102>=$AC$6,$AC$1,P102>=$AB$6,$AB$1,P102>=$AA$6,$AA$1,P102>=$Z$6,$Z$1,P102>=$Y$6,$Y$1,P102>=$X$6,$X$1,P102>=$W$6,$W$1,P102<$W$2,$V$1),(IF(AND($N$2>=$T$7,$N$2<$U$7),_xlfn.IFS(P102>=$AD$7,$AD$1,P102>=$AC$7,$AC$1,P102>=$AB$7,$AB$1,P102>=$AA$7,$AA$1,P102>=$Z$7,$Z$1,P102>=$Y$7,$Y$1,P102>=$X$7,$X$1,P102>=$W$7,$W$1,P102<$W$2,$V$1),(IF(AND($N$2>=$T$8,$N$2<$U$8),_xlfn.IFS(P102>=$AD$8,$AD$1,P102>=$AC$8,$AC$1,P102>=$AB$8,$AB$1,P102>=$AA$8,$AA$1,P102>=$Z$8,$Z$1,P102>=$Y$8,$Y$1,P102>=$X$8,$X$1,P102>=$W$8,$W$1,P102<$W$2,$V$1),(IF(AND($N$2>=$T$9,$N$2<$U$9),_xlfn.IFS(P102>=$AD$9,$AD$1,P102>=$AC$9,$AC$1,P102>=$AB$9,$AB$1,P102>=$AA$9,$AA$1,P102>=$Z$9,$Z$1,P102>=$Y$9,$Y$1,P102>=$X$9,$X$1,P102>=$W$9,$W$1),$W$1))))))))))))))),IF(AND($N$2>=$T$2,$N$2<=$U$2),IF(P102>=$W$2,$W$1,$V$1),IF(AND($N$2>=$T$3,$N$2<$U$3),IF(P102>=$W$3,$W$1,$V$1),IF(AND($N$2>=$T$4,$N$2<$U$4),IF(P102>=$W$4,$W$1,$V$1),IF(AND($N$2>=$T$5,$N$2<$U$5),IF(P102>=$W$5,$W$1,$V$1),IF(AND($N$2>=$T$6,$N$2<$U$6),IF(P102>=$W$6,$W$1,$V$1),IF(AND($N$2>=$T$7,$N$2<$U$7),IF(P102>=$W$7,$W$1,$V$1),IF(AND($N$2>=$T$8,$N$2<$U$8),IF(P102>=$W$8,$W$1,$V$1),IF(AND($N$2>=$T$9,$N$2<$U$9),IF(P102>=$W$9,$W$1,$V$1),""))))))))),"") -> CC | M102: =IF(E102<>"",IF(AND(E102<>"GR",E102>=40,J102>=30),_xlfn.IFS(Q102>=$AG$2,$AD$19,Q102>=$AG$3,$AC$19,Q102>=$AG$4,$AB$19,Q102>=$AG$5,$AA$19,Q102>=$AG$6,$Z$19,Q102>=$AG$7,$Y$19,Q102>=$AG$8,$X$19,Q102>=$AG$9,$V$19),L102),"") -> CC | P102: 52 | Q102: 52 | R102: 0.21
A103: Öğrenci | B103: 102 | C103: 49 | D103: 50 | E103: GR | F103: 50 | G103: 49 | H103: 50 | I103: 49.6 | J103: 49.6 | K103: 2460.16 | L103: =IF(D103<>"",IF(AND(H103>=40,I103>=30),IF(AND($N$2>=$T$2,$N$2<=$U$2),_xlfn.IFS(P103>=$AD$2,$AD$1,P103>=$AC$2,$AC$1,P103>=$AB$2,$AB$1,P103>=$AA$2,$AA$1,P103>=$Z$2,$Z$1,P103>=$Y$2,$Y$1,P103>=$X$2,$X$1,P103>=$W$2,$W$1,P103<$W$2,$V$1),(IF(AND($N$2>=$T$3,$N$2<$U$3),_xlfn.IFS(P103>=$AD$3,$AD$1,P103>=$AC$3,$AC$1,P103>=$AB$3,$AB$1,P103>=$AA$3,$AA$1,P103>=$Z$3,$Z$1,P103>=$Y$3,$Y$1,P103>=$X$3,$X$1,P103>=$W$3,$W$1,P103<$W$2,$V$1),(IF(AND($N$2>=$T$4,$N$2<$U$4),_xlfn.IFS(P103>=$AD$4,$AD$1,P103>=$AC$4,$AC$1,P103>=$AB$4,$AB$1,P103>=$AA$4,$AA$1,P103>=$Z$4,$Z$1,P103>=$Y$4,$Y$1,P103>=$X$4,$X$1,P103>=$W$4,$W$1,P103<$W$2,$V$1),(IF(AND($N$2>=$T$5,$N$2<$U$5),_xlfn.IFS(P103>=$AD$5,$AD$1,P103>=$AC$5,$AC$1,P103>=$AB$5,$AB$1,P103>=$AA$5,$AA$1,P103>=$Z$5,$Z$1,P103>=$Y$5,$Y$1,P103>=$X$5,$X$1,P103>=$W$5,$W$1,P103<$W$2,$V$1),(IF(AND($N$2>=$T$6,$N$2<$U$6),_xlfn.IFS(P103>=$AD$6,$AD$1,P103>=$AC$6,$AC$1,P103>=$AB$6,$AB$1,P103>=$AA$6,$AA$1,P103>=$Z$6,$Z$1,P103>=$Y$6,$Y$1,P103>=$X$6,$X$1,P103>=$W$6,$W$1,P103<$W$2,$V$1),(IF(AND($N$2>=$T$7,$N$2<$U$7),_xlfn.IFS(P103>=$AD$7,$AD$1,P103>=$AC$7,$AC$1,P103>=$AB$7,$AB$1,P103>=$AA$7,$AA$1,P103>=$Z$7,$Z$1,P103>=$Y$7,$Y$1,P103>=$X$7,$X$1,P103>=$W$7,$W$1,P103<$W$2,$V$1),(IF(AND($N$2>=$T$8,$N$2<$U$8),_xlfn.IFS(P103>=$AD$8,$AD$1,P103>=$AC$8,$AC$1,P103>=$AB$8,$AB$1,P103>=$AA$8,$AA$1,P103>=$Z$8,$Z$1,P103>=$Y$8,$Y$1,P103>=$X$8,$X$1,P103>=$W$8,$W$1,P103<$W$2,$V$1),(IF(AND($N$2>=$T$9,$N$2<$U$9),_xlfn.IFS(P103>=$AD$9,$AD$1,P103>=$AC$9,$AC$1,P103>=$AB$9,$AB$1,P103>=$AA$9,$AA$1,P103>=$Z$9,$Z$1,P103>=$Y$9,$Y$1,P103>=$X$9,$X$1,P103>=$W$9,$W$1),$W$1))))))))))))))),IF(AND($N$2>=$T$2,$N$2<=$U$2),IF(P103>=$W$2,$W$1,$V$1),IF(AND($N$2>=$T$3,$N$2<$U$3),IF(P103>=$W$3,$W$1,$V$1),IF(AND($N$2>=$T$4,$N$2<$U$4),IF(P103>=$W$4,$W$1,$V$1),IF(AND($N$2>=$T$5,$N$2<$U$5),IF(P103>=$W$5,$W$1,$V$1),IF(AND($N$2>=$T$6,$N$2<$U$6),IF(P103>=$W$6,$W$1,$V$1),IF(AND($N$2>=$T$7,$N$2<$U$7),IF(P103>=$W$7,$W$1,$V$1),IF(AND($N$2>=$T$8,$N$2<$U$8),IF(P103>=$W$8,$W$1,$V$1),IF(AND($N$2>=$T$9,$N$2<$U$9),IF(P103>=$W$9,$W$1,$V$1),""))))))))),"") -> CC | M103: =IF(E103<>"",IF(AND(E103<>"GR",E103>=40,J103>=30),_xlfn.IFS(Q103>=$AG$2,$AD$19,Q103>=$AG$3,$AC$19,Q103>=$AG$4,$AB$19,Q103>=$AG$5,$AA$19,Q103>=$AG$6,$Z$19,Q103>=$AG$7,$Y$19,Q103>=$AG$8,$X$19,Q103>=$AG$9,$V$19),L103),"") -> CC | P103: 52 | Q103: 52 | R103: 0.2
A104: Öğrenci | B104: 103 | C104: 31 | D104: 62 | E104: GR | F104: 62 | G104: 31 | H104: 62 | I104: 49.6 | J104: 49.6 | K104: 2460.16 | L104: =IF(D104<>"",IF(AND(H104>=40,I104>=30),IF(AND($N$2>=$T$2,$N$2<=$U$2),_xlfn.IFS(P104>=$AD$2,$AD$1,P104>=$AC$2,$AC$1,P104>=$AB$2,$AB$1,P104>=$AA$2,$AA$1,P104>=$Z$2,$Z$1,P104>=$Y$2,$Y$1,P104>=$X$2,$X$1,P104>=$W$2,$W$1,P104<$W$2,$V$1),(IF(AND($N$2>=$T$3,$N$2<$U$3),_xlfn.IFS(P104>=$AD$3,$AD$1,P104>=$AC$3,$AC$1,P104>=$AB$3,$AB$1,P104>=$AA$3,$AA$1,P104>=$Z$3,$Z$1,P104>=$Y$3,$Y$1,P104>=$X$3,$X$1,P104>=$W$3,$W$1,P104<$W$2,$V$1),(IF(AND($N$2>=$T$4,$N$2<$U$4),_xlfn.IFS(P104>=$AD$4,$AD$1,P104>=$AC$4,$AC$1,P104>=$AB$4,$AB$1,P104>=$AA$4,$AA$1,P104>=$Z$4,$Z$1,P104>=$Y$4,$Y$1,P104>=$X$4,$X$1,P104>=$W$4,$W$1,P104<$W$2,$V$1),(IF(AND($N$2>=$T$5,$N$2<$U$5),_xlfn.IFS(P104>=$AD$5,$AD$1,P104>=$AC$5,$AC$1,P104>=$AB$5,$AB$1,P104>=$AA$5,$AA$1,P104>=$Z$5,$Z$1,P104>=$Y$5,$Y$1,P104>=$X$5,$X$1,P104>=$W$5,$W$1,P104<$W$2,$V$1),(IF(AND($N$2>=$T$6,$N$2<$U$6),_xlfn.IFS(P104>=$AD$6,$AD$1,P104>=$AC$6,$AC$1,P104>=$AB$6,$AB$1,P104>=$AA$6,$AA$1,P104>=$Z$6,$Z$1,P104>=$Y$6,$Y$1,P104>=$X$6,$X$1,P104>=$W$6,$W$1,P104<$W$2,$V$1),(IF(AND($N$2>=$T$7,$N$2<$U$7),_xlfn.IFS(P104>=$AD$7,$AD$1,P104>=$AC$7,$AC$1,P104>=$AB$7,$AB$1,P104>=$AA$7,$AA$1,P104>=$Z$7,$Z$1,P104>=$Y$7,$Y$1,P104>=$X$7,$X$1,P104>=$W$7,$W$1,P104<$W$2,$V$1),(IF(AND($N$2>=$T$8,$N$2<$U$8),_xlfn.IFS(P104>=$AD$8,$AD$1,P104>=$AC$8,$AC$1,P104>=$AB$8,$AB$1,P104>=$AA$8,$AA$1,P104>=$Z$8,$Z$1,P104>=$Y$8,$Y$1,P104>=$X$8,$X$1,P104>=$W$8,$W$1,P104<$W$2,$V$1),(IF(AND($N$2>=$T$9,$N$2<$U$9),_xlfn.IFS(P104>=$AD$9,$AD$1,P104>=$AC$9,$AC$1,P104>=$AB$9,$AB$1,P104>=$AA$9,$AA$1,P104>=$Z$9,$Z$1,P104>=$Y$9,$Y$1,P104>=$X$9,$X$1,P104>=$W$9,$W$1),$W$1))))))))))))))),IF(AND($N$2>=$T$2,$N$2<=$U$2),IF(P104>=$W$2,$W$1,$V$1),IF(AND($N$2>=$T$3,$N$2<$U$3),IF(P104>=$W$3,$W$1,$V$1),IF(AND($N$2>=$T$4,$N$2<$U$4),IF(P104>=$W$4,$W$1,$V$1),IF(AND($N$2>=$T$5,$N$2<$U$5),IF(P104>=$W$5,$W$1,$V$1),IF(AND($N$2>=$T$6,$N$2<$U$6),IF(P104>=$W$6,$W$1,$V$1),IF(AND($N$2>=$T$7,$N$2<$U$7),IF(P104>=$W$7,$W$1,$V$1),IF(AND($N$2>=$T$8,$N$2<$U$8),IF(P104>=$W$8,$W$1,$V$1),IF(AND($N$2>=$T$9,$N$2<$U$9),IF(P104>=$W$9,$W$1,$V$1),""))))))))),"") -> CC | M104: =IF(E104<>"",IF(AND(E104<>"GR",E104>=40,J104>=30),_xlfn.IFS(Q104>=$AG$2,$AD$19,Q104>=$AG$3,$AC$19,Q104>=$AG$4,$AB$19,Q104>=$AG$5,$AA$19,Q104>=$AG$6,$Z$19,Q104>=$AG$7,$Y$19,Q104>=$AG$8,$X$19,Q104>=$AG$9,$V$19),L104),"") -> CC | P104: 52 | Q104: 52 | R104: 0.2
A105: Öğrenci | B105: 104 | C105: 47 | D105: 51 | E105: GR | F105: 51 | G105: 47 | H105: 51 | I105: 49.4 | J105: 49.4 | K105: 2440.36 | L105: =IF(D105<>"",IF(AND(H105>=40,I105>=30),IF(AND($N$2>=$T$2,$N$2<=$U$2),_xlfn.IFS(P105>=$AD$2,$AD$1,P105>=$AC$2,$AC$1,P105>=$AB$2,$AB$1,P105>=$AA$2,$AA$1,P105>=$Z$2,$Z$1,P105>=$Y$2,$Y$1,P105>=$X$2,$X$1,P105>=$W$2,$W$1,P105<$W$2,$V$1),(IF(AND($N$2>=$T$3,$N$2<$U$3),_xlfn.IFS(P105>=$AD$3,$AD$1,P105>=$AC$3,$AC$1,P105>=$AB$3,$AB$1,P105>=$AA$3,$AA$1,P105>=$Z$3,$Z$1,P105>=$Y$3,$Y$1,P105>=$X$3,$X$1,P105>=$W$3,$W$1,P105<$W$2,$V$1),(IF(AND($N$2>=$T$4,$N$2<$U$4),_xlfn.IFS(P105>=$AD$4,$AD$1,P105>=$AC$4,$AC$1,P105>=$AB$4,$AB$1,P105>=$AA$4,$AA$1,P105>=$Z$4,$Z$1,P105>=$Y$4,$Y$1,P105>=$X$4,$X$1,P105>=$W$4,$W$1,P105<$W$2,$V$1),(IF(AND($N$2>=$T$5,$N$2<$U$5),_xlfn.IFS(P105>=$AD$5,$AD$1,P105>=$AC$5,$AC$1,P105>=$AB$5,$AB$1,P105>=$AA$5,$AA$1,P105>=$Z$5,$Z$1,P105>=$Y$5,$Y$1,P105>=$X$5,$X$1,P105>=$W$5,$W$1,P105<$W$2,$V$1),(IF(AND($N$2>=$T$6,$N$2<$U$6),_xlfn.IFS(P105>=$AD$6,$AD$1,P105>=$AC$6,$AC$1,P105>=$AB$6,$AB$1,P105>=$AA$6,$AA$1,P105>=$Z$6,$Z$1,P105>=$Y$6,$Y$1,P105>=$X$6,$X$1,P105>=$W$6,$W$1,P105<$W$2,$V$1),(IF(AND($N$2>=$T$7,$N$2<$U$7),_xlfn.IFS(P105>=$AD$7,$AD$1,P105>=$AC$7,$AC$1,P105>=$AB$7,$AB$1,P105>=$AA$7,$AA$1,P105>=$Z$7,$Z$1,P105>=$Y$7,$Y$1,P105>=$X$7,$X$1,P105>=$W$7,$W$1,P105<$W$2,$V$1),(IF(AND($N$2>=$T$8,$N$2<$U$8),_xlfn.IFS(P105>=$AD$8,$AD$1,P105>=$AC$8,$AC$1,P105>=$AB$8,$AB$1,P105>=$AA$8,$AA$1,P105>=$Z$8,$Z$1,P105>=$Y$8,$Y$1,P105>=$X$8,$X$1,P105>=$W$8,$W$1,P105<$W$2,$V$1),(IF(AND($N$2>=$T$9,$N$2<$U$9),_xlfn.IFS(P105>=$AD$9,$AD$1,P105>=$AC$9,$AC$1,P105>=$AB$9,$AB$1,P105>=$AA$9,$AA$1,P105>=$Z$9,$Z$1,P105>=$Y$9,$Y$1,P105>=$X$9,$X$1,P105>=$W$9,$W$1),$W$1))))))))))))))),IF(AND($N$2>=$T$2,$N$2<=$U$2),IF(P105>=$W$2,$W$1,$V$1),IF(AND($N$2>=$T$3,$N$2<$U$3),IF(P105>=$W$3,$W$1,$V$1),IF(AND($N$2>=$T$4,$N$2<$U$4),IF(P105>=$W$4,$W$1,$V$1),IF(AND($N$2>=$T$5,$N$2<$U$5),IF(P105>=$W$5,$W$1,$V$1),IF(AND($N$2>=$T$6,$N$2<$U$6),IF(P105>=$W$6,$W$1,$V$1),IF(AND($N$2>=$T$7,$N$2<$U$7),IF(P105>=$W$7,$W$1,$V$1),IF(AND($N$2>=$T$8,$N$2<$U$8),IF(P105>=$W$8,$W$1,$V$1),IF(AND($N$2>=$T$9,$N$2<$U$9),IF(P105>=$W$9,$W$1,$V$1),""))))))))),"") -> CC | M105: =IF(E105<>"",IF(AND(E105<>"GR",E105>=40,J105>=30),_xlfn.IFS(Q105>=$AG$2,$AD$19,Q105>=$AG$3,$AC$19,Q105>=$AG$4,$AB$19,Q105>=$AG$5,$AA$19,Q105>=$AG$6,$Z$19,Q105>=$AG$7,$Y$19,Q105>=$AG$8,$X$19,Q105>=$AG$9,$V$19),L105),"") -> CC | P105: 52 | Q105: 52 | R105: 0.18
A106: Öğrenci | B106: 105 | C106: 26 | D106: 65 | E106: GR | F106: 65 | G106: 26 | H106: 65 | I106: 49.4 | J106: 49.4 | K106: 2440.36 | L106: =IF(D106<>"",IF(AND(H106>=40,I106>=30),IF(AND($N$2>=$T$2,$N$2<=$U$2),_xlfn.IFS(P106>=$AD$2,$AD$1,P106>=$AC$2,$AC$1,P106>=$AB$2,$AB$1,P106>=$AA$2,$AA$1,P106>=$Z$2,$Z$1,P106>=$Y$2,$Y$1,P106>=$X$2,$X$1,P106>=$W$2,$W$1,P106<$W$2,$V$1),(IF(AND($N$2>=$T$3,$N$2<$U$3),_xlfn.IFS(P106>=$AD$3,$AD$1,P106>=$AC$3,$AC$1,P106>=$AB$3,$AB$1,P106>=$AA$3,$AA$1,P106>=$Z$3,$Z$1,P106>=$Y$3,$Y$1,P106>=$X$3,$X$1,P106>=$W$3,$W$1,P106<$W$2,$V$1),(IF(AND($N$2>=$T$4,$N$2<$U$4),_xlfn.IFS(P106>=$AD$4,$AD$1,P106>=$AC$4,$AC$1,P106>=$AB$4,$AB$1,P106>=$AA$4,$AA$1,P106>=$Z$4,$Z$1,P106>=$Y$4,$Y$1,P106>=$X$4,$X$1,P106>=$W$4,$W$1,P106<$W$2,$V$1),(IF(AND($N$2>=$T$5,$N$2<$U$5),_xlfn.IFS(P106>=$AD$5,$AD$1,P106>=$AC$5,$AC$1,P106>=$AB$5,$AB$1,P106>=$AA$5,$AA$1,P106>=$Z$5,$Z$1,P106>=$Y$5,$Y$1,P106>=$X$5,$X$1,P106>=$W$5,$W$1,P106<$W$2,$V$1),(IF(AND($N$2>=$T$6,$N$2<$U$6),_xlfn.IFS(P106>=$AD$6,$AD$1,P106>=$AC$6,$AC$1,P106>=$AB$6,$AB$1,P106>=$AA$6,$AA$1,P106>=$Z$6,$Z$1,P106>=$Y$6,$Y$1,P106>=$X$6,$X$1,P106>=$W$6,$W$1,P106<$W$2,$V$1),(IF(AND($N$2>=$T$7,$N$2<$U$7),_xlfn.IFS(P106>=$AD$7,$AD$1,P106>=$AC$7,$AC$1,P106>=$AB$7,$AB$1,P106>=$AA$7,$AA$1,P106>=$Z$7,$Z$1,P106>=$Y$7,$Y$1,P106>=$X$7,$X$1,P106>=$W$7,$W$1,P106<$W$2,$V$1),(IF(AND($N$2>=$T$8,$N$2<$U$8),_xlfn.IFS(P106>=$AD$8,$AD$1,P106>=$AC$8,$AC$1,P106>=$AB$8,$AB$1,P106>=$AA$8,$AA$1,P106>=$Z$8,$Z$1,P106>=$Y$8,$Y$1,P106>=$X$8,$X$1,P106>=$W$8,$W$1,P106<$W$2,$V$1),(IF(AND($N$2>=$T$9,$N$2<$U$9),_xlfn.IFS(P106>=$AD$9,$AD$1,P106>=$AC$9,$AC$1,P106>=$AB$9,$AB$1,P106>=$AA$9,$AA$1,P106>=$Z$9,$Z$1,P106>=$Y$9,$Y$1,P106>=$X$9,$X$1,P106>=$W$9,$W$1),$W$1))))))))))))))),IF(AND($N$2>=$T$2,$N$2<=$U$2),IF(P106>=$W$2,$W$1,$V$1),IF(AND($N$2>=$T$3,$N$2<$U$3),IF(P106>=$W$3,$W$1,$V$1),IF(AND($N$2>=$T$4,$N$2<$U$4),IF(P106>=$W$4,$W$1,$V$1),IF(AND($N$2>=$T$5,$N$2<$U$5),IF(P106>=$W$5,$W$1,$V$1),IF(AND($N$2>=$T$6,$N$2<$U$6),IF(P106>=$W$6,$W$1,$V$1),IF(AND($N$2>=$T$7,$N$2<$U$7),IF(P106>=$W$7,$W$1,$V$1),IF(AND($N$2>=$T$8,$N$2<$U$8),IF(P106>=$W$8,$W$1,$V$1),IF(AND($N$2>=$T$9,$N$2<$U$9),IF(P106>=$W$9,$W$1,$V$1),""))))))))),"") -> CC | M106: =IF(E106<>"",IF(AND(E106<>"GR",E106>=40,J106>=30),_xlfn.IFS(Q106>=$AG$2,$AD$19,Q106>=$AG$3,$AC$19,Q106>=$AG$4,$AB$19,Q106>=$AG$5,$AA$19,Q106>=$AG$6,$Z$19,Q106>=$AG$7,$Y$19,Q106>=$AG$8,$X$19,Q106>=$AG$9,$V$19),L106),"") -> CC | P106: 52 | Q106: 52 | R106: 0.18
A107: Öğrenci | B107: 106 | C107: 29 | D107: 63 | E107: GR | F107: 63 | G107: 29 | H107: 63 | I107: 49.4 | J107: 49.4 | K107: 2440.36 | L107: =IF(D107<>"",IF(AND(H107>=40,I107>=30),IF(AND($N$2>=$T$2,$N$2<=$U$2),_xlfn.IFS(P107>=$AD$2,$AD$1,P107>=$AC$2,$AC$1,P107>=$AB$2,$AB$1,P107>=$AA$2,$AA$1,P107>=$Z$2,$Z$1,P107>=$Y$2,$Y$1,P107>=$X$2,$X$1,P107>=$W$2,$W$1,P107<$W$2,$V$1),(IF(AND($N$2>=$T$3,$N$2<$U$3),_xlfn.IFS(P107>=$AD$3,$AD$1,P107>=$AC$3,$AC$1,P107>=$AB$3,$AB$1,P107>=$AA$3,$AA$1,P107>=$Z$3,$Z$1,P107>=$Y$3,$Y$1,P107>=$X$3,$X$1,P107>=$W$3,$W$1,P107<$W$2,$V$1),(IF(AND($N$2>=$T$4,$N$2<$U$4),_xlfn.IFS(P107>=$AD$4,$AD$1,P107>=$AC$4,$AC$1,P107>=$AB$4,$AB$1,P107>=$AA$4,$AA$1,P107>=$Z$4,$Z$1,P107>=$Y$4,$Y$1,P107>=$X$4,$X$1,P107>=$W$4,$W$1,P107<$W$2,$V$1),(IF(AND($N$2>=$T$5,$N$2<$U$5),_xlfn.IFS(P107>=$AD$5,$AD$1,P107>=$AC$5,$AC$1,P107>=$AB$5,$AB$1,P107>=$AA$5,$AA$1,P107>=$Z$5,$Z$1,P107>=$Y$5,$Y$1,P107>=$X$5,$X$1,P107>=$W$5,$W$1,P107<$W$2,$V$1),(IF(AND($N$2>=$T$6,$N$2<$U$6),_xlfn.IFS(P107>=$AD$6,$AD$1,P107>=$AC$6,$AC$1,P107>=$AB$6,$AB$1,P107>=$AA$6,$AA$1,P107>=$Z$6,$Z$1,P107>=$Y$6,$Y$1,P107>=$X$6,$X$1,P107>=$W$6,$W$1,P107<$W$2,$V$1),(IF(AND($N$2>=$T$7,$N$2<$U$7),_xlfn.IFS(P107>=$AD$7,$AD$1,P107>=$AC$7,$AC$1,P107>=$AB$7,$AB$1,P107>=$AA$7,$AA$1,P107>=$Z$7,$Z$1,P107>=$Y$7,$Y$1,P107>=$X$7,$X$1,P107>=$W$7,$W$1,P107<$W$2,$V$1),(IF(AND($N$2>=$T$8,$N$2<$U$8),_xlfn.IFS(P107>=$AD$8,$AD$1,P107>=$AC$8,$AC$1,P107>=$AB$8,$AB$1,P107>=$AA$8,$AA$1,P107>=$Z$8,$Z$1,P107>=$Y$8,$Y$1,P107>=$X$8,$X$1,P107>=$W$8,$W$1,P107<$W$2,$V$1),(IF(AND($N$2>=$T$9,$N$2<$U$9),_xlfn.IFS(P107>=$AD$9,$AD$1,P107>=$AC$9,$AC$1,P107>=$AB$9,$AB$1,P107>=$AA$9,$AA$1,P107>=$Z$9,$Z$1,P107>=$Y$9,$Y$1,P107>=$X$9,$X$1,P107>=$W$9,$W$1),$W$1))))))))))))))),IF(AND($N$2>=$T$2,$N$2<=$U$2),IF(P107>=$W$2,$W$1,$V$1),IF(AND($N$2>=$T$3,$N$2<$U$3),IF(P107>=$W$3,$W$1,$V$1),IF(AND($N$2>=$T$4,$N$2<$U$4),IF(P107>=$W$4,$W$1,$V$1),IF(AND($N$2>=$T$5,$N$2<$U$5),IF(P107>=$W$5,$W$1,$V$1),IF(AND($N$2>=$T$6,$N$2<$U$6),IF(P107>=$W$6,$W$1,$V$1),IF(AND($N$2>=$T$7,$N$2<$U$7),IF(P107>=$W$7,$W$1,$V$1),IF(AND($N$2>=$T$8,$N$2<$U$8),IF(P107>=$W$8,$W$1,$V$1),IF(AND($N$2>=$T$9,$N$2<$U$9),IF(P107>=$W$9,$W$1,$V$1),""))))))))),"") -> CC | M107: =IF(E107<>"",IF(AND(E107<>"GR",E107>=40,J107>=30),_xlfn.IFS(Q107>=$AG$2,$AD$19,Q107>=$AG$3,$AC$19,Q107>=$AG$4,$AB$19,Q107>=$AG$5,$AA$19,Q107>=$AG$6,$Z$19,Q107>=$AG$7,$Y$19,Q107>=$AG$8,$X$19,Q107>=$AG$9,$V$19),L107),"") -> CC | P107: 52 | Q107: 52 | R107: 0.18
A108: Öğrenci | B108: 107 | C108: 45 | D108: 52 | E108: GR | F108: 52 | G108: 45 | H108: 52 | I108: 49.2 | J108: 49.2 | K108: 2420.64 | L108: =IF(D108<>"",IF(AND(H108>=40,I108>=30),IF(AND($N$2>=$T$2,$N$2<=$U$2),_xlfn.IFS(P108>=$AD$2,$AD$1,P108>=$AC$2,$AC$1,P108>=$AB$2,$AB$1,P108>=$AA$2,$AA$1,P108>=$Z$2,$Z$1,P108>=$Y$2,$Y$1,P108>=$X$2,$X$1,P108>=$W$2,$W$1,P108<$W$2,$V$1),(IF(AND($N$2>=$T$3,$N$2<$U$3),_xlfn.IFS(P108>=$AD$3,$AD$1,P108>=$AC$3,$AC$1,P108>=$AB$3,$AB$1,P108>=$AA$3,$AA$1,P108>=$Z$3,$Z$1,P108>=$Y$3,$Y$1,P108>=$X$3,$X$1,P108>=$W$3,$W$1,P108<$W$2,$V$1),(IF(AND($N$2>=$T$4,$N$2<$U$4),_xlfn.IFS(P108>=$AD$4,$AD$1,P108>=$AC$4,$AC$1,P108>=$AB$4,$AB$1,P108>=$AA$4,$AA$1,P108>=$Z$4,$Z$1,P108>=$Y$4,$Y$1,P108>=$X$4,$X$1,P108>=$W$4,$W$1,P108<$W$2,$V$1),(IF(AND($N$2>=$T$5,$N$2<$U$5),_xlfn.IFS(P108>=$AD$5,$AD$1,P108>=$AC$5,$AC$1,P108>=$AB$5,$AB$1,P108>=$AA$5,$AA$1,P108>=$Z$5,$Z$1,P108>=$Y$5,$Y$1,P108>=$X$5,$X$1,P108>=$W$5,$W$1,P108<$W$2,$V$1),(IF(AND($N$2>=$T$6,$N$2<$U$6),_xlfn.IFS(P108>=$AD$6,$AD$1,P108>=$AC$6,$AC$1,P108>=$AB$6,$AB$1,P108>=$AA$6,$AA$1,P108>=$Z$6,$Z$1,P108>=$Y$6,$Y$1,P108>=$X$6,$X$1,P108>=$W$6,$W$1,P108<$W$2,$V$1),(IF(AND($N$2>=$T$7,$N$2<$U$7),_xlfn.IFS(P108>=$AD$7,$AD$1,P108>=$AC$7,$AC$1,P108>=$AB$7,$AB$1,P108>=$AA$7,$AA$1,P108>=$Z$7,$Z$1,P108>=$Y$7,$Y$1,P108>=$X$7,$X$1,P108>=$W$7,$W$1,P108<$W$2,$V$1),(IF(AND($N$2>=$T$8,$N$2<$U$8),_xlfn.IFS(P108>=$AD$8,$AD$1,P108>=$AC$8,$AC$1,P108>=$AB$8,$AB$1,P108>=$AA$8,$AA$1,P108>=$Z$8,$Z$1,P108>=$Y$8,$Y$1,P108>=$X$8,$X$1,P108>=$W$8,$W$1,P108<$W$2,$V$1),(IF(AND($N$2>=$T$9,$N$2<$U$9),_xlfn.IFS(P108>=$AD$9,$AD$1,P108>=$AC$9,$AC$1,P108>=$AB$9,$AB$1,P108>=$AA$9,$AA$1,P108>=$Z$9,$Z$1,P108>=$Y$9,$Y$1,P108>=$X$9,$X$1,P108>=$W$9,$W$1),$W$1))))))))))))))),IF(AND($N$2>=$T$2,$N$2<=$U$2),IF(P108>=$W$2,$W$1,$V$1),IF(AND($N$2>=$T$3,$N$2<$U$3),IF(P108>=$W$3,$W$1,$V$1),IF(AND($N$2>=$T$4,$N$2<$U$4),IF(P108>=$W$4,$W$1,$V$1),IF(AND($N$2>=$T$5,$N$2<$U$5),IF(P108>=$W$5,$W$1,$V$1),IF(AND($N$2>=$T$6,$N$2<$U$6),IF(P108>=$W$6,$W$1,$V$1),IF(AND($N$2>=$T$7,$N$2<$U$7),IF(P108>=$W$7,$W$1,$V$1),IF(AND($N$2>=$T$8,$N$2<$U$8),IF(P108>=$W$8,$W$1,$V$1),IF(AND($N$2>=$T$9,$N$2<$U$9),IF(P108>=$W$9,$W$1,$V$1),""))))))))),"") -> CC | M108: =IF(E108<>"",IF(AND(E108<>"GR",E108>=40,J108>=30),_xlfn.IFS(Q108>=$AG$2,$AD$19,Q108>=$AG$3,$AC$19,Q108>=$AG$4,$AB$19,Q108>=$AG$5,$AA$19,Q108>=$AG$6,$Z$19,Q108>=$AG$7,$Y$19,Q108>=$AG$8,$X$19,Q108>=$AG$9,$V$19),L108),"") -> CC | P108: 52 | Q108: 52 | R108: 0.17
A109: Öğrenci | B109: 108 | C109: 7 | D109: 77 | E109: GR | F109: 77 | G109: 7 | H109: 77 | I109: 49 | J109: 49 | K109: 2401 | L109: =IF(D109<>"",IF(AND(H109>=40,I109>=30),IF(AND($N$2>=$T$2,$N$2<=$U$2),_xlfn.IFS(P109>=$AD$2,$AD$1,P109>=$AC$2,$AC$1,P109>=$AB$2,$AB$1,P109>=$AA$2,$AA$1,P109>=$Z$2,$Z$1,P109>=$Y$2,$Y$1,P109>=$X$2,$X$1,P109>=$W$2,$W$1,P109<$W$2,$V$1),(IF(AND($N$2>=$T$3,$N$2<$U$3),_xlfn.IFS(P109>=$AD$3,$AD$1,P109>=$AC$3,$AC$1,P109>=$AB$3,$AB$1,P109>=$AA$3,$AA$1,P109>=$Z$3,$Z$1,P109>=$Y$3,$Y$1,P109>=$X$3,$X$1,P109>=$W$3,$W$1,P109<$W$2,$V$1),(IF(AND($N$2>=$T$4,$N$2<$U$4),_xlfn.IFS(P109>=$AD$4,$AD$1,P109>=$AC$4,$AC$1,P109>=$AB$4,$AB$1,P109>=$AA$4,$AA$1,P109>=$Z$4,$Z$1,P109>=$Y$4,$Y$1,P109>=$X$4,$X$1,P109>=$W$4,$W$1,P109<$W$2,$V$1),(IF(AND($N$2>=$T$5,$N$2<$U$5),_xlfn.IFS(P109>=$AD$5,$AD$1,P109>=$AC$5,$AC$1,P109>=$AB$5,$AB$1,P109>=$AA$5,$AA$1,P109>=$Z$5,$Z$1,P109>=$Y$5,$Y$1,P109>=$X$5,$X$1,P109>=$W$5,$W$1,P109<$W$2,$V$1),(IF(AND($N$2>=$T$6,$N$2<$U$6),_xlfn.IFS(P109>=$AD$6,$AD$1,P109>=$AC$6,$AC$1,P109>=$AB$6,$AB$1,P109>=$AA$6,$AA$1,P109>=$Z$6,$Z$1,P109>=$Y$6,$Y$1,P109>=$X$6,$X$1,P109>=$W$6,$W$1,P109<$W$2,$V$1),(IF(AND($N$2>=$T$7,$N$2<$U$7),_xlfn.IFS(P109>=$AD$7,$AD$1,P109>=$AC$7,$AC$1,P109>=$AB$7,$AB$1,P109>=$AA$7,$AA$1,P109>=$Z$7,$Z$1,P109>=$Y$7,$Y$1,P109>=$X$7,$X$1,P109>=$W$7,$W$1,P109<$W$2,$V$1),(IF(AND($N$2>=$T$8,$N$2<$U$8),_xlfn.IFS(P109>=$AD$8,$AD$1,P109>=$AC$8,$AC$1,P109>=$AB$8,$AB$1,P109>=$AA$8,$AA$1,P109>=$Z$8,$Z$1,P109>=$Y$8,$Y$1,P109>=$X$8,$X$1,P109>=$W$8,$W$1,P109<$W$2,$V$1),(IF(AND($N$2>=$T$9,$N$2<$U$9),_xlfn.IFS(P109>=$AD$9,$AD$1,P109>=$AC$9,$AC$1,P109>=$AB$9,$AB$1,P109>=$AA$9,$AA$1,P109>=$Z$9,$Z$1,P109>=$Y$9,$Y$1,P109>=$X$9,$X$1,P109>=$W$9,$W$1),$W$1))))))))))))))),IF(AND($N$2>=$T$2,$N$2<=$U$2),IF(P109>=$W$2,$W$1,$V$1),IF(AND($N$2>=$T$3,$N$2<$U$3),IF(P109>=$W$3,$W$1,$V$1),IF(AND($N$2>=$T$4,$N$2<$U$4),IF(P109>=$W$4,$W$1,$V$1),IF(AND($N$2>=$T$5,$N$2<$U$5),IF(P109>=$W$5,$W$1,$V$1),IF(AND($N$2>=$T$6,$N$2<$U$6),IF(P109>=$W$6,$W$1,$V$1),IF(AND($N$2>=$T$7,$N$2<$U$7),IF(P109>=$W$7,$W$1,$V$1),IF(AND($N$2>=$T$8,$N$2<$U$8),IF(P109>=$W$8,$W$1,$V$1),IF(AND($N$2>=$T$9,$N$2<$U$9),IF(P109>=$W$9,$W$1,$V$1),""))))))))),"") -> CC | M109: =IF(E109<>"",IF(AND(E109<>"GR",E109>=40,J109>=30),_xlfn.IFS(Q109>=$AG$2,$AD$19,Q109>=$AG$3,$AC$19,Q109>=$AG$4,$AB$19,Q109>=$AG$5,$AA$19,Q109>=$AG$6,$Z$19,Q109>=$AG$7,$Y$19,Q109>=$AG$8,$X$19,Q109>=$AG$9,$V$19),L109),"") -> CC | P109: 52 | Q109: 52 | R109: 0.16
A110: Öğrenci | B110: 109 | C110: 40 | D110: 55 | E110: GR | F110: 55 | G110: 40 | H110: 55 | I110: 49 | J110: 49 | K110: 2401 | L110: =IF(D110<>"",IF(AND(H110>=40,I110>=30),IF(AND($N$2>=$T$2,$N$2<=$U$2),_xlfn.IFS(P110>=$AD$2,$AD$1,P110>=$AC$2,$AC$1,P110>=$AB$2,$AB$1,P110>=$AA$2,$AA$1,P110>=$Z$2,$Z$1,P110>=$Y$2,$Y$1,P110>=$X$2,$X$1,P110>=$W$2,$W$1,P110<$W$2,$V$1),(IF(AND($N$2>=$T$3,$N$2<$U$3),_xlfn.IFS(P110>=$AD$3,$AD$1,P110>=$AC$3,$AC$1,P110>=$AB$3,$AB$1,P110>=$AA$3,$AA$1,P110>=$Z$3,$Z$1,P110>=$Y$3,$Y$1,P110>=$X$3,$X$1,P110>=$W$3,$W$1,P110<$W$2,$V$1),(IF(AND($N$2>=$T$4,$N$2<$U$4),_xlfn.IFS(P110>=$AD$4,$AD$1,P110>=$AC$4,$AC$1,P110>=$AB$4,$AB$1,P110>=$AA$4,$AA$1,P110>=$Z$4,$Z$1,P110>=$Y$4,$Y$1,P110>=$X$4,$X$1,P110>=$W$4,$W$1,P110<$W$2,$V$1),(IF(AND($N$2>=$T$5,$N$2<$U$5),_xlfn.IFS(P110>=$AD$5,$AD$1,P110>=$AC$5,$AC$1,P110>=$AB$5,$AB$1,P110>=$AA$5,$AA$1,P110>=$Z$5,$Z$1,P110>=$Y$5,$Y$1,P110>=$X$5,$X$1,P110>=$W$5,$W$1,P110<$W$2,$V$1),(IF(AND($N$2>=$T$6,$N$2<$U$6),_xlfn.IFS(P110>=$AD$6,$AD$1,P110>=$AC$6,$AC$1,P110>=$AB$6,$AB$1,P110>=$AA$6,$AA$1,P110>=$Z$6,$Z$1,P110>=$Y$6,$Y$1,P110>=$X$6,$X$1,P110>=$W$6,$W$1,P110<$W$2,$V$1),(IF(AND($N$2>=$T$7,$N$2<$U$7),_xlfn.IFS(P110>=$AD$7,$AD$1,P110>=$AC$7,$AC$1,P110>=$AB$7,$AB$1,P110>=$AA$7,$AA$1,P110>=$Z$7,$Z$1,P110>=$Y$7,$Y$1,P110>=$X$7,$X$1,P110>=$W$7,$W$1,P110<$W$2,$V$1),(IF(AND($N$2>=$T$8,$N$2<$U$8),_xlfn.IFS(P110>=$AD$8,$AD$1,P110>=$AC$8,$AC$1,P110>=$AB$8,$AB$1,P110>=$AA$8,$AA$1,P110>=$Z$8,$Z$1,P110>=$Y$8,$Y$1,P110>=$X$8,$X$1,P110>=$W$8,$W$1,P110<$W$2,$V$1),(IF(AND($N$2>=$T$9,$N$2<$U$9),_xlfn.IFS(P110>=$AD$9,$AD$1,P110>=$AC$9,$AC$1,P110>=$AB$9,$AB$1,P110>=$AA$9,$AA$1,P110>=$Z$9,$Z$1,P110>=$Y$9,$Y$1,P110>=$X$9,$X$1,P110>=$W$9,$W$1),$W$1))))))))))))))),IF(AND($N$2>=$T$2,$N$2<=$U$2),IF(P110>=$W$2,$W$1,$V$1),IF(AND($N$2>=$T$3,$N$2<$U$3),IF(P110>=$W$3,$W$1,$V$1),IF(AND($N$2>=$T$4,$N$2<$U$4),IF(P110>=$W$4,$W$1,$V$1),IF(AND($N$2>=$T$5,$N$2<$U$5),IF(P110>=$W$5,$W$1,$V$1),IF(AND($N$2>=$T$6,$N$2<$U$6),IF(P110>=$W$6,$W$1,$V$1),IF(AND($N$2>=$T$7,$N$2<$U$7),IF(P110>=$W$7,$W$1,$V$1),IF(AND($N$2>=$T$8,$N$2<$U$8),IF(P110>=$W$8,$W$1,$V$1),IF(AND($N$2>=$T$9,$N$2<$U$9),IF(P110>=$W$9,$W$1,$V$1),""))))))))),"") -> CC | M110: =IF(E110<>"",IF(AND(E110<>"GR",E110>=40,J110>=30),_xlfn.IFS(Q110>=$AG$2,$AD$19,Q110>=$AG$3,$AC$19,Q110>=$AG$4,$AB$19,Q110>=$AG$5,$AA$19,Q110>=$AG$6,$Z$19,Q110>=$AG$7,$Y$19,Q110>=$AG$8,$X$19,Q110>=$AG$9,$V$19),L110),"") -> CC | P110: 52 | Q110: 52 | R110: 0.16
A111: Öğrenci | B111: 110 | C111: 35 | D111: 58 | E111: GR | F111: 58 | G111: 35 | H111: 58 | I111: 48.8 | J111: 48.8 | K111: 2381.44 | L111: =IF(D111<>"",IF(AND(H111>=40,I111>=30),IF(AND($N$2>=$T$2,$N$2<=$U$2),_xlfn.IFS(P111>=$AD$2,$AD$1,P111>=$AC$2,$AC$1,P111>=$AB$2,$AB$1,P111>=$AA$2,$AA$1,P111>=$Z$2,$Z$1,P111>=$Y$2,$Y$1,P111>=$X$2,$X$1,P111>=$W$2,$W$1,P111<$W$2,$V$1),(IF(AND($N$2>=$T$3,$N$2<$U$3),_xlfn.IFS(P111>=$AD$3,$AD$1,P111>=$AC$3,$AC$1,P111>=$AB$3,$AB$1,P111>=$AA$3,$AA$1,P111>=$Z$3,$Z$1,P111>=$Y$3,$Y$1,P111>=$X$3,$X$1,P111>=$W$3,$W$1,P111<$W$2,$V$1),(IF(AND($N$2>=$T$4,$N$2<$U$4),_xlfn.IFS(P111>=$AD$4,$AD$1,P111>=$AC$4,$AC$1,P111>=$AB$4,$AB$1,P111>=$AA$4,$AA$1,P111>=$Z$4,$Z$1,P111>=$Y$4,$Y$1,P111>=$X$4,$X$1,P111>=$W$4,$W$1,P111<$W$2,$V$1),(IF(AND($N$2>=$T$5,$N$2<$U$5),_xlfn.IFS(P111>=$AD$5,$AD$1,P111>=$AC$5,$AC$1,P111>=$AB$5,$AB$1,P111>=$AA$5,$AA$1,P111>=$Z$5,$Z$1,P111>=$Y$5,$Y$1,P111>=$X$5,$X$1,P111>=$W$5,$W$1,P111<$W$2,$V$1),(IF(AND($N$2>=$T$6,$N$2<$U$6),_xlfn.IFS(P111>=$AD$6,$AD$1,P111>=$AC$6,$AC$1,P111>=$AB$6,$AB$1,P111>=$AA$6,$AA$1,P111>=$Z$6,$Z$1,P111>=$Y$6,$Y$1,P111>=$X$6,$X$1,P111>=$W$6,$W$1,P111<$W$2,$V$1),(IF(AND($N$2>=$T$7,$N$2<$U$7),_xlfn.IFS(P111>=$AD$7,$AD$1,P111>=$AC$7,$AC$1,P111>=$AB$7,$AB$1,P111>=$AA$7,$AA$1,P111>=$Z$7,$Z$1,P111>=$Y$7,$Y$1,P111>=$X$7,$X$1,P111>=$W$7,$W$1,P111<$W$2,$V$1),(IF(AND($N$2>=$T$8,$N$2<$U$8),_xlfn.IFS(P111>=$AD$8,$AD$1,P111>=$AC$8,$AC$1,P111>=$AB$8,$AB$1,P111>=$AA$8,$AA$1,P111>=$Z$8,$Z$1,P111>=$Y$8,$Y$1,P111>=$X$8,$X$1,P111>=$W$8,$W$1,P111<$W$2,$V$1),(IF(AND($N$2>=$T$9,$N$2<$U$9),_xlfn.IFS(P111>=$AD$9,$AD$1,P111>=$AC$9,$AC$1,P111>=$AB$9,$AB$1,P111>=$AA$9,$AA$1,P111>=$Z$9,$Z$1,P111>=$Y$9,$Y$1,P111>=$X$9,$X$1,P111>=$W$9,$W$1),$W$1))))))))))))))),IF(AND($N$2>=$T$2,$N$2<=$U$2),IF(P111>=$W$2,$W$1,$V$1),IF(AND($N$2>=$T$3,$N$2<$U$3),IF(P111>=$W$3,$W$1,$V$1),IF(AND($N$2>=$T$4,$N$2<$U$4),IF(P111>=$W$4,$W$1,$V$1),IF(AND($N$2>=$T$5,$N$2<$U$5),IF(P111>=$W$5,$W$1,$V$1),IF(AND($N$2>=$T$6,$N$2<$U$6),IF(P111>=$W$6,$W$1,$V$1),IF(AND($N$2>=$T$7,$N$2<$U$7),IF(P111>=$W$7,$W$1,$V$1),IF(AND($N$2>=$T$8,$N$2<$U$8),IF(P111>=$W$8,$W$1,$V$1),IF(AND($N$2>=$T$9,$N$2<$U$9),IF(P111>=$W$9,$W$1,$V$1),""))))))))),"") -> CC | M111: =IF(E111<>"",IF(AND(E111<>"GR",E111>=40,J111>=30),_xlfn.IFS(Q111>=$AG$2,$AD$19,Q111>=$AG$3,$AC$19,Q111>=$AG$4,$AB$19,Q111>=$AG$5,$AA$19,Q111>=$AG$6,$Z$19,Q111>=$AG$7,$Y$19,Q111>=$AG$8,$X$19,Q111>=$AG$9,$V$19),L111),"") -> CC | P111: 51 | Q111: 51 | R111: 0.14
A112: Öğrenci | B112: 111 | C112: 27 | D112: 63 | E112: GR | F112: 63 | G112: 27 | H112: 63 | I112: 48.6 | J112: 48.6 | K112: 2361.96 | L112: =IF(D112<>"",IF(AND(H112>=40,I112>=30),IF(AND($N$2>=$T$2,$N$2<=$U$2),_xlfn.IFS(P112>=$AD$2,$AD$1,P112>=$AC$2,$AC$1,P112>=$AB$2,$AB$1,P112>=$AA$2,$AA$1,P112>=$Z$2,$Z$1,P112>=$Y$2,$Y$1,P112>=$X$2,$X$1,P112>=$W$2,$W$1,P112<$W$2,$V$1),(IF(AND($N$2>=$T$3,$N$2<$U$3),_xlfn.IFS(P112>=$AD$3,$AD$1,P112>=$AC$3,$AC$1,P112>=$AB$3,$AB$1,P112>=$AA$3,$AA$1,P112>=$Z$3,$Z$1,P112>=$Y$3,$Y$1,P112>=$X$3,$X$1,P112>=$W$3,$W$1,P112<$W$2,$V$1),(IF(AND($N$2>=$T$4,$N$2<$U$4),_xlfn.IFS(P112>=$AD$4,$AD$1,P112>=$AC$4,$AC$1,P112>=$AB$4,$AB$1,P112>=$AA$4,$AA$1,P112>=$Z$4,$Z$1,P112>=$Y$4,$Y$1,P112>=$X$4,$X$1,P112>=$W$4,$W$1,P112<$W$2,$V$1),(IF(AND($N$2>=$T$5,$N$2<$U$5),_xlfn.IFS(P112>=$AD$5,$AD$1,P112>=$AC$5,$AC$1,P112>=$AB$5,$AB$1,P112>=$AA$5,$AA$1,P112>=$Z$5,$Z$1,P112>=$Y$5,$Y$1,P112>=$X$5,$X$1,P112>=$W$5,$W$1,P112<$W$2,$V$1),(IF(AND($N$2>=$T$6,$N$2<$U$6),_xlfn.IFS(P112>=$AD$6,$AD$1,P112>=$AC$6,$AC$1,P112>=$AB$6,$AB$1,P112>=$AA$6,$AA$1,P112>=$Z$6,$Z$1,P112>=$Y$6,$Y$1,P112>=$X$6,$X$1,P112>=$W$6,$W$1,P112<$W$2,$V$1),(IF(AND($N$2>=$T$7,$N$2<$U$7),_xlfn.IFS(P112>=$AD$7,$AD$1,P112>=$AC$7,$AC$1,P112>=$AB$7,$AB$1,P112>=$AA$7,$AA$1,P112>=$Z$7,$Z$1,P112>=$Y$7,$Y$1,P112>=$X$7,$X$1,P112>=$W$7,$W$1,P112<$W$2,$V$1),(IF(AND($N$2>=$T$8,$N$2<$U$8),_xlfn.IFS(P112>=$AD$8,$AD$1,P112>=$AC$8,$AC$1,P112>=$AB$8,$AB$1,P112>=$AA$8,$AA$1,P112>=$Z$8,$Z$1,P112>=$Y$8,$Y$1,P112>=$X$8,$X$1,P112>=$W$8,$W$1,P112<$W$2,$V$1),(IF(AND($N$2>=$T$9,$N$2<$U$9),_xlfn.IFS(P112>=$AD$9,$AD$1,P112>=$AC$9,$AC$1,P112>=$AB$9,$AB$1,P112>=$AA$9,$AA$1,P112>=$Z$9,$Z$1,P112>=$Y$9,$Y$1,P112>=$X$9,$X$1,P112>=$W$9,$W$1),$W$1))))))))))))))),IF(AND($N$2>=$T$2,$N$2<=$U$2),IF(P112>=$W$2,$W$1,$V$1),IF(AND($N$2>=$T$3,$N$2<$U$3),IF(P112>=$W$3,$W$1,$V$1),IF(AND($N$2>=$T$4,$N$2<$U$4),IF(P112>=$W$4,$W$1,$V$1),IF(AND($N$2>=$T$5,$N$2<$U$5),IF(P112>=$W$5,$W$1,$V$1),IF(AND($N$2>=$T$6,$N$2<$U$6),IF(P112>=$W$6,$W$1,$V$1),IF(AND($N$2>=$T$7,$N$2<$U$7),IF(P112>=$W$7,$W$1,$V$1),IF(AND($N$2>=$T$8,$N$2<$U$8),IF(P112>=$W$8,$W$1,$V$1),IF(AND($N$2>=$T$9,$N$2<$U$9),IF(P112>=$W$9,$W$1,$V$1),""))))))))),"") -> CC | M112: =IF(E112<>"",IF(AND(E112<>"GR",E112>=40,J112>=30),_xlfn.IFS(Q112>=$AG$2,$AD$19,Q112>=$AG$3,$AC$19,Q112>=$AG$4,$AB$19,Q112>=$AG$5,$AA$19,Q112>=$AG$6,$Z$19,Q112>=$AG$7,$Y$19,Q112>=$AG$8,$X$19,Q112>=$AG$9,$V$19),L112),"") -> CC | P112: 51 | Q112: 51 | R112: 0.13
A113: Öğrenci | B113: 112 | C113: 24 | D113: 65 | E113: GR | F113: 65 | G113: 24 | H113: 65 | I113: 48.6 | J113: 48.6 | K113: 2361.96 | L113: =IF(D113<>"",IF(AND(H113>=40,I113>=30),IF(AND($N$2>=$T$2,$N$2<=$U$2),_xlfn.IFS(P113>=$AD$2,$AD$1,P113>=$AC$2,$AC$1,P113>=$AB$2,$AB$1,P113>=$AA$2,$AA$1,P113>=$Z$2,$Z$1,P113>=$Y$2,$Y$1,P113>=$X$2,$X$1,P113>=$W$2,$W$1,P113<$W$2,$V$1),(IF(AND($N$2>=$T$3,$N$2<$U$3),_xlfn.IFS(P113>=$AD$3,$AD$1,P113>=$AC$3,$AC$1,P113>=$AB$3,$AB$1,P113>=$AA$3,$AA$1,P113>=$Z$3,$Z$1,P113>=$Y$3,$Y$1,P113>=$X$3,$X$1,P113>=$W$3,$W$1,P113<$W$2,$V$1),(IF(AND($N$2>=$T$4,$N$2<$U$4),_xlfn.IFS(P113>=$AD$4,$AD$1,P113>=$AC$4,$AC$1,P113>=$AB$4,$AB$1,P113>=$AA$4,$AA$1,P113>=$Z$4,$Z$1,P113>=$Y$4,$Y$1,P113>=$X$4,$X$1,P113>=$W$4,$W$1,P113<$W$2,$V$1),(IF(AND($N$2>=$T$5,$N$2<$U$5),_xlfn.IFS(P113>=$AD$5,$AD$1,P113>=$AC$5,$AC$1,P113>=$AB$5,$AB$1,P113>=$AA$5,$AA$1,P113>=$Z$5,$Z$1,P113>=$Y$5,$Y$1,P113>=$X$5,$X$1,P113>=$W$5,$W$1,P113<$W$2,$V$1),(IF(AND($N$2>=$T$6,$N$2<$U$6),_xlfn.IFS(P113>=$AD$6,$AD$1,P113>=$AC$6,$AC$1,P113>=$AB$6,$AB$1,P113>=$AA$6,$AA$1,P113>=$Z$6,$Z$1,P113>=$Y$6,$Y$1,P113>=$X$6,$X$1,P113>=$W$6,$W$1,P113<$W$2,$V$1),(IF(AND($N$2>=$T$7,$N$2<$U$7),_xlfn.IFS(P113>=$AD$7,$AD$1,P113>=$AC$7,$AC$1,P113>=$AB$7,$AB$1,P113>=$AA$7,$AA$1,P113>=$Z$7,$Z$1,P113>=$Y$7,$Y$1,P113>=$X$7,$X$1,P113>=$W$7,$W$1,P113<$W$2,$V$1),(IF(AND($N$2>=$T$8,$N$2<$U$8),_xlfn.IFS(P113>=$AD$8,$AD$1,P113>=$AC$8,$AC$1,P113>=$AB$8,$AB$1,P113>=$AA$8,$AA$1,P113>=$Z$8,$Z$1,P113>=$Y$8,$Y$1,P113>=$X$8,$X$1,P113>=$W$8,$W$1,P113<$W$2,$V$1),(IF(AND($N$2>=$T$9,$N$2<$U$9),_xlfn.IFS(P113>=$AD$9,$AD$1,P113>=$AC$9,$AC$1,P113>=$AB$9,$AB$1,P113>=$AA$9,$AA$1,P113>=$Z$9,$Z$1,P113>=$Y$9,$Y$1,P113>=$X$9,$X$1,P113>=$W$9,$W$1),$W$1))))))))))))))),IF(AND($N$2>=$T$2,$N$2<=$U$2),IF(P113>=$W$2,$W$1,$V$1),IF(AND($N$2>=$T$3,$N$2<$U$3),IF(P113>=$W$3,$W$1,$V$1),IF(AND($N$2>=$T$4,$N$2<$U$4),IF(P113>=$W$4,$W$1,$V$1),IF(AND($N$2>=$T$5,$N$2<$U$5),IF(P113>=$W$5,$W$1,$V$1),IF(AND($N$2>=$T$6,$N$2<$U$6),IF(P113>=$W$6,$W$1,$V$1),IF(AND($N$2>=$T$7,$N$2<$U$7),IF(P113>=$W$7,$W$1,$V$1),IF(AND($N$2>=$T$8,$N$2<$U$8),IF(P113>=$W$8,$W$1,$V$1),IF(AND($N$2>=$T$9,$N$2<$U$9),IF(P113>=$W$9,$W$1,$V$1),""))))))))),"") -> CC | M113: =IF(E113<>"",IF(AND(E113<>"GR",E113>=40,J113>=30),_xlfn.IFS(Q113>=$AG$2,$AD$19,Q113>=$AG$3,$AC$19,Q113>=$AG$4,$AB$19,Q113>=$AG$5,$AA$19,Q113>=$AG$6,$Z$19,Q113>=$AG$7,$Y$19,Q113>=$AG$8,$X$19,Q113>=$AG$9,$V$19),L113),"") -> CC | P113: 51 | Q113: 51 | R113: 0.13
A114: Öğrenci | B114: 113 | C114: 46 | D114: 32 | E114: 50 | F114: 50 | G114: 46 | H114: 32 | I114: 37.6 | J114: 48.4 | K114: 1413.76 | L114: =IF(D114<>"",IF(AND(H114>=40,I114>=30),IF(AND($N$2>=$T$2,$N$2<=$U$2),_xlfn.IFS(P114>=$AD$2,$AD$1,P114>=$AC$2,$AC$1,P114>=$AB$2,$AB$1,P114>=$AA$2,$AA$1,P114>=$Z$2,$Z$1,P114>=$Y$2,$Y$1,P114>=$X$2,$X$1,P114>=$W$2,$W$1,P114<$W$2,$V$1),(IF(AND($N$2>=$T$3,$N$2<$U$3),_xlfn.IFS(P114>=$AD$3,$AD$1,P114>=$AC$3,$AC$1,P114>=$AB$3,$AB$1,P114>=$AA$3,$AA$1,P114>=$Z$3,$Z$1,P114>=$Y$3,$Y$1,P114>=$X$3,$X$1,P114>=$W$3,$W$1,P114<$W$2,$V$1),(IF(AND($N$2>=$T$4,$N$2<$U$4),_xlfn.IFS(P114>=$AD$4,$AD$1,P114>=$AC$4,$AC$1,P114>=$AB$4,$AB$1,P114>=$AA$4,$AA$1,P114>=$Z$4,$Z$1,P114>=$Y$4,$Y$1,P114>=$X$4,$X$1,P114>=$W$4,$W$1,P114<$W$2,$V$1),(IF(AND($N$2>=$T$5,$N$2<$U$5),_xlfn.IFS(P114>=$AD$5,$AD$1,P114>=$AC$5,$AC$1,P114>=$AB$5,$AB$1,P114>=$AA$5,$AA$1,P114>=$Z$5,$Z$1,P114>=$Y$5,$Y$1,P114>=$X$5,$X$1,P114>=$W$5,$W$1,P114<$W$2,$V$1),(IF(AND($N$2>=$T$6,$N$2<$U$6),_xlfn.IFS(P114>=$AD$6,$AD$1,P114>=$AC$6,$AC$1,P114>=$AB$6,$AB$1,P114>=$AA$6,$AA$1,P114>=$Z$6,$Z$1,P114>=$Y$6,$Y$1,P114>=$X$6,$X$1,P114>=$W$6,$W$1,P114<$W$2,$V$1),(IF(AND($N$2>=$T$7,$N$2<$U$7),_xlfn.IFS(P114>=$AD$7,$AD$1,P114>=$AC$7,$AC$1,P114>=$AB$7,$AB$1,P114>=$AA$7,$AA$1,P114>=$Z$7,$Z$1,P114>=$Y$7,$Y$1,P114>=$X$7,$X$1,P114>=$W$7,$W$1,P114<$W$2,$V$1),(IF(AND($N$2>=$T$8,$N$2<$U$8),_xlfn.IFS(P114>=$AD$8,$AD$1,P114>=$AC$8,$AC$1,P114>=$AB$8,$AB$1,P114>=$AA$8,$AA$1,P114>=$Z$8,$Z$1,P114>=$Y$8,$Y$1,P114>=$X$8,$X$1,P114>=$W$8,$W$1,P114<$W$2,$V$1),(IF(AND($N$2>=$T$9,$N$2<$U$9),_xlfn.IFS(P114>=$AD$9,$AD$1,P114>=$AC$9,$AC$1,P114>=$AB$9,$AB$1,P114>=$AA$9,$AA$1,P114>=$Z$9,$Z$1,P114>=$Y$9,$Y$1,P114>=$X$9,$X$1,P114>=$W$9,$W$1),$W$1))))))))))))))),IF(AND($N$2>=$T$2,$N$2<=$U$2),IF(P114>=$W$2,$W$1,$V$1),IF(AND($N$2>=$T$3,$N$2<$U$3),IF(P114>=$W$3,$W$1,$V$1),IF(AND($N$2>=$T$4,$N$2<$U$4),IF(P114>=$W$4,$W$1,$V$1),IF(AND($N$2>=$T$5,$N$2<$U$5),IF(P114>=$W$5,$W$1,$V$1),IF(AND($N$2>=$T$6,$N$2<$U$6),IF(P114>=$W$6,$W$1,$V$1),IF(AND($N$2>=$T$7,$N$2<$U$7),IF(P114>=$W$7,$W$1,$V$1),IF(AND($N$2>=$T$8,$N$2<$U$8),IF(P114>=$W$8,$W$1,$V$1),IF(AND($N$2>=$T$9,$N$2<$U$9),IF(P114>=$W$9,$W$1,$V$1),""))))))))),"") -> FD | M114: =IF(E114<>"",IF(AND(E114<>"GR",E114>=40,J114>=30),_xlfn.IFS(Q114>=$AG$2,$AD$19,Q114>=$AG$3,$AC$19,Q114>=$AG$4,$AB$19,Q114>=$AG$5,$AA$19,Q114>=$AG$6,$Z$19,Q114>=$AG$7,$Y$19,Q114>=$AG$8,$X$19,Q114>=$AG$9,$V$19),L114),"") -> CC | P114: 44 | Q114: 51 | R114: -0.63
A115: Öğrenci | B115: 114 | C115: 30 | D115: 29 | E115: 60 | F115: 60 | G115: 30 | H115: 29 | I115: 29.4 | J115: 48 | K115: 864.36 | L115: =IF(D115<>"",IF(AND(H115>=40,I115>=30),IF(AND($N$2>=$T$2,$N$2<=$U$2),_xlfn.IFS(P115>=$AD$2,$AD$1,P115>=$AC$2,$AC$1,P115>=$AB$2,$AB$1,P115>=$AA$2,$AA$1,P115>=$Z$2,$Z$1,P115>=$Y$2,$Y$1,P115>=$X$2,$X$1,P115>=$W$2,$W$1,P115<$W$2,$V$1),(IF(AND($N$2>=$T$3,$N$2<$U$3),_xlfn.IFS(P115>=$AD$3,$AD$1,P115>=$AC$3,$AC$1,P115>=$AB$3,$AB$1,P115>=$AA$3,$AA$1,P115>=$Z$3,$Z$1,P115>=$Y$3,$Y$1,P115>=$X$3,$X$1,P115>=$W$3,$W$1,P115<$W$2,$V$1),(IF(AND($N$2>=$T$4,$N$2<$U$4),_xlfn.IFS(P115>=$AD$4,$AD$1,P115>=$AC$4,$AC$1,P115>=$AB$4,$AB$1,P115>=$AA$4,$AA$1,P115>=$Z$4,$Z$1,P115>=$Y$4,$Y$1,P115>=$X$4,$X$1,P115>=$W$4,$W$1,P115<$W$2,$V$1),(IF(AND($N$2>=$T$5,$N$2<$U$5),_xlfn.IFS(P115>=$AD$5,$AD$1,P115>=$AC$5,$AC$1,P115>=$AB$5,$AB$1,P115>=$AA$5,$AA$1,P115>=$Z$5,$Z$1,P115>=$Y$5,$Y$1,P115>=$X$5,$X$1,P115>=$W$5,$W$1,P115<$W$2,$V$1),(IF(AND($N$2>=$T$6,$N$2<$U$6),_xlfn.IFS(P115>=$AD$6,$AD$1,P115>=$AC$6,$AC$1,P115>=$AB$6,$AB$1,P115>=$AA$6,$AA$1,P115>=$Z$6,$Z$1,P115>=$Y$6,$Y$1,P115>=$X$6,$X$1,P115>=$W$6,$W$1,P115<$W$2,$V$1),(IF(AND($N$2>=$T$7,$N$2<$U$7),_xlfn.IFS(P115>=$AD$7,$AD$1,P115>=$AC$7,$AC$1,P115>=$AB$7,$AB$1,P115>=$AA$7,$AA$1,P115>=$Z$7,$Z$1,P115>=$Y$7,$Y$1,P115>=$X$7,$X$1,P115>=$W$7,$W$1,P115<$W$2,$V$1),(IF(AND($N$2>=$T$8,$N$2<$U$8),_xlfn.IFS(P115>=$AD$8,$AD$1,P115>=$AC$8,$AC$1,P115>=$AB$8,$AB$1,P115>=$AA$8,$AA$1,P115>=$Z$8,$Z$1,P115>=$Y$8,$Y$1,P115>=$X$8,$X$1,P115>=$W$8,$W$1,P115<$W$2,$V$1),(IF(AND($N$2>=$T$9,$N$2<$U$9),_xlfn.IFS(P115>=$AD$9,$AD$1,P115>=$AC$9,$AC$1,P115>=$AB$9,$AB$1,P115>=$AA$9,$AA$1,P115>=$Z$9,$Z$1,P115>=$Y$9,$Y$1,P115>=$X$9,$X$1,P115>=$W$9,$W$1),$W$1))))))))))))))),IF(AND($N$2>=$T$2,$N$2<=$U$2),IF(P115>=$W$2,$W$1,$V$1),IF(AND($N$2>=$T$3,$N$2<$U$3),IF(P115>=$W$3,$W$1,$V$1),IF(AND($N$2>=$T$4,$N$2<$U$4),IF(P115>=$W$4,$W$1,$V$1),IF(AND($N$2>=$T$5,$N$2<$U$5),IF(P115>=$W$5,$W$1,$V$1),IF(AND($N$2>=$T$6,$N$2<$U$6),IF(P115>=$W$6,$W$1,$V$1),IF(AND($N$2>=$T$7,$N$2<$U$7),IF(P115>=$W$7,$W$1,$V$1),IF(AND($N$2>=$T$8,$N$2<$U$8),IF(P115>=$W$8,$W$1,$V$1),IF(AND($N$2>=$T$9,$N$2<$U$9),IF(P115>=$W$9,$W$1,$V$1),""))))))))),"") -> FD | M115: =IF(E115<>"",IF(AND(E115<>"GR",E115>=40,J115>=30),_xlfn.IFS(Q115>=$AG$2,$AD$19,Q115>=$AG$3,$AC$19,Q115>=$AG$4,$AB$19,Q115>=$AG$5,$AA$19,Q115>=$AG$6,$Z$19,Q115>=$AG$7,$Y$19,Q115>=$AG$8,$X$19,Q115>=$AG$9,$V$19),L115),"") -> CC | P115: 38 | Q115: 51 | R115: -1.19
A116: Öğrenci | B116: 115 | C116: 48 | D116: GR | E116: 48 | F116: 48 | G116: 48 | H116: 0 | I116: 19.2 | J116: 48 | K116: 368.64 | L116: =IF(D116<>"",IF(AND(H116>=40,I116>=30),IF(AND($N$2>=$T$2,$N$2<=$U$2),_xlfn.IFS(P116>=$AD$2,$AD$1,P116>=$AC$2,$AC$1,P116>=$AB$2,$AB$1,P116>=$AA$2,$AA$1,P116>=$Z$2,$Z$1,P116>=$Y$2,$Y$1,P116>=$X$2,$X$1,P116>=$W$2,$W$1,P116<$W$2,$V$1),(IF(AND($N$2>=$T$3,$N$2<$U$3),_xlfn.IFS(P116>=$AD$3,$AD$1,P116>=$AC$3,$AC$1,P116>=$AB$3,$AB$1,P116>=$AA$3,$AA$1,P116>=$Z$3,$Z$1,P116>=$Y$3,$Y$1,P116>=$X$3,$X$1,P116>=$W$3,$W$1,P116<$W$2,$V$1),(IF(AND($N$2>=$T$4,$N$2<$U$4),_xlfn.IFS(P116>=$AD$4,$AD$1,P116>=$AC$4,$AC$1,P116>=$AB$4,$AB$1,P116>=$AA$4,$AA$1,P116>=$Z$4,$Z$1,P116>=$Y$4,$Y$1,P116>=$X$4,$X$1,P116>=$W$4,$W$1,P116<$W$2,$V$1),(IF(AND($N$2>=$T$5,$N$2<$U$5),_xlfn.IFS(P116>=$AD$5,$AD$1,P116>=$AC$5,$AC$1,P116>=$AB$5,$AB$1,P116>=$AA$5,$AA$1,P116>=$Z$5,$Z$1,P116>=$Y$5,$Y$1,P116>=$X$5,$X$1,P116>=$W$5,$W$1,P116<$W$2,$V$1),(IF(AND($N$2>=$T$6,$N$2<$U$6),_xlfn.IFS(P116>=$AD$6,$AD$1,P116>=$AC$6,$AC$1,P116>=$AB$6,$AB$1,P116>=$AA$6,$AA$1,P116>=$Z$6,$Z$1,P116>=$Y$6,$Y$1,P116>=$X$6,$X$1,P116>=$W$6,$W$1,P116<$W$2,$V$1),(IF(AND($N$2>=$T$7,$N$2<$U$7),_xlfn.IFS(P116>=$AD$7,$AD$1,P116>=$AC$7,$AC$1,P116>=$AB$7,$AB$1,P116>=$AA$7,$AA$1,P116>=$Z$7,$Z$1,P116>=$Y$7,$Y$1,P116>=$X$7,$X$1,P116>=$W$7,$W$1,P116<$W$2,$V$1),(IF(AND($N$2>=$T$8,$N$2<$U$8),_xlfn.IFS(P116>=$AD$8,$AD$1,P116>=$AC$8,$AC$1,P116>=$AB$8,$AB$1,P116>=$AA$8,$AA$1,P116>=$Z$8,$Z$1,P116>=$Y$8,$Y$1,P116>=$X$8,$X$1,P116>=$W$8,$W$1,P116<$W$2,$V$1),(IF(AND($N$2>=$T$9,$N$2<$U$9),_xlfn.IFS(P116>=$AD$9,$AD$1,P116>=$AC$9,$AC$1,P116>=$AB$9,$AB$1,P116>=$AA$9,$AA$1,P116>=$Z$9,$Z$1,P116>=$Y$9,$Y$1,P116>=$X$9,$X$1,P116>=$W$9,$W$1),$W$1))))))))))))))),IF(AND($N$2>=$T$2,$N$2<=$U$2),IF(P116>=$W$2,$W$1,$V$1),IF(AND($N$2>=$T$3,$N$2<$U$3),IF(P116>=$W$3,$W$1,$V$1),IF(AND($N$2>=$T$4,$N$2<$U$4),IF(P116>=$W$4,$W$1,$V$1),IF(AND($N$2>=$T$5,$N$2<$U$5),IF(P116>=$W$5,$W$1,$V$1),IF(AND($N$2>=$T$6,$N$2<$U$6),IF(P116>=$W$6,$W$1,$V$1),IF(AND($N$2>=$T$7,$N$2<$U$7),IF(P116>=$W$7,$W$1,$V$1),IF(AND($N$2>=$T$8,$N$2<$U$8),IF(P116>=$W$8,$W$1,$V$1),IF(AND($N$2>=$T$9,$N$2<$U$9),IF(P116>=$W$9,$W$1,$V$1),""))))))))),"") -> FF | M116: =IF(E116<>"",IF(AND(E116<>"GR",E116>=40,J116>=30),_xlfn.IFS(Q116>=$AG$2,$AD$19,Q116>=$AG$3,$AC$19,Q116>=$AG$4,$AB$19,Q116>=$AG$5,$AA$19,Q116>=$AG$6,$Z$19,Q116>=$AG$7,$Y$19,Q116>=$AG$8,$X$19,Q116>=$AG$9,$V$19),L116),"") -> CC | P116: 31 | Q116: 51 | R116: -1.89
A117: Öğrenci | B117: 116 | C117: 42 | D117: 51 | E117: GR | F117: 51 | G117: 42 | H117: 51 | I117: 47.4 | J117: 47.4 | K117: 2246.76 | L117: =IF(D117<>"",IF(AND(H117>=40,I117>=30),IF(AND($N$2>=$T$2,$N$2<=$U$2),_xlfn.IFS(P117>=$AD$2,$AD$1,P117>=$AC$2,$AC$1,P117>=$AB$2,$AB$1,P117>=$AA$2,$AA$1,P117>=$Z$2,$Z$1,P117>=$Y$2,$Y$1,P117>=$X$2,$X$1,P117>=$W$2,$W$1,P117<$W$2,$V$1),(IF(AND($N$2>=$T$3,$N$2<$U$3),_xlfn.IFS(P117>=$AD$3,$AD$1,P117>=$AC$3,$AC$1,P117>=$AB$3,$AB$1,P117>=$AA$3,$AA$1,P117>=$Z$3,$Z$1,P117>=$Y$3,$Y$1,P117>=$X$3,$X$1,P117>=$W$3,$W$1,P117<$W$2,$V$1),(IF(AND($N$2>=$T$4,$N$2<$U$4),_xlfn.IFS(P117>=$AD$4,$AD$1,P117>=$AC$4,$AC$1,P117>=$AB$4,$AB$1,P117>=$AA$4,$AA$1,P117>=$Z$4,$Z$1,P117>=$Y$4,$Y$1,P117>=$X$4,$X$1,P117>=$W$4,$W$1,P117<$W$2,$V$1),(IF(AND($N$2>=$T$5,$N$2<$U$5),_xlfn.IFS(P117>=$AD$5,$AD$1,P117>=$AC$5,$AC$1,P117>=$AB$5,$AB$1,P117>=$AA$5,$AA$1,P117>=$Z$5,$Z$1,P117>=$Y$5,$Y$1,P117>=$X$5,$X$1,P117>=$W$5,$W$1,P117<$W$2,$V$1),(IF(AND($N$2>=$T$6,$N$2<$U$6),_xlfn.IFS(P117>=$AD$6,$AD$1,P117>=$AC$6,$AC$1,P117>=$AB$6,$AB$1,P117>=$AA$6,$AA$1,P117>=$Z$6,$Z$1,P117>=$Y$6,$Y$1,P117>=$X$6,$X$1,P117>=$W$6,$W$1,P117<$W$2,$V$1),(IF(AND($N$2>=$T$7,$N$2<$U$7),_xlfn.IFS(P117>=$AD$7,$AD$1,P117>=$AC$7,$AC$1,P117>=$AB$7,$AB$1,P117>=$AA$7,$AA$1,P117>=$Z$7,$Z$1,P117>=$Y$7,$Y$1,P117>=$X$7,$X$1,P117>=$W$7,$W$1,P117<$W$2,$V$1),(IF(AND($N$2>=$T$8,$N$2<$U$8),_xlfn.IFS(P117>=$AD$8,$AD$1,P117>=$AC$8,$AC$1,P117>=$AB$8,$AB$1,P117>=$AA$8,$AA$1,P117>=$Z$8,$Z$1,P117>=$Y$8,$Y$1,P117>=$X$8,$X$1,P117>=$W$8,$W$1,P117<$W$2,$V$1),(IF(AND($N$2>=$T$9,$N$2<$U$9),_xlfn.IFS(P117>=$AD$9,$AD$1,P117>=$AC$9,$AC$1,P117>=$AB$9,$AB$1,P117>=$AA$9,$AA$1,P117>=$Z$9,$Z$1,P117>=$Y$9,$Y$1,P117>=$X$9,$X$1,P117>=$W$9,$W$1),$W$1))))))))))))))),IF(AND($N$2>=$T$2,$N$2<=$U$2),IF(P117>=$W$2,$W$1,$V$1),IF(AND($N$2>=$T$3,$N$2<$U$3),IF(P117>=$W$3,$W$1,$V$1),IF(AND($N$2>=$T$4,$N$2<$U$4),IF(P117>=$W$4,$W$1,$V$1),IF(AND($N$2>=$T$5,$N$2<$U$5),IF(P117>=$W$5,$W$1,$V$1),IF(AND($N$2>=$T$6,$N$2<$U$6),IF(P117>=$W$6,$W$1,$V$1),IF(AND($N$2>=$T$7,$N$2<$U$7),IF(P117>=$W$7,$W$1,$V$1),IF(AND($N$2>=$T$8,$N$2<$U$8),IF(P117>=$W$8,$W$1,$V$1),IF(AND($N$2>=$T$9,$N$2<$U$9),IF(P117>=$W$9,$W$1,$V$1),""))))))))),"") -> CC | M117: =IF(E117<>"",IF(AND(E117<>"GR",E117>=40,J117>=30),_xlfn.IFS(Q117>=$AG$2,$AD$19,Q117>=$AG$3,$AC$19,Q117>=$AG$4,$AB$19,Q117>=$AG$5,$AA$19,Q117>=$AG$6,$Z$19,Q117>=$AG$7,$Y$19,Q117>=$AG$8,$X$19,Q117>=$AG$9,$V$19),L117),"") -> CC | P117: 50 | Q117: 50 | R117: 0.05
A118: Öğrenci | B118: 117 | C118: 45 | D118: 49 | E118: GR | F118: 49 | G118: 45 | H118: 49 | I118: 47.4 | J118: 47.4 | K118: 2246.76 | L118: =IF(D118<>"",IF(AND(H118>=40,I118>=30),IF(AND($N$2>=$T$2,$N$2<=$U$2),_xlfn.IFS(P118>=$AD$2,$AD$1,P118>=$AC$2,$AC$1,P118>=$AB$2,$AB$1,P118>=$AA$2,$AA$1,P118>=$Z$2,$Z$1,P118>=$Y$2,$Y$1,P118>=$X$2,$X$1,P118>=$W$2,$W$1,P118<$W$2,$V$1),(IF(AND($N$2>=$T$3,$N$2<$U$3),_xlfn.IFS(P118>=$AD$3,$AD$1,P118>=$AC$3,$AC$1,P118>=$AB$3,$AB$1,P118>=$AA$3,$AA$1,P118>=$Z$3,$Z$1,P118>=$Y$3,$Y$1,P118>=$X$3,$X$1,P118>=$W$3,$W$1,P118<$W$2,$V$1),(IF(AND($N$2>=$T$4,$N$2<$U$4),_xlfn.IFS(P118>=$AD$4,$AD$1,P118>=$AC$4,$AC$1,P118>=$AB$4,$AB$1,P118>=$AA$4,$AA$1,P118>=$Z$4,$Z$1,P118>=$Y$4,$Y$1,P118>=$X$4,$X$1,P118>=$W$4,$W$1,P118<$W$2,$V$1),(IF(AND($N$2>=$T$5,$N$2<$U$5),_xlfn.IFS(P118>=$AD$5,$AD$1,P118>=$AC$5,$AC$1,P118>=$AB$5,$AB$1,P118>=$AA$5,$AA$1,P118>=$Z$5,$Z$1,P118>=$Y$5,$Y$1,P118>=$X$5,$X$1,P118>=$W$5,$W$1,P118<$W$2,$V$1),(IF(AND($N$2>=$T$6,$N$2<$U$6),_xlfn.IFS(P118>=$AD$6,$AD$1,P118>=$AC$6,$AC$1,P118>=$AB$6,$AB$1,P118>=$AA$6,$AA$1,P118>=$Z$6,$Z$1,P118>=$Y$6,$Y$1,P118>=$X$6,$X$1,P118>=$W$6,$W$1,P118<$W$2,$V$1),(IF(AND($N$2>=$T$7,$N$2<$U$7),_xlfn.IFS(P118>=$AD$7,$AD$1,P118>=$AC$7,$AC$1,P118>=$AB$7,$AB$1,P118>=$AA$7,$AA$1,P118>=$Z$7,$Z$1,P118>=$Y$7,$Y$1,P118>=$X$7,$X$1,P118>=$W$7,$W$1,P118<$W$2,$V$1),(IF(AND($N$2>=$T$8,$N$2<$U$8),_xlfn.IFS(P118>=$AD$8,$AD$1,P118>=$AC$8,$AC$1,P118>=$AB$8,$AB$1,P118>=$AA$8,$AA$1,P118>=$Z$8,$Z$1,P118>=$Y$8,$Y$1,P118>=$X$8,$X$1,P118>=$W$8,$W$1,P118<$W$2,$V$1),(IF(AND($N$2>=$T$9,$N$2<$U$9),_xlfn.IFS(P118>=$AD$9,$AD$1,P118>=$AC$9,$AC$1,P118>=$AB$9,$AB$1,P118>=$AA$9,$AA$1,P118>=$Z$9,$Z$1,P118>=$Y$9,$Y$1,P118>=$X$9,$X$1,P118>=$W$9,$W$1),$W$1))))))))))))))),IF(AND($N$2>=$T$2,$N$2<=$U$2),IF(P118>=$W$2,$W$1,$V$1),IF(AND($N$2>=$T$3,$N$2<$U$3),IF(P118>=$W$3,$W$1,$V$1),IF(AND($N$2>=$T$4,$N$2<$U$4),IF(P118>=$W$4,$W$1,$V$1),IF(AND($N$2>=$T$5,$N$2<$U$5),IF(P118>=$W$5,$W$1,$V$1),IF(AND($N$2>=$T$6,$N$2<$U$6),IF(P118>=$W$6,$W$1,$V$1),IF(AND($N$2>=$T$7,$N$2<$U$7),IF(P118>=$W$7,$W$1,$V$1),IF(AND($N$2>=$T$8,$N$2<$U$8),IF(P118>=$W$8,$W$1,$V$1),IF(AND($N$2>=$T$9,$N$2<$U$9),IF(P118>=$W$9,$W$1,$V$1),""))))))))),"") -> CC | M118: =IF(E118<>"",IF(AND(E118<>"GR",E118>=40,J118>=30),_xlfn.IFS(Q118>=$AG$2,$AD$19,Q118>=$AG$3,$AC$19,Q118>=$AG$4,$AB$19,Q118>=$AG$5,$AA$19,Q118>=$AG$6,$Z$19,Q118>=$AG$7,$Y$19,Q118>=$AG$8,$X$19,Q118>=$AG$9,$V$19),L118),"") -> CC | P118: 50 | Q118: 50 | R118: 0.05
A119: Öğrenci | B119: 118 | C119: 36 | D119: 55 | E119: GR | F119: 55 | G119: 36 | H119: 55 | I119: 47.4 | J119: 47.4 | K119: 2246.76 | L119: =IF(D119<>"",IF(AND(H119>=40,I119>=30),IF(AND($N$2>=$T$2,$N$2<=$U$2),_xlfn.IFS(P119>=$AD$2,$AD$1,P119>=$AC$2,$AC$1,P119>=$AB$2,$AB$1,P119>=$AA$2,$AA$1,P119>=$Z$2,$Z$1,P119>=$Y$2,$Y$1,P119>=$X$2,$X$1,P119>=$W$2,$W$1,P119<$W$2,$V$1),(IF(AND($N$2>=$T$3,$N$2<$U$3),_xlfn.IFS(P119>=$AD$3,$AD$1,P119>=$AC$3,$AC$1,P119>=$AB$3,$AB$1,P119>=$AA$3,$AA$1,P119>=$Z$3,$Z$1,P119>=$Y$3,$Y$1,P119>=$X$3,$X$1,P119>=$W$3,$W$1,P119<$W$2,$V$1),(IF(AND($N$2>=$T$4,$N$2<$U$4),_xlfn.IFS(P119>=$AD$4,$AD$1,P119>=$AC$4,$AC$1,P119>=$AB$4,$AB$1,P119>=$AA$4,$AA$1,P119>=$Z$4,$Z$1,P119>=$Y$4,$Y$1,P119>=$X$4,$X$1,P119>=$W$4,$W$1,P119<$W$2,$V$1),(IF(AND($N$2>=$T$5,$N$2<$U$5),_xlfn.IFS(P119>=$AD$5,$AD$1,P119>=$AC$5,$AC$1,P119>=$AB$5,$AB$1,P119>=$AA$5,$AA$1,P119>=$Z$5,$Z$1,P119>=$Y$5,$Y$1,P119>=$X$5,$X$1,P119>=$W$5,$W$1,P119<$W$2,$V$1),(IF(AND($N$2>=$T$6,$N$2<$U$6),_xlfn.IFS(P119>=$AD$6,$AD$1,P119>=$AC$6,$AC$1,P119>=$AB$6,$AB$1,P119>=$AA$6,$AA$1,P119>=$Z$6,$Z$1,P119>=$Y$6,$Y$1,P119>=$X$6,$X$1,P119>=$W$6,$W$1,P119<$W$2,$V$1),(IF(AND($N$2>=$T$7,$N$2<$U$7),_xlfn.IFS(P119>=$AD$7,$AD$1,P119>=$AC$7,$AC$1,P119>=$AB$7,$AB$1,P119>=$AA$7,$AA$1,P119>=$Z$7,$Z$1,P119>=$Y$7,$Y$1,P119>=$X$7,$X$1,P119>=$W$7,$W$1,P119<$W$2,$V$1),(IF(AND($N$2>=$T$8,$N$2<$U$8),_xlfn.IFS(P119>=$AD$8,$AD$1,P119>=$AC$8,$AC$1,P119>=$AB$8,$AB$1,P119>=$AA$8,$AA$1,P119>=$Z$8,$Z$1,P119>=$Y$8,$Y$1,P119>=$X$8,$X$1,P119>=$W$8,$W$1,P119<$W$2,$V$1),(IF(AND($N$2>=$T$9,$N$2<$U$9),_xlfn.IFS(P119>=$AD$9,$AD$1,P119>=$AC$9,$AC$1,P119>=$AB$9,$AB$1,P119>=$AA$9,$AA$1,P119>=$Z$9,$Z$1,P119>=$Y$9,$Y$1,P119>=$X$9,$X$1,P119>=$W$9,$W$1),$W$1))))))))))))))),IF(AND($N$2>=$T$2,$N$2<=$U$2),IF(P119>=$W$2,$W$1,$V$1),IF(AND($N$2>=$T$3,$N$2<$U$3),IF(P119>=$W$3,$W$1,$V$1),IF(AND($N$2>=$T$4,$N$2<$U$4),IF(P119>=$W$4,$W$1,$V$1),IF(AND($N$2>=$T$5,$N$2<$U$5),IF(P119>=$W$5,$W$1,$V$1),IF(AND($N$2>=$T$6,$N$2<$U$6),IF(P119>=$W$6,$W$1,$V$1),IF(AND($N$2>=$T$7,$N$2<$U$7),IF(P119>=$W$7,$W$1,$V$1),IF(AND($N$2>=$T$8,$N$2<$U$8),IF(P119>=$W$8,$W$1,$V$1),IF(AND($N$2>=$T$9,$N$2<$U$9),IF(P119>=$W$9,$W$1,$V$1),""))))))))),"") -> CC | M119: =IF(E119<>"",IF(AND(E119<>"GR",E119>=40,J119>=30),_xlfn.IFS(Q119>=$AG$2,$AD$19,Q119>=$AG$3,$AC$19,Q119>=$AG$4,$AB$19,Q119>=$AG$5,$AA$19,Q119>=$AG$6,$Z$19,Q119>=$AG$7,$Y$19,Q119>=$AG$8,$X$19,Q119>=$AG$9,$V$19),L119),"") -> CC | P119: 50 | Q119: 50 | R119: 0.05
A120: Öğrenci | B120: 119 | C120: 10 | D120: 72 | E120: GR | F120: 72 | G120: 10 | H120: 72 | I120: 47.2 | J120: 47.2 | K120: 2227.84 | L120: =IF(D120<>"",IF(AND(H120>=40,I120>=30),IF(AND($N$2>=$T$2,$N$2<=$U$2),_xlfn.IFS(P120>=$AD$2,$AD$1,P120>=$AC$2,$AC$1,P120>=$AB$2,$AB$1,P120>=$AA$2,$AA$1,P120>=$Z$2,$Z$1,P120>=$Y$2,$Y$1,P120>=$X$2,$X$1,P120>=$W$2,$W$1,P120<$W$2,$V$1),(IF(AND($N$2>=$T$3,$N$2<$U$3),_xlfn.IFS(P120>=$AD$3,$AD$1,P120>=$AC$3,$AC$1,P120>=$AB$3,$AB$1,P120>=$AA$3,$AA$1,P120>=$Z$3,$Z$1,P120>=$Y$3,$Y$1,P120>=$X$3,$X$1,P120>=$W$3,$W$1,P120<$W$2,$V$1),(IF(AND($N$2>=$T$4,$N$2<$U$4),_xlfn.IFS(P120>=$AD$4,$AD$1,P120>=$AC$4,$AC$1,P120>=$AB$4,$AB$1,P120>=$AA$4,$AA$1,P120>=$Z$4,$Z$1,P120>=$Y$4,$Y$1,P120>=$X$4,$X$1,P120>=$W$4,$W$1,P120<$W$2,$V$1),(IF(AND($N$2>=$T$5,$N$2<$U$5),_xlfn.IFS(P120>=$AD$5,$AD$1,P120>=$AC$5,$AC$1,P120>=$AB$5,$AB$1,P120>=$AA$5,$AA$1,P120>=$Z$5,$Z$1,P120>=$Y$5,$Y$1,P120>=$X$5,$X$1,P120>=$W$5,$W$1,P120<$W$2,$V$1),(IF(AND($N$2>=$T$6,$N$2<$U$6),_xlfn.IFS(P120>=$AD$6,$AD$1,P120>=$AC$6,$AC$1,P120>=$AB$6,$AB$1,P120>=$AA$6,$AA$1,P120>=$Z$6,$Z$1,P120>=$Y$6,$Y$1,P120>=$X$6,$X$1,P120>=$W$6,$W$1,P120<$W$2,$V$1),(IF(AND($N$2>=$T$7,$N$2<$U$7),_xlfn.IFS(P120>=$AD$7,$AD$1,P120>=$AC$7,$AC$1,P120>=$AB$7,$AB$1,P120>=$AA$7,$AA$1,P120>=$Z$7,$Z$1,P120>=$Y$7,$Y$1,P120>=$X$7,$X$1,P120>=$W$7,$W$1,P120<$W$2,$V$1),(IF(AND($N$2>=$T$8,$N$2<$U$8),_xlfn.IFS(P120>=$AD$8,$AD$1,P120>=$AC$8,$AC$1,P120>=$AB$8,$AB$1,P120>=$AA$8,$AA$1,P120>=$Z$8,$Z$1,P120>=$Y$8,$Y$1,P120>=$X$8,$X$1,P120>=$W$8,$W$1,P120<$W$2,$V$1),(IF(AND($N$2>=$T$9,$N$2<$U$9),_xlfn.IFS(P120>=$AD$9,$AD$1,P120>=$AC$9,$AC$1,P120>=$AB$9,$AB$1,P120>=$AA$9,$AA$1,P120>=$Z$9,$Z$1,P120>=$Y$9,$Y$1,P120>=$X$9,$X$1,P120>=$W$9,$W$1),$W$1))))))))))))))),IF(AND($N$2>=$T$2,$N$2<=$U$2),IF(P120>=$W$2,$W$1,$V$1),IF(AND($N$2>=$T$3,$N$2<$U$3),IF(P120>=$W$3,$W$1,$V$1),IF(AND($N$2>=$T$4,$N$2<$U$4),IF(P120>=$W$4,$W$1,$V$1),IF(AND($N$2>=$T$5,$N$2<$U$5),IF(P120>=$W$5,$W$1,$V$1),IF(AND($N$2>=$T$6,$N$2<$U$6),IF(P120>=$W$6,$W$1,$V$1),IF(AND($N$2>=$T$7,$N$2<$U$7),IF(P120>=$W$7,$W$1,$V$1),IF(AND($N$2>=$T$8,$N$2<$U$8),IF(P120>=$W$8,$W$1,$V$1),IF(AND($N$2>=$T$9,$N$2<$U$9),IF(P120>=$W$9,$W$1,$V$1),""))))))))),"") -> CC | M120: =IF(E120<>"",IF(AND(E120<>"GR",E120>=40,J120>=30),_xlfn.IFS(Q120>=$AG$2,$AD$19,Q120>=$AG$3,$AC$19,Q120>=$AG$4,$AB$19,Q120>=$AG$5,$AA$19,Q120>=$AG$6,$Z$19,Q120>=$AG$7,$Y$19,Q120>=$AG$8,$X$19,Q120>=$AG$9,$V$19),L120),"") -> CC | P120: 50 | Q120: 50 | R120: 0.03
A121: Öğrenci | B121: 120 | C121: 34 | D121: 56 | E121: GR | F121: 56 | G121: 34 | H121: 56 | I121: 47.2 | J121: 47.2 | K121: 2227.84 | L121: =IF(D121<>"",IF(AND(H121>=40,I121>=30),IF(AND($N$2>=$T$2,$N$2<=$U$2),_xlfn.IFS(P121>=$AD$2,$AD$1,P121>=$AC$2,$AC$1,P121>=$AB$2,$AB$1,P121>=$AA$2,$AA$1,P121>=$Z$2,$Z$1,P121>=$Y$2,$Y$1,P121>=$X$2,$X$1,P121>=$W$2,$W$1,P121<$W$2,$V$1),(IF(AND($N$2>=$T$3,$N$2<$U$3),_xlfn.IFS(P121>=$AD$3,$AD$1,P121>=$AC$3,$AC$1,P121>=$AB$3,$AB$1,P121>=$AA$3,$AA$1,P121>=$Z$3,$Z$1,P121>=$Y$3,$Y$1,P121>=$X$3,$X$1,P121>=$W$3,$W$1,P121<$W$2,$V$1),(IF(AND($N$2>=$T$4,$N$2<$U$4),_xlfn.IFS(P121>=$AD$4,$AD$1,P121>=$AC$4,$AC$1,P121>=$AB$4,$AB$1,P121>=$AA$4,$AA$1,P121>=$Z$4,$Z$1,P121>=$Y$4,$Y$1,P121>=$X$4,$X$1,P121>=$W$4,$W$1,P121<$W$2,$V$1),(IF(AND($N$2>=$T$5,$N$2<$U$5),_xlfn.IFS(P121>=$AD$5,$AD$1,P121>=$AC$5,$AC$1,P121>=$AB$5,$AB$1,P121>=$AA$5,$AA$1,P121>=$Z$5,$Z$1,P121>=$Y$5,$Y$1,P121>=$X$5,$X$1,P121>=$W$5,$W$1,P121<$W$2,$V$1),(IF(AND($N$2>=$T$6,$N$2<$U$6),_xlfn.IFS(P121>=$AD$6,$AD$1,P121>=$AC$6,$AC$1,P121>=$AB$6,$AB$1,P121>=$AA$6,$AA$1,P121>=$Z$6,$Z$1,P121>=$Y$6,$Y$1,P121>=$X$6,$X$1,P121>=$W$6,$W$1,P121<$W$2,$V$1),(IF(AND($N$2>=$T$7,$N$2<$U$7),_xlfn.IFS(P121>=$AD$7,$AD$1,P121>=$AC$7,$AC$1,P121>=$AB$7,$AB$1,P121>=$AA$7,$AA$1,P121>=$Z$7,$Z$1,P121>=$Y$7,$Y$1,P121>=$X$7,$X$1,P121>=$W$7,$W$1,P121<$W$2,$V$1),(IF(AND($N$2>=$T$8,$N$2<$U$8),_xlfn.IFS(P121>=$AD$8,$AD$1,P121>=$AC$8,$AC$1,P121>=$AB$8,$AB$1,P121>=$AA$8,$AA$1,P121>=$Z$8,$Z$1,P121>=$Y$8,$Y$1,P121>=$X$8,$X$1,P121>=$W$8,$W$1,P121<$W$2,$V$1),(IF(AND($N$2>=$T$9,$N$2<$U$9),_xlfn.IFS(P121>=$AD$9,$AD$1,P121>=$AC$9,$AC$1,P121>=$AB$9,$AB$1,P121>=$AA$9,$AA$1,P121>=$Z$9,$Z$1,P121>=$Y$9,$Y$1,P121>=$X$9,$X$1,P121>=$W$9,$W$1),$W$1))))))))))))))),IF(AND($N$2>=$T$2,$N$2<=$U$2),IF(P121>=$W$2,$W$1,$V$1),IF(AND($N$2>=$T$3,$N$2<$U$3),IF(P121>=$W$3,$W$1,$V$1),IF(AND($N$2>=$T$4,$N$2<$U$4),IF(P121>=$W$4,$W$1,$V$1),IF(AND($N$2>=$T$5,$N$2<$U$5),IF(P121>=$W$5,$W$1,$V$1),IF(AND($N$2>=$T$6,$N$2<$U$6),IF(P121>=$W$6,$W$1,$V$1),IF(AND($N$2>=$T$7,$N$2<$U$7),IF(P121>=$W$7,$W$1,$V$1),IF(AND($N$2>=$T$8,$N$2<$U$8),IF(P121>=$W$8,$W$1,$V$1),IF(AND($N$2>=$T$9,$N$2<$U$9),IF(P121>=$W$9,$W$1,$V$1),""))))))))),"") -> CC | M121: =IF(E121<>"",IF(AND(E121<>"GR",E121>=40,J121>=30),_xlfn.IFS(Q121>=$AG$2,$AD$19,Q121>=$AG$3,$AC$19,Q121>=$AG$4,$AB$19,Q121>=$AG$5,$AA$19,Q121>=$AG$6,$Z$19,Q121>=$AG$7,$Y$19,Q121>=$AG$8,$X$19,Q121>=$AG$9,$V$19),L121),"") -> CC | P121: 50 | Q121: 50 | R121: 0.03
A122: Öğrenci | B122: 121 | C122: 34 | D122: GR | E122: 56 | F122: 56 | G122: 34 | H122: 0 | I122: 13.6 | J122: 47.2 | K122: 184.96 | L122: =IF(D122<>"",IF(AND(H122>=40,I122>=30),IF(AND($N$2>=$T$2,$N$2<=$U$2),_xlfn.IFS(P122>=$AD$2,$AD$1,P122>=$AC$2,$AC$1,P122>=$AB$2,$AB$1,P122>=$AA$2,$AA$1,P122>=$Z$2,$Z$1,P122>=$Y$2,$Y$1,P122>=$X$2,$X$1,P122>=$W$2,$W$1,P122<$W$2,$V$1),(IF(AND($N$2>=$T$3,$N$2<$U$3),_xlfn.IFS(P122>=$AD$3,$AD$1,P122>=$AC$3,$AC$1,P122>=$AB$3,$AB$1,P122>=$AA$3,$AA$1,P122>=$Z$3,$Z$1,P122>=$Y$3,$Y$1,P122>=$X$3,$X$1,P122>=$W$3,$W$1,P122<$W$2,$V$1),(IF(AND($N$2>=$T$4,$N$2<$U$4),_xlfn.IFS(P122>=$AD$4,$AD$1,P122>=$AC$4,$AC$1,P122>=$AB$4,$AB$1,P122>=$AA$4,$AA$1,P122>=$Z$4,$Z$1,P122>=$Y$4,$Y$1,P122>=$X$4,$X$1,P122>=$W$4,$W$1,P122<$W$2,$V$1),(IF(AND($N$2>=$T$5,$N$2<$U$5),_xlfn.IFS(P122>=$AD$5,$AD$1,P122>=$AC$5,$AC$1,P122>=$AB$5,$AB$1,P122>=$AA$5,$AA$1,P122>=$Z$5,$Z$1,P122>=$Y$5,$Y$1,P122>=$X$5,$X$1,P122>=$W$5,$W$1,P122<$W$2,$V$1),(IF(AND($N$2>=$T$6,$N$2<$U$6),_xlfn.IFS(P122>=$AD$6,$AD$1,P122>=$AC$6,$AC$1,P122>=$AB$6,$AB$1,P122>=$AA$6,$AA$1,P122>=$Z$6,$Z$1,P122>=$Y$6,$Y$1,P122>=$X$6,$X$1,P122>=$W$6,$W$1,P122<$W$2,$V$1),(IF(AND($N$2>=$T$7,$N$2<$U$7),_xlfn.IFS(P122>=$AD$7,$AD$1,P122>=$AC$7,$AC$1,P122>=$AB$7,$AB$1,P122>=$AA$7,$AA$1,P122>=$Z$7,$Z$1,P122>=$Y$7,$Y$1,P122>=$X$7,$X$1,P122>=$W$7,$W$1,P122<$W$2,$V$1),(IF(AND($N$2>=$T$8,$N$2<$U$8),_xlfn.IFS(P122>=$AD$8,$AD$1,P122>=$AC$8,$AC$1,P122>=$AB$8,$AB$1,P122>=$AA$8,$AA$1,P122>=$Z$8,$Z$1,P122>=$Y$8,$Y$1,P122>=$X$8,$X$1,P122>=$W$8,$W$1,P122<$W$2,$V$1),(IF(AND($N$2>=$T$9,$N$2<$U$9),_xlfn.IFS(P122>=$AD$9,$AD$1,P122>=$AC$9,$AC$1,P122>=$AB$9,$AB$1,P122>=$AA$9,$AA$1,P122>=$Z$9,$Z$1,P122>=$Y$9,$Y$1,P122>=$X$9,$X$1,P122>=$W$9,$W$1),$W$1))))))))))))))),IF(AND($N$2>=$T$2,$N$2<=$U$2),IF(P122>=$W$2,$W$1,$V$1),IF(AND($N$2>=$T$3,$N$2<$U$3),IF(P122>=$W$3,$W$1,$V$1),IF(AND($N$2>=$T$4,$N$2<$U$4),IF(P122>=$W$4,$W$1,$V$1),IF(AND($N$2>=$T$5,$N$2<$U$5),IF(P122>=$W$5,$W$1,$V$1),IF(AND($N$2>=$T$6,$N$2<$U$6),IF(P122>=$W$6,$W$1,$V$1),IF(AND($N$2>=$T$7,$N$2<$U$7),IF(P122>=$W$7,$W$1,$V$1),IF(AND($N$2>=$T$8,$N$2<$U$8),IF(P122>=$W$8,$W$1,$V$1),IF(AND($N$2>=$T$9,$N$2<$U$9),IF(P122>=$W$9,$W$1,$V$1),""))))))))),"") -> FF | M122: =IF(E122<>"",IF(AND(E122<>"GR",E122>=40,J122>=30),_xlfn.IFS(Q122>=$AG$2,$AD$19,Q122>=$AG$3,$AC$19,Q122>=$AG$4,$AB$19,Q122>=$AG$5,$AA$19,Q122>=$AG$6,$Z$19,Q122>=$AG$7,$Y$19,Q122>=$AG$8,$X$19,Q122>=$AG$9,$V$19),L122),"") -> CC | P122: 27 | Q122: 50 | R122: -2.27
A123: Öğrenci | B123: 122 | C123: 35 | D123: 55 | E123: GR | F123: 55 | G123: 35 | H123: 55 | I123: 47 | J123: 47 | K123: 2209 | L123: =IF(D123<>"",IF(AND(H123>=40,I123>=30),IF(AND($N$2>=$T$2,$N$2<=$U$2),_xlfn.IFS(P123>=$AD$2,$AD$1,P123>=$AC$2,$AC$1,P123>=$AB$2,$AB$1,P123>=$AA$2,$AA$1,P123>=$Z$2,$Z$1,P123>=$Y$2,$Y$1,P123>=$X$2,$X$1,P123>=$W$2,$W$1,P123<$W$2,$V$1),(IF(AND($N$2>=$T$3,$N$2<$U$3),_xlfn.IFS(P123>=$AD$3,$AD$1,P123>=$AC$3,$AC$1,P123>=$AB$3,$AB$1,P123>=$AA$3,$AA$1,P123>=$Z$3,$Z$1,P123>=$Y$3,$Y$1,P123>=$X$3,$X$1,P123>=$W$3,$W$1,P123<$W$2,$V$1),(IF(AND($N$2>=$T$4,$N$2<$U$4),_xlfn.IFS(P123>=$AD$4,$AD$1,P123>=$AC$4,$AC$1,P123>=$AB$4,$AB$1,P123>=$AA$4,$AA$1,P123>=$Z$4,$Z$1,P123>=$Y$4,$Y$1,P123>=$X$4,$X$1,P123>=$W$4,$W$1,P123<$W$2,$V$1),(IF(AND($N$2>=$T$5,$N$2<$U$5),_xlfn.IFS(P123>=$AD$5,$AD$1,P123>=$AC$5,$AC$1,P123>=$AB$5,$AB$1,P123>=$AA$5,$AA$1,P123>=$Z$5,$Z$1,P123>=$Y$5,$Y$1,P123>=$X$5,$X$1,P123>=$W$5,$W$1,P123<$W$2,$V$1),(IF(AND($N$2>=$T$6,$N$2<$U$6),_xlfn.IFS(P123>=$AD$6,$AD$1,P123>=$AC$6,$AC$1,P123>=$AB$6,$AB$1,P123>=$AA$6,$AA$1,P123>=$Z$6,$Z$1,P123>=$Y$6,$Y$1,P123>=$X$6,$X$1,P123>=$W$6,$W$1,P123<$W$2,$V$1),(IF(AND($N$2>=$T$7,$N$2<$U$7),_xlfn.IFS(P123>=$AD$7,$AD$1,P123>=$AC$7,$AC$1,P123>=$AB$7,$AB$1,P123>=$AA$7,$AA$1,P123>=$Z$7,$Z$1,P123>=$Y$7,$Y$1,P123>=$X$7,$X$1,P123>=$W$7,$W$1,P123<$W$2,$V$1),(IF(AND($N$2>=$T$8,$N$2<$U$8),_xlfn.IFS(P123>=$AD$8,$AD$1,P123>=$AC$8,$AC$1,P123>=$AB$8,$AB$1,P123>=$AA$8,$AA$1,P123>=$Z$8,$Z$1,P123>=$Y$8,$Y$1,P123>=$X$8,$X$1,P123>=$W$8,$W$1,P123<$W$2,$V$1),(IF(AND($N$2>=$T$9,$N$2<$U$9),_xlfn.IFS(P123>=$AD$9,$AD$1,P123>=$AC$9,$AC$1,P123>=$AB$9,$AB$1,P123>=$AA$9,$AA$1,P123>=$Z$9,$Z$1,P123>=$Y$9,$Y$1,P123>=$X$9,$X$1,P123>=$W$9,$W$1),$W$1))))))))))))))),IF(AND($N$2>=$T$2,$N$2<=$U$2),IF(P123>=$W$2,$W$1,$V$1),IF(AND($N$2>=$T$3,$N$2<$U$3),IF(P123>=$W$3,$W$1,$V$1),IF(AND($N$2>=$T$4,$N$2<$U$4),IF(P123>=$W$4,$W$1,$V$1),IF(AND($N$2>=$T$5,$N$2<$U$5),IF(P123>=$W$5,$W$1,$V$1),IF(AND($N$2>=$T$6,$N$2<$U$6),IF(P123>=$W$6,$W$1,$V$1),IF(AND($N$2>=$T$7,$N$2<$U$7),IF(P123>=$W$7,$W$1,$V$1),IF(AND($N$2>=$T$8,$N$2<$U$8),IF(P123>=$W$8,$W$1,$V$1),IF(AND($N$2>=$T$9,$N$2<$U$9),IF(P123>=$W$9,$W$1,$V$1),""))))))))),"") -> CC | M123: =IF(E123<>"",IF(AND(E123<>"GR",E123>=40,J123>=30),_xlfn.IFS(Q123>=$AG$2,$AD$19,Q123>=$AG$3,$AC$19,Q123>=$AG$4,$AB$19,Q123>=$AG$5,$AA$19,Q123>=$AG$6,$Z$19,Q123>=$AG$7,$Y$19,Q123>=$AG$8,$X$19,Q123>=$AG$9,$V$19),L123),"") -> CC | P123: 50 | Q123: 50 | R123: 0.02
A124: Öğrenci | B124: 123 | C124: 20 | D124: 65 | E124: GR | F124: 65 | G124: 20 | H124: 65 | I124: 47 | J124: 47 | K124: 2209 | L124: =IF(D124<>"",IF(AND(H124>=40,I124>=30),IF(AND($N$2>=$T$2,$N$2<=$U$2),_xlfn.IFS(P124>=$AD$2,$AD$1,P124>=$AC$2,$AC$1,P124>=$AB$2,$AB$1,P124>=$AA$2,$AA$1,P124>=$Z$2,$Z$1,P124>=$Y$2,$Y$1,P124>=$X$2,$X$1,P124>=$W$2,$W$1,P124<$W$2,$V$1),(IF(AND($N$2>=$T$3,$N$2<$U$3),_xlfn.IFS(P124>=$AD$3,$AD$1,P124>=$AC$3,$AC$1,P124>=$AB$3,$AB$1,P124>=$AA$3,$AA$1,P124>=$Z$3,$Z$1,P124>=$Y$3,$Y$1,P124>=$X$3,$X$1,P124>=$W$3,$W$1,P124<$W$2,$V$1),(IF(AND($N$2>=$T$4,$N$2<$U$4),_xlfn.IFS(P124>=$AD$4,$AD$1,P124>=$AC$4,$AC$1,P124>=$AB$4,$AB$1,P124>=$AA$4,$AA$1,P124>=$Z$4,$Z$1,P124>=$Y$4,$Y$1,P124>=$X$4,$X$1,P124>=$W$4,$W$1,P124<$W$2,$V$1),(IF(AND($N$2>=$T$5,$N$2<$U$5),_xlfn.IFS(P124>=$AD$5,$AD$1,P124>=$AC$5,$AC$1,P124>=$AB$5,$AB$1,P124>=$AA$5,$AA$1,P124>=$Z$5,$Z$1,P124>=$Y$5,$Y$1,P124>=$X$5,$X$1,P124>=$W$5,$W$1,P124<$W$2,$V$1),(IF(AND($N$2>=$T$6,$N$2<$U$6),_xlfn.IFS(P124>=$AD$6,$AD$1,P124>=$AC$6,$AC$1,P124>=$AB$6,$AB$1,P124>=$AA$6,$AA$1,P124>=$Z$6,$Z$1,P124>=$Y$6,$Y$1,P124>=$X$6,$X$1,P124>=$W$6,$W$1,P124<$W$2,$V$1),(IF(AND($N$2>=$T$7,$N$2<$U$7),_xlfn.IFS(P124>=$AD$7,$AD$1,P124>=$AC$7,$AC$1,P124>=$AB$7,$AB$1,P124>=$AA$7,$AA$1,P124>=$Z$7,$Z$1,P124>=$Y$7,$Y$1,P124>=$X$7,$X$1,P124>=$W$7,$W$1,P124<$W$2,$V$1),(IF(AND($N$2>=$T$8,$N$2<$U$8),_xlfn.IFS(P124>=$AD$8,$AD$1,P124>=$AC$8,$AC$1,P124>=$AB$8,$AB$1,P124>=$AA$8,$AA$1,P124>=$Z$8,$Z$1,P124>=$Y$8,$Y$1,P124>=$X$8,$X$1,P124>=$W$8,$W$1,P124<$W$2,$V$1),(IF(AND($N$2>=$T$9,$N$2<$U$9),_xlfn.IFS(P124>=$AD$9,$AD$1,P124>=$AC$9,$AC$1,P124>=$AB$9,$AB$1,P124>=$AA$9,$AA$1,P124>=$Z$9,$Z$1,P124>=$Y$9,$Y$1,P124>=$X$9,$X$1,P124>=$W$9,$W$1),$W$1))))))))))))))),IF(AND($N$2>=$T$2,$N$2<=$U$2),IF(P124>=$W$2,$W$1,$V$1),IF(AND($N$2>=$T$3,$N$2<$U$3),IF(P124>=$W$3,$W$1,$V$1),IF(AND($N$2>=$T$4,$N$2<$U$4),IF(P124>=$W$4,$W$1,$V$1),IF(AND($N$2>=$T$5,$N$2<$U$5),IF(P124>=$W$5,$W$1,$V$1),IF(AND($N$2>=$T$6,$N$2<$U$6),IF(P124>=$W$6,$W$1,$V$1),IF(AND($N$2>=$T$7,$N$2<$U$7),IF(P124>=$W$7,$W$1,$V$1),IF(AND($N$2>=$T$8,$N$2<$U$8),IF(P124>=$W$8,$W$1,$V$1),IF(AND($N$2>=$T$9,$N$2<$U$9),IF(P124>=$W$9,$W$1,$V$1),""))))))))),"") -> CC | M124: =IF(E124<>"",IF(AND(E124<>"GR",E124>=40,J124>=30),_xlfn.IFS(Q124>=$AG$2,$AD$19,Q124>=$AG$3,$AC$19,Q124>=$AG$4,$AB$19,Q124>=$AG$5,$AA$19,Q124>=$AG$6,$Z$19,Q124>=$AG$7,$Y$19,Q124>=$AG$8,$X$19,Q124>=$AG$9,$V$19),L124),"") -> CC | P124: 50 | Q124: 50 | R124: 0.02
A125: Öğrenci | B125: 124 | C125: 36 | D125: 30 | E125: 54 | F125: 54 | G125: 36 | H125: 30 | I125: 32.4 | J125: 46.8 | K125: 1049.76 | L125: =IF(D125<>"",IF(AND(H125>=40,I125>=30),IF(AND($N$2>=$T$2,$N$2<=$U$2),_xlfn.IFS(P125>=$AD$2,$AD$1,P125>=$AC$2,$AC$1,P125>=$AB$2,$AB$1,P125>=$AA$2,$AA$1,P125>=$Z$2,$Z$1,P125>=$Y$2,$Y$1,P125>=$X$2,$X$1,P125>=$W$2,$W$1,P125<$W$2,$V$1),(IF(AND($N$2>=$T$3,$N$2<$U$3),_xlfn.IFS(P125>=$AD$3,$AD$1,P125>=$AC$3,$AC$1,P125>=$AB$3,$AB$1,P125>=$AA$3,$AA$1,P125>=$Z$3,$Z$1,P125>=$Y$3,$Y$1,P125>=$X$3,$X$1,P125>=$W$3,$W$1,P125<$W$2,$V$1),(IF(AND($N$2>=$T$4,$N$2<$U$4),_xlfn.IFS(P125>=$AD$4,$AD$1,P125>=$AC$4,$AC$1,P125>=$AB$4,$AB$1,P125>=$AA$4,$AA$1,P125>=$Z$4,$Z$1,P125>=$Y$4,$Y$1,P125>=$X$4,$X$1,P125>=$W$4,$W$1,P125<$W$2,$V$1),(IF(AND($N$2>=$T$5,$N$2<$U$5),_xlfn.IFS(P125>=$AD$5,$AD$1,P125>=$AC$5,$AC$1,P125>=$AB$5,$AB$1,P125>=$AA$5,$AA$1,P125>=$Z$5,$Z$1,P125>=$Y$5,$Y$1,P125>=$X$5,$X$1,P125>=$W$5,$W$1,P125<$W$2,$V$1),(IF(AND($N$2>=$T$6,$N$2<$U$6),_xlfn.IFS(P125>=$AD$6,$AD$1,P125>=$AC$6,$AC$1,P125>=$AB$6,$AB$1,P125>=$AA$6,$AA$1,P125>=$Z$6,$Z$1,P125>=$Y$6,$Y$1,P125>=$X$6,$X$1,P125>=$W$6,$W$1,P125<$W$2,$V$1),(IF(AND($N$2>=$T$7,$N$2<$U$7),_xlfn.IFS(P125>=$AD$7,$AD$1,P125>=$AC$7,$AC$1,P125>=$AB$7,$AB$1,P125>=$AA$7,$AA$1,P125>=$Z$7,$Z$1,P125>=$Y$7,$Y$1,P125>=$X$7,$X$1,P125>=$W$7,$W$1,P125<$W$2,$V$1),(IF(AND($N$2>=$T$8,$N$2<$U$8),_xlfn.IFS(P125>=$AD$8,$AD$1,P125>=$AC$8,$AC$1,P125>=$AB$8,$AB$1,P125>=$AA$8,$AA$1,P125>=$Z$8,$Z$1,P125>=$Y$8,$Y$1,P125>=$X$8,$X$1,P125>=$W$8,$W$1,P125<$W$2,$V$1),(IF(AND($N$2>=$T$9,$N$2<$U$9),_xlfn.IFS(P125>=$AD$9,$AD$1,P125>=$AC$9,$AC$1,P125>=$AB$9,$AB$1,P125>=$AA$9,$AA$1,P125>=$Z$9,$Z$1,P125>=$Y$9,$Y$1,P125>=$X$9,$X$1,P125>=$W$9,$W$1),$W$1))))))))))))))),IF(AND($N$2>=$T$2,$N$2<=$U$2),IF(P125>=$W$2,$W$1,$V$1),IF(AND($N$2>=$T$3,$N$2<$U$3),IF(P125>=$W$3,$W$1,$V$1),IF(AND($N$2>=$T$4,$N$2<$U$4),IF(P125>=$W$4,$W$1,$V$1),IF(AND($N$2>=$T$5,$N$2<$U$5),IF(P125>=$W$5,$W$1,$V$1),IF(AND($N$2>=$T$6,$N$2<$U$6),IF(P125>=$W$6,$W$1,$V$1),IF(AND($N$2>=$T$7,$N$2<$U$7),IF(P125>=$W$7,$W$1,$V$1),IF(AND($N$2>=$T$8,$N$2<$U$8),IF(P125>=$W$8,$W$1,$V$1),IF(AND($N$2>=$T$9,$N$2<$U$9),IF(P125>=$W$9,$W$1,$V$1),""))))))))),"") -> FD | M125: =IF(E125<>"",IF(AND(E125<>"GR",E125>=40,J125>=30),_xlfn.IFS(Q125>=$AG$2,$AD$19,Q125>=$AG$3,$AC$19,Q125>=$AG$4,$AB$19,Q125>=$AG$5,$AA$19,Q125>=$AG$6,$Z$19,Q125>=$AG$7,$Y$19,Q125>=$AG$8,$X$19,Q125>=$AG$9,$V$19),L125),"") -> CC | P125: 40 | Q125: 50 | R125: -0.98
A126: Öğrenci | B126: 125 | C126: 42 | D126: 50 | E126: GR | F126: 50 | G126: 42 | H126: 50 | I126: 46.8 | J126: 46.8 | K126: 2190.24 | L126: =IF(D126<>"",IF(AND(H126>=40,I126>=30),IF(AND($N$2>=$T$2,$N$2<=$U$2),_xlfn.IFS(P126>=$AD$2,$AD$1,P126>=$AC$2,$AC$1,P126>=$AB$2,$AB$1,P126>=$AA$2,$AA$1,P126>=$Z$2,$Z$1,P126>=$Y$2,$Y$1,P126>=$X$2,$X$1,P126>=$W$2,$W$1,P126<$W$2,$V$1),(IF(AND($N$2>=$T$3,$N$2<$U$3),_xlfn.IFS(P126>=$AD$3,$AD$1,P126>=$AC$3,$AC$1,P126>=$AB$3,$AB$1,P126>=$AA$3,$AA$1,P126>=$Z$3,$Z$1,P126>=$Y$3,$Y$1,P126>=$X$3,$X$1,P126>=$W$3,$W$1,P126<$W$2,$V$1),(IF(AND($N$2>=$T$4,$N$2<$U$4),_xlfn.IFS(P126>=$AD$4,$AD$1,P126>=$AC$4,$AC$1,P126>=$AB$4,$AB$1,P126>=$AA$4,$AA$1,P126>=$Z$4,$Z$1,P126>=$Y$4,$Y$1,P126>=$X$4,$X$1,P126>=$W$4,$W$1,P126<$W$2,$V$1),(IF(AND($N$2>=$T$5,$N$2<$U$5),_xlfn.IFS(P126>=$AD$5,$AD$1,P126>=$AC$5,$AC$1,P126>=$AB$5,$AB$1,P126>=$AA$5,$AA$1,P126>=$Z$5,$Z$1,P126>=$Y$5,$Y$1,P126>=$X$5,$X$1,P126>=$W$5,$W$1,P126<$W$2,$V$1),(IF(AND($N$2>=$T$6,$N$2<$U$6),_xlfn.IFS(P126>=$AD$6,$AD$1,P126>=$AC$6,$AC$1,P126>=$AB$6,$AB$1,P126>=$AA$6,$AA$1,P126>=$Z$6,$Z$1,P126>=$Y$6,$Y$1,P126>=$X$6,$X$1,P126>=$W$6,$W$1,P126<$W$2,$V$1),(IF(AND($N$2>=$T$7,$N$2<$U$7),_xlfn.IFS(P126>=$AD$7,$AD$1,P126>=$AC$7,$AC$1,P126>=$AB$7,$AB$1,P126>=$AA$7,$AA$1,P126>=$Z$7,$Z$1,P126>=$Y$7,$Y$1,P126>=$X$7,$X$1,P126>=$W$7,$W$1,P126<$W$2,$V$1),(IF(AND($N$2>=$T$8,$N$2<$U$8),_xlfn.IFS(P126>=$AD$8,$AD$1,P126>=$AC$8,$AC$1,P126>=$AB$8,$AB$1,P126>=$AA$8,$AA$1,P126>=$Z$8,$Z$1,P126>=$Y$8,$Y$1,P126>=$X$8,$X$1,P126>=$W$8,$W$1,P126<$W$2,$V$1),(IF(AND($N$2>=$T$9,$N$2<$U$9),_xlfn.IFS(P126>=$AD$9,$AD$1,P126>=$AC$9,$AC$1,P126>=$AB$9,$AB$1,P126>=$AA$9,$AA$1,P126>=$Z$9,$Z$1,P126>=$Y$9,$Y$1,P126>=$X$9,$X$1,P126>=$W$9,$W$1),$W$1))))))))))))))),IF(AND($N$2>=$T$2,$N$2<=$U$2),IF(P126>=$W$2,$W$1,$V$1),IF(AND($N$2>=$T$3,$N$2<$U$3),IF(P126>=$W$3,$W$1,$V$1),IF(AND($N$2>=$T$4,$N$2<$U$4),IF(P126>=$W$4,$W$1,$V$1),IF(AND($N$2>=$T$5,$N$2<$U$5),IF(P126>=$W$5,$W$1,$V$1),IF(AND($N$2>=$T$6,$N$2<$U$6),IF(P126>=$W$6,$W$1,$V$1),IF(AND($N$2>=$T$7,$N$2<$U$7),IF(P126>=$W$7,$W$1,$V$1),IF(AND($N$2>=$T$8,$N$2<$U$8),IF(P126>=$W$8,$W$1,$V$1),IF(AND($N$2>=$T$9,$N$2<$U$9),IF(P126>=$W$9,$W$1,$V$1),""))))))))),"") -> CC | M126: =IF(E126<>"",IF(AND(E126<>"GR",E126>=40,J126>=30),_xlfn.IFS(Q126>=$AG$2,$AD$19,Q126>=$AG$3,$AC$19,Q126>=$AG$4,$AB$19,Q126>=$AG$5,$AA$19,Q126>=$AG$6,$Z$19,Q126>=$AG$7,$Y$19,Q126>=$AG$8,$X$19,Q126>=$AG$9,$V$19),L126),"") -> CC | P126: 50 | Q126: 50 | R126: 0.01
